Workbook

Sheet Contents
B1: REGULATORY REPORTING STATEMENT
B2: =dms_TradingName -> AusNet (D)
B3: Category Analysis RIN response 2014-15
B4: CONTENTS
E7: 1. Business details | L7: 2. Expenditure
E27: 4. Alternative control services | L27: 5. Network information | S27: 6. Service & quality

Sheet Business & other details
A1: HIDE THIS COLUMN | C1: =(LOOKUP(dms_Model,dms_Model_List,dms_Worksheet_List)) -> REGULATORY REPORTING STATEMENT | L1: Data in these columns used for data validation and database purposes.
C2: =INDEX(dms_TradingNameFull_List,MATCH(dms_TradingName,dms_TradingName_List)) -> AusNet Services (D) | L2: Date last modified:
C3: =CONCATENATE("Category Analysis RIN response ",CRY) -> Category Analysis RIN response 2015 | L3: 14 April 2015 | M3: merged cell C46/47
C4: BUSINESS & OTHER DETAILS | L4: 17 April 2015 | M4: adjusted dms_RYE to automate based on dms_Model (NB: EB & CA refer to CRCP_y5)
L5: 14 May 2015 | M5: adapted this cover for use in CA & EB RINs
C7: Instructions
C8: Complete the following business details regulatory template before entering data or values in any other regulatory template. This regulatory template is linked to other cells within the spreadsheet and automatically generates column headings.
C10: SUBMISSION PARTICULARS INPUT SHEETS
C12: Entity details
C14: Short name | D14: AusNet (D)
C15: ACN / ABN | D15: =INDEX(dms_ABN_List,MATCH(dms_TradingName,dms_TradingName_List)) -> 91064651118
L17: dms_Model_List | N17: dms_Worksheet_List | P17: dms_RYE_List1 | Q17: dms_RYE_List2
C18: Business address | D18: Address 1 | F18: Level 31, 2 Southbank Boulevard | L18: CA | N18: REGULATORY REPORTING STATEMENT | P18: dms_RYE | Q18: =CONCATENATE(LEFT(CRY, 2) &IF(CRY>"2009-10",,"") &RIGHT(CRY,2)) -> 2015
E19: Address 2 | L19: CAM/Service change Backcast | N19: REGULATORY REPORTING STATEMENT | P19: dms_RYE
D20: Suburb | F20: Southbank | L20: CPI | N20: CPI | P20: dms_RYE
E21: State | F21: =INDEX(dms_State_List,MATCH(dms_TradingName,dms_TradingName_List)) -> Vic | G21: p/code | H21: 3006 | L21: EB | N21: REGULATORY REPORTING STATEMENT | P21: dms_RYE | Q21: =CONCATENATE(LEFT(CRY, 2) &IF(CRY>"2009-10",,"") &RIGHT(CRY,2)) -> 2015
L22: PTRM | N22: POST TAX REVENUE MODEL | P22: FRCP
C23: Postal address | D23: Address 1 | F23: Locked Bag 14051 | L23: Reset | N23: REGULATORY REPORTING STATEMENT | P23: FRCP
E24: Address 2 | L24: RFM | N24: ROLL FORWARD MODEL | P24: CRCP
D25: Suburb | F25: Melbourne City Mail Centre | L25: WACC | N25: WEIGHTED AVERAGE COST OF CAPITAL | P25: dms_RYE
E26: State | F26: Vic | G26: p/code | H26: 8001
L28: dms_TradingName_List | M28: dms_TradingNameFull_List | N28: dms_ABN_List | O28: dms_State_List | P28: dms_Sector_List | Q28: dms_Segment_List | R28: dms_FormControl | S28: dms_CRCPlength_List | T28: dms_FRCPlength_List | U28: dms_JurisdictionList
C29: Contact name/s | D29: Narelle Whinfield | L29: ActewAGL Distribution | M29: ActewAGL Distribution | N29: 76670568688 | O29: ACT | P29: Electricity | Q29: Distribution | R29: Revenue cap | S29: 5 | T29: 6 | U29: ACT
C30: Contact phone/s | D30: 61396956332 | L30: ActewAGL Distribution (Tx Assets) | M30: ActewAGL Distribution (Tx Assets) | N30: 76670568688 | O30: ACT | P30: Electricity | Q30: Distribution | R30: Revenue cap | S30: 5 | T30: 5 | U30: ACT
C31: Contact email address/s | D31: narelle.whinfield@ausnetservices.com.au | L31: AGN | M31: AGN | N31: 78551685 | O31: SA | P31: Gas | Q31: Distribution | R31: Revenue cap | S31: 5 | T31: 5 | U31: SA
L32: Ausgrid | M32: Ausgrid | N32: 67505337385 | O32: NSW | P32: Electricity | Q32: Distribution | R32: Revenue cap | S32: 5 | T32: 5 | U32: NSW
A33: KEEP VISIBLE FOR RESET, PTRM & RFMS | C33: Regulatory control period details | L33: Ausgrid (Tx Assets) | M33: Ausgrid (Tx Assets) | N33: 67505337385 | O33: NSW | P33: Electricity | Q33: Distribution | R33: Revenue cap | S33: 5 | T33: 5 | U33: NSW
L34: AusNet (D) | M34: AusNet Services (D) | N34: 91064651118 | O34: Vic | P34: Electricity | Q34: Distribution | R34: Revenue cap | S34: 5 | T34: 5 | U34: Vic
C35: Forthcoming regulatory control period | D35: =IF(dms_RPT="financial",VALUE(LEFT(H38,4)+1)&"-"&VALUE(MID(H38,3,2)+2),VALUE(LEFT(H38,4)+1)) -> 2016 | E35: =IF(dms_RPT="financial",VALUE(LEFT(D35,4)+1)&"-"&VALUE(MID(D35,3,2)+2),VALUE(LEFT(D35,4)+1)) -> 2017 | F35: =IF(dms_RPT="financial",VALUE(LEFT(E35,4)+1)&"-"&VALUE(MID(E35,3,2)+2),VALUE(LEFT(E35,4)+1)) -> 2018 | G35: =IF(dms_RPT="financial",VALUE(LEFT(F35,4)+1)&"-"&VALUE(MID(F35,3,2)+2),VALUE(LEFT(F35,4)+1)) -> 2019 | H35: =IF(dms_RPT="financial",VALUE(LEFT(G35,4)+1)&"-"&VALUE(MID(G35,3,2)+2),VALUE(LEFT(G35,4)+1)) -> 2020 | L35: AusNet (T) | M35: AusNet (T) | N35: 78079798173 | O35: Vic | P35: Electricity | Q35: Transmission | R35: Revenue cap | S35: 5 | T35: 5 | U35: Vic
L36: Australian Distribution Co. | M36: Australian Distribution Co. | N36: 11222333444 | O36: - | P36: Electricity | Q36: Distribution | R36: Revenue cap | S36: 5 | T36: 5 | U36: -
L37: Australian Transmission Co. | M37: Australian Transmission Co. | N37: 11222333444 | O37: - | P37: Electricity | Q37: Transmission | R37: Revenue cap | S37: 5 | T37: 5 | U37: -
C38: Current regulatory control period | D38: 2011-12 | E38: =IF(dms_RPT="financial",VALUE(LEFT(D38,4)+1)&"-"&VALUE(MID(D38,3,2)+2),VALUE(LEFT(D38,4)+1)) -> 2012 | F38: =IF(dms_RPT="financial",VALUE(LEFT(E38,4)+1)&"-"&VALUE(MID(E38,3,2)+2),VALUE(LEFT(E38,4)+1)) -> 2013 | G38: =IF(dms_RPT="financial",VALUE(LEFT(F38,4)+1)&"-"&VALUE(MID(F38,3,2)+2),VALUE(LEFT(F38,4)+1)) -> 2014 | H38: =IF(dms_RPT="financial",VALUE(LEFT(G38,4)+1)&"-"&VALUE(MID(G38,3,2)+2),VALUE(LEFT(G38,4)+1)) -> 2015 | L38: CitiPower | M38: CitiPower | N38: 76064651056 | O38: Vic | P38: Electricity | Q38: Distribution | R38: Revenue cap | S38: 5 | T38: 5 | U38: Vic
L39: Directlink | M39: Directlink | N39: 16779340889 | O39: NSW | P39: Electricity | Q39: Transmission | R39: Revenue cap | S39: 10 | T39: 5 | U39: Qld
L40: ElectraNet | M40: ElectraNet | N40: 41094482416 | O40: SA | P40: Electricity | Q40: Transmission | R40: Revenue cap | S40: 5 | T40: 5 | U40: SA
C41: Previous regulatory control period | D41: =IF(dms_RPT="financial",VALUE(LEFT(E41,4)-1)&"-"&TEXT(VALUE(MID(E41,3,2)),"0#"),VALUE(LEFT(E41,4)+1)) -> 2014 | E41: =IF(dms_RPT="financial",VALUE(LEFT(F41,4)-1)&"-"&TEXT(VALUE(MID(F41,3,2)),"0#"),VALUE(LEFT(F41,4)+1)) -> 2013 | F41: =IF(dms_RPT="financial",VALUE(LEFT(G41,4)-1)&"-"&TEXT(VALUE(MID(G41,3,2)),"0#"),VALUE(LEFT(G41,4)+1)) -> 2012 | G41: =IF(dms_RPT="financial",VALUE(LEFT(H41,4)-1)&"-"&TEXT(VALUE(MID(H41,3,2)),"0#"),VALUE(LEFT(H41,4)+1)) -> 2011 | H41: =IF(dms_RPT="financial",VALUE(LEFT(D38,4)-1)&"-"&VALUE(MID(D38,3,2)),VALUE(LEFT(D38,4)-1)) -> 2010 | L41: Endeavour Energy | M41: Endeavour Energy | N41: 59253130878 | O41: NSW | P41: Electricity | Q41: Distribution | R41: Revenue cap | S41: 5 | T41: 5 | U41: NSW
L42: Energex | M42: Energex | N42: 40078849055 | O42: Qld | P42: Electricity | Q42: Distribution | R42: Revenue cap | S42: 5 | T42: 5 | U42: Qld
L43: Ergon Energy | M43: Ergon Energy | N43: 50087646062 | O43: Qld | P43: Electricity | Q43: Distribution | R43: Revenue cap | S43: 5 | T43: 5 | U43: Qld
A44: KEEP VISIBLE FOR CA & EB ONLY | L44: Essential Energy | M44: Essential Energy | N44: 37428185226 | O44: NSW | P44: Electricity | Q44: Distribution | R44: Revenue cap | S44: 5 | T44: 5 | U44: NSW
C45: Current regulatory year | D45: 2015 | L45: Jemena Electricity | M45: Jemena Electricity | N45: 82064651083 | O45: Vic | P45: Electricity | Q45: Distribution | R45: Revenue cap | S45: 5 | T45: 5 | U45: Vic
L46: Murraylink | M46: Murraylink | N46: 79181207909 | O46: NSW | P46: Electricity | Q46: Transmission | R46: Revenue cap | S46: 5 | T46: 5 | U46: SA
L47: Powercor Australia | M47: Powercor Australia | N47: 89064651109 | O47: Vic | P47: Electricity | Q47: Distribution | R47: Revenue cap | S47: 5 | T47: 5 | U47: Vic
L48: Powerlink | M48: Powerlink | N48: 82078849233 | O48: Qld | P48: Electricity | Q48: Transmission | R48: Revenue cap | S48: 5 | T48: 5 | U48: Qld
L49: Qld,SA &ACT Gas Reset | M49: Qld,SA &ACT Gas Reset | N49: 22222222222 | O49: - | P49: Gas | Q49: Distribution | R49: ? | S49: 5 | T49: 5 | U49: -
C50: Sector | D50: =INDEX(dms_Sector_List,MATCH(dms_TradingName,dms_TradingName_List)) -> Electricity | L50: SA Power Networks | M50: SA Power Networks | N50: 13332330749 | O50: SA | P50: Electricity | Q50: Distribution | R50: Revenue cap | S50: 5 | T50: 5 | U50: SA
C51: Segment | D51: =INDEX(dms_Segment_List,MATCH(dms_TradingName,dms_TradingName_List)) -> Distribution | L51: TasNetworks (D) | M51: TasNetworks (D) | N51: 24167357299 | O51: Tas | P51: Electricity | Q51: Distribution | R51: Revenue cap | S51: 5 | T51: 5 | U51: Tas
C52: Source | D52: Reporting | L52: TasNetworks (T) | M52: TasNetworks (T) | N52: 24167357299 | O52: Tas | P52: Electricity | Q52: Transmission | R52: Revenue cap | S52: 5 | T52: 5 | U52: Tas
C53: Regulatory Year Ending | D53: =(LOOKUP(dms_Model,dms_Model_List,dms_RYE_List2)) -> 2015 | L53: TransGrid | M53: TransGrid | N53: 19622755774 | O53: NSW | P53: Electricity | Q53: Transmission | R53: Revenue cap | S53: 5 | T53: 5 | U53: NSW
C54: Reporting Period Type | D54: =IF(LEN(CRY)>4,"Financial","Calendar") -> Calendar | E54: NB: this field is set from CRY for CA & EB | L54: United Energy | M54: United Energy | N54: 70064651029 | O54: Vic | P54: Electricity | Q54: Distribution | R54: Revenue cap | S54: 5 | T54: 5 | U54: Vic
C55: Model or RIN Type | D55: CA | L55: Victorian DNSP Backcasting | M55: Victorian DNSP Backcasting | N55: 33333333666 | O55: Vic | P55: Electricity | Q55: Distribution | R55: ? | S55: 5 | T55: 5 | U55: Vic
C56: Security Classification | D56: Public | L56: Victorian DNSP Reset | M56: Victorian DNSP Reset | N56: 33333333333 | O56: Vic | P56: Electricity | Q56: Distribution | R56: ? | S56: 5 | T56: 5 | U56: Vic
C57: Data quality (actual, estimate, public, consolidated) | D57: Public
C58: EBSS - First application of scheme in forthcoming period? | D58: No
C59: Amended RIN submission - amendment reason
A60: HIDE THESE ROWS | C60: Template - version no. | D60: 3
C61: Dollar $ real (the last month before the FRCP_y1) | D61: =CONCATENATE(IF(dms_RPT="Financial","June ","December "),(dms_RYE)) -> December 2015 | L61: dms_SourceList | M61: dms_FormControl
C62: Form of control | D62: =INDEX(dms_FormControl_List,MATCH(dms_TradingName,dms_TradingName_List)) -> Revenue cap | L62: After appeal | M62: Revenue cap
C63: Length of current reg control period | D63: =INDEX(dms_CRCPlength_List,MATCH(dms_TradingName,dms_TradingName_List)) -> 5 | L63: Draft decision | M63: Revenue yield
C64: Length of forthcoming reg control period | D64: =INDEX(dms_FRCPlength_List,MATCH(dms_TradingName,dms_TradingName_List)) -> 5 | L64: Final decision | M64: Weighted average price cap
C65: RIN response - version no. | D65: 1 | L65: Pass through decision
C66: Jurisdiction | D66: =INDEX(dms_JurisdictionList,MATCH(dms_TradingName,dms_TradingName_List)) -> Vic | L66: PTRM annual update
L67: PTRM interim update 1
L68: PTRM interim update 2
L69: PTRM interim update 3
L70: PTRM interim update 4
L71: Regulatory proposal
L72: Reporting
L73: Revised regulatory proposal
L74: RFM annual update
L75: WACC annual update
L79: Notes
L80: RFM - Base year is usually CRCP_y1 | M80: EG. Victorian 2016-20 - base year = 2011
L81: RFM - Form of Control Field is not relevant
L82: PTRM - capture base year input by NSP | M82: ='[Published version - PTRM - TNSP - version 3 - January 2015 - Appendix A.xlsm]PTRM input'!Q7

Sheet 2.1 Expenditure summary
B1: =(LOOKUP(dms_Model,dms_Model_List,dms_Worksheet_List)) -> REGULATORY REPORTING STATEMENT
B2: =INDEX(dms_TradingNameFull_List,MATCH(dms_TradingName,dms_TradingName_List)) -> AusNet Services (D)
B3: =CONCATENATE("Category Analysis RIN response ",CRY) -> Category Analysis RIN response 2015
B4: 2.1 EXPENDITURE SUMMARY & RECONCILIATION
B11: TABLE 2.1.1 - STANDARD CONTROL SERVICES CAPEX
C14: Actual ($0's)
C15: =CRY -> 2015
A16: ED_EXP211_00001 | B16: Replacement expenditure | C16: 125805826.5
A17: ED_EXP211_00002 | B17: Connections | C17: 56410555.98
A18: ED_EXP211_00003 | B18: Augmentation Expenditure | C18: 69732634.11
A19: ED_EXP211_00004 | B19: Non-network | C19: 34271200.49
A20: ED_EXP211_00005 | B20: capitalised network overheads | C20: 30709732.81
A21: ED_EXP211_00006 | B21: capitalised corporate overheads | C21: 11983594.54
A22: ED_EXP211_00007 | B22: Metering | C22: 0
A23: ED_EXP211_00008 | B23: Public Lighting | C23: 0
A24: ED_EXP211_00002
A25: ED_EXP211_00003
A26: ED_EXP211_00004
A27: ED_EXP211_00005
A28: ED_EXP211_00006
A29: ED_EXP211_00007
A30: ED_EXP211_00008
A31: ED_EXP211_00009 | B31: balancing item | C31: 3056783.697
A32: ED_EXP211_00010 | B32: TOTAL GROSS CAPEX (includes capcons) | C32: =+SUM(C16:C31) -> 331970328.2
A33: ED_EXP211_00011 | B33: capcons | C33: -24788203.14
B35: TABLE 2.1.2 - STANDARD CONTROL SERVICES OPEX
C38: Actual ($0's)
C39: =CRY -> 2015
A40: ED_EXP212_00001 | B40: Vegetation management | C40: 37819979.09
A41: ED_EXP212_00002 | B41: Maintenance | C41: 22599989.44
A42: ED_EXP212_00003 | B42: Emergency response | C42: 15404957.92
A43: ED_EXP212_00004 | B43: Non-network | C43: 40627092.04
A44: ED_EXP212_00005 | B44: network overheads | C44: 49882333.17
A45: ED_EXP212_00006 | B45: corporate overheads | C45: 40128130.49
A46: ED_EXP212_00007 | B46: Metering | C46: 0
A47: ED_EXP212_00008 | B47: Public Lighting | C47: 0
A48: ED_EXP211_00002
A49: ED_EXP211_00003
A50: ED_EXP211_00004
A51: ED_EXP211_00005
A52: ED_EXP211_00006
A53: ED_EXP211_00007
A54: ED_EXP211_00008
A55: ED_EXP212_00009 | B55: balancing item | C55: 21140.2677
B56: TOTAL OPEX | C56: =+SUM(C40:C55) -> 206483622.4
B58: TABLE 2.1.3 - ALTERNATIVE CONTROL SERVICES CAPEX
C61: Actual ($0's)
C62: =CRY -> 2015
A63: ED_EXP213_00001 | B63: Connections | C63: 2810115.543
A64: ED_EXP213_00002 | B64: capitalised network overheads | C64: 294104.2983
A65: ED_EXP213_00003 | B65: capitalised corporate overheads | C65: 3141436.203
A66: ED_EXP213_00004 | B66: Metering | C66: 57333014.01
A67: ED_EXP213_00005 | B67: Public lighting | C67: 2534364.331
A68: ED_EXP213_00006 | B68: Fee and quoted | C68: 2810115.54
A69: ED_EXP211_00002
A70: ED_EXP211_00003
A71: ED_EXP211_00004
A72: ED_EXP211_00005
A73: ED_EXP211_00006
A74: ED_EXP211_00007
A75: ED_EXP211_00008
A76: ED_EXP213_00007 | B76: balancing item | C76: -3702874.023
B77: TOTAL CAPEX | C77: =+SUM(C63:C76) -> 65220275.91
B79: TABLE 2.1.4 - ALTERNATIVE CONTROL SERVICES OPEX
C82: Actual ($0's)
C83: =CRY -> 2015
A84: ED_EXP214_00001 | B84: Connections | C84: 0
A85: ED_EXP214_00002 | B85: network overheads | C85: 0
A86: ED_EXP214_00003 | B86: corporate overheads | C86: 807367.75
A87: ED_EXP214_00004 | B87: Metering | C87: 42182004.53
A88: ED_EXP214_00005 | B88: Public lighting | C88: 2062792.87
A89: ED_EXP214_00006 | B89: Fee and quoted | C89: 9320593.66
A90: ED_EXP211_00002
A91: ED_EXP211_00003
A92: ED_EXP211_00004
A93: ED_EXP211_00005
A94: ED_EXP211_00006
A95: ED_EXP211_00007
A96: ED_EXP211_00008
A97: ED_EXP214_00007 | B97: balancing item
B98: TOTAL OPEX | C98: =+SUM(C84:C97) -> 54372758.81
B100: TABLE 2.1.5 - DUAL FUNCTION ASSETS CAPEX
C103: Actual ($0's)
C104: =CRY -> 2015
A105: ED_EXP215_00001 | B105: Replacement expenditure | C105: 0
A106: ED_EXP215_00002 | B106: Connections | C106: 0
A107: ED_EXP215_00003 | B107: Augmentation Expenditure | C107: 0
A108: ED_EXP215_00004 | B108: Non-network | C108: 0
A109: ED_EXP215_00005 | B109: Capitalised network overheads | C109: 0
A110: ED_EXP215_00006 | B110: Capitalised corporate overheads | C110: 0
A111: ED_EXP211_00002
A112: ED_EXP211_00003
A113: ED_EXP211_00004
A114: ED_EXP211_00005
A115: ED_EXP211_00006
A116: ED_EXP211_00007
A117: ED_EXP211_00008
A118: ED_EXP215_00007 | B118: balancing item | C118: 0
A119: ED_EXP215_00008 | B119: TOTAL GROSS CAPEX (includes capcons) | C119: =SUM(C105:C118) -> 0
A120: ED_EXP215_00009 | B120: capcons
B122: TABLE 2.1.6 - DUAL FUNCTION ASSETS OPEX
C125: Actual ($0's)
C126: =CRY -> 2015
A127: ED_EXP216_00001 | B127: Vegetation management | C127: 0
A128: ED_EXP216_00002 | B128: Maintenance | C128: 0
A129: ED_EXP216_00003 | B129: Emergency response | C129: 0
A130: ED_EXP216_00004 | B130: Non-network | C130: 0
A131: ED_EXP216_00005 | B131: Network overheads | C131: 0
A132: ED_EXP216_00006 | B132: Corporate overheads | C132: 0
A133: ED_EXP211_00002
A134: ED_EXP211_00003
A135: ED_EXP211_00004
A136: ED_EXP211_00005
A137: ED_EXP211_00006
A138: ED_EXP211_00007
A139: ED_EXP211_00008
A140: ED_EXP216_00007 | B140: balancing item | C140: 0
B141: TOTAL OPEX | C141: =SUM(C127:C140) -> 0

Sheet 2.2 Repex
B1: =(LOOKUP(dms_Model,dms_Model_List,dms_Worksheet_List)) -> REGULATORY REPORTING STATEMENT
B2: =INDEX(dms_TradingNameFull_List,MATCH(dms_TradingName,dms_TradingName_List)) -> AusNet Services (D)
B3: =CONCATENATE("Category Analysis RIN response ",CRY) -> Category Analysis RIN response 2015
B4: 2.2 REPEX
B6: TABLE 2.2.1 - REPLACEMENT EXPENDITURE, VOLUMES AND ASSET FAILURES BY ASSET CATEGORY | H6: Table 2.2.2 - SELECTED ASSET CHARACTERISTICS
D9: EXPENDITURE ($0's) | E9: ASSET REPLACEMENTS | F9: ASSET FAILURES | J9: ASSET VOLUMES CURRENTLY IN COMMISSION | K9: ASSET REPLACEMENTS
B10: ASSET GROUP | C10: ASSET CATEGORY | D10: =CRY -> 2015 | E10: =CRY -> 2015 | F10: =CRY -> 2015 | H10: ASSET GROUP | I10: METRIC | J10: =CRY -> 2015 | K10: =CRY -> 2015
A11: ED_REP221_00001 | B11: POLES BY: HIGHEST OPERATING VOLTAGE ; MATERIAL TYPE; STAKING (IF WOOD) | C11: Staking of a wooden pole | D11: 1779062.462 | E11: 4004 | F11: 0 | G11: ED_REP222_00001 | H11: TOTAL POLES BY: FEEDER TYPE | I11: Total CBD poles | J11: 0 | K11: 0
A12: ED_REP221_00002 | C12: ˂ = 1 kV; Wood | D12: 5586203.679 | E12: 1378 | F12: 3316 | G12: ED_REP222_00002 | I12: Total urban poles | J12: 22543.241 | K12: 223.7784063
A13: ED_REP221_00003 | C13: > 1 kV & < = 11 kV; Wood | D13: 0 | E13: 0 | F13: 0 | G13: ED_REP222_00003 | I13: Total rural long poles | J13: 222363.4982 | K13: 2207.320112
A14: ED_REP221_00004 | C14: ˃ 11 kV & < = 22 kV; Wood | D14: 12705144.89 | E14: 747 | F14: 1797 | G14: ED_REP222_00004 | I14: Total rural short poles | J14: 133971.2608 | K14: 1329.8831
A15: ED_REP221_00005 | C15: > 22 kV & < = 66 kV; Wood | D15: 1717828.812 | E15: 204 | F15: 491 | G15: ED_REP222_00005 | H15: OVERHEAD CONDUCTORS BY: CONDUCTOR LENGTH BY FEEDER TYPE | I15: Conductors CBD (km) | J15: 0 | K15: 0
A16: ED_REP221_00006 | C16: > 66 kV & < = 132 kV; Wood | D16: 0 | E16: 0 | F16: 0 | G16: ED_REP222_00006 | I16: Conductors urban (km) | J16: 2275.470817 | K16: 33.98920796
A17: ED_REP221_00007 | C17: > 132 kV; Wood | D17: 0 | E17: 0 | F17: 0 | G17: ED_REP222_00007 | I17: Conductors rural long (km) | J17: 22444.93819 | K17: 335.2649773
A18: ED_REP221_00008 | C18: ˂ = 1 kV; Concrete | D18: 1443592.203 | E18: 356 | F18: 857 | G18: ED_REP222_00008 | I18: Conductors rural short (km) | J18: 13522.798 | K18: 201.9930073
A19: ED_REP221_00009 | C19: > 1 kV & < = 11 kV; Concrete | D19: 0 | E19: 0 | F19: 0 | G19: ED_REP222_00009 | H19: OVERHEAD CONDUCTORS BY: CONDUCTOR LENGTH MATERIAL TYPE | I19: OH conductor LV ABC | J19: 767.0749941 | K19: 11.45796786
A20: ED_REP221_00010 | C20: ˃ 11 kV & < = 22 kV; Concrete | D20: 6848817.086 | E20: 403 | F20: 970 | G20: ED_REP222_00010 | I20: OH conductor steel | J20: 17448.51567 | K20: 260.6323154
A21: ED_REP221_00011 | C21: > 22 kV & < = 66 kV; Concrete | D21: 1222539.023 | E21: 147 | F21: 354 | G21: ED_REP222_00011 | I21: OH conductor ACSR | J21: 12084.80525 | K21: 180.5133935
A22: ED_REP221_00012 | C22: > 66 kV & < = 132 kV; Concrete | D22: 0 | E22: 0 | F22: 0 | G22: ED_REP222_00012 | I22: OH conductor AAAC | J22: 2.344628973 | K22: 0.03502223855
A23: ED_REP221_00013 | C23: > 132 kV; Concrete | D23: 0 | E23: 0 | F23: 0 | G23: ED_REP222_00013 | I23: OH conductor AAC | J23: 7939.962821 | K23: 118.6009706
A24: ED_REP221_00014 | C24: ˂ = 1 kV; Steel | D24: 2126186.511 | E24: 524 | F24: 1261 | G24: ED_REP222_00014 | I24: OH conductor HDBC | J24: 0.5036356897 | K24: 0.007522917045
A25: ED_REP221_00015 | C25: > 1 kV & < = 11 kV; Steel | D25: 0 | E25: 0 | F25: 0 | G25: ED_REP222_00015 | I25: Other | J25: 0 | K25: 0
A26: ED_REP221_00016 | C26: ˃ 11 kV & < = 22 kV; Steel | D26: 2787.547283 | E26: 0 | F26: 0 | G26: ED_REP222_00016 | H26: UNDERGROUND CABLES BY: CABLE LENGTH BY FEEDER TYPE | I26: Cable CBD (km) | J26: 410.1373884 | K26: 1.717927994
A27: ED_REP221_00017 | C27: > 22 kV & < = 66 kV; Steel | D27: 0 | E27: 0 | F27: 0 | G27: ED_REP222_00017 | I27: Cable urban (km) | J27: 3480.824941 | K27: 14.5800085
A28: ED_REP221_00018 | C28: > 66 kV & < = 132 kV; Steel | D28: 0 | E28: 0 | F28: 0 | G28: ED_REP222_00018 | I28: Cable rural long (km) | J28: 2074.972671 | K28: 8.691364747
A29: ED_REP221_00019 | C29: > 132 kV; Steel | D29: 0 | E29: 0 | F29: 0 | G29: ED_REP222_00019 | I29: Cable rural short (km) | J29: 0 | K29: 0
A30: ED_REP221_00020 | C30: Other | D30: 0 | E30: 0 | F30: 0 | G30: ED_REP222_00020 | H30: TRANSFORMERS BY: TOTAL MVA | I30: Total MVA replaced | J30: 8649.48 | K30: 199.81
A31: ED_REP221_00021 | B31: POLE TOP STRUCTURES BY: HIGHEST OPERATING VOLTAGE | C31: ˂ = 1 kV | D31: 4783968.4 | E31: 2181 | F31: 8356 | G31: ED_REP222_00021 | I31: Total MVA disposed of | J31: 0 | K31: 162.01
A32: ED_REP221_00022 | C32: > 1 kV & < = 11 kV | D32: 4129.862679 | E32: 1 | F32: 4
A33: ED_REP221_00023 | C33: ˃ 11 kV & < = 22 kV | D33: 10608463.33 | E33: 3385 | F33: 12969
A34: ED_REP221_00024 | C34: > 22 kV & < = 66 kV | D34: 564416.5709 | E34: 169 | F34: 647
A35: ED_REP221_00025 | C35: > 66 kV & < = 132 kV | D35: 0 | E35: 0 | F35: 0
A36: ED_REP221_00026 | C36: > 132 kV | D36: 0 | E36: 0 | F36: 0
A37: ED_REP221_00027 | C37: Other | D37: 0 | E37: 0 | F37: 0
A38: ED_REP221_00028 | B38: OVERHEAD CONDUCTORS BY: HIGHEST OPERATING VOLTAGE; NUMBER OF PHASES (AT HV) | C38: ˂ = 1 kV | D38: 5358724.53 | E38: 93 | F38: 2243
A39: ED_REP221_00029 | C39: > 1 kV & < = 11 kV | D39: 59270.1212 | E39: 1 | F39: 24
A40: ED_REP221_00030 | C40: ˃ 11 kV & < = 22 kV ; SWER | D40: 11810717.32 | E40: 212 | F40: 5113
A41: ED_REP221_00031 | C41: ˃ 11 kV & < = 22 kV ; Single-Phase | D41: 8157347.663 | E41: 81 | F41: 1953
A42: ED_REP221_00032 | C42: ˃ 11 kV & < = 22 kV ; Multiple-Phase | D42: 16846424.47 | E42: 167 | F42: 4027
A43: ED_REP221_00033 | C43: > 22 kV & < = 66 kV | D43: 1972675.516 | E43: 17 | F43: 410
A44: ED_REP221_00034 | C44: > 66 kV & < = 132 kV | D44: 0 | E44: 0 | F44: 0
A45: ED_REP221_00035 | C45: > 132 kV | D45: 0 | E45: 0 | F45: 0
A46: ED_REP221_00036 | C46: Other | D46: 0 | E46: 0 | F46: 0
A47: ED_REP221_00037 | B47: UNDERGROUND CABLES BY: HIGHEST OPERATING VOLTAGE | C47: ˂ = 1 kV | D47: 4494670.345 | E47: 20 | F47: 0
A48: ED_REP221_00038 | C48: > 1 kV & < = 11 kV | D48: 4996.801416 | E48: 0 | F48: 0
A49: ED_REP221_00039 | C49: > 11 kV & < = 22 kV | D49: 2379252.407 | E49: 5 | F49: 0
A50: ED_REP221_00040 | C50: > 22 kV & < = 33 kV | D50: 0 | E50: 0 | F50: 0
A51: ED_REP221_00041 | C51: > 33 kV & < = 66 kV | D51: 12080.77609 | E51: 0 | F51: 0
A52: ED_REP221_00042 | C52: > 66 kV & < = 132 kV | D52: 0 | E52: 0 | F52: 0
A53: ED_REP221_00043 | C53: > 132 kV | D53: 0 | E53: 0 | F53: 0
A54: ED_REP221_00044 | C54: Other | D54: 0 | E54: 0 | F54: 0
A55: ED_REP221_00045 | B55: SERVICE LINES BY: CONNECTION VOLTAGE; CUSTOMER TYPE; CONNECTION COMPLEXITY | C55: ˂ = 11 kV ; Residential ; Simple Type | D55: 1932315.914 | E55: 1288 | F55: 7326
A56: ED_REP221_00046 | C56: ˂ = 11 kV ; Commercial & Industrial ; Simple Type | D56: 204850.608 | E56: 137 | F56: 779
A57: ED_REP221_00047 | C57: ˂ = 11 kV ; Residential ; Complex Type | D57: 0 | E57: 0 | F57: 0
A58: ED_REP221_00048 | C58: ˂ = 11 kV ; Commercial & Industrial ; Complex Type | D58: 0 | E58: 0 | F58: 0
A59: ED_REP221_00049 | C59: ˂ = 11 kV ; Subdivision ; Complex Type | D59: 0 | E59: 0 | F59: 0
A60: ED_REP221_00050 | C60: > 11 kV & < = 22 kV ; Commercial & Industrial | D60: 0 | E60: 0 | F60: 0
A61: ED_REP221_00051 | C61: > 11 kV & < = 22 kV ; Subdivision | D61: 0 | E61: 0 | F61: 0
A62: ED_REP221_00052 | C62: > 22 kV & < = 33 kV ; Commercial & Industrial | D62: 0 | E62: 0 | F62: 0
A63: ED_REP221_00053 | C63: > 22 kV & < = 33 kV ; Subdivision | D63: 0 | E63: 0 | F63: 0
A64: ED_REP221_00054 | C64: > 33 kV & < = 66 kV ; Commercial & Industrial | D64: 0 | E64: 0 | F64: 0
A65: ED_REP221_00055 | C65: > 33 kV & < = 66 kV ; Subdivision | D65: 0 | E65: 0 | F65: 0
A66: ED_REP221_00056 | C66: > 66 kV & < = 132 kV ; Commercial & Industrial | D66: 0 | E66: 0 | F66: 0
A67: ED_REP221_00057 | C67: > 66 kV & < = 132 kV ; Subdivision | D67: 0 | E67: 0 | F67: 0
A68: ED_REP221_00058 | C68: > 132 kV ; Commercial & Industrial | D68: 0 | E68: 0 | F68: 0
A69: ED_REP221_00059 | C69: > 132 kV ; Subdivision | D69: 0 | E69: 0 | F69: 0
A70: ED_REP221_00060 | C70: Other | D70: 0 | E70: 0 | F70: 0
A71: ED_REP221_00061 | B71: TRANSFORMERS BY: MOUNTING TYPE; HIGHEST OPERATING VOLTAGE ; AMPERE RATING; NUMBER OF PHASES (AT LV) | C71: Pole Mounted ; < = 22kV ; < = 60 kVA ; Single Phase | D71: 681863.3455 | E71: 56 | F71: 1313
A72: ED_REP221_00062 | C72: Pole Mounted ; < = 22kV ; > 60 kVA and < = 600 kVA ; Single Phase | D72: 2755.022029 | E72: 0 | F72: 0
A73: ED_REP221_00063 | C73: Pole Mounted ; < = 22kV ; > 600 kVA ; Single Phase | D73: 0 | E73: 0 | F73: 0
A74: ED_REP221_00064 | C74: Pole Mounted ; < = 22kV ; < = 60 kVA ; Multiple Phase | D74: 792553.6576 | E74: 68 | F74: 1595
A75: ED_REP221_00065 | C75: Pole Mounted ; < = 22kV ; > 60 kVA and < = 600 kVA ; Multiple Phase | D75: 214448.652 | E75: 18 | F75: 422
A76: ED_REP221_00066 | C76: Pole Mounted ; < = 22kV ; > 600 kVA ; Multiple Phase | D76: 161.0109175 | E76: 0 | F76: 0
A77: ED_REP221_00073 | C77: Kiosk Mounted ; < = 22kV ; < = 60 kVA ; Single Phase | D77: 3567.839738 | E77: 1 | F77: 23
A78: ED_REP221_00074 | C78: Kiosk Mounted ; < = 22kV ; > 60 kVA and < = 600 kVA ; Single Phase | D78: 0 | E78: 0 | F78: 0
A79: ED_REP221_00075 | C79: Kiosk Mounted ; < = 22kV ; > 600 kVA ; Single Phase | D79: 0 | E79: 0 | F79: 0
A80: ED_REP221_00076 | C80: Kiosk Mounted ; < = 22kV ; < = 60 kVA ; Multiple Phase | D80: 20914.48343 | E80: 1 | F80: 23
A81: ED_REP221_00077 | C81: Kiosk Mounted ; < = 22kV ; > 60 kVA and < = 600 kVA ; Multiple Phase | D81: 46711.05618 | E81: 3 | F81: 70
A82: ED_REP221_00078 | C82: Kiosk Mounted ; < = 22kV ; > 600 kVA ; Multiple Phase | D82: 4096.833345 | E82: 0 | F82: 0
A83: ED_REP221_00085 | C83: Ground Outdoor / Indoor Chamber Mounted; ˂ 22 kV ; < = 60 kVA ; Single Phase | D83: 0 | E83: 0 | F83: 0
A84: ED_REP221_00086 | C84: Ground Outdoor / Indoor Chamber Mounted; ˂ 22 kV ; > 60 kVA and < = 600 kVA ; Single Phase | D84: 0 | E84: 0 | F84: 0
A85: ED_REP221_00087 | C85: Ground Outdoor / Indoor Chamber Mounted; ˂ 22 kV ; > 600 kVA ; Single Phase | D85: 0 | E85: 0 | F85: 0
A86: ED_REP221_00088 | C86: Ground Outdoor / Indoor Chamber Mounted; ˂ 22 kV ; < = 60 kVA ; Multiple Phase | D86: 17.89010194 | E86: 0 | F86: 0
A87: ED_REP221_00089 | C87: Ground Outdoor / Indoor Chamber Mounted; ˂ 22 kV ; > 60 kVA and < = 600 kVA ; Multiple Phase | D87: 125.2307136 | E87: 0 | F87: 0
A88: ED_REP221_00090 | C88: Ground Outdoor / Indoor Chamber Mounted; ˂ 22 kV ; > 600 kVA ; Multiple Phase | D88: 200244.3418 | E88: 2 | F88: 47
A89: ED_REP221_00091 | C89: Ground Outdoor / Indoor Chamber Mounted; > = 22 kV & < = 33 kV ; < = 15 MVA | D89: 149913.511 | E89: 1 | F89: 23
A90: ED_REP221_00092 | C90: Ground Outdoor / Indoor Chamber Mounted; > = 22 kV & < = 33 kV ; > 15 MVA and < = 40 MVA | D90: 0 | E90: 0 | F90: 0
A91: ED_REP221_00093 | C91: Ground Outdoor / Indoor Chamber Mounted; > = 22 kV & < = 33 kV ; > 40 MVA | D91: 0 | E91: 0 | F91: 0
A92: ED_REP221_00094 | C92: Ground Outdoor / Indoor Chamber Mounted; > 33 kV & < = 66 kV ; < = 15 MVA | D92: 375060.8807 | E92: 0 | F92: 0
A93: ED_REP221_00095 | C93: Ground Outdoor / Indoor Chamber Mounted; > 33 kV & < = 66 kV ; > 15 MVA and < = 40 MVA | D93: 3955681.395 | E93: 3 | F93: 70
A94: ED_REP221_00096 | C94: Ground Outdoor / Indoor Chamber Mounted; > 33 kV & < = 66 kV ; > 40 MVA | D94: 34485.68427 | E94: 0 | F94: 0
A95: ED_REP221_00097 | C95: Ground Outdoor / Indoor Chamber Mounted; > 66 kV & < = 132 kV ; < = 100 MVA | D95: 0 | E95: 0 | F95: 0
A96: ED_REP221_00098 | C96: Ground Outdoor / Indoor Chamber Mounted; > 66 kV & < = 132 kV ; > 100 MVA | D96: 0 | E96: 0 | F96: 0
A97: ED_REP221_00099 | C97: Ground Outdoor / Indoor Chamber Mounted; > 132 kV ; < = 100 MVA | D97: 0 | E97: 0 | F97: 0
A98: ED_REP221_00100 | C98: Ground Outdoor / Indoor Chamber Mounted; > 132 kV ; > 100 MVA | D98: 0 | E98: 0 | F98: 0
A99: ED_REP221_00101 | C99: Other | D99: 0 | E99: 0 | F99: 0
A100: ED_REP221_00102 | B100: SWITCHGEAR BY: HIGHEST OPERATING VOLTAGE ; SWITCH FUNCTION | C100: ˂ = 11 kV ; FUSE | D100: 0 | E100: 0 | F100: 0
A101: ED_REP221_00103 | C101: ˂ = 11 kV ; Switch | D101: 24047.09142 | E101: 2 | F101: 4
A102: ED_REP221_00104 | C102: ˂ = 11 kV ; Circuit Breaker | D102: 0 | E102: 0 | F102: 0
A103: ED_REP221_00105 | C103: > 11 kV & < = 22 kV ; Switch | D103: 5083695.316 | E103: 417 | F103: 830
A104: ED_REP221_00106 | C104: > 11 kV & < = 22 kV ; Circuit Breaker | D104: 3032470.071 | E104: 233 | F104: 464
A105: ED_REP221_00107 | C105: > 22 kV & < = 33 kV ; Switch | D105: 111724.2011 | E105: 9 | F105: 18
A106: ED_REP221_00108 | C106: > 22 kV & < = 33 kV ; Circuit Breaker | D106: 0 | E106: 0 | F106: 0
A107: ED_REP221_00109 | C107: > 33 kV & < = 66 kV ; Switch | D107: 0 | E107: 0 | F107: 0
A108: ED_REP221_00110 | C108: > 33 kV & < = 66 kV ; Circuit Breaker | D108: 1798337.304 | E108: 24 | F108: 48
A109: ED_REP221_00111 | C109: > 66 kV & < = 132 kV ; Switch | D109: 0 | E109: 0 | F109: 0
A110: ED_REP221_00112 | C110: > 66 kV & < = 132 kV ; Circuit Breaker | D110: 0 | E110: 0 | F110: 0
A111: ED_REP221_00113 | C111: > 132 kV ; Switch | D111: 0 | E111: 0 | F111: 0
A112: ED_REP221_00114 | C112: > 132 kV ; Circuit Breaker | D112: 0 | E112: 0 | F112: 0
A113: ED_REP221_00115 | C113: Other | D113: 0 | E113: 0 | F113: 0
A114: ED_REP221_00116 | B114: PUBLIC LIGHTING BY: ASSET TYPE ; LIGHTING OBLIGATION | C114: Luminaires ; Major Road | D114: 0 | E114: 0 | F114: 0
A115: ED_REP221_00117 | C115: Luminaires ; Minor Road | D115: 0 | E115: 0 | F115: 0
A116: ED_REP221_00118 | C116: Brackets ; Major Road | D116: 0 | E116: 0 | F116: 0
A117: ED_REP221_00119 | C117: Brackets ; Minor Road | D117: 0 | E117: 0 | F117: 0
A118: ED_REP221_00120 | C118: Lamps ; Major Road | D118: 0 | E118: 0 | F118: 0
A119: ED_REP221_00121 | C119: Lamps ; Minor Road | D119: 0 | E119: 0 | F119: 0
A120: ED_REP221_00122 | C120: Poles / Columns ; Major Road | D120: 0 | E120: 0 | F120: 0
A121: ED_REP221_00123 | C121: Poles / Columns ; Minor Road | D121: 0 | E121: 0 | F121: 0
A122: ED_REP221_00124 | C122: Other | D122: 0 | E122: 0 | F122: 0
A123: ED_REP221_00125 | B123: SCADA, NETWORK CONTROL AND PROTECTION SYSTEMS BY: FUNCTION | C123: Field Devices | D123: 2038248.085 | E123: 42 | F123: 0
A124: ED_REP221_00126 | C124: Local Network Wiring Assets | D124: 0 | E124: 0 | F124: 0
A125: ED_REP221_00127 | C125: Communications Network Assets | D125: 729384.98 | E125: 57 | F125: 0
A126: ED_REP221_00128 | C126: Master Station Assets | D126: 0 | E126: 0 | F126: 0
A127: ED_REP221_00129 | C127: Communications Site Infrastructure | D127: 0 | E127: 0 | F127: 0
A128: ED_REP221_00130 | C128: Communications Linear Assets | D128: 0 | E128: 0 | F128: 0
A129: ED_REP221_00131 | C129: AFLC | D129: 0 | E129: 0 | F129: 0
A130: ED_REP221_00124 | C130: Other | D130: 0 | E130: 0 | F130: 0
A131: ED_REP221_00132 | B131: OTHER BY: DNSP DEFINED | C131: OTHER - MEASURING TRANSFORMERS | D131: 219357.85 | E131: 8 | F131: 0
A132: ED_REP221_00133 | C132: OTHER - CAPACITOR BANK | D132: 0 | E132: 0 | F132: 0
A133: ED_REP221_00134 | C133: OTHER - CAPACITORS | D133: 0 | E133: 0 | F133: 0
A134: ED_REP221_00135 | C134: OTHER - EARTHING | D134: 256052.51 | E134: 141 | F134: 0
A135: ED_REP221_00136 | C135: OTHER - NEUTRAL EARTH RESISTORS | D135: 0 | E135: 0 | F135: 0
A136: ED_REP221_00137 | C136: OTHER - REGULATORS | D136: 578882.27 | E136: 2 | F136: 0
A137: ED_REP221_00138 | C137: OTHER - STATION SUPPLIES TRANSFORMERS | D137: 0 | E137: 0 | F137: 0
A138: ED_REP221_00139 | C138: OTHER - SURGE DIVERTERS | D138: 0 | E138: 0 | F138: 0
A139: ED_REP221_00140 | C139: OTHER< = 11 kV ; REACTOR ; | D139: 0 | E139: 0 | F139: 0
A140: ED_REP221_00141 | C140: OTHER> 11 kV & < = 22 kV ; REACTOR ; | D140: 0 | E140: 0 | F140: 0
A141: ED_REP221_00142 | C141: OTHER> 22 kV & < = 66 kV ; REACTOR ; | D141: 0 | E141: 0 | F141: 0
A142: ED_REP221_00143 | C142: OTHER - CABLE REFURBISHMENTS | D142: 0 | E142: 0 | F142: 0
A143: ED_REP221_00144 | C143: OTHER - SITE REPAIRS REFURBISHMENTS | D143: 2824559.176 | E143: 4 | F143: 0
A144: ED_REP221_00145
A145: ED_REP221_00146
A146: ED_REP221_00147

Sheet 2.3 Augex
B1: =(LOOKUP(dms_Model,dms_Model_List,dms_Worksheet_List)) -> REGULATORY REPORTING STATEMENT | K1: New line on new route - single circuit | L1: New line on new route - dual circuit | O1: Worksheet navigation
B2: =INDEX(dms_TradingNameFull_List,MATCH(dms_TradingName,dms_TradingName_List)) -> AusNet Services (D)
B3: =CONCATENATE("Category Analysis RIN response ",CRY) -> Category Analysis RIN response 2015
B4: 2.3 AUGEX PROJECT DATA
B7: TABLE 2.3.1 - AUGEX ASSET DATA - SUBTRANSMISSION SUBSTATIONS, SWITCHING STATIONS AND ZONE SUBSTATIONS
B8: NOTE: DNSP MUST PROVIDE EXPENDITURE INFORMATION ON A PROJECT CLOSE BASIS.
A9: AUG231 | B9: AUG231_1 | M9: AUG231_2 | N9: AUG231_3 | O9: AUG231_4 | P9: AUG231_5 | Q9: AUG231_6 | R9: ED_AUG231_00001 | S9: ED_AUG231_00002 | T9: ED_AUG231_00003 | U9: ED_AUG231_00004 | V9: ED_AUG231_00005 | W9: ED_AUG231_00006 | X9: ED_AUG231_00007 | Y9: ED_AUG231_00008 | Z9: ED_AUG231_00009 | AK9: ED_AUG231_00010 | AL9: ED_AUG231_00011 | AM9: ED_AUG231_00012 | AN9: ED_AUG231_00013 | AO9: ED_AUG231_00014 | AP9: ED_AUG231_00015 | AQ9: ED_AUG231_00016 | AR9: ED_AUG231_00017 | AS9: ED_AUG231_00018 | AT9: ED_AUG231_00019 | AU9: ED_AUG231_00020 | AV9: ED_AUG231_00021 | AW9: ED_AUG231_00022 | AX9: ED_AUG231_00023
B10: PROJECT DESCRIPTION AND CHANGES | V10: PLANT AND EQUIPMENT EXPENDITURE AND VOLUME | AP10: OTHER EXPENDITURE | AR10: TOTAL DIRECT EXPENDITURE ($0's) | AS10: YEARS INCURRED | AT10: ALL RELATED PARTY CONTRACTS | AV10: ALL NON RELATED PARTYCONTRACTS | AW10: LAND AND EASEMENTS
B11: SUBSTATION ID | M11: SUBSTATION TYPE | N11: PROJECT ID | O11: PROJECT TYPE | P11: PROJECT TRIGGER | Q11: VOLTAGE (KV) | R11: SUBSTATION RATING NORMAL CYCLIC (MVA) | T11: SUBSTATION RATING N-1 EMERGENCY (MVA) | V11: TRANSFORMERS | Y11: SWITCHGEAR | AK11: CAPACITORS | AM11: OTHER PLANT ITEM | AN11: INSTALLATION (LABOUR) | AP11: CIVIL WORKS | AQ11: OTHER DIRECT | AT11: RELATED PARTY MARGINS | AU11: TOTAL | AW11: LAND PURCHASE | AX11: EASEMENTS
R12: PRE | S12: POST | T12: PRE | U12: POST | V12: UNITS ADDED | W12: MVA ADDED | X12: EXPENDITURE ($0's) | Y12: UNITS ADDED | Z12: EXPENDITURE ($0's) | AK12: MVAR ADDED | AL12: EXPENDITURE ($0's) | AM12: EXPENDITURE ($0's) | AN12: VOLUME | AO12: EXPENDITURE ($0's) | AP12: EXPENDITURE ($0's) | AT12: EXPENDITURE ($0's) | AW12: EXPENDITURE ($0's)
A13: AUG231_1 | B13: Bairnsdale Zone Substation Rebuild and Full Switching | M13: Zone substation | N13: DD-0001592 & 74338262 | O13: Substation upgrade - capacity | P13: Demand growth | Q13: 66/22kV | R13: 0 | S13: 65.5 | T13: 0 | U13: 43.7 | V13: 2 | W13: 0.15 | X13: 101904.8619 | Y13: 1 | Z13: 1179951.032 | AK13: 0 | AL13: 0 | AM13: 3608075.72 | AN13: 17657.70833 | AO13: 1498664.015 | AP13: 858146.2054 | AQ13: 102977.5446 | AR13: =SUM(X13,Z13,AL13,AM13,AO13,AP13,AQ13) -> 7349719.38 | AS13: 2012, 2013,2014,2015 | AT13: 240055.2074 | AU13: 3540769.467 | AV13: 0 | AW13: 0 | AX13: 0
A14: AUG231_2 | AR14: =SUM(X14,Z14,AL14,AM14,AO14,AP14,AQ14) -> 0
A15: AUG231_3 | AR15: 0
A16: AUG231_4 | AR16: 0
A17: AUG231_5 | AR17: 0
A18: AUG231_6 | AR18: 0
A19: AUG231_7 | AR19: 0
A20: AUG231_8 | AR20: 0
A21: AUG231_9 | AR21: 0
A22: AUG231_10 | AR22: 0
A23: AUG231_11 | AR23: 0
A24: AUG231_12 | AR24: 0
A25: AUG231_13 | AR25: 0
A26: AUG231_14 | AR26: 0
A27: AUG231_15 | AR27: 0
A28: AUG231_16 | AR28: 0
A29: AUG231_17 | AR29: 0
A30: AUG231_18 | AR30: 0
A31: AUG231_19 | AR31: 0
A32: AUG231_20 | AR32: 0
A33: AUG231_21 | AR33: 0
A34: AUG231_22 | AR34: 0
A35: AUG231_23 | AR35: 0
A36: AUG231_24 | AR36: 0
A37: AUG231_25 | AR37: 0
A38: AUG231_26 | AR38: 0
A39: AUG231_27 | AR39: 0
A40: AUG231_28 | AR40: 0
A41: AUG231_29 | AR41: 0
A42: AUG231_30 | AR42: 0
A43: AUG231_31 | AR43: 0
A44: AUG231_32 | AR44: 0
A45: AUG231_33 | AR45: 0
A46: AUG231_34 | AR46: 0
A47: AUG231_35 | AR47: 0
A48: AUG231_36 | AR48: 0
A49: AUG231_37 | AR49: 0
A50: AUG231_38 | AR50: 0
A51: AUG231_39 | AR51: 0
A52: AUG231_40 | AR52: 0
A53: AUG231_41 | AR53: 0
A54: AUG231_42 | AR54: 0
A55: AUG231_43 | AR55: 0
A56: AUG231_44 | AR56: 0
A57: AUG231_45 | AR57: 0
A58: AUG231_46 | AR58: 0
A59: AUG231_47 | AR59: 0
A60: AUG231_48 | AR60: 0
A61: AUG231_49 | AR61: 0
A62: AUG231_50 | AR62: 0
A63: AUG231_51 | AR63: 0
A64: AUG231_52 | AR64: 0
N65: Non material projects - [actual] | AR65: 7987825.257 | AS65: 2012, 2013,2014,2015 | AW65: 0 | AX65: 0
A68: AUG232 | B68: AUG232_1 | C68: AUG232_2 | D68: AUG232_3 | E68: AUG232_4 | F68: AUG232_5 | G68: AUG232_6 | H68: AUG232_7 | I68: AUG232_8 | J68: AUG232_9 | K68: AUG232_10 | L68: AUG232_11 | M68: AUG232_2 | N68: AUG232_3 | O68: AUG232_4 | P68: AUG232_5 | Q68: AUG232_6 | R68: ED_AUG232_00001 | S68: ED_AUG232_00002 | T68: ED_AUG232_00003 | U68: ED_AUG232_00004 | V68: ED_AUG232_00005 | W68: ED_AUG232_00006 | X68: ED_AUG232_00007 | Y68: ED_AUG232_00008 | Z68: ED_AUG232_00009 | AK68: ED_AUG232_00010 | AL68: ED_AUG232_00011 | AM68: ED_AUG232_00012 | AN68: ED_AUG232_00013 | AO68: ED_AUG232_00014 | AP68: ED_AUG232_00015 | AQ68: ED_AUG232_00016 | AR68: ED_AUG232_00017 | AS68: ED_AUG232_00018 | AT68: ED_AUG232_00019 | AU68: ED_AUG232_00020 | AV68: ED_AUG232_00021
B69: TABLE 2.3.2 - AUGEX ASSET DATA - SUBTRANSMISSION LINES
B70: NOTE: DNSP MUST PROVIDE EXPENDITURE INFORMATION ON A PROJECT CLOSE BASIS.
B71: PROJECT DESCRIPTION AND CHANGES | R71: PLANT AND EQUIPMENT EXPENDITURE AND VOLUME | AN71: OTHER EXPENDITURE | AP71: TOTAL DIRECT EXPENDITURE ($0's) | AQ71: YEARS INCURRED | AR71: ALL RELATED PARTY CONTRACTS | AT71: ALL NON RELATED PARTYCONTRACTS | AU71: LAND AND EASEMENTS
B72: LINE ID | M72: PROJECT ID | N72: PROJECT TYPE | O72: PROJECT TRIGGER | P72: VOLTAGE (KV) | Q72: ROUTE LINE LENGTH ADDED | R72: POLES/TOWERS (INCLUDING STRUCTURES, AND CIVIL WORKS) | U72: OVERHEAD LINES | X72: UNDERGROUND CABLES | AK72: OTHER PLANT ITEM | AL72: INSTALLATION (LABOUR) | AN72: CIVIL WORKS | AO72: OTHER DIRECT | AR72: RELATED PARTY MARGINS | AS72: TOTAL | AU72: LAND PURCHASE | AV72: EASEMENTS
Q73: KM ADDED | R73: POLES/TOWERS ADDED | S73: POLES/TOWERS UPGRADED | T73: EXPENDITURE ($0's) | U73: CIRCUIT KM ADDED | V73: CIRCUIT KM UPGRADED | W73: EXPENDITURE ($0's) | X73: CIRCUIT KM ADDED | Y73: CIRCUIT KM UPGRADED | Z73: EXPENDITURE ($0's) | AK73: EXPENDITURE ($0's) | AL73: VOLUME | AM73: EXPENDITURE ($0's) | AN73: EXPENDITURE ($0's) | AR73: EXPENDITURE ($0's) | AU73: EXPENDITURE ($0's)
A74: AUG232_1 | B74: Bairnsdale Zone Substation Rebuild and Full Switching | M74: DD-0001592 & 74338262 | N74: New line on new route - single circuit | O74: Demand growth | P74: 66 | Q74: 0.99 | R74: 13 | S74: 0 | T74: 364712.1373 | U74: 0.991 | V74: 0 | W74: 347549.2132 | X74: 0.2 | Y74: 0 | Z74: 53634.13784 | AK74: 0 | AL74: 2311.370907 | AM74: 196173.1578 | AN74: 0 | AO74: 0 | AP74: =SUM(T74,W74,Z74,AK74,AM74,AN74,AO74) -> 962068.6461 | AQ74: 2012, 2013,2014,2015 | AR74: 31422.91242 | AS74: 463482.0883 | AT74: 0 | AU74: 0 | AV74: 0 | AX74: New line on new route - single circuit
A75: AUG232_2 | AP75: 0 | AX75: New line on new route - dual circuit
A76: AUG232_3 | AP76: 0 | AX76: New line on new route - other
A77: AUG232_4 | AP77: 0 | AX77: Line rebuild over existing route - single circuit
A78: AUG232_5 | AP78: 0 | AX78: Line rebuild over existing route - dual circuit
A79: AUG232_6 | AP79: 0 | AX79: Reconductor - Single circuit
A80: AUG232_7 | AP80: 0 | AX80: Reconductor - Dual circuit
A81: AUG232_8 | AP81: 0 | AX81: Reconductor - Other
A82: AUG232_9 | AP82: 0 | AX82: Line upgrade - raising/retensoring
A83: AUG232_10 | AP83: 0 | AX83: Line upgrade - voltage upgrade
A84: AUG232_11 | AP84: 0 | AX84: Line upgrade - capacity
A85: AUG232_12 | AP85: 0 | AX85: String spare circuit
A86: AUG232_13 | AP86: 0 | AX86: Other
A87: AUG232_14 | AP87: 0
A88: AUG232_15 | AP88: 0
A89: AUG232_16 | AP89: 0
A90: AUG232_17 | AP90: 0
A91: AUG232_18 | AP91: 0
A92: AUG232_19 | AP92: 0
A93: AUG232_20 | AP93: 0
A94: AUG232_21 | AP94: 0
A95: AUG232_22 | AP95: 0
A96: AUG232_23 | AP96: 0
A97: AUG232_24 | AP97: 0
A98: AUG232_25 | AP98: 0
A99: AUG232_26 | AP99: 0
A100: AUG232_27 | AP100: 0
A101: AUG232_28 | AP101: 0
A102: AUG232_29 | AP102: 0
A103: AUG232_30 | AP103: 0
A104: AUG232_31 | AP104: 0
A105: AUG232_32 | AP105: 0
A106: AUG232_33 | AP106: 0
A107: AUG232_34 | AP107: 0
A108: AUG232_35 | AP108: 0
A109: AUG232_36 | AP109: 0
A110: AUG232_37 | AP110: 0
A111: AUG232_38 | AP111: 0
A112: AUG232_39 | AP112: 0
A113: AUG232_40 | AP113: 0
A114: AUG232_41 | AP114: 0
A115: AUG232_42 | AP115: 0
A116: AUG232_43 | AP116: 0
A117: AUG232_44 | AP117: 0
A118: AUG232_45 | AP118: 0
A119: AUG232_46 | AP119: 0
A120: AUG232_47 | AP120: 0
A121: AUG232_48 | AP121: 0
A122: AUG232_49 | AP122: 0
A123: AUG232_50 | AP123: 0
A124: AUG232_51 | AP124: 0
A125: AUG232_52 | AP125: 0
A126: AUG232_53 | AP126: 0
A127: AUG232_54 | AP127: 0
M128: Non material projects - [actual] | AP128: 4476534.139 | AQ128: 2012, 2013,2014,2015 | AU128: 0 | AV128: 0
B132: TABLE 2.3.3 - AUGEX DATA - HV/LV FEEDERS AND DISTRIBUTION SUBSTATIONS
B133: NOTE: DNSP MUST PROVIDE EXPENDITURE INFORMATION ON AN AS INCURRED BASIS.
B134: Table 2.3.3.1 Descriptor Metrics
M137: UNITS ADDED | N137: UNITS UPGRADED | AK137: UNITS UPGRADED
B138: PROJECT TYPE | M138: =CRY -> 2015 | N138: =CRY -> 2015 | Z138: PROJECT TYPE | AB138: DNSP NAME | AC138: SERVICE CATEGORY | AD138: SERVICE SUB-CATEGORY | AE138: ASSET CATEGORY | AF138: ASSET SUB-CATEGORY | AG138: DATA TYPE | AH138: MEASUREMENT | AI138: DENOMINATION | AK138: 2014-15
A139: ED_AUG2331_00001 | B139: HV Feeder Augmentations - Overhead Lines (Circuit Line Length in KM) | M139: 25.166 | N139: 276.655 | Y139: ED_AUG2333_00001 | Z139: HV Feeder Augmentations - Overhead Lines (Circuit Line Length in KM) | AB139: DNSP NAME | AC139: AUGMENTATION | AD139: HV FEEDER PROJECTS | AE139: HV FEEDERS | AF139: OVERHEAD | AG139: DESCRIPTOR METRIC | AH139: KM UPGRADED | AI139: 0's | AK139: =N139 -> 276.655
A140: ED_AUG2331_00002 | B140: HV Feeder Augmentations - Underground Cables (Circuit Line Length in KM) | M140: 17.459 | N140: 20.045 | Y140: ED_AUG2333_00002 | Z140: HV Feeder Augmentations - Underground Cables (Circuit Line Length in KM) | AB140: DNSP NAME | AC140: AUGMENTATION | AD140: HV FEEDER PROJECTS | AE140: HV FEEDERS | AF140: UNDERGROUND | AG140: DESCRIPTOR METRIC | AH140: KM UPGRADED | AI140: 0's | AK140: =N140 -> 20.045
A141: ED_AUG2331_00003 | B141: LV Feeder Augmentations - Overhead Lines (Circuit Line Length in KM) | M141: 6.087 | N141: 7.522 | Y141: ED_AUG2333_00003 | Z141: LV Feeder Augmentations - Overhead Lines (Circuit Line Length in KM) | AB141: DNSP NAME | AC141: AUGMENTATION | AD141: LV FEEDER PROJECTS | AE141: HV FEEDERS | AF141: OVERHEAD | AG141: DESCRIPTOR METRIC | AH141: KM UPGRADED | AI141: 0's | AK141: 7.522
A142: ED_AUG2331_00004 | B142: LV Feeder Augmentations - Underground Cables (Circuit Line Length in KM) | M142: 2.546 | N142: 0.234 | Y142: ED_AUG2333_00004 | Z142: LV Feeder Augmentations - Underground Cables (Circuit Line Length in KM) | AB142: DNSP NAME | AC142: AUGMENTATION | AD142: LV FEEDER PROJECTS | AE142: HV FEEDERS | AF142: UNDERGROUND | AG142: DESCRIPTOR METRIC | AH142: KM UPGRADED | AI142: 0's | AK142: 0.234
A143: ED_AUG2331_00005 | B143: Distribution Substation Augmentations - Pole Mounted | M143: 5.76744186 | N143: 28.8372093 | Y143: ED_AUG2333_00005 | Z143: Distribution Substation Augmentations - Pole Mounted | AB143: DNSP NAME | AC143: AUGMENTATION | AD143: SUBSTATION AUGMENTATIONS | AE143: SUBSTATIONS | AF143: POLE MOUNTED | AG143: DESCRIPTOR METRIC | AH143: VOLUME UPGRADED | AI143: 0's | AK143: 28.8372093
A144: ED_AUG2331_00006 | B144: Distribution Substation Augmentations - Ground Mounted | M144: 2.087855297 | N144: 10.43927649 | Y144: ED_AUG2333_00006 | Z144: Distribution Substation Augmentations - Ground Mounted | AB144: DNSP NAME | AC144: AUGMENTATION | AD144: SUBSTATION AUGMENTATIONS | AE144: SUBSTATIONS | AF144: GROUND MOUNTED | AG144: DESCRIPTOR METRIC | AH144: VOLUME UPGRADED | AI144: 0's | AK144: 10.43927649
A145: ED_AUG2331_00007 | B145: Distribution Substation Augmentations - Indoor | M145: 0.1447028424 | N145: 0.7235142119 | Y145: ED_AUG2333_00007 | Z145: Distribution Substation Augmentations - Indoor | AB145: DNSP NAME | AC145: AUGMENTATION | AD145: SUBSTATION AUGMENTATIONS | AE145: SUBSTATIONS | AF145: INDOOR | AG145: DESCRIPTOR METRIC | AH145: VOLUME UPGRADED | AI145: 0's | AK145: 0.7235142119
B147: Table 2.3.3.2 Cost Metrics
M150: TOTAL DIRECT EXPENDITURE ($0's)
B151: PROJECT TYPE | M151: =CRY -> 2015
A152: ED_AUG2332_00001 | B152: HV Feeder Augmentations - Overhead Lines | M152: 38864433.48
A153: ED_AUG2332_00002 | B153: HV Feeder Augmentations - Underground Cables | M153: 5185299.052
A154: ED_AUG2332_00003 | B154: HV Feeder Non-Material Projects | M154: 1949842.155
A155: ED_AUG2332_00004 | B155: LV Feeder Augmentations - Overhead Lines | M155: 3543782.776
A156: ED_AUG2332_00005 | B156: LV Feeder Augmentations - Underground Cables | M156: 871642.2297
A157: ED_AUG2332_00006 | B157: LV Feeder Non-Material Projects | M157: 212130.2395
A158: ED_AUG2332_00007 | B158: Distribution Substation Augmentations - Pole Mounted | M158: 1622987.979
A159: ED_AUG2332_00008 | B159: Distribution Substation Augmentations - Ground Mounted | M159: 587533.2828
A160: ED_AUG2332_00009 | B160: Distribution Substation Augmentations - Indoor | M160: 40720.12851
B168: TABLE 2.3.4 - AUGEX DATA - TOTAL EXPENDITURE
B170: AUGMENTATION CAPEX | M170: Expenditure ($0's)
B171: AS INCURRED ($0's) | M171: =CRY -> 2015
A172: ED_AUG234_00001 | B172: Subtransmission Substations, Switching Stations, Zone Substations | M172: 14520865.88
A173: ED_AUG234_00002 | B173: Subtransmission Lines | M173: 5149013.32
A174: ED_AUG234_00003 | B174: HV Feeders | M174: 43550233.79
A175: ED_AUG234_00004 | B175: HV Feeders - Land Purchases and Easements | M175: 0
A176: ED_AUG234_00005 | B176: Distribution Substations | M176: 2131369.464
A177: ED_AUG234_00006 | B177: Distribution Substations - Land Purchases And Easements | M177: 0
A178: ED_AUG234_00007 | B178: LV Feeders | M178: 4381151.655
A179: ED_AUG234_00008 | B179: LV Feeders - Land Purchases And Easements | M179: 0
A180: ED_AUG234_00009 | B180: Other Assets | M180: 0

Sheet 2.5 Connections
B1: =(LOOKUP(dms_Model,dms_Model_List,dms_Worksheet_List)) -> REGULATORY REPORTING STATEMENT
B2: =INDEX(dms_TradingNameFull_List,MATCH(dms_TradingName,dms_TradingName_List)) -> AusNet Services (D)
B3: =CONCATENATE("Category Analysis RIN response ",CRY) -> Category Analysis RIN response 2015
B4: 2.5 CONNECTIONS
B9: TABLE 2.5.1 DESCRIPTOR METRICS | F9: TABLE 2.5.2 COST METRICS BY CONNECTION CLASSIFICATION
B10: <<<GROUP-ROW>>>
D12: VOLUMES AND EXPENDITURE | H12: EXPENDITURE ($0's) | J12: VOLUMES (0's)
B13: CONNECTION SUBCATEGORY | C13: DESCRIPTOR METRIC | D13: =CRY -> 2015 | F13: CONNECTION SUBCATEGORY | G13: CONNECTION CLASSICIATION | H13: =CRY -> 2015 | J13: =CRY -> 2015
A14: ED_CON251_00001 | B14: RESIDENTIAL | C14: Underground connections (0's) | D14: 14525.15766 | E14: ED_CON252_00001 | F14: RESIDENTIAL | G14: Simple connection LV | H14: 11527076.76 | J14: 14239.9403
A15: ED_CON251_00002 | C15: Overhead connections (0's) | D15: 803.8820132 | E15: ED_CON252_00002 | G15: Complex connection LV | H15: 10188342.5 | J15: 883.9241199
A16: ED_CON251_00003 | C16: Distribution substation installed (MVA added) | D16: 42.99827704 | E16: ED_CON252_00003 | G16: Complex connection HV | H16: 6831529.944 | J16: 202.9690722
A17: ED_CON251_00004 | C17: Distribution substations installed (0's) | D17: 214.9913852 | E17: ED_CON252_00004 | F17: COMMERCIAL/INDUSTRIAL | G17: Simple connection LV | H17: 853082.5556 | J17: 1528.059704
A18: ED_CON251_00005 | C18: Distribution substation installed (total spend $0's) | D18: 2387306.824 | E18: ED_CON252_00005 | G18: Complex connection HV (customer connected at LV, minor HV works) | H18: 2458748.492 | J18: 92.56728899
A19: ED_CON251_00006 | C19: Augmentation HV (net circuit KM added) | D19: 38.80508506 | E19: ED_CON252_00006 | G19: Complex connection HV (customer connected at LV, upstream asset works) | H19: 6524204.551 | J19: 107.3295019
A20: ED_CON251_00007 | C20: Augmentation HV (total spend $0's) | D20: 1501976.771 | E20: ED_CON252_00007 | G20: Complex connection HV (customer connected at HV) | H20: 4839657.9 | J20: 63.01915709
A21: ED_CON251_00008 | C21: Augmentation LV (net circuit KM added) | D21: 7.729370281 | E21: ED_CON252_00008 | G21: Complex connection sub-transmission | H21: 25964.70388 | J21: 0.9846743295
A22: ED_CON251_00009 | C22: Augmentation LV (total spend $0's) | D22: 744558.1222 | E22: ED_CON252_00009 | F22: SUBDIVISION | G22: Complex connection LV | H22: 2775018.81 | J22: 141.5643481
A23: ED_CON251_00010 | C23: Mean days to connect residential customer with LV single phase connection (0's) | D23: 7.06 | E23: ED_CON252_00010 | G23: Complex connection HV (no upstream asset works) | H23: 11201258.03 | J23: 164.2397756
A24: ED_CON251_00011 | C24: Volume of GSL breaches for residential customers (0's) | D24: 56 | E24: ED_CON252_00011 | G24: Complex connection HV (with upstream asset works) | H24: 95945.29329 | J24: 2.402061856
A25: ED_CON251_00012 | C25: Volume of customer complaints relating to connection services (0's) | D25: 365 | E25: ED_CON252_00012 | F25: EMBEDDED GENERATION | G25: Simple connection LV | H25: 0 | J25: 0
A26: ED_CON251_00013 | C26: GSL payments ($0's) | D26: 7900 | E26: ED_CON252_00013 | G26: Complex connection HV (small capacity) | H26: 1899841.977 | J26: 2
A27: ED_CON251_00014 | B27: COMMERCIAL/INDUSTRIAL | C27: Underground connections (0's) | D27: 1637.139784 | E27: ED_CON252_00014 | G27: Complex connection HV (large capacity) | H27: 0 | J27: 0
A28: ED_CON251_00015 | C28: Overhead connections (0's) | D28: 154.8205426
A29: ED_CON251_00016 | C29: Distribution substation installed (MVA added) | D29: 183
A30: ED_CON251_00017 | C30: Distribution substations installed (0's) | D30: 183
A31: ED_CON251_00018 | C31: Distribution substation installed total spend ($0's) | D31: 3274368.89
A32: ED_CON251_00019 | C32: Augmentation HV (net circuit KM added) | D32: 82.839
A33: ED_CON251_00020 | C33: Augmentation HV (total spend $0's) | D33: 2390780.11
A34: ED_CON251_00021 | C34: Augmentation LV (net circuit KM added) | D34: 18.708
A35: ED_CON251_00022 | C35: Augmentation LV (total spend $0's) | D35: 595506.74
A36: ED_CON251_00023 | B36: SUBDIVISION | C36: Underground connections (0's) | D36: 280.7426844
A37: ED_CON251_00024 | C37: Overhead connections (0's) | D37: 25.25731564
A38: ED_CON251_00025 | C38: Distribution substation installed (MVA added) | D38: 48.50172296
A39: ED_CON251_00026 | C39: Distribution substations installed (0's) | D39: 118.0086148
A40: ED_CON251_00027 | C40: Distribution substation installed (total spend $0's) | D40: 1671129.706
A41: ED_CON251_00028 | C41: Augmentation HV (net circuit KM added) | D41: 42.64291494
A42: ED_CON251_00029 | C42: Augmentation HV (total spend $0's) | D42: 1232870.689
A43: ED_CON251_00030 | C43: Augmentation LV (net circuit KM added) | D43: 76.94862972
A44: ED_CON251_00031 | C44: Augmentation LV (total spend $0's) | D44: 2097073.288
A45: ED_CON251_00032 | C45: Cost per lot ($) | D45: 1800.245657
A46: ED_CON251_00033 | B46: EMBEDDED GENERATION | C46: Underground connections (0's) | D46: 0
A47: ED_CON251_00034 | C47: Overhead connections (0's) | D47: 2
A48: ED_CON251_00035 | C48: Distribution substation installed (MVA added) | D48: 0
A49: ED_CON251_00036 | C49: Distribution substations installed (0's) | D49: 0
A50: ED_CON251_00037 | C50: Distribution substation installed (total spend $0's) | D50: 0
A51: ED_CON251_00038 | C51: Augmentation HV (net circuit KM added) | D51: 8.461
A52: ED_CON251_00039 | C52: Augmentation HV (total spend $0's) | D52: 1599715
A53: ED_CON251_00040 | C53: Augmentation LV (net circuit KM added) | D53: 0
A54: ED_CON251_00041 | C54: Augmentation LV (total spend $0's) | D54: 0

Sheet 2.6 Non-network
B1: =(LOOKUP(dms_Model,dms_Model_List,dms_Worksheet_List)) -> REGULATORY REPORTING STATEMENT
B2: =INDEX(dms_TradingNameFull_List,MATCH(dms_TradingName,dms_TradingName_List)) -> AusNet Services (D)
B3: =CONCATENATE("Category Analysis RIN response ",CRY) -> Category Analysis RIN response 2015
B4: 2.6 NON NETWORK EXPENDITURE
B9: TABLE 2.6.1 NON-NETWORK EXPENDITURE | G9: TABLE 2.6.2 ANNUAL DESCRIPTOR METRICS - IT & COMMUNICATIONS EXPENDITURE | K9: TABLE 2.6.3 ANNUAL DESCRIPTOR METRICS - MOTOR VEHICLES
E12: EXPENDITURE ($0's) | I12: VOLUMES | L12: ASSET REPORTING CATEGORY | N12: VOLUMES / %
A13: ED_NON261_00001 | B13: SERVICE SUBCATEGORY | C13: ASSET CATEGORY | D13: ASSET REPORTING CATEGORY | E13: =CRY -> 2015 | G13: NON-NETWORK CATEGORY | H13: DESCRIPTOR METRIC | I13: =CRY -> 2015 | K13: NON-NETWORK CATEGORY | L13: ASSET CATEGORY | M13: DESCRIPTOR METRIC | N13: =CRY -> 2015
A14: ED_NON261_00002 | B14: IT & COMMUNICATIONS | C14: Client device expenditure | D14: Opex | E14: 0 | F14: ED_NON262_00001 | G14: IT & COMMUNICATIONS | H14: Employee numbers | I14: 820 | J14: ED_NON263_00001 | K14: MOTOR VEHICLES | L14: CAR | M14: Average kilometres travelled (0's) | N14: 23746.58067
A15: ED_NON261_00003 | D15: Capex | E15: 217953.282 | F15: ED_NON262_00002 | H15: User numbers | I15: 1256 | J15: ED_NON263_00002 | M15: Number purchased | N15: 0
A16: ED_NON261_00004 | C16: Recurrent expenditure | D16: Opex | E16: 16885131.87 | F16: ED_NON262_00003 | H16: Number of devices | I16: 1206 | J16: ED_NON263_00003 | M16: Number leased | N16: 69.8569307
A17: ED_NON261_00005 | D17: Capex | E17: 23750931.45 | J17: ED_NON263_00004 | M17: Number in fleet | N17: 106.6482475
A18: ED_NON261_00006 | C18: Non-recurrent expenditure | D18: Opex | E18: 3633766.458 | J18: ED_NON263_00005 | M18: Proportion of total fleet expenditure allocated as regulatory expenditure (%) | N18: 0.9314257427
A19: ED_NON261_00007 | D19: Capex | E19: 4679775.409 | J19: ED_NON263_00006 | L19: LIGHT COMMERCIAL VEHICLE | M19: Average kilometres travelled (0's) | N19: 30529.05218
A20: ED_NON261_00008 | B20: MOTOR VEHICLES | C20: Car | D20: Opex | E20: 358259.4222 | J20: ED_NON263_00007 | M20: Number purchased | N20: 24.21706931
A21: ED_NON261_00009 | D21: Capex | E21: 0 | J21: ED_NON263_00008 | M21: Number leased | N21: 334.8475545
A22: ED_NON261_00010 | C22: Light commercial vehicle | D22: Opex | E22: 5732934.156 | J22: ED_NON263_00009 | M22: Number in fleet | N22: 472.6985644
A23: ED_NON261_00011 | D23: Capex | E23: 1541350.61 | J23: ED_NON263_00010 | M23: Proportion of total fleet expenditure allocated as regulatory expenditure (%) | N23: 0.9314257427
A24: ED_NON261_00012 | C24: Elevated work platform (LCV) | D24: Opex | E24: 0 | J24: ED_NON263_00011 | L24: ELEVATED WORK PLATFORM (LCV) | M24: Average kilometres travelled (0's) | N24: 0
A25: ED_NON261_00013 | D25: Capex | E25: 0 | J25: ED_NON263_00012 | M25: Number purchased | N25: 0
A26: ED_NON261_00014 | C26: Elevated work platform (HCV) | D26: Opex | E26: 2325913.59 | J26: ED_NON263_00013 | M26: Number leased | N26: 0
A27: ED_NON261_00015 | D27: Capex | E27: 514933.7946 | J27: ED_NON263_00014 | M27: Number in fleet | N27: 0
A28: ED_NON261_00016 | C28: Heavy commercial vehicle | D28: Opex | E28: 685709.45 | J28: ED_NON263_00015 | M28: Proportion of total fleet expenditure allocated as regulatory expenditure (%) | N28: 0
A29: ED_NON261_00017 | D29: Capex | E29: 132522.7238 | J29: ED_NON263_00016 | L29: ELEVATED WORK PLATFORM (HCV) | M29: Average kilometres travelled (0's) | N29: 23283.02904
A30: ED_NON261_00018 | B30: BUILDINGS AND PROPERTY | C30: Total buildings and property expenditure | D30: Opex | E30: 11005377.09 | J30: ED_NON263_00017 | M30: Number purchased | N30: 2.794277228
A31: ED_NON261_00019 | D31: Capex | E31: 2112140.674 | J31: ED_NON263_00018 | M31: Number leased | N31: 16.76566337
A32: ED_NON261_00020 | B32: OTHER | C32: Other expenditure | D32: Opex | E32: 0 | J32: ED_NON263_00019 | M32: Number in fleet | N32: 34.46275248
A33: ED_NON261_00021 | D33: Capex | E33: 1322728.761 | J33: ED_NON263_00020 | M33: Proportion of total fleet expenditure allocated as regulatory expenditure (%) | N33: 0.9314257427
A34: ED_NON261_00022 | B34: OTHER - DNSP nominated | C34: < Enter description for nominated category > | D34: Opex | J34: ED_NON263_00021 | L34: HEAVY COMMERCIAL VEHICLE | M34: Average kilometres travelled (0's) | N34: 16825.30491
A35: ED_NON261_00023 | D35: Capex | J35: ED_NON263_00022 | M35: Number purchased | N35: 2.794277228
A36: ED_NON261_00024 | D36: Opex | J36: ED_NON263_00023 | M36: Number leased | N36: 8.848544556
A37: ED_NON261_00025 | D37: Capex | J37: ED_NON263_00024 | M37: Number in fleet | N37: 36.79131684
A38: ED_NON261_00026 | D38: Opex | J38: ED_NON263_00025 | M38: Proportion of total fleet expenditure allocated as regulatory expenditure (%) | N38: 0.9314257427
A39: ED_NON261_00027 | D39: Capex
A40: ED_NON261_00028 | D40: Opex
A41: ED_NON261_00029 | D41: Capex
A42: ED_NON261_00030 | D42: Opex
A43: ED_NON261_00031 | D43: Capex
A44: ED_NON261_00032 | D44: Opex
A45: ED_NON261_00033 | D45: Capex
A46: ED_NON261_00034 | D46: Opex
A47: ED_NON261_00035 | D47: Capex
A48: ED_NON261_00036 | D48: Opex
A49: ED_NON261_00037 | D49: Capex
A50: ED_NON261_00038 | D50: Opex
A51: ED_NON261_00039 | D51: Capex
A52: ED_NON261_00040 | D52: Opex
A53: ED_NON261_00041 | D53: Capex
A54: ED_NON261_00042 | D54: Opex
A55: ED_NON261_00043 | D55: Capex

Sheet 2.7 Vegetation management
B1: =(LOOKUP(dms_Model,dms_Model_List,dms_Worksheet_List)) -> REGULATORY REPORTING STATEMENT
B2: =INDEX(dms_TradingNameFull_List,MATCH(dms_TradingName,dms_TradingName_List)) -> AusNet Services (D)
B3: =CONCATENATE("Category Analysis RIN response ",CRY) -> Category Analysis RIN response 2015
B4: 2.7 VEGETATION MANAGEMENT
B6: TABLE 2.7.3 - DESCRIPTOR METRICS ACROSS ALL ZONES - UNPLANNED VEGETATION EVENTS | I6: TABLE 2.7.1 - DESCRIPTOR METRICS BY ZONE | N6: TABLE 2.7.2 - EXPENDITURE METRICS BY ZONE
C9: VOLUMES | L9: VOLUMES | P9: EXPENDITURE ($0's)
B10: DESCRIPTOR METRIC | C10: =CRY -> 2015 | I10: ZONES | J10: ASSET | K10: ASSET SUBCATEGORY | L10: =CRY -> 2015 | N10: ZONES | O10: SERVICE SUBCATEGORY | P10: =CRY -> 2015
A11: ED_VEG273_00001 | B11: Number of fire starts caused by vegetation grow-ins (NSP responsibility) (0's) | H11: ED_VEG271_00001 | I11: HBRA | J11: Route line length within zone (KM) | K11: Urban and CBD | L11: 560.8463911 | M11: ED_VEG272_00001 | N11: =I11 -> HBRA | O11: Tree trimming (excluding hazard trees)
A12: ED_VEG273_00002 | B12: Number of fire starts caused by vegetation blow-ins and fall-ins (NSP responsibility) (0's) | C12: 17 | H12: ED_VEG271_00002 | K12: Rural | L12: 27481.47316 | M12: ED_VEG272_00002 | O12: Hazard tree cutting
A13: ED_VEG273_00003 | B13: Number of fire starts caused by vegetation grow-ins (other party responsibility) (0's) | H13: ED_VEG271_00003 | J13: Number of maintenance spans (0's) | K13: Urban and CBD | L13: 1922 | M13: ED_VEG272_00003 | O13: Ground clearance
A14: ED_VEG273_00004 | B14: Number of fire starts caused by vegetation blow-ins and fall-ins (other party responsibility) (0's) | H14: ED_VEG271_00004 | K14: Rural | L14: 53848 | M14: ED_VEG272_00004 | O14: Vegetation corridor clearance
H15: ED_VEG271_00005 | J15: Total length of maintenance spans (KM) | K15: Urban and CBD | L15: 305.4058 | M15: ED_VEG272_00005 | O15: Inspection
H16: ED_VEG271_00006 | K16: Rural | L16: 8556.4472 | M16: ED_VEG272_00006 | O16: Audit
H17: ED_VEG271_00007 | J17: Length of vegetation corridors (KM) | K17: Urban and CBD | L17: 355.6182 | M17: ED_VEG272_00007 | O17: Contractor liaison expenditure
H18: ED_VEG271_00008 | K18: Rural | L18: 13539.5512 | M18: ED_VEG272_00008 | O18: Tree replacement program costs
H19: ED_VEG271_00009 | J19: Average number of trees per maintenance span (0's) | K19: Urban and CBD | L19: 2.905660377 | M19: ED_VEG272_00009 | O19: Other vegetation management costs not specified in sheet
H20: ED_VEG271_00010 | K20: Rural | L20: 3.215960154 | M20: ED_VEG272_00010 | N20: =I23 -> LBRA | O20: Tree trimming (excluding hazard trees)
H21: ED_VEG271_00011 | J21: Average frequency of cutting cycle (years) | K21: Urban and CBD | L21: 1 | M21: ED_VEG272_00011 | O21: Hazard tree cutting
H22: ED_VEG271_00012 | K22: Rural | L22: 1 | M22: ED_VEG272_00012 | O22: Ground clearance
H23: ED_VEG271_00013 | I23: LBRA | J23: Route line length within zone (KM) | K23: Urban and CBD | L23: 131.5565609 | M23: ED_VEG272_00013 | O23: Vegetation corridor clearance
H24: ED_VEG271_00014 | K24: Rural | L24: 6446.271483 | M24: ED_VEG272_00014 | O24: Inspection
H25: ED_VEG271_00015 | J25: Number of maintenance spans (0's) | K25: Urban and CBD | L25: 5910 | M25: ED_VEG272_00015 | O25: Audit
H26: ED_VEG271_00016 | K26: Rural | L26: 9440 | M26: ED_VEG272_00016 | O26: Contractor liaison expenditure
H27: ED_VEG271_00017 | J27: Total length of maintenance spans (KM) | K27: Urban and CBD | L27: 354.6 | M27: ED_VEG272_00017 | O27: Tree replacement program costs
H28: ED_VEG271_00018 | K28: Rural | L28: 566.4 | M28: ED_VEG272_00018 | O28: Other vegetation management costs not specified in sheet
H29: ED_VEG271_00019 | J29: Length of vegetation corridors (KM) | K29: Urban and CBD | L29: 1301.64 | M29: ED_VEG272_00019 | N29: =I35 -> ZONE 3 | O29: Tree trimming (excluding hazard trees)
H30: ED_VEG271_00020 | K30: Rural | L30: 1354.8 | M30: ED_VEG272_00020 | O30: Hazard tree cutting
H31: ED_VEG271_00021 | J31: Average number of trees per maintenance span (0's) | K31: Urban and CBD | L31: 1.780864378 | M31: ED_VEG272_00021 | O31: Ground clearance
H32: ED_VEG271_00022 | K32: Rural | L32: 2.058670708 | M32: ED_VEG272_00022 | O32: Vegetation corridor clearance
H33: ED_VEG271_00023 | J33: Average frequency of cutting cycle (years) | K33: Urban and CBD | L33: 1 | M33: ED_VEG272_00023 | O33: Inspection
H34: ED_VEG271_00024 | K34: Rural | L34: 1 | M34: ED_VEG272_00024 | O34: Audit
H35: ED_VEG271_00025 | I35: ZONE 3 | J35: Route line length within zone (KM) | K35: Urban and CBD | M35: ED_VEG272_00025 | O35: Contractor liaison expenditure
H36: ED_VEG271_00026 | K36: Rural | M36: ED_VEG272_00026 | O36: Tree replacement program costs
H37: ED_VEG271_00027 | J37: Number of maintenance spans (0's) | K37: Urban and CBD | M37: ED_VEG272_00027 | O37: Other vegetation management costs not specified in sheet
H38: ED_VEG271_00028 | K38: Rural | M38: ED_VEG272_00028 | N38: =I47 -> ZONE 4 | O38: Tree trimming (excluding hazard trees)
H39: ED_VEG271_00029 | J39: Total length of maintenance spans (KM) | K39: Urban and CBD | M39: ED_VEG272_00029 | O39: Hazard tree cutting
H40: ED_VEG271_00030 | K40: Rural | M40: ED_VEG272_00030 | O40: Ground clearance
H41: ED_VEG271_00031 | J41: Length of vegetation corridors (KM) | K41: Urban and CBD | M41: ED_VEG272_00031 | O41: Vegetation corridor clearance
H42: ED_VEG271_00032 | K42: Rural | M42: ED_VEG272_00032 | O42: Inspection
H43: ED_VEG271_00033 | J43: Average number of trees per maintenance span (0's) | K43: Urban and CBD | M43: ED_VEG272_00033 | O43: Audit
H44: ED_VEG271_00034 | K44: Rural | M44: ED_VEG272_00034 | O44: Contractor liaison expenditure
H45: ED_VEG271_00035 | J45: Average frequency of cutting cycle (years) | K45: Urban and CBD | M45: ED_VEG272_00035 | O45: Tree replacement program costs
H46: ED_VEG271_00036 | K46: Rural | M46: ED_VEG272_00036 | O46: Other vegetation management costs not specified in sheet
H47: ED_VEG271_00037 | I47: ZONE 4 | J47: Route line length within zone (KM) | K47: Urban and CBD | M47: ED_VEG272_00037 | N47: =I59 -> ZONE 5 | O47: Tree trimming (excluding hazard trees)
H48: ED_VEG271_00038 | K48: Rural | M48: ED_VEG272_00038 | O48: Hazard tree cutting
H49: ED_VEG271_00039 | J49: Number of maintenance spans (0's) | K49: Urban and CBD | M49: ED_VEG272_00039 | O49: Ground clearance
H50: ED_VEG271_00040 | K50: Rural | M50: ED_VEG272_00040 | O50: Vegetation corridor clearance
H51: ED_VEG271_00041 | J51: Total length of maintenance spans (KM) | K51: Urban and CBD | M51: ED_VEG272_00041 | O51: Inspection
H52: ED_VEG271_00042 | K52: Rural | M52: ED_VEG272_00042 | O52: Audit
H53: ED_VEG271_00043 | J53: Length of vegetation corridors (KM) | K53: Urban and CBD | M53: ED_VEG272_00043 | O53: Contractor liaison expenditure
H54: ED_VEG271_00044 | K54: Rural | M54: ED_VEG272_00044 | O54: Tree replacement program costs
H55: ED_VEG271_00045 | J55: Average number of trees per maintenance span (0's) | K55: Urban and CBD | M55: ED_VEG272_00045 | O55: Other vegetation management costs not specified in sheet
H56: ED_VEG271_00046 | K56: Rural | M56: ED_VEG272_00046 | N56: =I71 -> ZONE 6 | O56: Tree trimming (excluding hazard trees)
H57: ED_VEG271_00047 | J57: Average frequency of cutting cycle (years) | K57: Urban and CBD | M57: ED_VEG272_00047 | O57: Hazard tree cutting
H58: ED_VEG271_00048 | K58: Rural | M58: ED_VEG272_00048 | O58: Ground clearance
H59: ED_VEG271_00049 | I59: ZONE 5 | J59: Route line length within zone (KM) | K59: Urban and CBD | M59: ED_VEG272_00049 | O59: Vegetation corridor clearance
H60: ED_VEG271_00050 | K60: Rural | M60: ED_VEG272_00050 | O60: Inspection
H61: ED_VEG271_00051 | J61: Number of maintenance spans (0's) | K61: Urban and CBD | M61: ED_VEG272_00051 | O61: Audit
H62: ED_VEG271_00052 | K62: Rural | M62: ED_VEG272_00052 | O62: Contractor liaison expenditure
H63: ED_VEG271_00053 | J63: Total length of maintenance spans (KM) | K63: Urban and CBD | M63: ED_VEG272_00053 | O63: Tree replacement program costs
H64: ED_VEG271_00054 | K64: Rural | M64: ED_VEG272_00054 | O64: Other vegetation management costs not specified in sheet
H65: ED_VEG271_00055 | J65: Length of vegetation corridors (KM) | K65: Urban and CBD | M65: ED_VEG272_00055 | N65: =I83 -> ZONE 7 | O65: Tree trimming (excluding hazard trees)
H66: ED_VEG271_00056 | K66: Rural | M66: ED_VEG272_00056 | O66: Hazard tree cutting
H67: ED_VEG271_00057 | J67: Average number of trees per maintenance span (0's) | K67: Urban and CBD | M67: ED_VEG272_00057 | O67: Ground clearance
H68: ED_VEG271_00058 | K68: Rural | M68: ED_VEG272_00058 | O68: Vegetation corridor clearance
H69: ED_VEG271_00059 | J69: Average frequency of cutting cycle (years) | K69: Urban and CBD | M69: ED_VEG272_00059 | O69: Inspection
H70: ED_VEG271_00060 | K70: Rural | M70: ED_VEG272_00060 | O70: Audit
H71: ED_VEG271_00061 | I71: ZONE 6 | J71: Route line length within zone (KM) | K71: Urban and CBD | M71: ED_VEG272_00061 | O71: Contractor liaison expenditure
H72: ED_VEG271_00062 | K72: Rural | M72: ED_VEG272_00062 | O72: Tree replacement program costs
H73: ED_VEG271_00063 | J73: Number of maintenance spans (0's) | K73: Urban and CBD | M73: ED_VEG272_00063 | O73: Other vegetation management costs not specified in sheet
H74: ED_VEG271_00064 | K74: Rural | M74: ED_VEG272_00064 | N74: =I95 -> ZONE 8 | O74: Tree trimming (excluding hazard trees)
H75: ED_VEG271_00065 | J75: Total length of maintenance spans (KM) | K75: Urban and CBD | M75: ED_VEG272_00065 | O75: Hazard tree cutting
H76: ED_VEG271_00066 | K76: Rural | M76: ED_VEG272_00066 | O76: Ground clearance
H77: ED_VEG271_00067 | J77: Length of vegetation corridors (KM) | K77: Urban and CBD | M77: ED_VEG272_00067 | O77: Vegetation corridor clearance
H78: ED_VEG271_00068 | K78: Rural | M78: ED_VEG272_00068 | O78: Inspection
H79: ED_VEG271_00069 | J79: Average number of trees per maintenance span (0's) | K79: Urban and CBD | M79: ED_VEG272_00069 | O79: Audit
H80: ED_VEG271_00070 | K80: Rural | M80: ED_VEG272_00070 | O80: Contractor liaison expenditure
H81: ED_VEG271_00071 | J81: Average frequency of cutting cycle (years) | K81: Urban and CBD | M81: ED_VEG272_00071 | O81: Tree replacement program costs
H82: ED_VEG271_00072 | K82: Rural | M82: ED_VEG272_00072 | O82: Other vegetation management costs not specified in sheet
H83: ED_VEG271_00073 | I83: ZONE 7 | J83: Route line length within zone (KM) | K83: Urban and CBD | M83: ED_VEG272_00073 | N83: =I107 -> ZONE 9 | O83: Tree trimming (excluding hazard trees)
H84: ED_VEG271_00074 | K84: Rural | M84: ED_VEG272_00074 | O84: Hazard tree cutting
H85: ED_VEG271_00075 | J85: Number of maintenance spans (0's) | K85: Urban and CBD | M85: ED_VEG272_00075 | O85: Ground clearance
H86: ED_VEG271_00076 | K86: Rural | M86: ED_VEG272_00076 | O86: Vegetation corridor clearance
H87: ED_VEG271_00077 | J87: Total length of maintenance spans (KM) | K87: Urban and CBD | M87: ED_VEG272_00077 | O87: Inspection
H88: ED_VEG271_00078 | K88: Rural | M88: ED_VEG272_00078 | O88: Audit
H89: ED_VEG271_00079 | J89: Length of vegetation corridors (KM) | K89: Urban and CBD | M89: ED_VEG272_00079 | O89: Contractor liaison expenditure
H90: ED_VEG271_00080 | K90: Rural | M90: ED_VEG272_00080 | O90: Tree replacement program costs
H91: ED_VEG271_00081 | J91: Average number of trees per maintenance span (0's) | K91: Urban and CBD | M91: ED_VEG272_00081 | O91: Other vegetation management costs not specified in sheet
H92: ED_VEG271_00082 | K92: Rural | M92: ED_VEG272_00082 | N92: =I119 -> ZONE 10 | O92: Tree trimming (excluding hazard trees)
H93: ED_VEG271_00083 | J93: Average frequency of cutting cycle (years) | K93: Urban and CBD | M93: ED_VEG272_00083 | O93: Hazard tree cutting
H94: ED_VEG271_00084 | K94: Rural | M94: ED_VEG272_00084 | O94: Ground clearance
H95: ED_VEG271_00085 | I95: ZONE 8 | J95: Route line length within zone (KM) | K95: Urban and CBD | M95: ED_VEG272_00085 | O95: Vegetation corridor clearance
H96: ED_VEG271_00086 | K96: Rural | M96: ED_VEG272_00086 | O96: Inspection
H97: ED_VEG271_00087 | J97: Number of maintenance spans (0's) | K97: Urban and CBD | M97: ED_VEG272_00087 | O97: Audit
H98: ED_VEG271_00088 | K98: Rural | M98: ED_VEG272_00088 | O98: Contractor liaison expenditure
H99: ED_VEG271_00089 | J99: Total length of maintenance spans (KM) | K99: Urban and CBD | M99: ED_VEG272_00089 | O99: Tree replacement program costs
H100: ED_VEG271_00090 | K100: Rural | M100: ED_VEG272_00090 | O100: Other vegetation management costs not specified in sheet
H101: ED_VEG271_00091 | J101: Length of vegetation corridors (KM) | K101: Urban and CBD | M101: ED_VEG272_00091 | N101: =I131 -> ZONE 11 | O101: Tree trimming (excluding hazard trees)
H102: ED_VEG271_00092 | K102: Rural | M102: ED_VEG272_00092 | O102: Hazard tree cutting
H103: ED_VEG271_00093 | J103: Average number of trees per maintenance span (0's) | K103: Urban and CBD | M103: ED_VEG272_00093 | O103: Ground clearance
H104: ED_VEG271_00094 | K104: Rural | M104: ED_VEG272_00094 | O104: Vegetation corridor clearance
H105: ED_VEG271_00095 | J105: Average frequency of cutting cycle (years) | K105: Urban and CBD | M105: ED_VEG272_00095 | O105: Inspection
H106: ED_VEG271_00096 | K106: Rural | M106: ED_VEG272_00096 | O106: Audit
H107: ED_VEG271_00097 | I107: ZONE 9 | J107: Route line length within zone (KM) | K107: Urban and CBD | M107: ED_VEG272_00097 | O107: Contractor liaison expenditure
H108: ED_VEG271_00098 | K108: Rural | M108: ED_VEG272_00098 | O108: Tree replacement program costs
H109: ED_VEG271_00099 | J109: Number of maintenance spans (0's) | K109: Urban and CBD | M109: ED_VEG272_00099 | O109: Other vegetation management costs not specified in sheet
H110: ED_VEG271_00100 | K110: Rural | M110: ED_VEG272_00100 | N110: =I143 -> ZONE 12 | O110: Tree trimming (excluding hazard trees)
H111: ED_VEG271_00101 | J111: Total length of maintenance spans (KM) | K111: Urban and CBD | M111: ED_VEG272_00101 | O111: Hazard tree cutting
H112: ED_VEG271_00102 | K112: Rural | M112: ED_VEG272_00102 | O112: Ground clearance
H113: ED_VEG271_00103 | J113: Length of vegetation corridors (KM) | K113: Urban and CBD | M113: ED_VEG272_00103 | O113: Vegetation corridor clearance
H114: ED_VEG271_00104 | K114: Rural | M114: ED_VEG272_00104 | O114: Inspection
H115: ED_VEG271_00105 | J115: Average number of trees per maintenance span (0's) | K115: Urban and CBD | M115: ED_VEG272_00105 | O115: Audit
H116: ED_VEG271_00106 | K116: Rural | M116: ED_VEG272_00106 | O116: Contractor liaison expenditure
H117: ED_VEG271_00107 | J117: Average frequency of cutting cycle (years) | K117: Urban and CBD | M117: ED_VEG272_00107 | O117: Tree replacement program costs
H118: ED_VEG271_00108 | K118: Rural | M118: ED_VEG272_00108 | O118: Other vegetation management costs not specified in sheet
H119: ED_VEG271_00109 | I119: ZONE 10 | J119: Route line length within zone (KM) | K119: Urban and CBD | M119: ED_VEG272_00109 | N119: =I155 -> ZONE 13 | O119: Tree trimming (excluding hazard trees)
H120: ED_VEG271_00110 | K120: Rural | M120: ED_VEG272_00110 | O120: Hazard tree cutting
H121: ED_VEG271_00111 | J121: Number of maintenance spans (0's) | K121: Urban and CBD | M121: ED_VEG272_00111 | O121: Ground clearance
H122: ED_VEG271_00112 | K122: Rural | M122: ED_VEG272_00112 | O122: Vegetation corridor clearance
H123: ED_VEG271_00113 | J123: Total length of maintenance spans (KM) | K123: Urban and CBD | M123: ED_VEG272_00113 | O123: Inspection
H124: ED_VEG271_00114 | K124: Rural | M124: ED_VEG272_00114 | O124: Audit
H125: ED_VEG271_00115 | J125: Length of vegetation corridors (KM) | K125: Urban and CBD | M125: ED_VEG272_00115 | O125: Contractor liaison expenditure
H126: ED_VEG271_00116 | K126: Rural | M126: ED_VEG272_00116 | O126: Tree replacement program costs
H127: ED_VEG271_00117 | J127: Average number of trees per maintenance span (0's) | K127: Urban and CBD | M127: ED_VEG272_00117 | O127: Other vegetation management costs not specified in sheet
H128: ED_VEG271_00118 | K128: Rural | M128: ED_VEG272_00118 | N128: =I167 -> ZONE 14 | O128: Tree trimming (excluding hazard trees)
H129: ED_VEG271_00119 | J129: Average frequency of cutting cycle (years) | K129: Urban and CBD | M129: ED_VEG272_00119 | O129: Hazard tree cutting
H130: ED_VEG271_00120 | K130: Rural | M130: ED_VEG272_00120 | O130: Ground clearance
H131: ED_VEG271_00121 | I131: ZONE 11 | J131: Route line length within zone (KM) | K131: Urban and CBD | M131: ED_VEG272_00121 | O131: Vegetation corridor clearance
H132: ED_VEG271_00122 | K132: Rural | M132: ED_VEG272_00122 | O132: Inspection
H133: ED_VEG271_00123 | J133: Number of maintenance spans (0's) | K133: Urban and CBD | M133: ED_VEG272_00123 | O133: Audit
H134: ED_VEG271_00124 | K134: Rural | M134: ED_VEG272_00124 | O134: Contractor liaison expenditure
H135: ED_VEG271_00125 | J135: Total length of maintenance spans (KM) | K135: Urban and CBD | M135: ED_VEG272_00125 | O135: Tree replacement program costs
H136: ED_VEG271_00126 | K136: Rural | M136: ED_VEG272_00126 | O136: Other vegetation management costs not specified in sheet
H137: ED_VEG271_00127 | J137: Length of vegetation corridors (KM) | K137: Urban and CBD | M137: ED_VEG272_00127 | N137: =I179 -> ZONE 15 | O137: Tree trimming (excluding hazard trees)
H138: ED_VEG271_00128 | K138: Rural | M138: ED_VEG272_00128 | O138: Hazard tree cutting
H139: ED_VEG271_00129 | J139: Average number of trees per maintenance span (0's) | K139: Urban and CBD | M139: ED_VEG272_00129 | O139: Ground clearance
H140: ED_VEG271_00130 | K140: Rural | M140: ED_VEG272_00130 | O140: Vegetation corridor clearance
H141: ED_VEG271_00131 | J141: Average frequency of cutting cycle (years) | K141: Urban and CBD | M141: ED_VEG272_00131 | O141: Inspection
H142: ED_VEG271_00132 | K142: Rural | M142: ED_VEG272_00132 | O142: Audit
H143: ED_VEG271_00133 | I143: ZONE 12 | J143: Route line length within zone (KM) | K143: Urban and CBD | M143: ED_VEG272_00133 | O143: Contractor liaison expenditure
H144: ED_VEG271_00134 | K144: Rural | M144: ED_VEG272_00134 | O144: Tree replacement program costs
H145: ED_VEG271_00135 | J145: Number of maintenance spans (0's) | K145: Urban and CBD | M145: ED_VEG272_00135 | O145: Other vegetation management costs not specified in sheet
H146: ED_VEG271_00136 | K146: Rural | M146: ED_VEG272_00136 | N146: =I191 -> ZONE 16 | O146: Tree trimming (excluding hazard trees)
H147: ED_VEG271_00137 | J147: Total length of maintenance spans (KM) | K147: Urban and CBD | M147: ED_VEG272_00137 | O147: Hazard tree cutting
H148: ED_VEG271_00138 | K148: Rural | M148: ED_VEG272_00138 | O148: Ground clearance
H149: ED_VEG271_00139 | J149: Length of vegetation corridors (KM) | K149: Urban and CBD | M149: ED_VEG272_00139 | O149: Vegetation corridor clearance
H150: ED_VEG271_00140 | K150: Rural | M150: ED_VEG272_00140 | O150: Inspection
H151: ED_VEG271_00141 | J151: Average number of trees per maintenance span (0's) | K151: Urban and CBD | M151: ED_VEG272_00141 | O151: Audit
H152: ED_VEG271_00142 | K152: Rural | M152: ED_VEG272_00142 | O152: Contractor liaison expenditure
H153: ED_VEG271_00143 | J153: Average frequency of cutting cycle (years) | K153: Urban and CBD | M153: ED_VEG272_00143 | O153: Tree replacement program costs
H154: ED_VEG271_00144 | K154: Rural | M154: ED_VEG272_00144 | O154: Other vegetation management costs not specified in sheet
H155: ED_VEG271_00145 | I155: ZONE 13 | J155: Route line length within zone (KM) | K155: Urban and CBD | M155: ED_VEG272_00145 | N155: =I203 -> ZONE 17 | O155: Tree trimming (excluding hazard trees)
H156: ED_VEG271_00146 | K156: Rural | M156: ED_VEG272_00146 | O156: Hazard tree cutting
H157: ED_VEG271_00147 | J157: Number of maintenance spans (0's) | K157: Urban and CBD | M157: ED_VEG272_00147 | O157: Ground clearance
H158: ED_VEG271_00148 | K158: Rural | M158: ED_VEG272_00148 | O158: Vegetation corridor clearance
H159: ED_VEG271_00149 | J159: Total length of maintenance spans (KM) | K159: Urban and CBD | M159: ED_VEG272_00149 | O159: Inspection
H160: ED_VEG271_00150 | K160: Rural | M160: ED_VEG272_00150 | O160: Audit
H161: ED_VEG271_00151 | J161: Length of vegetation corridors (KM) | K161: Urban and CBD | M161: ED_VEG272_00151 | O161: Contractor liaison expenditure
H162: ED_VEG271_00152 | K162: Rural | M162: ED_VEG272_00152 | O162: Tree replacement program costs
H163: ED_VEG271_00153 | J163: Average number of trees per maintenance span (0's) | K163: Urban and CBD | M163: ED_VEG272_00153 | O163: Other vegetation management costs not specified in sheet
H164: ED_VEG271_00154 | K164: Rural | M164: ED_VEG272_00154 | N164: =I215 -> ZONE 18 | O164: Tree trimming (excluding hazard trees)
H165: ED_VEG271_00155 | J165: Average frequency of cutting cycle (years) | K165: Urban and CBD | M165: ED_VEG272_00155 | O165: Hazard tree cutting
H166: ED_VEG271_00156 | K166: Rural | M166: ED_VEG272_00156 | O166: Ground clearance
H167: ED_VEG271_00157 | I167: ZONE 14 | J167: Route line length within zone (KM) | K167: Urban and CBD | M167: ED_VEG272_00157 | O167: Vegetation corridor clearance
H168: ED_VEG271_00158 | K168: Rural | M168: ED_VEG272_00158 | O168: Inspection
H169: ED_VEG271_00159 | J169: Number of maintenance spans (0's) | K169: Urban and CBD | M169: ED_VEG272_00159 | O169: Audit
H170: ED_VEG271_00160 | K170: Rural | M170: ED_VEG272_00160 | O170: Contractor liaison expenditure
H171: ED_VEG271_00161 | J171: Total length of maintenance spans (KM) | K171: Urban and CBD | M171: ED_VEG272_00161 | O171: Tree replacement program costs
H172: ED_VEG271_00162 | K172: Rural | M172: ED_VEG272_00162 | O172: Other vegetation management costs not specified in sheet
H173: ED_VEG271_00163 | J173: Length of vegetation corridors (KM) | K173: Urban and CBD
H174: ED_VEG271_00164 | K174: Rural
H175: ED_VEG271_00165 | J175: Average number of trees per maintenance span (0's) | K175: Urban and CBD
H176: ED_VEG271_00166 | K176: Rural
H177: ED_VEG271_00167 | J177: Average frequency of cutting cycle (years) | K177: Urban and CBD
H178: ED_VEG271_00168 | K178: Rural
H179: ED_VEG271_00169 | I179: ZONE 15 | J179: Route line length within zone (KM) | K179: Urban and CBD
H180: ED_VEG271_00170 | K180: Rural
H181: ED_VEG271_00171 | J181: Number of maintenance spans (0's) | K181: Urban and CBD
H182: ED_VEG271_00172 | K182: Rural
H183: ED_VEG271_00173 | J183: Total length of maintenance spans (KM) | K183: Urban and CBD
H184: ED_VEG271_00174 | K184: Rural
H185: ED_VEG271_00175 | J185: Length of vegetation corridors (KM) | K185: Urban and CBD
H186: ED_VEG271_00176 | K186: Rural
H187: ED_VEG271_00177 | J187: Average number of trees per maintenance span (0's) | K187: Urban and CBD
H188: ED_VEG271_00178 | K188: Rural
H189: ED_VEG271_00179 | J189: Average frequency of cutting cycle (years) | K189: Urban and CBD
H190: ED_VEG271_00180 | K190: Rural
H191: ED_VEG271_00181 | I191: ZONE 16 | J191: Route line length within zone (KM) | K191: Urban and CBD
H192: ED_VEG271_00182 | K192: Rural
H193: ED_VEG271_00183 | J193: Number of maintenance spans (0's) | K193: Urban and CBD
H194: ED_VEG271_00184 | K194: Rural
H195: ED_VEG271_00185 | J195: Total length of maintenance spans (KM) | K195: Urban and CBD
H196: ED_VEG271_00186 | K196: Rural
H197: ED_VEG271_00187 | J197: Length of vegetation corridors (KM) | K197: Urban and CBD
H198: ED_VEG271_00188 | K198: Rural
H199: ED_VEG271_00189 | J199: Average number of trees per maintenance span (0's) | K199: Urban and CBD
H200: ED_VEG271_00190 | K200: Rural
H201: ED_VEG271_00191 | J201: Average frequency of cutting cycle (years) | K201: Urban and CBD
H202: ED_VEG271_00192 | K202: Rural
H203: ED_VEG271_00193 | I203: ZONE 17 | J203: Route line length within zone (KM) | K203: Urban and CBD
... 23 more rows

Sheet 2.8 Maintenance
B1: =(LOOKUP(dms_Model,dms_Model_List,dms_Worksheet_List)) -> REGULATORY REPORTING STATEMENT
B2: =INDEX(dms_TradingNameFull_List,MATCH(dms_TradingName,dms_TradingName_List)) -> AusNet Services (D)
B3: =CONCATENATE("Category Analysis RIN response ",CRY) -> Category Analysis RIN response 2015
B4: 2.8 MAINTENANCE
B8: TABLE 2.8.1 - DESCRIPTOR METRICS FOR ROUTINE AND NON-ROUTINE MAINTENANCE | K8: TABLE 2.8.2 - COST METRICS FOR ROUTINE AND NON-ROUTINE MAINTENANCE
E11: ASSET QUANTITY - AT YEAR END (0s) | F11: ASSET QUANTITY - INSPECTED/ MAINTAINED | G11: AVERAGE AGE OF ASSET GROUP | H11: INSPECTION CYCLE (YEARS) | I11: MAINTENANCE CYCLE (YEARS) | M11: ROUTINE MAINTENANCE EXPENDITURE ($0's) | N11: NON-ROUTINE MAINTENANCE EXPENDITURE ($0's)
B12: MAINTENANCE ACTIVITY | C12: MAINTENANCE ASSET CATEGORY | D12: UNIT OF MEASURE - ASSET QUANTITY | E12: =CRY -> 2015 | F12: =CRY -> 2015 | G12: =CRY -> 2015 | K12: MAINTENANCE ACTIVITY | L12: MAINTENANCE ASSET CATEGORY | M12: =CRY -> 2015 | N12: =CRY -> 2015
A13: ED_MAI281_00001 | B13: Pole top, overhead line & service line maintenance | C13: Pole tops and overhead lines | D13: Number of poles | E13: 454490.7 | F13: 134726 | G13: 28.9 | H13: 3.5 | I13: 0 | J13: ED_MAI282_00001 | K13: Pole top, overhead line & service line maintenance | L13: Pole tops and overhead lines | M13: 4318218.418 | N13: 1986568.759
A14: ED_MAI281_00002 | C14: Service lines | D14: Number of customers | E14: 259305 | F14: 49116.00057 | G14: 21.6 | H14: 3.5 | I14: 0 | J14: ED_MAI282_00002 | L14: Service lines | M14: 1465.37 | N14: 142900.98
A15: ED_MAI281_00003 | B15: Pole inspection and treatment | C15: All poles | D15: Number of poles | E15: 402038 | F15: 125061.5 | G15: 29.9 | H15: 5 | I15: 0 | J15: ED_MAI282_00003 | K15: Pole inspection and treatment | L15: All poles | M15: 6438165.625 | N15: 280150.9068
A16: ED_MAI281_00004 | B16: Overhead asset inspection | C16: All overhead assets | D16: Line patrolled (route KM) | E16: 34620.1476 | F16: 9891.470742 | G16: 38.8 | H16: 3.5 | I16: 0 | J16: ED_MAI282_00004 | K16: Overhead asset inspection | L16: All overhead assets | M16: 223723.9754 | N16: 4084779.027
A17: ED_MAI281_00005 | B17: Network underground cable maintenance: by voltage | C17: LV - 11 to 22 KV | D17: Length (KM) | E17: 5955.035626 | F17: 712.5 | G17: 26.1 | H17: 0 | I17: 0 | J17: ED_MAI282_00005 | K17: Network underground cable maintenance: by voltage | L17: LV - 11 to 22 KV | M17: 0 | N17: 713234.4672
A18: ED_MAI281_00006 | C18: 33 KV and above | D18: Length (KM) | E18: 10.899199 | G18: 17.504 | H18: 0 | I18: 0 | J18: ED_MAI282_00006 | L18: 33 KV and above | M18: 0 | N18: 1305.39679
A19: ED_MAI281_00007 | B19: Network underground cable maintenance: by location | C19: Cbd | D19: Length (KM) | E19: 0 | F19: 0 | G19: 0 | H19: 0 | I19: 0 | J19: ED_MAI282_00007 | K19: Network underground cable maintenance: by location | L19: CBD | M19: 0 | N19: 0
A20: ED_MAI281_00008 | C20: Non-CBD | D20: Length (KM) | E20: 5965.934825 | G20: 26.1 | H20: 0 | I20: 0 | J20: ED_MAI282_00008 | L20: Non-CBD | M20: 0 | N20: 714539.864
A21: ED_MAI281_00009 | B21: Distribution substation equipment & property maintenance | C21: Distribution substation transformers | D21: Number of installed transformers | E21: 59166.997 | F21: 16904.85629 | G21: 26.6 | H21: 3.5 | I21: 0 | J21: ED_MAI282_00009 | K21: Distribution substation equipment & property maintenance | L21: Distribution substation transformers | M21: 19497.12906 | N21: 36552.51118
A22: ED_MAI281_00010 | C22: Distribution substation switchgear (within-substations and stand-alone switchgear) | D22: Number of switches | E22: 167990.001 | F22: 16799.0001 | G22: 30 | H22: 0 | I22: 10 | J22: ED_MAI282_00010 | L22: Distribution substation switchgear (within-substations and stand-alone switchgear) | M22: 1753.293045 | N22: 71991.28671
A23: ED_MAI281_00011 | C23: Distribution substation - other equipment | D23: Earth mat | E23: 0 | G23: 0 | H23: 0 | I23: 0 | J23: ED_MAI282_00011 | L23: Distribution substation - other equipment | M23: 0 | N23: 0
A24: ED_MAI281_00012 | C24: Distribution substation - property | D24: Number of distribution substation properties maintained | E24: 4163 | F24: 3 | G24: 40 | H24: 3.5 | I24: 0 | J24: ED_MAI282_00012 | L24: Distribution substation - property | M24: 5103.789474 | N24: 165150.9805
A25: ED_MAI281_00013 | B25: Zone substation equipment maintenance | C25: Transformers - zone substation | D25: Number of zone substation transformers | E25: 145 | F25: 277.5 | G25: 35.5 | H25: 1 | I25: 3 | J25: ED_MAI282_00013 | K25: Zone substation equipment maintenance | L25: Transformers - zone substation | M25: 334509.946 | N25: 101370.344
A26: ED_MAI281_00014 | C26: Transformers - distribution | D26: Number of distribution transformers within zone substations | E26: 0 | F26: 0 | G26: 0 | H26: 0 | I26: 0 | J26: ED_MAI282_00014 | L26: Transformers - distribution | M26: 0 | N26: 0
A27: ED_MAI281_00015 | C27: Transformers - HV | D27: Number of HV transformers | E27: 0 | F27: 0 | G27: 0 | H27: 0 | I27: 0 | J27: ED_MAI282_00015 | L27: Transformers - HV | M27: 0 | N27: 0
A28: ED_MAI281_00016 | C28: Zone substation - other equipment | D28: <DNSP to nominate> | E28: 2566.88 | F28: 2994.693333 | G28: 25.3 | H28: 1 | I28: 6 | J28: ED_MAI282_00016 | L28: Zone substation - other equipment | M28: 620952.26 | N28: 289336.5797
A29: ED_MAI281_00017 | B29: Zone substation property maintenance | C29: All zone substation properties | D29: Number of zone substation properties maintained | E29: 71 | F29: 331.5 | G29: 40 | H29: 0.25 | I29: 0.5 | J29: ED_MAI282_00017 | K29: Zone substation property maintenance | L29: All zone substation properties | M29: 1329853.3 | N29: 415854.9899
A30: ED_MAI281_00018 | B30: Public lighting maintenance | C30: Minor roads | D30: Number of public lights maintained | E30: 0 | F30: 0 | G30: 0 | H30: 0 | I30: 0 | J30: ED_MAI282_00018 | K30: Public lighting maintenance | L30: Minor roads | M30: 0 | N30: 0
A31: ED_MAI281_00019 | C31: Major roads | D31: Number of public lights maintained | E31: 0 | F31: 0 | G31: 0 | H31: 0 | I31: 0 | J31: ED_MAI282_00019 | L31: Major roads | M31: 0 | N31: 0
A32: ED_MAI281_00020 | B32: SCADA & network control maintenance | C32: SCADA & network control maintenance | D32: Number of systems | E32: 8431 | F32: 2810.333333 | G32: 7.5 | H32: 6 | I32: 6 | J32: ED_MAI282_00020 | K32: SCADA & network control maintenance | L32: SCADA & network control maintenance | M32: 109376.1821 | N32: 252408.8234
A33: ED_MAI281_00021 | B33: Protection systems maintenance | C33: Protection systems maintenance | D33: Number of systems | E33: 306 | F33: 309 | G33: 9.3 | H33: 6 | I33: 6 | J33: ED_MAI282_00021 | K33: Protection systems maintenance | L33: Protection systems maintenance | M33: 544359.708 | N33: 111405.392
A34: ED_MAI281_00022 | B34: Subtransmission asset maintenance - for DNSPs with dual function assets | C34: Subtransmission asset maintenance - for DNSPs with dual function assets | D34: <DNSP to nominate> | E34: 0 | F34: 0 | G34: 0 | H34: 0 | I34: 0 | J34: ED_MAI282_00022 | K34: Subtransmission asset maintenance - for DNSPs with dual function assets | L34: Subtransmission asset maintenance - for DNSPs with dual function assets | M34: 0 | N34: 0
A35: ED_MAI281_00023 | B35: Various assets | C35: includes rates, electricity, communications equip, metering | D35: Units not quoted as various UOM | E35: 0 | F35: 0 | G35: 0 | H35: 0 | I35: 0 | J35: ED_MAI282_00023 | K35: Various assets | L35: includes rates, electricity, communications equip, metering | M35: 0 | N35: 0
A36: ED_MAI281_00024 | B36: Ground clearance - access tracks | C36: Ground clearance - access tracks | D36: Units not quoted | E36: 0 | F36: 0 | G36: 0 | H36: 0 | I36: 0 | J36: ED_MAI282_00024 | K36: Ground clearance - access tracks | L36: Ground clearance - access tracks | M36: 0 | N36: 0
A37: ED_MAI281_00025 | B37: Other | C37: < DNSP to nominate > | D37: < DNSP to nominate > | J37: ED_MAI282_00025 | K37: Other | L37: < DNSP to nominate > | N37: -714539.864
A38: ED_MAI281_00026 | C38: < DNSP to nominate > | D38: < DNSP to nominate >
A39: ED_MAI281_00027 | C39: < DNSP to nominate > | D39: < DNSP to nominate >
A40: ED_MAI281_00028 | C40: < DNSP to nominate > | D40: < DNSP to nominate >
A41: ED_MAI281_00029 | C41: < DNSP to nominate > | D41: < DNSP to nominate >
A42: ED_MAI281_00030 | C42: < DNSP to nominate > | D42: < DNSP to nominate >
A43: ED_MAI281_00031 | C43: < DNSP to nominate > | D43: < DNSP to nominate >
A44: ED_MAI281_00032 | C44: < DNSP to nominate > | D44: < DNSP to nominate >
A45: ED_MAI281_00033 | C45: < DNSP to nominate > | D45: < DNSP to nominate >
A46: ED_MAI281_00034 | C46: < DNSP to nominate > | D46: < DNSP to nominate >

Sheet 2.9 Emergency Response
B1: =(LOOKUP(dms_Model,dms_Model_List,dms_Worksheet_List)) -> REGULATORY REPORTING STATEMENT
B2: =INDEX(dms_TradingNameFull_List,MATCH(dms_TradingName,dms_TradingName_List)) -> AusNet Services (D)
B3: =CONCATENATE("Category Analysis RIN response ",CRY) -> Category Analysis RIN response 2015
B4: 2.9 EMERGENCY RESPONSE
B6: TABLE 2.9.1 - EMERGENCY RESPONSE EXPENDITURE (OPEX)
D9: EXPENDITURE ($0's)
D10: =CRY -> 2015
A11: ED_EME291_99999 | B11: (A) TOTAL EMERGENCY RESPONSE EXPENDITURE ($0's) | C11: Total Expenditure | D11: 15404957.92
A12: ED_EME291_00002 | B12: (B) MAJOR EVENTS O&M EXPENDITURE ($0's)
A13: ED_EME291_00003
A14: ED_EME291_00004
A15: ED_EME291_00005
A16: ED_EME291_00006
A17: ED_EME291_00007
A18: ED_EME291_00008
A19: ED_EME291_00009
A20: ED_EME291_00010
A21: ED_EME291_00011
A22: ED_EME291_00012
A23: ED_EME291_00013
A24: ED_EME291_00014
A25: ED_EME291_00015
A26: ED_EME291_00016
A27: ED_EME291_00017
A28: ED_EME291_00018
A29: ED_EME291_00019
A30: ED_EME291_00020
A31: ED_EME291_00021
A32: ED_EME291_00022
A33: ED_EME291_00023
A34: ED_EME291_00024
A35: ED_EME291_00025
A36: ED_EME291_00026
A37: ED_EME291_00027
A38: ED_EME291_00028
A39: ED_EME291_00029
A40: ED_EME291_00030
A41: ED_EME291_00031
A42: ED_EME291_00032
A43: ED_EME291_00033
A44: ED_EME291_00034
A45: ED_EME291_00035
A46: ED_EME291_00036
A47: ED_EME291_00037
A48: ED_EME291_00038
A49: ED_EME291_00039
A50: ED_EME291_00040
A51: ED_EME291_00041
A52: ED_EME291_00042
A53: ED_EME291_00043
A54: ED_EME291_00044
A55: ED_EME291_00045 | B55: (C) MAJOR EVENT DAYS O&M EXPENDITURE ($0's) | C55: 2015-01-07 | D55: 135035.6334
A56: ED_EME291_00046 | C56: 2015-02-28 | D56: 149285.8329
A57: ED_EME291_00047 | C57: 2015-11-25 | D57: 228944.39
A58: ED_EME291_00048 | C58: 2015-12-20 | D58: 0
A59: ED_EME291_00049
A60: ED_EME291_00050
A61: ED_EME291_00051
A62: ED_EME291_00052
A63: ED_EME291_00053
A64: ED_EME291_00054
A65: ED_EME291_00055
A66: ED_EME291_00056
A67: ED_EME291_00057
A68: ED_EME291_00058
A69: ED_EME291_00059
A70: ED_EME291_00060
A71: ED_EME291_00061
A72: ED_EME291_00062
A73: ED_EME291_00063
A74: ED_EME291_00064
A75: ED_EME291_00065
A76: ED_EME291_00066
A77: ED_EME291_00067
A78: ED_EME291_00068
A79: ED_EME291_00069
A80: ED_EME291_00070
A81: ED_EME291_00071
A82: ED_EME291_00072
A83: ED_EME291_00073
A84: ED_EME291_00074
A85: ED_EME291_00075
A86: ED_EME291_00076
A87: ED_EME291_00077
A88: ED_EME291_00078
A89: ED_EME291_00079
A90: ED_EME291_00080
A91: ED_EME291_00081
A92: ED_EME291_00082
A93: ED_EME291_00083
A94: ED_EME291_00084
A95: ED_EME291_00085
A96: ED_EME291_00086
A97: ED_EME291_00087
A98: ED_EME291_00088
A99: ED_EME291_00089
A100: ED_EME291_00090
A101: ED_EME291_00091
A102: ED_EME291_00092
A103: ED_EME291_00093
A104: ED_EME291_00094
A105: ED_EME291_00095
A106: ED_EME291_00096
A107: ED_EME291_00097
A108: ED_EME291_00098
A109: ED_EME291_00099
A110: ED_EME291_00100
A111: ED_EME291_00101
A112: ED_EME291_00102
A113: ED_EME291_00103
A114: ED_EME291_00104
A115: ED_EME291_00105
A116: ED_EME291_00106
A117: ED_EME291_00107
A118: ED_EME291_00108
A119: ED_EME291_00109
A120: ED_EME291_00110
A121: ED_EME291_00111
A122: ED_EME291_00112
A123: ED_EME291_00113
A124: ED_EME291_00114
A125: ED_EME291_00115
A126: ED_EME291_00116
A127: ED_EME291_00117
A128: ED_EME291_00118
A129: ED_EME291_00119
A130: ED_EME291_00120
A131: ED_EME291_00121
A132: ED_EME291_00122
A133: ED_EME291_00123
A134: ED_EME291_00124
A135: ED_EME291_00125
A136: ED_EME291_00126
A137: ED_EME291_00127
A138: ED_EME291_00128
A139: ED_EME291_00129
A140: ED_EME291_00130
A141: ED_EME291_00131
A142: ED_EME291_00132
A143: ED_EME291_00133
A144: ED_EME291_00134
A145: ED_EME291_00135
A146: ED_EME291_00136
A147: ED_EME291_00137
A148: ED_EME291_00138
A149: ED_EME291_00139
A150: ED_EME291_00140
A151: ED_EME291_00141
A152: ED_EME291_00142
A153: ED_EME291_00143
A154: ED_EME291_00144
A155: ED_EME291_00145
A156: ED_EME291_00146
A157: ED_EME291_00147
A158: ED_EME291_00148
A159: ED_EME291_00149
A160: ED_EME291_00150
A161: ED_EME291_00151
A162: ED_EME291_00152
A163: ED_EME291_00153
A164: ED_EME291_00154
A165: ED_EME291_00155
A166: ED_EME291_00156
A167: ED_EME291_00157
A168: ED_EME291_00158
A169: ED_EME291_00159
A170: ED_EME291_00160
A171: ED_EME291_00161
A172: ED_EME291_00162
A173: ED_EME291_00163
A174: ED_EME291_00164
A175: ED_EME291_00165
A176: ED_EME291_00166
A177: ED_EME291_00167
A178: ED_EME291_00168
A179: ED_EME291_00169
A180: ED_EME291_00170
A181: ED_EME291_00171
A182: ED_EME291_00172
A183: ED_EME291_00173
A184: ED_EME291_00174
A185: ED_EME291_00175
A186: ED_EME291_00176
A187: ED_EME291_00177
A188: ED_EME291_00178
A189: ED_EME291_00179
A190: ED_EME291_00180
A191: ED_EME291_00181
A192: ED_EME291_00182
A193: ED_EME291_00183
A194: ED_EME291_00184
A195: ED_EME291_00185
A196: ED_EME291_00186
A197: ED_EME291_00187
A198: ED_EME291_00188
A199: ED_EME291_00189
A200: ED_EME291_00190
A201: ED_EME291_00191
A202: ED_EME291_00192
A203: ED_EME291_00193
... 400 more rows

Sheet 2.10 Overheads
B1: =(LOOKUP(dms_Model,dms_Model_List,dms_Worksheet_List)) -> REGULATORY REPORTING STATEMENT
B2: =INDEX(dms_TradingNameFull_List,MATCH(dms_TradingName,dms_TradingName_List)) -> AusNet Services (D)
B3: =CONCATENATE("Category Analysis RIN response ",CRY) -> Category Analysis RIN response 2015
B4: 2.10 OVERHEADS
B8: TABLE 2.10.1 - NETWORK OVERHEADS EXPENDITURE
E10: EXPENDITURE ($0's)
A11: OVE2101 | E11: =CRY -> 2015
A12: ED_OVE2101_00001 | B12: NETWORK OVERHEADS | C12: Total Overhead Expenditure - Standard Control Services | D12: Network management | E12: 32636574.32
A13: ED_OVE2101_00002 | D13: Network planning | E13: 21430304.77
A14: ED_OVE2101_00003 | D14: Network control and operational switching | E14: 998341.238
A15: ED_OVE2101_00004 | D15: Quality and standard functions | E15: 3218821.66
A16: ED_OVE2101_00005 | D16: Project governance and related functions | E16: 5729369.745
A17: ED_OVE2101_00006 | D17: Other | E17: 5338844.346
A18: ED_OVE2101_00007 | D18: Billing & Revenue Collection | E18: 313205.5222
A19: ED_OVE2101_00008 | D19: Advertising/Marketing | E19: 1088797.944
A20: ED_OVE2101_00009 | D20: Customer Service | E20: 5432379.067
A21: ED_OVE2101_00010 | D21: Non-network alternatives costs | E21: 0
A22: ED_OVE2101_00011 | D22: GSL payments | E22: 4405427.364
A23: ED_OVE2101_00012 | D23: Licence fee | E23: 0
A24: ED_OVE2101_00013
A25: ED_OVE2101_00014
A26: ED_OVE2101_00015
A27: ED_OVE2101_00016
A28: ED_OVE2101_00017
A29: ED_OVE2101_00018
A30: ED_OVE2101_00019
A31: ED_OVE2101_00020
A32: ED_OVE2101_00021
A33: ED_OVE2101_00022
A34: ED_OVE2101_00023
A35: ED_OVE2101_00024
A36: ED_OVE2101_00025
A37: ED_OVE2101_00026
A38: ED_OVE2101_00027
A39: ED_OVE2101_00028
A40: ED_OVE2101_00029 | B40: NETWORK OVERHEADS | C40: Total Overhead Expenditure - Alternative Control Services | D40: Network management
A41: ED_OVE2101_00030 | D41: Network planning
A42: ED_OVE2101_00031 | D42: Network control and operational switching
A43: ED_OVE2101_00032 | D43: Quality and standard functions
A44: ED_OVE2101_00033 | D44: Project governance and related functions
A45: ED_OVE2101_00034
A46: ED_OVE2101_00035
A47: ED_OVE2101_00036
A48: ED_OVE2101_00037
A49: ED_OVE2101_00038
A50: ED_OVE2101_00039
A51: ED_OVE2101_00040
A52: ED_OVE2101_00041
A53: ED_OVE2101_00042
A54: ED_OVE2101_00043
A55: ED_OVE2101_00044
A56: ED_OVE2101_00045
A57: ED_OVE2101_00046
A58: ED_OVE2101_00047
A59: ED_OVE2101_00048
A60: ED_OVE2101_00049
A61: ED_OVE2101_00050
A62: ED_OVE2101_00051
A63: ED_OVE2101_00052
A64: ED_OVE2101_00053
A65: ED_OVE2101_00054
A66: ED_OVE2101_00055
A67: ED_OVE2101_00056
A68: ED_OVE2101_00057 | B68: NETWORK OVERHEADS | C68: Total Overhead Expenditure - Negotiated Services | D68: Total
A69: ED_OVE2101_00058 | C69: Total Overhead Expenditure - Unregulated Services | D69: Total
A70: ED_OVE2101_00059 | B70: NETWORK OVERHEADS | C70: Capitalised Overheads - Standard Control Services | D70: Network management | E70: -12261612.46
A71: ED_OVE2101_00060 | D71: Network planning | E71: -9322186.556
A72: ED_OVE2101_00061 | D72: Network control and operational switching | E72: -2707186.274
A73: ED_OVE2101_00062 | D73: Quality and standard functions | E73: -1454749.955
A74: ED_OVE2101_00063 | D74: Project governance and related functions | E74: -3969916.743
A75: ED_OVE2101_00064 | D75: Other | E75: -370053.6166
A76: ED_OVE2101_00065 | D76: Billing & Revenue Collection | E76: 0
A77: ED_OVE2101_00066 | D77: Advertising/Marketing | E77: -127540.8659
A78: ED_OVE2101_00067 | D78: Customer Service | E78: -496486.3452
A79: ED_OVE2101_00068 | D79: Non-network alternatives costs | E79: 0
A80: ED_OVE2101_00069 | D80: GSL payments | E80: 0
A81: ED_OVE2101_00070 | D81: Licence fee | E81: 0
A82: ED_OVE2101_00071
A83: ED_OVE2101_00072
A84: ED_OVE2101_00073
A85: ED_OVE2101_00074
A86: ED_OVE2101_00075
A87: ED_OVE2101_00076
A88: ED_OVE2101_00077
A89: ED_OVE2101_00078
A90: ED_OVE2101_00079
A91: ED_OVE2101_00080
A92: ED_OVE2101_00081
A93: ED_OVE2101_00082
A94: ED_OVE2101_00083
A95: ED_OVE2101_00084
A96: ED_OVE2101_00085
A97: ED_OVE2101_00086
B105: TABLE 2.10.2 - CORPORATE OVERHEADS EXPENDITURE
E107: EXPENDITURE ($0's)
A108: OVE2102 | E108: =CRY -> 2015
A109: ED_OVE2102_00002 | B109: CORPORATE OVERHEADS | C109: Total Overhead Expenditure - Standard Control Services | D109: REGULATORY | E109: 2443034.358
A110: ED_OVE2102_00003 | D110: NON-NETWORK IT SUPPORT | E110: 3635822.127
A111: ED_OVE2102_00004 | D111: BUSHFIRE & ROYAL COMMISSION COSTS | E111: 4735.46
A112: ED_OVE2102_00005 | D112: GM, CORPORATE SERVICES AND LEGAL | E112: 18998392.8
A113: ED_OVE2102_00006 | D113: HUMAN RESOURCES | E113: 4598952.571
A114: ED_OVE2102_00007 | D114: FINANCE | E114: 22430787.72
A115: ED_OVE2102_00008
A116: ED_OVE2102_00009
A117: ED_OVE2102_00010
A118: ED_OVE2102_00011
A119: ED_OVE2102_00012
A120: ED_OVE2102_00013
A121: ED_OVE2102_00014
A122: ED_OVE2102_00015
A123: ED_OVE2102_00016
A124: ED_OVE2102_00017
A125: ED_OVE2102_00018
A126: ED_OVE2102_00019
A127: ED_OVE2102_00020
A128: ED_OVE2102_00021
A129: ED_OVE2102_00022
A130: ED_OVE2102_00023 | B130: CORPORATE OVERHEADS | C130: Total Overhead Expenditure - Alternative Control Services
A131: ED_OVE2102_00024
A132: ED_OVE2102_00025
A133: ED_OVE2102_00026
A134: ED_OVE2102_00027
A135: ED_OVE2102_00028
A136: ED_OVE2102_00029
A137: ED_OVE2102_00030
A138: ED_OVE2102_00031
A139: ED_OVE2102_00032
A140: ED_OVE2102_00033
A141: ED_OVE2102_00034
A142: ED_OVE2102_00035
A143: ED_OVE2102_00036
A144: ED_OVE2102_00037
A145: ED_OVE2102_00038
A146: ED_OVE2102_00039
A147: ED_OVE2102_00040
A148: ED_OVE2102_00041
A149: ED_OVE2102_00042
A150: ED_OVE2102_00043
A151: ED_OVE2102_00044 | B151: CORPORATE OVERHEADS | C151: Total Overhead Expenditure - Negotiated Services | D151: Total | E151: 297014.24
A152: ED_OVE2102_00045 | C152: Total Overhead Expenditure - Unregulated Services | D152: Total | E152: 79540.14864
A153: ED_OVE2102_00046 | B153: CORPORATE OVERHEADS | C153: Capitalised Overheads - Standard Control Services | D153: REGULATORY | E153: -305988.4214
A154: ED_OVE2102_00047 | D154: NON-NETWORK IT SUPPORT | E154: -3635822.127
A155: ED_OVE2102_00048 | D155: BUSHFIRE & ROYAL COMMISSION COSTS | E155: 0
A156: ED_OVE2102_00049 | D156: GM, CORPORATE SERVICES AND LEGAL | E156: -4099411.186
A157: ED_OVE2102_00050 | D157: HUMAN RESOURCES | E157: -641002.6045
A158: ED_OVE2102_00051 | D158: FINANCE | E158: -3301370.205
A159: ED_OVE2102_00052
A160: ED_OVE2102_00053
A161: ED_OVE2102_00054
A162: ED_OVE2102_00055
A163: ED_OVE2102_00056
A164: ED_OVE2102_00057
A165: ED_OVE2102_00058
A166: ED_OVE2102_00059
A167: ED_OVE2102_00060
A168: ED_OVE2102_00061
A169: ED_OVE2102_00062
A170: ED_OVE2102_00063
A171: ED_OVE2102_00064
A172: ED_OVE2102_00065
A173: ED_OVE2102_00066

Sheet 2.11 Labour
B1: =(LOOKUP(dms_Model,dms_Model_List,dms_Worksheet_List)) -> REGULATORY REPORTING STATEMENT
B2: =INDEX(dms_TradingNameFull_List,MATCH(dms_TradingName,dms_TradingName_List)) -> AusNet Services (D)
B3: =CONCATENATE("Category Analysis RIN response ",CRY) -> Category Analysis RIN response 2015
B4: 2.11 LABOUR
B6: TABLE 2.11.1 - COST METRICS PER ANNUM | J6: TABLE 2.11.2 - EXTRA DESCRIPTOR METRICS FOR CURRENT YEAR
E10: ASL (0'S) | F10: TOTAL LABOUR EXPENDITURE ($0's) | G10: AVERAGE PRODUCTIVE WORK HOURS PER ASL (0'S) | H10: STAND-DOWN OCCURENCES PER ASL (0'S) | M10: AVERAGE PRODUCTIVE WORK HOURS ORDINARY TIME (0's) | O10: AVERAGE PRODUCTIVE WORK HOURS OVERTIME (0's)
M11: PER ASL | N11: HOURLY RATE PER ASL | O11: PER ASL | P11: HOURLY RATE PER ASL
E12: =CRY -> 2015 | F12: =CRY -> 2015 | G12: =CRY -> 2015 | H12: =CRY -> 2015 | M12: =CRY -> 2015 | N12: =CRY -> 2015 | O12: =CRY -> 2015 | P12: =CRY -> 2015
A13: ED_LAB2111_00001 | B13: CORPORATE OVERHEADS INTERNAL LABOUR COSTS | C13: LABOUR CLASSIFICATION LEVEL | D13: Executive manager | I13: ED_LAB2112_00001 | J13: CORPORATE OVERHEADS INTERNAL LABOUR COSTS | K13: LABOUR CLASSIFICATION LEVEL | L13: Executive manager
A14: ED_LAB2111_00002 | D14: Employee (optional) | I14: ED_LAB2112_00002 | L14: Employee (optional)
A15: ED_LAB2111_00003 | D15: Labour hire (optional) | I15: ED_LAB2112_00003 | L15: Labour hire (optional)
A16: ED_LAB2111_00004 | D16: Senior manager | I16: ED_LAB2112_00004 | L16: Senior manager
A17: ED_LAB2111_00005 | D17: Employee (optional) | I17: ED_LAB2112_00005 | L17: Employee (optional)
A18: ED_LAB2111_00006 | D18: Labour hire (optional) | I18: ED_LAB2112_00006 | L18: Labour hire (optional)
A19: ED_LAB2111_00007 | D19: Manager | I19: ED_LAB2112_00007 | L19: Manager
A20: ED_LAB2111_00008 | D20: Employee (optional) | I20: ED_LAB2112_00008 | L20: Employee (optional)
A21: ED_LAB2111_00009 | D21: Labour hire (optional) | I21: ED_LAB2112_00009 | L21: Labour hire (optional)
A22: ED_LAB2111_00010 | D22: Professional | I22: ED_LAB2112_00010 | L22: Professional
A23: ED_LAB2111_00011 | D23: Employee (optional) | I23: ED_LAB2112_00011 | L23: Employee (optional)
A24: ED_LAB2111_00012 | D24: Labour hire (optional) | I24: ED_LAB2112_00012 | L24: Labour hire (optional)
A25: ED_LAB2111_00013 | D25: Semi professional | I25: ED_LAB2112_00013 | L25: Semi professional
A26: ED_LAB2111_00014 | D26: Employee (optional) | I26: ED_LAB2112_00014 | L26: Employee (optional)
A27: ED_LAB2111_00015 | D27: Labour hire (optional) | I27: ED_LAB2112_00015 | L27: Labour hire (optional)
A28: ED_LAB2111_00016 | D28: Support staff | I28: ED_LAB2112_00016 | L28: Support staff
A29: ED_LAB2111_00017 | D29: Employee (optional) | I29: ED_LAB2112_00017 | L29: Employee (optional)
A30: ED_LAB2111_00018 | D30: Labour hire (optional) | I30: ED_LAB2112_00018 | L30: Labour hire (optional)
A31: ED_LAB2111_00019 | D31: Intern, junior staff, apprentice | I31: ED_LAB2112_00019 | L31: Intern, junior staff, apprentice
A32: ED_LAB2111_00020 | D32: Employee (optional) | I32: ED_LAB2112_00020 | L32: Employee (optional)
A33: ED_LAB2111_00021 | D33: Labour hire (optional) | I33: ED_LAB2112_00021 | L33: Labour hire (optional)
A34: ED_LAB2111_00022 | B34: NETWORK OVERHEADS INTERNAL LABOUR COSTS | C34: LABOUR CLASSIFICATION LEVEL | D34: Executive manager | I34: ED_LAB2112_00022 | J34: NETWORK OVERHEADS INTERNAL LABOUR COSTS | K34: LABOUR CLASSIFICATION LEVEL | L34: Executive manager
A35: ED_LAB2111_00023 | D35: Employee (optional) | I35: ED_LAB2112_00023 | L35: Employee (optional)
A36: ED_LAB2111_00024 | D36: Labour hire (optional) | I36: ED_LAB2112_00024 | L36: Labour hire (optional)
A37: ED_LAB2111_00025 | D37: Senior manager | I37: ED_LAB2112_00025 | L37: Senior manager
A38: ED_LAB2111_00026 | D38: Employee (optional) | I38: ED_LAB2112_00026 | L38: Employee (optional)
A39: ED_LAB2111_00027 | D39: Labour hire (optional) | I39: ED_LAB2112_00027 | L39: Labour hire (optional)
A40: ED_LAB2111_00028 | D40: Manager | I40: ED_LAB2112_00028 | L40: Manager
A41: ED_LAB2111_00029 | D41: Employee (optional) | I41: ED_LAB2112_00029 | L41: Employee (optional)
A42: ED_LAB2111_00030 | D42: Labour hire (optional) | I42: ED_LAB2112_00030 | L42: Labour hire (optional)
A43: ED_LAB2111_00031 | D43: Professional | I43: ED_LAB2112_00031 | L43: Professional
A44: ED_LAB2111_00032 | D44: Employee (optional) | I44: ED_LAB2112_00032 | L44: Employee (optional)
A45: ED_LAB2111_00033 | D45: Labour hire (optional) | I45: ED_LAB2112_00033 | L45: Labour hire (optional)
A46: ED_LAB2111_00034 | D46: Semi professional | I46: ED_LAB2112_00034 | L46: Semi professional
A47: ED_LAB2111_00035 | D47: Employee (optional) | I47: ED_LAB2112_00035 | L47: Employee (optional)
A48: ED_LAB2111_00036 | D48: Labour hire (optional) | I48: ED_LAB2112_00036 | L48: Labour hire (optional)
A49: ED_LAB2111_00037 | D49: Support staff | I49: ED_LAB2112_00037 | L49: Support staff
A50: ED_LAB2111_00038 | D50: Employee (optional) | I50: ED_LAB2112_00038 | L50: Employee (optional)
A51: ED_LAB2111_00039 | D51: Labour hire (optional) | I51: ED_LAB2112_00039 | L51: Labour hire (optional)
A52: ED_LAB2111_00040 | D52: Intern, junior staff, apprentice | I52: ED_LAB2112_00040 | L52: Intern, junior staff, apprentice
A53: ED_LAB2111_00041 | D53: Employee (optional) | I53: ED_LAB2112_00041 | L53: Employee (optional)
A54: ED_LAB2111_00042 | D54: Labour hire (optional) | I54: ED_LAB2112_00042 | L54: Labour hire (optional)
A55: ED_LAB2111_00043 | B55: TOTAL DIRECT NETWORK LABOUR INTERNAL LABOUR COSTS | C55: LABOUR CLASSIFICATION LEVEL | D55: Skilled electrical worker | I55: ED_LAB2112_00043 | J55: TOTAL DIRECT NETWORK LABOUR INTERNAL LABOUR COSTS | K55: LABOUR CLASSIFICATION LEVEL | L55: Skilled electrical worker
A56: ED_LAB2111_00044 | D56: Employee (optional) | I56: ED_LAB2112_00044 | L56: Employee (optional)
A57: ED_LAB2111_00045 | D57: Labour hire (optional) | I57: ED_LAB2112_00045 | L57: Labour hire (optional)
A58: ED_LAB2111_00046 | D58: Skilled non electical worker | I58: ED_LAB2112_00046 | L58: Skilled non electical worker
A59: ED_LAB2111_00047 | D59: Employee (optional) | I59: ED_LAB2112_00047 | L59: Employee (optional)
A60: ED_LAB2111_00048 | D60: Labour hire (optional) | I60: ED_LAB2112_00048 | L60: Labour hire (optional)
A61: ED_LAB2111_00049 | D61: Apprentice | I61: ED_LAB2112_00049 | L61: Apprentice
A62: ED_LAB2111_00050 | D62: Employee (optional) | I62: ED_LAB2112_00050 | L62: Employee (optional)
A63: ED_LAB2111_00051 | D63: Labour hire (optional) | I63: ED_LAB2112_00051 | L63: Labour hire (optional)
A64: ED_LAB2111_00052 | D64: Unskilled worker | I64: ED_LAB2112_00052 | L64: Unskilled worker
A65: ED_LAB2111_00053 | D65: Employee (optional) | I65: ED_LAB2112_00053 | L65: Employee (optional)
A66: ED_LAB2111_00054 | D66: Labour hire (optional) | I66: ED_LAB2112_00054 | L66: Labour hire (optional)

Sheet 2.12 Input tables
B1: =(LOOKUP(dms_Model,dms_Model_List,dms_Worksheet_List)) -> REGULATORY REPORTING STATEMENT
B2: =INDEX(dms_TradingNameFull_List,MATCH(dms_TradingName,dms_TradingName_List)) -> AusNet Services (D)
B3: =CONCATENATE("Category Analysis RIN response ",CRY) -> Category Analysis RIN response 2015
B4: 2.12 INPUT TABLES
E5: 1
M7: DIRECT MATERIAL EXPENDITURE | N7: DIRECT LABOUR EXPENDITURE | O7: CONTRACT EXPENDITURE | P7: OTHER EXPENDITURE | Q7: RELATED PARTY CONTRACT EXPENDITURE | R7: RELATED PARTY CONTRACT MARGIN EXPENDITURE
E8: DNSP NAME | F8: SERVICE | G8: SERVICE SUBCATEGORY | H8: DATA CATEGORY | I8: DATA SUBCATEGORY | J8: MEASUREMENT | K8: DENOMINATION | M8: =CRY -> 2015 | N8: 2015 | O8: 2015 | P8: 2015 | Q8: 2015 | R8: 2015
A9: ED_INP212_00001 | B9: VEGETATION MANAGEMENT | C9: ='2.7 Vegetation management'!I11 -> HBRA | E9: DNSP NAME | F9: INPUT COSTS | G9: VEGETATION MANAGEMENT | H9: DIRECT MATERIAL COST | I9: =$C$9 -> HBRA | J9: EXPENDITURE | K9: $0's | M9: 181813.8741 | N9: 4485822.98 | O9: 27824912.88 | P9: 116661.1031
A10: ED_INP212_00002 | C10: ='2.7 Vegetation management'!I23 -> LBRA | E10: DNSP NAME | F10: INPUT COSTS | G10: VEGETATION MANAGEMENT | H10: DIRECT MATERIAL COST | I10: =$C$10 -> LBRA | J10: EXPENDITURE | K10: $0's | M10: 29052.83316 | N10: 716809.2493 | O10: 4446264.377 | P10: 18641.78727
A11: ED_INP212_00003 | C11: ='2.7 Vegetation management'!I35 -> ZONE 3 | E11: DNSP NAME | F11: INPUT COSTS | G11: VEGETATION MANAGEMENT | H11: DIRECT MATERIAL COST | I11: =$C$11 -> ZONE 3 | J11: EXPENDITURE | K11: $0's
A12: ED_INP212_00004 | C12: ='2.7 Vegetation management'!I47 -> ZONE 4 | E12: DNSP NAME | F12: INPUT COSTS | G12: VEGETATION MANAGEMENT | H12: DIRECT MATERIAL COST | I12: =$C$12 -> ZONE 4 | J12: EXPENDITURE | K12: $0's
A13: ED_INP212_00005 | C13: ='2.7 Vegetation management'!I59 -> ZONE 5 | E13: DNSP NAME | F13: INPUT COSTS | G13: VEGETATION MANAGEMENT | H13: DIRECT MATERIAL COST | I13: =$C$13 -> ZONE 5 | J13: EXPENDITURE | K13: $0's
A14: ED_INP212_00006 | C14: ='2.7 Vegetation management'!I71 -> ZONE 6 | E14: DNSP NAME | F14: INPUT COSTS | G14: VEGETATION MANAGEMENT | H14: DIRECT MATERIAL COST | I14: =$C$14 -> ZONE 6 | J14: EXPENDITURE | K14: $0's
A15: ED_INP212_00007 | C15: ='2.7 Vegetation management'!I83 -> ZONE 7 | E15: DNSP NAME | F15: INPUT COSTS | G15: VEGETATION MANAGEMENT | H15: DIRECT MATERIAL COST | I15: =$C$15 -> ZONE 7 | J15: EXPENDITURE | K15: $0's
A16: ED_INP212_00008 | C16: ='2.7 Vegetation management'!I95 -> ZONE 8 | E16: DNSP NAME | F16: INPUT COSTS | G16: VEGETATION MANAGEMENT | H16: DIRECT MATERIAL COST | I16: =$C$16 -> ZONE 8 | J16: EXPENDITURE | K16: $0's
A17: ED_INP212_00009 | C17: ='2.7 Vegetation management'!I107 -> ZONE 9 | E17: DNSP NAME | F17: INPUT COSTS | G17: VEGETATION MANAGEMENT | H17: DIRECT MATERIAL COST | I17: =$C$17 -> ZONE 9 | J17: EXPENDITURE | K17: $0's
A18: ED_INP212_00010 | C18: ='2.7 Vegetation management'!I119 -> ZONE 10 | E18: DNSP NAME | F18: INPUT COSTS | G18: VEGETATION MANAGEMENT | H18: DIRECT MATERIAL COST | I18: =$C$18 -> ZONE 10 | J18: EXPENDITURE | K18: $0's
A19: ED_INP212_00011 | C19: ='2.7 Vegetation management'!I131 -> ZONE 11 | E19: DNSP NAME | F19: INPUT COSTS | G19: VEGETATION MANAGEMENT | H19: DIRECT MATERIAL COST | I19: =$C$19 -> ZONE 11 | J19: EXPENDITURE | K19: $0's
A20: ED_INP212_00012 | C20: ='2.7 Vegetation management'!I143 -> ZONE 12 | E20: DNSP NAME | F20: INPUT COSTS | G20: VEGETATION MANAGEMENT | H20: DIRECT MATERIAL COST | I20: =$C$20 -> ZONE 12 | J20: EXPENDITURE | K20: $0's
A21: ED_INP212_00013 | C21: ='2.7 Vegetation management'!I155 -> ZONE 13 | E21: DNSP NAME | F21: INPUT COSTS | G21: VEGETATION MANAGEMENT | H21: DIRECT MATERIAL COST | I21: =$C$21 -> ZONE 13 | J21: EXPENDITURE | K21: $0's
A22: ED_INP212_00014 | C22: ='2.7 Vegetation management'!I167 -> ZONE 14 | E22: DNSP NAME | F22: INPUT COSTS | G22: VEGETATION MANAGEMENT | H22: DIRECT MATERIAL COST | I22: =$C$22 -> ZONE 14 | J22: EXPENDITURE | K22: $0's
A23: ED_INP212_00015 | C23: ='2.7 Vegetation management'!I179 -> ZONE 15 | E23: DNSP NAME | F23: INPUT COSTS | G23: VEGETATION MANAGEMENT | H23: DIRECT MATERIAL COST | I23: =$C$23 -> ZONE 15 | J23: EXPENDITURE | K23: $0's
A24: ED_INP212_00016 | C24: ='2.7 Vegetation management'!I191 -> ZONE 16 | E24: DNSP NAME | F24: INPUT COSTS | G24: VEGETATION MANAGEMENT | H24: DIRECT MATERIAL COST | I24: =$C$24 -> ZONE 16 | J24: EXPENDITURE | K24: $0's
A25: ED_INP212_00017 | C25: ='2.7 Vegetation management'!I203 -> ZONE 17 | E25: DNSP NAME | F25: INPUT COSTS | G25: VEGETATION MANAGEMENT | H25: DIRECT MATERIAL COST | I25: =$C$25 -> ZONE 17 | J25: EXPENDITURE | K25: $0's
A26: ED_INP212_00018 | C26: ='2.7 Vegetation management'!I215 -> ZONE 18 | E26: DNSP NAME | F26: INPUT COSTS | G26: VEGETATION MANAGEMENT | H26: DIRECT MATERIAL COST | I26: =$C$26 -> ZONE 18 | J26: EXPENDITURE | K26: $0's
A27: ED_INP212_00019 | B27: ROUTINE MAINTENANCE | C27: Pole top, overhead line & service line maintenance | E27: DNSP NAME | F27: INPUT COSTS | G27: ROUTINE MAINTENANCE | H27: DIRECT MATERIAL COST | I27: =$C$27 -> Pole top, overhead line & service line maintenance | J27: EXPENDITURE | K27: $0's | M27: 217851.4687 | N27: 1764232.38 | O27: 2039222.624 | P27: 298377.316
A28: ED_INP212_00020 | C28: Pole inspection and treatment | E28: DNSP NAME | F28: INPUT COSTS | G28: ROUTINE MAINTENANCE | H28: DIRECT MATERIAL COST | I28: =$C$28 -> Pole inspection and treatment | J28: EXPENDITURE | K28: $0's | M28: 324691.3214 | N28: 2629456.418 | O28: 3039308.811 | P28: 444709.0743
A29: ED_INP212_00021 | C29: Overhead asset inspection | E29: DNSP NAME | F29: INPUT COSTS | G29: ROUTINE MAINTENANCE | H29: DIRECT MATERIAL COST | I29: =$C$29 -> Overhead asset inspection | J29: EXPENDITURE | K29: $0's | M29: 11282.90843 | N29: 91372.67933 | O29: 105614.9048 | P29: 15453.48284
A30: ED_INP212_00022 | C30: Network underground cable maintenance | E30: DNSP NAME | F30: INPUT COSTS | G30: ROUTINE MAINTENANCE | H30: DIRECT MATERIAL COST | I30: =$C$30 -> Network underground cable maintenance | J30: EXPENDITURE | K30: $0's | M30: 0 | N30: 0 | O30: 0 | P30: 0
A31: ED_INP212_00023 | C31: Distribution substation equipment & property maintenance | E31: DNSP NAME | F31: INPUT COSTS | G31: ROUTINE MAINTENANCE | H31: DIRECT MATERIAL COST | I31: =$C$31 -> Distribution substation equipment & property maintenance | J31: EXPENDITURE | K31: $0's | M31: 1329.102772 | N31: 10763.50856 | O31: 12441.21263 | P31: 1820.387626
A32: ED_INP212_00024 | C32: Zone substation equipment maintenance | E32: DNSP NAME | F32: INPUT COSTS | G32: ROUTINE MAINTENANCE | H32: DIRECT MATERIAL COST | I32: =$C$32 -> Zone substation equipment maintenance | J32: EXPENDITURE | K32: $0's | M32: 48186.13006 | N32: 390227.0268 | O32: 451051.5682 | P32: 65997.48095
A33: ED_INP212_00025 | C33: Zone substation property maintenance | E33: DNSP NAME | F33: INPUT COSTS | G33: ROUTINE MAINTENANCE | H33: DIRECT MATERIAL COST | I33: =$C$33 -> Zone substation property maintenance | J33: EXPENDITURE | K33: $0's | M33: 67067.52361 | N33: 543134.7216 | O33: 627792.9284 | P33: 91858.12611
A34: ED_INP212_00026 | C34: Public lighting maintenance | E34: DNSP NAME | F34: INPUT COSTS | G34: ROUTINE MAINTENANCE | H34: DIRECT MATERIAL COST | I34: =$C$34 -> Public lighting maintenance | J34: EXPENDITURE | K34: $0's | M34: 0 | N34: 0 | O34: 0 | P34: 0
A35: ED_INP212_00027 | C35: Scada & network control maintenance | E35: DNSP NAME | F35: INPUT COSTS | G35: ROUTINE MAINTENANCE | H35: DIRECT MATERIAL COST | I35: =$C$35 -> Scada & network control maintenance | J35: EXPENDITURE | K35: $0's | M35: 5516.089391 | N35: 44671.09436 | O35: 51633.96121 | P35: 7555.037187
A36: ED_INP212_00028 | C36: Protection systems maintenance | E36: DNSP NAME | F36: INPUT COSTS | G36: ROUTINE MAINTENANCE | H36: DIRECT MATERIAL COST | I36: =$C$36 -> Protection systems maintenance | J36: EXPENDITURE | K36: $0's | M36: 27453.29697 | N36: 222325.7697 | O36: 256979.6046 | P36: 37601.03668
A37: ED_INP212_00029 | C37: Subtransmission asset maintenance - for dnsps with dual function assets | E37: DNSP NAME | F37: INPUT COSTS | G37: ROUTINE MAINTENANCE | H37: DIRECT MATERIAL COST | I37: =$C$37 -> Subtransmission asset maintenance - for dnsps with dual function assets | J37: EXPENDITURE | K37: $0's | M37: 0 | N37: 0 | O37: 0 | P37: 0
A38: ED_INP212_00031 | C38: Other | E38: DNSP NAME | F38: INPUT COSTS | G38: ROUTINE MAINTENANCE | H38: DIRECT MATERIAL COST | I38: =$C$38 -> Other | J38: EXPENDITURE | K38: $0's | M38: 0 | N38: 0 | O38: 0 | P38: 0
A39: ED_INP212_00032 | B39: NON-ROUTINE MAINTENANCE | C39: Pole top, overhead line & service line maintenance | E39: DNSP NAME | F39: INPUT COSTS | G39: NON-ROUTINE MAINTENANCE | H39: DIRECT MATERIAL COST | I39: =$C$39 -> Pole top, overhead line & service line maintenance | J39: EXPENDITURE | K39: $0's | M39: 107393.9976 | N39: 869711.6849 | O39: 1005273.321 | P39: 147090.7354
A40: ED_INP212_00033 | C40: Pole inspection and treatment | E40: DNSP NAME | F40: INPUT COSTS | G40: NON-ROUTINE MAINTENANCE | H40: DIRECT MATERIAL COST | I40: =$C$40 -> Pole inspection and treatment | J40: EXPENDITURE | K40: $0's | M40: 14128.64679 | N40: 114418.3985 | O40: 132252.7517 | P40: 19351.10988
A41: ED_INP212_00034 | C41: Overhead asset inspection | E41: DNSP NAME | F41: INPUT COSTS | G41: NON-ROUTINE MAINTENANCE | H41: DIRECT MATERIAL COST | I41: =$C$41 -> Overhead asset inspection | J41: EXPENDITURE | K41: $0's | M41: 206004.6878 | N41: 1668293.277 | O41: 1928329.529 | P41: 282151.5329
A42: ED_INP212_00035 | C42: Network underground cable maintenance | E42: DNSP NAME | F42: INPUT COSTS | G42: NON-ROUTINE MAINTENANCE | H42: DIRECT MATERIAL COST | I42: =$C$42 -> Network underground cable maintenance | J42: EXPENDITURE | K42: $0's | M42: 36035.86892 | N42: 291830.2419 | O42: 337317.713 | P42: 49356.04021
A43: ED_INP212_00036 | C43: Distribution substation equipment & property maintenance | E43: DNSP NAME | F43: INPUT COSTS | G43: NON-ROUTINE MAINTENANCE | H43: DIRECT MATERIAL COST | I43: =$C$43 -> Distribution substation equipment & property maintenance | J43: EXPENDITURE | K43: $0's | M43: 13803.04957 | N43: 111781.6058 | O43: 129204.963 | P43: 18905.16005
A44: ED_INP212_00037 | C44: Zone substation equipment maintenance | E44: DNSP NAME | F44: INPUT COSTS | G44: NON-ROUTINE MAINTENANCE | H44: DIRECT MATERIAL COST | I44: =$C$44 -> Zone substation equipment maintenance | J44: EXPENDITURE | K44: $0's | M44: 19704.23793 | N44: 159571.3574 | O44: 184443.6855 | P44: 26987.64283
A45: ED_INP212_00038 | C45: Zone substation property maintenance | E45: DNSP NAME | F45: INPUT COSTS | G45: NON-ROUTINE MAINTENANCE | H45: DIRECT MATERIAL COST | I45: =$C$45 -> Zone substation property maintenance | J45: EXPENDITURE | K45: $0's | M45: 20972.51205 | N45: 169842.2557 | O45: 196315.5049 | P45: 28724.71732
A46: ED_INP212_00039 | C46: Public lighting maintenance | E46: DNSP NAME | F46: INPUT COSTS | G46: NON-ROUTINE MAINTENANCE | H46: DIRECT MATERIAL COST | I46: =$C$46 -> Public lighting maintenance | J46: EXPENDITURE | K46: $0's | M46: 0 | N46: 0 | O46: 0 | P46: 0
A47: ED_INP212_00040 | C47: SCADA & network control maintenance | E47: DNSP NAME | F47: INPUT COSTS | G47: NON-ROUTINE MAINTENANCE | H47: DIRECT MATERIAL COST | I47: =$C$47 -> SCADA & network control maintenance | J47: EXPENDITURE | K47: $0's | M47: 12729.55049 | N47: 103088.0595 | O47: 119156.3569 | P47: 17434.85657
A48: ED_INP212_00041 | C48: Protection systems maintenance | E48: DNSP NAME | F48: INPUT COSTS | G48: NON-ROUTINE MAINTENANCE | H48: DIRECT MATERIAL COST | I48: =$C$48 -> Protection systems maintenance | J48: EXPENDITURE | K48: $0's | M48: 5618.427055 | N48: 45499.8582 | O48: 52591.90416 | P48: 7695.202583
A49: ED_INP212_00042 | C49: Subtransmission asset maintenance - for DNSP with dual function assets | E49: DNSP NAME | F49: INPUT COSTS | G49: NON-ROUTINE MAINTENANCE | H49: DIRECT MATERIAL COST | I49: =$C$49 -> Subtransmission asset maintenance - for DNSP with dual function assets | J49: EXPENDITURE | K49: $0's | M49: 0 | N49: 0 | O49: 0 | P49: 0
A50: ED_INP212_00044 | C50: Other | E50: DNSP NAME | F50: INPUT COSTS | G50: NON-ROUTINE MAINTENANCE | H50: DIRECT MATERIAL COST | I50: =$C$50 -> Other | J50: EXPENDITURE | K50: $0's | M50: 0 | N50: 0 | O50: 0 | P50: 0
A51: ED_INP212_00045 | B51: OVERHEADS | C51: Network overheads | E51: DNSP NAME | F51: INPUT COSTS | G51: OVERHEADS | H51: DIRECT MATERIAL COST | I51: =$C$51 -> Network overheads | J51: EXPENDITURE | K51: $0's | M51: 1061069.847 | N51: 47598600.18 | O51: 30265988.57 | P51: 1666407.387
A52: ED_INP212_00046 | C52: Corporate overheads | E52: DNSP NAME | F52: INPUT COSTS | G52: OVERHEADS | H52: DIRECT MATERIAL COST | I52: =$C$52 -> Corporate overheads | J52: EXPENDITURE | K52: $0's | M52: 742623.1151 | N52: 20241073.64 | O52: 29917732.99 | P52: 1210295.292
A53: ED_INP212_00047 | B53: AUGMENTATION | C53: Subtransmission substations, switching stations, zone substations | E53: DNSP NAME | F53: INPUT COSTS | G53: AUGMENTATION | H53: DIRECT MATERIAL COST | I53: =$C$53 -> Subtransmission substations, switching stations, zone substations | J53: EXPENDITURE | K53: $0's | M53: 6533829.745 | N53: 1972051.888 | O53: 4928257.593 | P53: 1086726.655
A54: ED_INP212_00048 | C54: Subtransmission lines | E54: DNSP NAME | F54: INPUT COSTS | G54: AUGMENTATION | H54: DIRECT MATERIAL COST | I54: =$C$54 -> Subtransmission lines | J54: EXPENDITURE | K54: $0's | M54: 2316857.456 | N54: 699277.9577 | O54: 1747531.049 | P54: 385346.8566
A55: ED_INP212_00049 | C55: HV feeders | E55: DNSP NAME | F55: INPUT COSTS | G55: AUGMENTATION | H55: DIRECT MATERIAL COST | I55: =$C$55 -> HV feeders | J55: EXPENDITURE | K55: $0's | M55: 19595925.98 | N55: 5914476.552 | O55: 14780576.59 | P55: 3259254.668
A56: ED_INP212_00050 | C56: Distribution substations | E56: DNSP NAME | F56: INPUT COSTS | G56: AUGMENTATION | H56: DIRECT MATERIAL COST | I56: =$C$56 -> Distribution substations | J56: EXPENDITURE | K56: $0's | M56: 959034.0768 | N56: 289457.3375 | O56: 723368.5534 | P56: 159509.4968
A57: ED_INP212_00051 | C57: LV feeders | E57: DNSP NAME | F57: INPUT COSTS | G57: AUGMENTATION | H57: DIRECT MATERIAL COST | I57: =$C$57 -> LV feeders | J57: EXPENDITURE | K57: $0's | M57: 1971349.315 | N57: 594996.0879 | O57: 1486925.373 | P57: 327880.8801
A58: ED_INP212_00052 | C58: Other assets | E58: DNSP NAME | F58: INPUT COSTS | G58: AUGMENTATION | H58: DIRECT MATERIAL COST | I58: =$C$58 -> Other assets | J58: EXPENDITURE | K58: $0's | M58: 0 | N58: 0 | O58: 0 | P58: 0
A59: ED_INP212_00053 | B59: CONNECTIONS | C59: Simple and complex customer connections | E59: DNSP NAME | F59: INPUT COSTS | G59: CONNECTIONS | H59: DIRECT MATERIAL COST | I59: =$C$59 -> Simple and complex customer connections | J59: EXPENDITURE | K59: $0's | M59: 9562637.748 | N59: 9326205.272 | O59: 36443565.11 | P59: 3888263.396
A60: ED_INP212_00054 | B60: EMERGENCY RESPONSE | C60: Major storms | E60: DNSP NAME | F60: INPUT COSTS | G60: EMERGENCY RESPONSE | H60: DIRECT MATERIAL COST | I60: =$C$60 -> Major storms | J60: EXPENDITURE | K60: $0's | M60: 0 | N60: 0 | O60: 0 | P60: 0
A61: ED_INP212_00055 | C61: Major event days | E61: DNSP NAME | F61: INPUT COSTS | G61: EMERGENCY RESPONSE | H61: DIRECT MATERIAL COST | I61: =$C$61 -> Major event days | J61: EXPENDITURE | K61: $0's | M61: 660706.8949 | N61: 6534315.288 | O61: 7540954.508 | P61: 668981.2278
A62: ED_INP212_00056 | B62: PUBLIC LIGHTING | C62: All public lighting services | E62: DNSP NAME | F62: INPUT COSTS | G62: PUBLIC LIGHTING | H62: DIRECT MATERIAL COST | I62: =$C$62 -> All public lighting services | J62: EXPENDITURE | K62: $0's | M62: 212858.8338 | N62: 582984.7284 | O62: 3636925.166 | P62: 164388.5328
A63: ED_INP212_00057 | B63: METERING | C63: All metering services | E63: DNSP NAME | F63: INPUT COSTS | G63: METERING | H63: DIRECT MATERIAL COST | I63: =$C$63 -> All metering services | J63: EXPENDITURE | K63: $0's | M63: 6494873.755 | N63: 30584709.69 | O63: 60696247.45 | P63: 1739480.416
A64: ED_INP212_00058 | B64: FEE-BASED SERVICES | C64: All fee-based services | E64: DNSP NAME | F64: INPUT COSTS | G64: FEE-BASED SERVICES | H64: DIRECT MATERIAL COST | I64: =$C$64 -> All fee-based services | J64: EXPENDITURE | K64: $0's | M64: 94144.84488 | N64: 5817853.982 | O64: 4397674.219 | P64: 1277193.488
A65: ED_INP212_00059 | B65: QUOTED SERVICES | C65: All quoted services | E65: DNSP NAME | F65: INPUT COSTS | G65: QUOTED SERVICES | H65: DIRECT MATERIAL COST | I65: =$C$65 -> All quoted services | J65: EXPENDITURE | K65: $0's | M65: 26129.94571 | N65: 176212.001 | O65: 302024.4907 | P65: 39476.22834
A66: ED_INP212_00060 | B66: REPLACEMENT | C66: Poles | E66: DNSP NAME | F66: INPUT COSTS | G66: REPLACEMENT | H66: DIRECT MATERIAL COST | I66: =$C$66 -> Poles | J66: EXPENDITURE | K66: $0's | M66: 5849444.45 | N66: 5291192.152 | O66: 19920319 | P66: 2371206.617
A67: ED_INP212_00061 | C67: Pole top structures | E67: DNSP NAME | F67: INPUT COSTS | G67: REPLACEMENT | H67: DIRECT MATERIAL COST | I67: =$C$67 -> Pole top structures | J67: EXPENDITURE | K67: $0's | M67: 2792605.951 | N67: 2526088.557 | O67: 9510236.715 | P67: 1132046.943
A68: ED_INP212_00062 | C68: Overhead conductors | E68: DNSP NAME | F68: INPUT COSTS | G68: REPLACEMENT | H68: DIRECT MATERIAL COST | I68: =$C$68 -> Overhead conductors | J68: EXPENDITURE | K68: $0's | M68: 7734337.49 | N68: 6996197.019 | O68: 26339333.82 | P68: 3135291.29
A69: ED_INP212_00063 | C69: Underground cables | E69: DNSP NAME | F69: INPUT COSTS | G69: REPLACEMENT | H69: DIRECT MATERIAL COST | I69: =$C$69 -> Underground cables | J69: EXPENDITURE | K69: $0's | M69: 1205681.026 | N69: 1090614.679 | O69: 4105954.138 | P69: 488750.4875
A70: ED_INP212_00064 | C70: Service lines | E70: DNSP NAME | F70: INPUT COSTS | G70: REPLACEMENT | H70: DIRECT MATERIAL COST | I70: =$C$70 -> Service lines | J70: EXPENDITURE | K70: $0's | M70: 373928.4575 | N70: 338241.9196 | O70: 1273415.658 | P70: 151580.486
A71: ED_INP212_00065 | C71: Transformers | E71: DNSP NAME | F71: INPUT COSTS | G71: REPLACEMENT | H71: DIRECT MATERIAL COST | I71: =$C$71 -> Transformers | J71: EXPENDITURE | K71: $0's | M71: 1134225.577 | N71: 1025978.71 | O71: 3862612.167 | P71: 459784.3806
A72: ED_INP212_00066 | C72: Switchgear | E72: DNSP NAME | F72: INPUT COSTS | G72: REPLACEMENT | H72: DIRECT MATERIAL COST | I72: =$C$72 -> Switchgear | J72: EXPENDITURE | K72: $0's | M72: 1758442.036 | N72: 1590621.943 | O72: 5988385.151 | P72: 712824.8548
A73: ED_INP212_00067 | C73: Public lighting | E73: DNSP NAME | F73: INPUT COSTS | G73: REPLACEMENT | H73: DIRECT MATERIAL COST | I73: =$C$74 -> SCADA network control and protection systems | J73: EXPENDITURE | K73: $0's | M73: 0 | N73: 0 | O73: 0 | P73: 0
A74: ED_INP212_00068 | C74: SCADA network control and protection systems | E74: DNSP NAME | F74: INPUT COSTS | G74: REPLACEMENT | H74: DIRECT MATERIAL COST | I74: =$C$74 -> SCADA network control and protection systems | J74: EXPENDITURE | K74: $0's | M74: 484237.7758 | N74: 438023.6688 | O74: 1649074.719 | P74: 196296.901
A75: ED_INP212_00069 | C75: Other | E75: DNSP NAME | F75: INPUT COSTS | G75: REPLACEMENT | H75: DIRECT MATERIAL COST | I75: =$C$75 -> Other | J75: EXPENDITURE | K75: $0's | M75: 678661.7037 | N75: 613892.3979 | O75: 2311186.6 | P75: 275111.1044
A76: ED_INP212_00070 | B76: NON-NETWORK EXPENDITURE | C76: IT and communications | E76: DNSP NAME | F76: INPUT COSTS | G76: NON-NETWORK | H76: DIRECT MATERIAL COST | I76: =$C$76 -> IT and communications | J76: EXPENDITURE | K76: $0's | M76: -375817.0428 | N76: 12071717.67 | O76: 25408399.06 | P76: 12063258.79
A77: ED_INP212_00071 | C77: Motor vehicles | E77: DNSP NAME | F77: INPUT COSTS | G77: NON-NETWORK | H77: DIRECT MATERIAL COST | I77: =$C$77 -> Motor vehicles | J77: EXPENDITURE | K77: $0's | M77: 4605102.959 | N77: 0 | O77: 6686520.787 | P77: 0
A78: ED_INP212_00072 | C78: Buildings and property | E78: DNSP NAME | F78: INPUT COSTS | G78: NON-NETWORK | H78: DIRECT MATERIAL COST | I78: =$C$78 -> Buildings and property | J78: EXPENDITURE | K78: $0's | M78: 2425948.74 | N78: 181770.2251 | O78: 2650035.778 | P78: 7859763.024
A79: ED_INP212_00073 | C79: Other | E79: DNSP NAME | F79: INPUT COSTS | G79: NON-NETWORK | H79: DIRECT MATERIAL COST | I79: =$C$79 -> Other | J79: EXPENDITURE | K79: $0's | M79: 832750.2891 | N79: 25354.97483 | O79: 300836.5071 | P79: 163786.9902

Sheet 4.1 Public lighting
B1: =(LOOKUP(dms_Model,dms_Model_List,dms_Worksheet_List)) -> REGULATORY REPORTING STATEMENT
B2: =INDEX(dms_TradingNameFull_List,MATCH(dms_TradingName,dms_TradingName_List)) -> AusNet Services (D)
B3: =CONCATENATE("Category Analysis RIN response ",CRY) -> Category Analysis RIN response 2015
B4: 4.1 PUBLIC LIGHTING
B6: TABLE 4.1.1 - DESCRIPTOR METRICS OVER 2013-14 YEAR
C9: LIGHT TYPE | D9: VOLUME (0's)
A10: PUB411 | D10: =CRY -> 2015
A11: ED_PUB411_00001 | B11: POPULATION OF LIGHTS | C11: CC Mercury Vapour 125W | D11: 776
A12: ED_PUB411_00002 | C12: CC Mercury Vapour 250W | D12: 1191
A13: ED_PUB411_00003 | C13: CC Mercury Vapour 400W | D13: 269
A14: ED_PUB411_00004 | C14: CC Mercury Vapour 50W | D14: 435
A15: ED_PUB411_00005 | C15: CC Mercury Vapour 80W | D15: 76857
A16: ED_PUB411_00006 | C16: Compact Flourescent 32W | D16: 3119
A17: ED_PUB411_00007 | C17: Compact Flourescent 42W | D17: 3001
A18: ED_PUB411_00008 | C18: Flourescent 20W | D18: 0
A19: ED_PUB411_00009 | C19: HP Sodium 100W | D19: 3046
A20: ED_PUB411_00010 | C20: HP Sodium 150W | D20: 19253
A21: ED_PUB411_00011 | C21: HP Sodium 250W | D21: 11265
A22: ED_PUB411_00012 | C22: HP Sodium 400W | D22: 596
A23: ED_PUB411_00013 | C23: HP Sodium 50W | D23: 95
A24: ED_PUB411_00014 | C24: metal halide 100W | D24: 34
A25: ED_PUB411_00015 | C25: metal halide 150W | D25: 33
A26: ED_PUB411_00016 | C26: metal halide 70W | D26: 31
A27: ED_PUB411_00017 | C27: T5 Fluor 14W | D27: 17952
A28: ED_PUB411_00018 | C28: T5 Fluor 24W | D28: 1030
A29: ED_PUB411_00019
A30: ED_PUB411_00020
A31: ED_PUB411_00021
A32: ED_PUB411_00022
A33: ED_PUB411_00023
A34: ED_PUB411_00024
A35: ED_PUB411_00025
A36: ED_PUB411_00026
A37: ED_PUB411_00027
A38: ED_PUB411_00028
A39: ED_PUB411_00029
A40: ED_PUB411_00030
A41: ED_PUB411_00031
A42: ED_PUB411_00032
A43: ED_PUB411_00033
A44: ED_PUB411_00034
A45: ED_PUB411_00035
A46: ED_PUB411_00036
A47: ED_PUB411_00037
A48: ED_PUB411_00038
A49: ED_PUB411_00039
A50: ED_PUB411_00040
A51: ED_PUB411_00041
A52: ED_PUB411_00042
A53: ED_PUB411_00043
A54: ED_PUB411_00044
A55: ED_PUB411_00045
A56: ED_PUB411_00046
A57: ED_PUB411_00047
A58: ED_PUB411_00048
A59: ED_PUB411_00049
A60: ED_PUB411_00050
A61: ED_PUB411_00051
A62: ED_PUB411_00052
A63: ED_PUB411_00053
A64: ED_PUB411_00054
A65: ED_PUB411_00055
A66: ED_PUB411_00056
A67: ED_PUB411_00057
A68: ED_PUB411_00058
A69: ED_PUB411_00059
A70: ED_PUB411_00060
A71: ED_PUB411_00061
A72: ED_PUB411_00062
A73: ED_PUB411_00063
A74: ED_PUB411_00064
A75: ED_PUB411_00065
A76: ED_PUB411_00066
A77: ED_PUB411_00067
A78: ED_PUB411_00068
A79: ED_PUB411_00069
A80: ED_PUB411_00070
A81: ED_PUB411_00071
A82: ED_PUB411_00072
A83: ED_PUB411_00073
A84: ED_PUB411_00074
A85: ED_PUB411_00075
A86: ED_PUB411_00076
A87: ED_PUB411_00077
A88: ED_PUB411_00078
A89: ED_PUB411_00079
A90: ED_PUB411_00080
A91: ED_PUB411_00081
A92: ED_PUB411_00082
A93: ED_PUB411_00083
A94: ED_PUB411_00084
A95: ED_PUB411_00085
A96: ED_PUB411_00086
A97: ED_PUB411_00087
A98: ED_PUB411_00088
A99: ED_PUB411_00089
A100: ED_PUB411_00090
A101: ED_PUB411_00091
A102: ED_PUB411_00092
A103: ED_PUB411_00093
A104: ED_PUB411_00094
A105: ED_PUB411_00095
A106: ED_PUB411_00096
A107: ED_PUB411_00097
A108: ED_PUB411_00098
A109: ED_PUB411_00099
A110: ED_PUB411_00100
A111: ED_PUB411_00101
A112: ED_PUB411_00102
B117: TABLE 4.1.2 - DESCRIPTOR METRICS ANNUALLY
D120: VOLUMES & EXPENDITURE
A121: PUB412 | B121: SERVICE/SERVICE QUALITY - Volumes and Expenditure | C121: DESCRIPTOR METRIC | D121: =CRY -> 2015
A122: ED_PUB412_00001 | B122: LIGHT INSTALLATION | C122: Major road light installation (volume) | D122: 220.2477313
A123: ED_PUB412_00002 | C123: Minor road light installation (volume) | D123: 624.5312922
A124: ED_PUB412_00003 | C124: Number of poles installed | D124: 2548
A125: ED_PUB412_00004 | C125: Total cost ($'s) | D125: 1936581.141
A126: ED_PUB412_00005 | B126: LIGHT REPLACEMENT | C126: Major road light replacement (volume) | D126: 1077
A127: ED_PUB412_00006 | C127: Minor road light replacement (volume) | D127: 1382
A128: ED_PUB412_00007 | C128: Number of poles replaced | D128: 114
A129: ED_PUB412_00008 | C129: Total cost ($'s) | D129: 597783.19
A130: ED_PUB412_00009 | B130: LIGHT MAINTENANCE | C130: Major road light maintenance (volume) | D130: 1999
A131: ED_PUB412_00010 | C131: Minor road light maintenance (volume) | D131: 5106
A132: ED_PUB412_00011 | C132: Number of poles installed | D132: 0
A133: ED_PUB412_00012 | C133: Total cost ($'s) | D133: 2062792.87
A134: ED_PUB412_00013 | B134: QUALITY OF SUPPLY | C134: Mean days to rectify/replace public lighting assets (days) | D134: 1.23
A135: ED_PUB412_00014 | C135: GSO breaches (volume 0's) | D135: 94
A136: ED_PUB412_00015 | C136: GSL payments ($0's) | D136: 940
A137: ED_PUB412_00016 | C137: Customer complaints (volume 0's) | D137: 11
B143: TABLE 4.1.3 - COST METRICS
D146: AVERAGE UNIT COST ($)
A147: PUB413 | B147: ROAD TYPE | C147: LIGHT TYPE | D147: =CRY -> 2015
A148: PUB413_00001 | B148: LIGHT INSTALLATION - Major Road | C148: Major Road - all light types
A149: PUB413_00002
A150: PUB413_00003
A151: PUB413_00004
A152: PUB413_00005
A153: PUB413_00006
A154: PUB413_00007
A155: PUB413_00008
A156: PUB413_00009
A157: PUB413_00010
A158: PUB413_00011
A159: PUB413_00012
A160: PUB413_00013
A161: PUB413_00014
A162: PUB413_00015
A163: PUB413_00010 | B163: LIGHT INSTALLATION - Minor Road | C163: CC Mercury Vapour 80W
A164: PUB413_00011 | C164: Compact Fluorescent 32W
A165: PUB413_00012 | C165: Compact Fluorescent 42W
A166: PUB413_00013 | C166: Fluorescent 20W
A167: PUB413_00014 | C167: HP Sodium 100W
A168: PUB413_00014 | C168: HP Sodium 50W
A169: PUB413_00015 | C169: metal halide 100W
A170: PUB413_00016 | C170: metal halide 70W
A171: PUB413_00017 | C171: T5 Fluor 14W
A172: PUB413_00018 | C172: T5 Fluor 24W
A173: PUB413_00019 | C173: Other minor
A174: PUB413_00020
A175: PUB413_00021
A176: PUB413_00022
A177: PUB413_00023
A178: PUB413_00024 | B178: LIGHT REPLACEMENT - Major Road | C178: Major Road - all light types
A179: PUB413_00025
A180: PUB413_00026
A181: PUB413_00027
A182: PUB413_00028
A183: PUB413_00029
A184: PUB413_00030
A185: PUB413_00025
A186: PUB413_00026
A187: PUB413_00027
A188: PUB413_00028
A189: PUB413_00029
A190: PUB413_00030
A191: PUB413_00025
A192: PUB413_00031
A193: PUB413_00032 | B193: LIGHT REPLACEMENT - Minor Road | C193: CC Mercury Vapour 80W
A194: PUB413_00033 | C194: Compact Fluorescent 32W
A195: PUB413_00034 | C195: Compact Fluorescent 42W
A196: PUB413_00035 | C196: Fluorescent 20W
A197: PUB413_00036 | C197: HP Sodium 100W
A198: PUB413_00036 | C198: HP Sodium 50W
A199: PUB413_00033 | C199: metal halide 100W
A200: PUB413_00034 | C200: metal halide 70W
A201: PUB413_00035 | C201: T5 Fluor 14W
A202: PUB413_00036 | C202: T5 Fluor 24W
A203: PUB413_00033 | C203: Other minor
A204: PUB413_00034
A205: PUB413_00035
A206: PUB413_00036
A207: PUB413_00037
A208: PUB413_00038 | B208: LIGHT MAINTENANCE - Major Road | C208: Major Road - all light types
A209: PUB413_00039
A210: PUB413_00040
A211: PUB413_00041
A212: PUB413_00042
A213: PUB413_00043
A214: PUB413_00044
A215: PUB413_00039
A216: PUB413_00040
... 21 more rows

Sheet 4.2 Metering
B1: =(LOOKUP(dms_Model,dms_Model_List,dms_Worksheet_List)) -> REGULATORY REPORTING STATEMENT
B2: =INDEX(dms_TradingNameFull_List,MATCH(dms_TradingName,dms_TradingName_List)) -> AusNet Services (D)
B3: =CONCATENATE("Category Analysis RIN response ",CRY) -> Category Analysis RIN response 2015
B4: 4.2 METERING
B7: TABLE 4.2.1 - METERING DESCRIPTOR METRIC | F7: TABLE 4.2.2 - COST METRICS
D10: VOLUMES (0's) | H10: EXPENDITURE ($0's) | J10: VOLUMES (0's)
B11: ASSET CATEGORY | C11: ASSET SUBCATEGORY | D11: =CRY -> 2015 | F11: SERVICE SUBCATEGORY | G11: METER TYPE | H11: =CRY -> 2015 | J11: =CRY -> 2015
A12: ED_MET421_00001 | B12: Meter Type 4 | C12: Single phase meter population | D12: 581968 | E12: ED_MET422_00001 | F12: Meter purchase | G12: Meter Type 4 | H12: 6918686.613 | I12: ED_MET422_00001 | J12: 4320
A13: ED_MET421_00002 | C13: Multi phase meter population | D13: 130003 | E13: ED_MET422_00002 | G13: Meter Type 5 | H13: 0 | I13: ED_MET422_00002 | J13: 0
A14: ED_MET421_00003 | C14: Current transformer connected meter population | D14: 3911 | E14: ED_MET422_00003 | G14: Meter Type 6 | H14: 0 | I14: ED_MET422_00003 | J14: 0
A15: ED_MET421_00004 | C15: Direct connect meter population | D15: 708060 | E15: ED_MET422_00004 | F15: Meter testing | G15: Meter Type 4 | H15: 307165.8763 | I15: ED_MET422_00004 | J15: 555.273342
A16: ED_MET421_00005 | B16: Meter Type 5 | C16: Single phase meter population | D16: 3618 | E16: ED_MET422_00005 | G16: Meter Type 5 | H16: 14023.70866 | I16: ED_MET422_00005 | J16: 25.35109585
A17: ED_MET421_00006 | C17: Multi phase meter population | D17: 23 | E17: ED_MET422_00006 | G17: Meter Type 6 | H17: 201565.1219 | I17: ED_MET422_00006 | J17: 364.3755621
A18: ED_MET421_00007 | C18: Current transformer connected meter population | D18: 23 | E18: ED_MET422_00007 | F18: Meter investigation | G18: Meter Type 4 | H18: 191125.4342 | I18: ED_MET422_00007 | J18: 345.5034128
A19: ED_MET421_00008 | C19: Direct connect meter population | D19: 3618 | E19: ED_MET422_00008 | G19: Meter Type 5 | H19: 8725.863164 | I19: ED_MET422_00008 | J19: 15.7740152
A20: ED_MET421_00009 | B20: Meter Type 6 | C20: Single phase meter population | D20: 9304 | E20: ED_MET422_00009 | G20: Meter Type 6 | H20: 125418.2981 | I20: ED_MET422_00009 | J20: 226.722572
A21: ED_MET421_00010 | C21: Multi phase meter population | D21: 0 | E21: ED_MET422_00010 | F21: Scheduled meter reading | G21: Meter Type 4 | H21: 0 | I21: ED_MET422_00010 | J21: 0
A22: ED_MET421_00011 | C22: Current transformer connected meter population | D22: 0 | E22: ED_MET422_00011 | G22: Meter Type 5 | H22: 349612.8577 | I22: ED_MET422_00011 | J22: 89604
A23: ED_MET421_00012 | C23: Direct connect meter population | D23: 9304 | E23: ED_MET422_00012 | G23: Meter Type 6 | H23: 4426728.366 | I23: ED_MET422_00012 | J23: 1134548
E24: ED_MET422_00013 | F24: Special meter reading | G24: Meter Type 4 | H24: 2292788.444 | I24: ED_MET422_00013 | J24: 133031.1533
E25: ED_MET422_00014 | G25: Meter Type 5 | H25: 104677.6339 | I25: ED_MET422_00014 | J25: 6073.559208
E26: ED_MET422_00015 | G26: Meter Type 6 | H26: 1504549.228 | I26: ED_MET422_00015 | J26: 87296.28745
E27: ED_MET422_00016 | F27: New meter installation | G27: Meter Type 4 | H27: 0 | I27: ED_MET422_00016 | J27: 0
E28: ED_MET422_00017 | G28: Meter Type 5 | H28: 0 | I28: ED_MET422_00017 | J28: 0
E29: ED_MET422_00018 | G29: Meter Type 6 | H29: 0 | I29: ED_MET422_00018 | J29: 0
E30: ED_MET422_00019 | F30: Meter replacement | G30: Meter Type 4 | H30: 4239037.26 | I30: ED_MET422_00019 | J30: 3327
E31: ED_MET422_00020 | G31: Meter Type 5 | H31: 0 | I31: ED_MET422_00020 | J31: 0
E32: ED_MET422_00021 | G32: Meter Type 6 | H32: 0 | I32: ED_MET422_00021 | J32: 0
E33: ED_MET422_00022 | F33: Meter maintenance | G33: Meter Type 4 | H33: 219079.1541 | I33: ED_MET422_00022 | J33: 396.0362249
E34: ED_MET422_00023 | G34: Meter Type 5 | H34: 10002.09485 | I34: ED_MET422_00023 | J34: 18.08109905
E35: ED_MET422_00024 | G35: Meter Type 6 | H35: 143761.7906 | I35: ED_MET422_00024 | J35: 259.8826761
E36: ED_MET422_00025 | F36: Remote meter reading | G36: Meter Type 4 | H36: 1116707.24 | I36: ED_MET422_00025 | J36: 425954
E37: ED_MET422_00026 | F37: Remote meter re-configuration | G37: Meter Type 4 | H37: 0 | I37: ED_MET422_00026 | J37: 0
E38: ED_MET422_00027 | F38: Other metering | G38: Meter Type 4 | H38: 8276000
E39: ED_MET422_00028 | G39: Meter Type 5 | H39: 0
E40: ED_MET422_00029 | G40: Meter Type 6 | H40: 0
E41: ED_MET422_00030 | G41: Meter Type 7 | H41: 0
E42: ED_MET422_00031 | F42: IT infrastructure capex | G42: Meter Type 4 | H42: 41849568.54
E43: ED_MET422_00032 | F43: IT infrastructure opex | G43: Meter Type 4 | H43: 13714601.27
E44: ED_MET422_00033 | F44: Communications infrastructure capex | G44: Meter Type 4 | H44: 4325721.598
E45: ED_MET422_00034 | F45: Communications infrastructure opex | G45: Meter Type 4 | H45: 9175472.146

Sheet 4.3 Fee-based services
B1: =(LOOKUP(dms_Model,dms_Model_List,dms_Worksheet_List)) -> REGULATORY REPORTING STATEMENT
B2: =INDEX(dms_TradingNameFull_List,MATCH(dms_TradingName,dms_TradingName_List)) -> AusNet Services (D)
B3: =CONCATENATE("Category Analysis RIN response ",CRY) -> Category Analysis RIN response 2015
B4: 4.3 ANCILLARY SERVICES - FEE BASED SERVICES
B6: TABLE 4.3.1 - COST METRICS FOR FEE-BASED SERVICES
D9: EXPENDITURE ($0's) | F9: VOLUMES (0's)
B10: SERVICE | C10: SERVICE SUBCATEGORY | D10: =CRY -> 2015 | F10: =CRY -> 2015
A11: ED_FEE431_00001 | B11: Common Fee-Based Services | C11: Energisation | D11: 0 | E11: ED_FEE431_00001 | F11: 0
A12: ED_FEE431_00002 | B12: Common Fee-Based Services | C12: De-energisation | D12: 0 | E12: ED_FEE431_00002 | F12: 0
A13: ED_FEE431_00003 | B13: Common Fee-Based Services | C13: Re-energisation | D13: 0 | E13: ED_FEE431_00003 | F13: 0
A14: ED_FEE431_00004 | B14: Miscellaneous Fee-Based Services | C14: FIELD OFFICER VISITS | D14: 3948417.37 | E14: ED_FEE431_00004 | F14: 212215
A15: ED_FEE431_00005 | B15: Miscellaneous Fee-Based Services | C15: NEW CONNECTIONS | D15: 2810115.54 | E15: ED_FEE431_00005 | F15: 15100
A16: ED_FEE431_00006 | B16: Miscellaneous Fee-Based Services | C16: SERVICE TRUCK VISITS | D16: 1879402.083 | E16: ED_FEE431_00006 | F16: 7960
A17: ED_FEE431_00007 | B17: Miscellaneous Fee-Based Services | C17: METER EQUIPMENT TESTS | D17: 2948931.541 | E17: ED_FEE431_00007 | F17: 18361
A18: ED_FEE431_00008 | B18: Miscellaneous Fee-Based Services | E18: ED_FEE431_00008
A19: ED_FEE431_00009 | B19: Miscellaneous Fee-Based Services | E19: ED_FEE431_00009
A20: ED_FEE431_00010 | B20: Miscellaneous Fee-Based Services | E20: ED_FEE431_00010
A21: ED_FEE431_00011 | B21: Miscellaneous Fee-Based Services | E21: ED_FEE431_00011
A22: ED_FEE431_00012 | B22: Miscellaneous Fee-Based Services | E22: ED_FEE431_00012
A23: ED_FEE431_00013 | B23: Miscellaneous Fee-Based Services | E23: ED_FEE431_00013
A24: ED_FEE431_00014 | B24: Miscellaneous Fee-Based Services | E24: ED_FEE431_00014
A25: ED_FEE431_00015 | B25: Miscellaneous Fee-Based Services | E25: ED_FEE431_00015
A26: ED_FEE431_00016 | B26: Miscellaneous Fee-Based Services | E26: ED_FEE431_00016
A27: ED_FEE431_00017 | B27: Miscellaneous Fee-Based Services | E27: ED_FEE431_00017
A28: ED_FEE431_00018 | B28: Miscellaneous Fee-Based Services | E28: ED_FEE431_00018
A29: ED_FEE431_00019 | B29: Miscellaneous Fee-Based Services | E29: ED_FEE431_00019
A30: ED_FEE431_00020 | B30: Miscellaneous Fee-Based Services | E30: ED_FEE431_00020
A31: ED_FEE431_00021 | B31: Miscellaneous Fee-Based Services | E31: ED_FEE431_00021
A32: ED_FEE431_00022 | B32: Miscellaneous Fee-Based Services | E32: ED_FEE431_00022
A33: ED_FEE431_00023 | B33: Miscellaneous Fee-Based Services | E33: ED_FEE431_00023
A34: ED_FEE431_00024 | B34: Miscellaneous Fee-Based Services | E34: ED_FEE431_00024
A35: ED_FEE431_00025 | B35: Miscellaneous Fee-Based Services | E35: ED_FEE431_00025
A36: ED_FEE431_00026 | B36: Miscellaneous Fee-Based Services | E36: ED_FEE431_00026
A37: ED_FEE431_00027 | B37: Miscellaneous Fee-Based Services | E37: ED_FEE431_00027
A38: ED_FEE431_00028 | B38: Miscellaneous Fee-Based Services | E38: ED_FEE431_00028
A39: ED_FEE431_00029 | B39: Miscellaneous Fee-Based Services | E39: ED_FEE431_00029
A40: ED_FEE431_00030 | B40: Miscellaneous Fee-Based Services | E40: ED_FEE431_00030
A41: ED_FEE431_00031 | B41: Miscellaneous Fee-Based Services | E41: ED_FEE431_00031
A42: ED_FEE431_00032 | B42: Miscellaneous Fee-Based Services | E42: ED_FEE431_00032
A43: ED_FEE431_00033 | B43: Miscellaneous Fee-Based Services | E43: ED_FEE431_00033
A44: ED_FEE431_00034 | B44: Miscellaneous Fee-Based Services | E44: ED_FEE431_00034
A45: ED_FEE431_00035 | B45: Miscellaneous Fee-Based Services | E45: ED_FEE431_00035
A46: ED_FEE431_00036 | B46: Miscellaneous Fee-Based Services | E46: ED_FEE431_00036
A47: ED_FEE431_00037 | B47: Miscellaneous Fee-Based Services | E47: ED_FEE431_00037
A48: ED_FEE431_00038 | B48: Miscellaneous Fee-Based Services | E48: ED_FEE431_00038
A49: ED_FEE431_00039 | B49: Miscellaneous Fee-Based Services | E49: ED_FEE431_00039
A50: ED_FEE431_00040 | B50: Miscellaneous Fee-Based Services | E50: ED_FEE431_00040
A51: ED_FEE431_00041 | B51: Miscellaneous Fee-Based Services | E51: ED_FEE431_00041
A52: ED_FEE431_00042 | B52: Miscellaneous Fee-Based Services | E52: ED_FEE431_00042
A53: ED_FEE431_00043 | B53: Miscellaneous Fee-Based Services | E53: ED_FEE431_00043
A54: ED_FEE431_00044 | B54: Miscellaneous Fee-Based Services | E54: ED_FEE431_00044
A55: ED_FEE431_00045 | B55: Miscellaneous Fee-Based Services | E55: ED_FEE431_00045
A56: ED_FEE431_00046 | B56: Miscellaneous Fee-Based Services | E56: ED_FEE431_00046
A57: ED_FEE431_00047 | B57: Miscellaneous Fee-Based Services | E57: ED_FEE431_00047
A58: ED_FEE431_00048 | B58: Miscellaneous Fee-Based Services | E58: ED_FEE431_00048
A59: ED_FEE431_00049 | B59: Miscellaneous Fee-Based Services | E59: ED_FEE431_00049
A60: ED_FEE431_00050 | B60: Miscellaneous Fee-Based Services | E60: ED_FEE431_00050
A61: ED_FEE431_00051 | B61: Miscellaneous Fee-Based Services | E61: ED_FEE431_00051
A62: ED_FEE431_00052 | B62: Miscellaneous Fee-Based Services | E62: ED_FEE431_00052
A63: ED_FEE431_00053 | B63: Miscellaneous Fee-Based Services | E63: ED_FEE431_00053
A64: ED_FEE431_00054 | B64: Miscellaneous Fee-Based Services | E64: ED_FEE431_00054
A65: ED_FEE431_00055 | B65: Miscellaneous Fee-Based Services | E65: ED_FEE431_00055
A66: ED_FEE431_00056 | B66: Miscellaneous Fee-Based Services | E66: ED_FEE431_00056
A67: ED_FEE431_00057 | B67: Miscellaneous Fee-Based Services | E67: ED_FEE431_00057
A68: ED_FEE431_00058 | B68: Miscellaneous Fee-Based Services | E68: ED_FEE431_00058
A69: ED_FEE431_00059 | B69: Miscellaneous Fee-Based Services | E69: ED_FEE431_00059
A70: ED_FEE431_00060 | B70: Miscellaneous Fee-Based Services | E70: ED_FEE431_00060
A71: ED_FEE431_00061 | B71: Miscellaneous Fee-Based Services | E71: ED_FEE431_00061
A72: ED_FEE431_00062 | B72: Miscellaneous Fee-Based Services | E72: ED_FEE431_00062
A73: ED_FEE431_00063 | B73: Miscellaneous Fee-Based Services | E73: ED_FEE431_00063
A74: ED_FEE431_00064 | B74: Miscellaneous Fee-Based Services | E74: ED_FEE431_00064
A75: ED_FEE431_00065 | B75: Miscellaneous Fee-Based Services | E75: ED_FEE431_00065
A76: ED_FEE431_00066 | B76: Miscellaneous Fee-Based Services | E76: ED_FEE431_00066
A77: ED_FEE431_00067 | B77: Miscellaneous Fee-Based Services | E77: ED_FEE431_00067
A78: ED_FEE431_00068 | B78: Miscellaneous Fee-Based Services | E78: ED_FEE431_00068
A79: ED_FEE431_00069 | B79: Miscellaneous Fee-Based Services | E79: ED_FEE431_00069
A80: ED_FEE431_00070 | B80: Miscellaneous Fee-Based Services | E80: ED_FEE431_00070
A81: ED_FEE431_00071 | B81: Miscellaneous Fee-Based Services | E81: ED_FEE431_00071
A82: ED_FEE431_00072 | B82: Miscellaneous Fee-Based Services | E82: ED_FEE431_00072
A83: ED_FEE431_00073 | B83: Miscellaneous Fee-Based Services | E83: ED_FEE431_00073
A84: ED_FEE431_00074 | B84: Miscellaneous Fee-Based Services | E84: ED_FEE431_00074
A85: ED_FEE431_00075 | B85: Miscellaneous Fee-Based Services | E85: ED_FEE431_00075
A86: ED_FEE431_00076 | B86: Miscellaneous Fee-Based Services | E86: ED_FEE431_00076
A87: ED_FEE431_00077 | B87: Miscellaneous Fee-Based Services | E87: ED_FEE431_00077
A88: ED_FEE431_00078 | B88: Miscellaneous Fee-Based Services | E88: ED_FEE431_00078
A89: ED_FEE431_00079 | B89: Miscellaneous Fee-Based Services | E89: ED_FEE431_00079
A90: ED_FEE431_00080 | B90: Miscellaneous Fee-Based Services | E90: ED_FEE431_00080
A91: ED_FEE431_00081 | B91: Miscellaneous Fee-Based Services | E91: ED_FEE431_00081
A92: ED_FEE431_00082 | B92: Miscellaneous Fee-Based Services | E92: ED_FEE431_00082
A93: ED_FEE431_00083 | B93: Miscellaneous Fee-Based Services | E93: ED_FEE431_00083
A94: ED_FEE431_00084 | B94: Miscellaneous Fee-Based Services | E94: ED_FEE431_00084
A95: ED_FEE431_00085 | B95: Miscellaneous Fee-Based Services | E95: ED_FEE431_00085
A96: ED_FEE431_00086 | B96: Miscellaneous Fee-Based Services | E96: ED_FEE431_00086
A97: ED_FEE431_00087 | B97: Miscellaneous Fee-Based Services | E97: ED_FEE431_00087
A98: ED_FEE431_00088 | B98: Miscellaneous Fee-Based Services | E98: ED_FEE431_00088
A99: ED_FEE431_00089 | B99: Miscellaneous Fee-Based Services | E99: ED_FEE431_00089
A100: ED_FEE431_00090 | B100: Miscellaneous Fee-Based Services | E100: ED_FEE431_00090
A101: ED_FEE431_00091 | B101: Miscellaneous Fee-Based Services | E101: ED_FEE431_00091
A102: ED_FEE431_00092 | B102: Miscellaneous Fee-Based Services | E102: ED_FEE431_00092
A103: ED_FEE431_00093 | B103: Miscellaneous Fee-Based Services | E103: ED_FEE431_00093
A104: ED_FEE431_00094 | B104: Miscellaneous Fee-Based Services | E104: ED_FEE431_00094
A105: ED_FEE431_00095 | B105: Miscellaneous Fee-Based Services | E105: ED_FEE431_00095
A106: ED_FEE431_00096 | B106: Miscellaneous Fee-Based Services | E106: ED_FEE431_00096
A107: ED_FEE431_00097 | B107: Miscellaneous Fee-Based Services | E107: ED_FEE431_00097
A108: ED_FEE431_00098 | B108: Miscellaneous Fee-Based Services | E108: ED_FEE431_00098
A109: ED_FEE431_00099 | B109: Miscellaneous Fee-Based Services | E109: ED_FEE431_00099
A110: ED_FEE431_00100 | B110: Miscellaneous Fee-Based Services | E110: ED_FEE431_00100
A111: ED_FEE431_00101 | B111: Miscellaneous Fee-Based Services | E111: ED_FEE431_00101
A112: ED_FEE431_00102 | B112: Miscellaneous Fee-Based Services | E112: ED_FEE431_00102
A113: ED_FEE431_00103 | B113: Miscellaneous Fee-Based Services | E113: ED_FEE431_00103
A114: ED_FEE431_00104 | B114: Miscellaneous Fee-Based Services | E114: ED_FEE431_00104
A115: ED_FEE431_00105 | B115: Miscellaneous Fee-Based Services | E115: ED_FEE431_00105
A116: ED_FEE431_00106 | B116: Miscellaneous Fee-Based Services | E116: ED_FEE431_00106
A117: ED_FEE431_00107 | B117: Miscellaneous Fee-Based Services | E117: ED_FEE431_00107
A118: ED_FEE431_00108 | B118: Miscellaneous Fee-Based Services | E118: ED_FEE431_00108
A119: ED_FEE431_00109 | B119: Miscellaneous Fee-Based Services | E119: ED_FEE431_00109
A120: ED_FEE431_00110 | B120: Miscellaneous Fee-Based Services | E120: ED_FEE431_00110
A121: ED_FEE431_00111 | B121: Miscellaneous Fee-Based Services | E121: ED_FEE431_00111
A122: ED_FEE431_00112 | B122: Miscellaneous Fee-Based Services | E122: ED_FEE431_00112
A123: ED_FEE431_00113 | B123: Miscellaneous Fee-Based Services | E123: ED_FEE431_00113
A124: ED_FEE431_00114 | B124: Miscellaneous Fee-Based Services | E124: ED_FEE431_00114
A125: ED_FEE431_00115 | B125: Miscellaneous Fee-Based Services | E125: ED_FEE431_00115
A126: ED_FEE431_00116 | B126: Miscellaneous Fee-Based Services | E126: ED_FEE431_00116
A127: ED_FEE431_00117 | B127: Miscellaneous Fee-Based Services | E127: ED_FEE431_00117
A128: ED_FEE431_00118 | B128: Miscellaneous Fee-Based Services | E128: ED_FEE431_00118
A129: ED_FEE431_00119 | B129: Miscellaneous Fee-Based Services | E129: ED_FEE431_00119
A130: ED_FEE431_00120 | B130: Miscellaneous Fee-Based Services | E130: ED_FEE431_00120
A131: ED_FEE431_00121 | B131: Miscellaneous Fee-Based Services | E131: ED_FEE431_00121
A132: ED_FEE431_00122 | B132: Miscellaneous Fee-Based Services | E132: ED_FEE431_00122
A133: ED_FEE431_00123 | B133: Miscellaneous Fee-Based Services | E133: ED_FEE431_00123
A134: ED_FEE431_00124 | B134: Miscellaneous Fee-Based Services | E134: ED_FEE431_00124
A135: ED_FEE431_00125 | B135: Miscellaneous Fee-Based Services | E135: ED_FEE431_00125
A136: ED_FEE431_00126 | B136: Miscellaneous Fee-Based Services | E136: ED_FEE431_00126
A137: ED_FEE431_00127 | B137: Miscellaneous Fee-Based Services | E137: ED_FEE431_00127
A138: ED_FEE431_00128 | B138: Miscellaneous Fee-Based Services | E138: ED_FEE431_00128
A139: ED_FEE431_00129 | B139: Miscellaneous Fee-Based Services | E139: ED_FEE431_00129
A140: ED_FEE431_00130 | B140: Miscellaneous Fee-Based Services | E140: ED_FEE431_00130
A141: ED_FEE431_00131 | B141: Miscellaneous Fee-Based Services | E141: ED_FEE431_00131
A142: ED_FEE431_00132 | B142: Miscellaneous Fee-Based Services | E142: ED_FEE431_00132
A143: ED_FEE431_00133 | B143: Miscellaneous Fee-Based Services | E143: ED_FEE431_00133
A144: ED_FEE431_00134 | B144: Miscellaneous Fee-Based Services | E144: ED_FEE431_00134
A145: ED_FEE431_00135 | B145: Miscellaneous Fee-Based Services | E145: ED_FEE431_00135
A146: ED_FEE431_00136 | B146: Miscellaneous Fee-Based Services | E146: ED_FEE431_00136
A147: ED_FEE431_00137 | B147: Miscellaneous Fee-Based Services | E147: ED_FEE431_00137
A148: ED_FEE431_00138 | B148: Miscellaneous Fee-Based Services | E148: ED_FEE431_00138
A149: ED_FEE431_00139 | B149: Miscellaneous Fee-Based Services | E149: ED_FEE431_00139
A150: ED_FEE431_00140 | B150: Miscellaneous Fee-Based Services | E150: ED_FEE431_00140
A151: ED_FEE431_00141 | B151: Miscellaneous Fee-Based Services | E151: ED_FEE431_00141
A152: ED_FEE431_00142 | B152: Miscellaneous Fee-Based Services | E152: ED_FEE431_00142
A153: ED_FEE431_00143 | B153: Miscellaneous Fee-Based Services | E153: ED_FEE431_00143
A154: ED_FEE431_00144 | B154: Miscellaneous Fee-Based Services | E154: ED_FEE431_00144
A155: ED_FEE431_00145 | B155: Miscellaneous Fee-Based Services | E155: ED_FEE431_00145
A156: ED_FEE431_00146 | B156: Miscellaneous Fee-Based Services | E156: ED_FEE431_00146
A157: ED_FEE431_00147 | B157: Miscellaneous Fee-Based Services | E157: ED_FEE431_00147
A158: ED_FEE431_00148 | B158: Miscellaneous Fee-Based Services | E158: ED_FEE431_00148
A159: ED_FEE431_00149 | B159: Miscellaneous Fee-Based Services | E159: ED_FEE431_00149
A160: ED_FEE431_00150 | B160: Miscellaneous Fee-Based Services | E160: ED_FEE431_00150
A161: ED_FEE431_00151 | B161: Miscellaneous Fee-Based Services | E161: ED_FEE431_00151
A162: ED_FEE431_00152 | B162: Miscellaneous Fee-Based Services | E162: ED_FEE431_00152
A163: ED_FEE431_00153 | B163: Miscellaneous Fee-Based Services | E163: ED_FEE431_00153
A164: ED_FEE431_00154 | B164: Miscellaneous Fee-Based Services | E164: ED_FEE431_00154
A165: ED_FEE431_00155 | B165: Miscellaneous Fee-Based Services | E165: ED_FEE431_00155
A166: ED_FEE431_00156 | B166: Miscellaneous Fee-Based Services | E166: ED_FEE431_00156
A167: ED_FEE431_00157 | B167: Miscellaneous Fee-Based Services | E167: ED_FEE431_00157
A168: ED_FEE431_00158 | B168: Miscellaneous Fee-Based Services | E168: ED_FEE431_00158
A169: ED_FEE431_00159 | B169: Miscellaneous Fee-Based Services | E169: ED_FEE431_00159
A170: ED_FEE431_00160 | B170: Miscellaneous Fee-Based Services | E170: ED_FEE431_00160
A171: ED_FEE431_00161 | B171: Miscellaneous Fee-Based Services | E171: ED_FEE431_00161
A172: ED_FEE431_00162 | B172: Miscellaneous Fee-Based Services | E172: ED_FEE431_00162
A173: ED_FEE431_00163 | B173: Miscellaneous Fee-Based Services | E173: ED_FEE431_00163
A174: ED_FEE431_00164 | B174: Miscellaneous Fee-Based Services | E174: ED_FEE431_00164
A175: ED_FEE431_00165 | B175: Miscellaneous Fee-Based Services | E175: ED_FEE431_00165
A176: ED_FEE431_00166 | B176: Miscellaneous Fee-Based Services | E176: ED_FEE431_00166
A177: ED_FEE431_00167 | B177: Miscellaneous Fee-Based Services | E177: ED_FEE431_00167
A178: ED_FEE431_00168 | B178: Miscellaneous Fee-Based Services | E178: ED_FEE431_00168
A179: ED_FEE431_00169 | B179: Miscellaneous Fee-Based Services | E179: ED_FEE431_00169
A180: ED_FEE431_00170 | B180: Miscellaneous Fee-Based Services | E180: ED_FEE431_00170
A181: ED_FEE431_00171 | B181: Miscellaneous Fee-Based Services | E181: ED_FEE431_00171
A182: ED_FEE431_00172 | B182: Miscellaneous Fee-Based Services | E182: ED_FEE431_00172
A183: ED_FEE431_00173 | B183: Miscellaneous Fee-Based Services | E183: ED_FEE431_00173
A184: ED_FEE431_00174 | B184: Miscellaneous Fee-Based Services | E184: ED_FEE431_00174
A185: ED_FEE431_00175 | B185: Miscellaneous Fee-Based Services | E185: ED_FEE431_00175
A186: ED_FEE431_00176 | B186: Miscellaneous Fee-Based Services | E186: ED_FEE431_00176
A187: ED_FEE431_00177 | B187: Miscellaneous Fee-Based Services | E187: ED_FEE431_00177
A188: ED_FEE431_00178 | B188: Miscellaneous Fee-Based Services | E188: ED_FEE431_00178
A189: ED_FEE431_00179 | B189: Miscellaneous Fee-Based Services | E189: ED_FEE431_00179
A190: ED_FEE431_00180 | B190: Miscellaneous Fee-Based Services | E190: ED_FEE431_00180
A191: ED_FEE431_00181 | B191: Miscellaneous Fee-Based Services | E191: ED_FEE431_00181
A192: ED_FEE431_00182 | B192: Miscellaneous Fee-Based Services | E192: ED_FEE431_00182
A193: ED_FEE431_00183 | B193: Miscellaneous Fee-Based Services | E193: ED_FEE431_00183
A194: ED_FEE431_00184 | B194: Miscellaneous Fee-Based Services | E194: ED_FEE431_00184
A195: ED_FEE431_00185 | B195: Miscellaneous Fee-Based Services | E195: ED_FEE431_00185
A196: ED_FEE431_00186 | B196: Miscellaneous Fee-Based Services | E196: ED_FEE431_00186
A197: ED_FEE431_00187 | B197: Miscellaneous Fee-Based Services | E197: ED_FEE431_00187
A198: ED_FEE431_00188 | B198: Miscellaneous Fee-Based Services | E198: ED_FEE431_00188
A199: ED_FEE431_00189 | B199: Miscellaneous Fee-Based Services | E199: ED_FEE431_00189
A200: ED_FEE431_00190 | B200: Miscellaneous Fee-Based Services | E200: ED_FEE431_00190
A201: ED_FEE431_00191 | B201: Miscellaneous Fee-Based Services | E201: ED_FEE431_00191
A202: ED_FEE431_00192 | B202: Miscellaneous Fee-Based Services | E202: ED_FEE431_00192
A203: ED_FEE431_00193 | B203: Miscellaneous Fee-Based Services | E203: ED_FEE431_00193
... 278 more rows

Sheet 4.4 Quoted services
B1: =(LOOKUP(dms_Model,dms_Model_List,dms_Worksheet_List)) -> REGULATORY REPORTING STATEMENT
B2: =INDEX(dms_TradingNameFull_List,MATCH(dms_TradingName,dms_TradingName_List)) -> AusNet Services (D)
B3: =CONCATENATE("Category Analysis RIN response ",CRY) -> Category Analysis RIN response 2015
B4: 4.4 ANCILLARY SERVICES - QUOTED SERVICES
B6: TABLE 4.4.1 - COST METRICS FOR QUOTED SERVICES
D9: EXPENDITURE ($0's) | F9: VOLUMES (0's)
B10: SERVICE | C10: SERVICE SUBCATEGORY | D10: =CRY -> 2015 | F10: =CRY -> 2015
A11: ED_QUO441_00001 | B11: Quoted Services | C11: Recoverable Works | D11: 543842.6658 | E11: ED_QUO441_00001 | F11: 206
A12: ED_QUO441_00002 | B12: Quoted Services | E12: ED_QUO441_00002
A13: ED_QUO441_00003 | B13: Quoted Services | E13: ED_QUO441_00003
A14: ED_QUO441_00004 | B14: Quoted Services | E14: ED_QUO441_00004
A15: ED_QUO441_00005 | B15: Quoted Services | E15: ED_QUO441_00005
A16: ED_QUO441_00006 | B16: Quoted Services | E16: ED_QUO441_00006
A17: ED_QUO441_00007 | B17: Quoted Services | E17: ED_QUO441_00007
A18: ED_QUO441_00008 | B18: Quoted Services | E18: ED_QUO441_00008
A19: ED_QUO441_00009 | B19: Quoted Services | E19: ED_QUO441_00009
A20: ED_QUO441_00010 | B20: Quoted Services | E20: ED_QUO441_00010
A21: ED_QUO441_00011 | B21: Quoted Services | E21: ED_QUO441_00011
A22: ED_QUO441_00012 | B22: Quoted Services | E22: ED_QUO441_00012
A23: ED_QUO441_00013 | B23: Quoted Services | E23: ED_QUO441_00013
A24: ED_QUO441_00014 | B24: Quoted Services | E24: ED_QUO441_00014
A25: ED_QUO441_00015 | B25: Quoted Services | E25: ED_QUO441_00015
A26: ED_QUO441_00016 | B26: Quoted Services | E26: ED_QUO441_00016
A27: ED_QUO441_00017 | B27: Quoted Services | E27: ED_QUO441_00017
A28: ED_QUO441_00018 | B28: Quoted Services | E28: ED_QUO441_00018
A29: ED_QUO441_00019 | B29: Quoted Services | E29: ED_QUO441_00019
A30: ED_QUO441_00020 | B30: Quoted Services | E30: ED_QUO441_00020
A31: ED_QUO441_00021 | B31: Quoted Services | E31: ED_QUO441_00021
A32: ED_QUO441_00022 | B32: Quoted Services | E32: ED_QUO441_00022
A33: ED_QUO441_00023 | B33: Quoted Services | E33: ED_QUO441_00023
A34: ED_QUO441_00024 | B34: Quoted Services | E34: ED_QUO441_00024
A35: ED_QUO441_00025 | B35: Quoted Services | E35: ED_QUO441_00025
A36: ED_QUO441_00026 | B36: Quoted Services | E36: ED_QUO441_00026
A37: ED_QUO441_00027 | B37: Quoted Services | E37: ED_QUO441_00027
A38: ED_QUO441_00028 | B38: Quoted Services | E38: ED_QUO441_00028
A39: ED_QUO441_00029 | B39: Quoted Services | E39: ED_QUO441_00029
A40: ED_QUO441_00030 | B40: Quoted Services | E40: ED_QUO441_00030
A41: ED_QUO441_00031 | B41: Quoted Services | E41: ED_QUO441_00031
A42: ED_QUO441_00032 | B42: Quoted Services | E42: ED_QUO441_00032
A43: ED_QUO441_00033 | B43: Quoted Services | E43: ED_QUO441_00033
A44: ED_QUO441_00034 | B44: Quoted Services | E44: ED_QUO441_00034
A45: ED_QUO441_00035 | B45: Quoted Services | E45: ED_QUO441_00035
A46: ED_QUO441_00036 | B46: Quoted Services | E46: ED_QUO441_00036
A47: ED_QUO441_00037 | B47: Quoted Services | E47: ED_QUO441_00037
A48: ED_QUO441_00038 | B48: Quoted Services | E48: ED_QUO441_00038
A49: ED_QUO441_00039 | B49: Quoted Services | E49: ED_QUO441_00039
A50: ED_QUO441_00040 | B50: Quoted Services | E50: ED_QUO441_00040
A51: ED_QUO441_00041 | B51: Quoted Services | E51: ED_QUO441_00041
A52: ED_QUO441_00042 | B52: Quoted Services | E52: ED_QUO441_00042
A53: ED_QUO441_00043 | B53: Quoted Services | E53: ED_QUO441_00043
A54: ED_QUO441_00044 | B54: Quoted Services | E54: ED_QUO441_00044
A55: ED_QUO441_00045 | B55: Quoted Services | E55: ED_QUO441_00045
A56: ED_QUO441_00046 | B56: Quoted Services | E56: ED_QUO441_00046
A57: ED_QUO441_00047 | B57: Quoted Services | E57: ED_QUO441_00047
A58: ED_QUO441_00048 | B58: Quoted Services | E58: ED_QUO441_00048
A59: ED_QUO441_00049 | B59: Quoted Services | E59: ED_QUO441_00049
A60: ED_QUO441_00050 | B60: Quoted Services | E60: ED_QUO441_00050
A61: ED_QUO441_00051 | B61: Quoted Services | E61: ED_QUO441_00051
A62: ED_QUO441_00052 | B62: Quoted Services | E62: ED_QUO441_00052
A63: ED_QUO441_00053 | B63: Quoted Services | E63: ED_QUO441_00053
A64: ED_QUO441_00054 | B64: Quoted Services | E64: ED_QUO441_00054
A65: ED_QUO441_00055 | B65: Quoted Services | E65: ED_QUO441_00055
A66: ED_QUO441_00056 | B66: Quoted Services | E66: ED_QUO441_00056
A67: ED_QUO441_00057 | B67: Quoted Services | E67: ED_QUO441_00057
A68: ED_QUO441_00058 | B68: Quoted Services | E68: ED_QUO441_00058
A69: ED_QUO441_00059 | B69: Quoted Services | E69: ED_QUO441_00059
A70: ED_QUO441_00060 | B70: Quoted Services | E70: ED_QUO441_00060
A71: ED_QUO441_00061 | B71: Quoted Services | E71: ED_QUO441_00061
A72: ED_QUO441_00062 | B72: Quoted Services | E72: ED_QUO441_00062
A73: ED_QUO441_00063 | B73: Quoted Services | E73: ED_QUO441_00063
A74: ED_QUO441_00064 | B74: Quoted Services | E74: ED_QUO441_00064
A75: ED_QUO441_00065 | B75: Quoted Services | E75: ED_QUO441_00065
A76: ED_QUO441_00066 | B76: Quoted Services | E76: ED_QUO441_00066
A77: ED_QUO441_00067 | B77: Quoted Services | E77: ED_QUO441_00067
A78: ED_QUO441_00068 | B78: Quoted Services | E78: ED_QUO441_00068
A79: ED_QUO441_00069 | B79: Quoted Services | E79: ED_QUO441_00069
A80: ED_QUO441_00070 | B80: Quoted Services | E80: ED_QUO441_00070
A81: ED_QUO441_00071 | B81: Quoted Services | E81: ED_QUO441_00071
A82: ED_QUO441_00072 | B82: Quoted Services | E82: ED_QUO441_00072
A83: ED_QUO441_00073 | B83: Quoted Services | E83: ED_QUO441_00073
A84: ED_QUO441_00074 | B84: Quoted Services | E84: ED_QUO441_00074
A85: ED_QUO441_00075 | B85: Quoted Services | E85: ED_QUO441_00075
A86: ED_QUO441_00076 | B86: Quoted Services | E86: ED_QUO441_00076
A87: ED_QUO441_00077 | B87: Quoted Services | E87: ED_QUO441_00077
A88: ED_QUO441_00078 | B88: Quoted Services | E88: ED_QUO441_00078
A89: ED_QUO441_00079 | B89: Quoted Services | E89: ED_QUO441_00079
A90: ED_QUO441_00080 | B90: Quoted Services | E90: ED_QUO441_00080
A91: ED_QUO441_00081 | B91: Quoted Services | E91: ED_QUO441_00081
A92: ED_QUO441_00082 | B92: Quoted Services | E92: ED_QUO441_00082
A93: ED_QUO441_00083 | B93: Quoted Services | E93: ED_QUO441_00083
A94: ED_QUO441_00084 | B94: Quoted Services | E94: ED_QUO441_00084
A95: ED_QUO441_00085 | B95: Quoted Services | E95: ED_QUO441_00085
A96: ED_QUO441_00086 | B96: Quoted Services | E96: ED_QUO441_00086
A97: ED_QUO441_00087 | B97: Quoted Services | E97: ED_QUO441_00087
A98: ED_QUO441_00088 | B98: Quoted Services | E98: ED_QUO441_00088
A99: ED_QUO441_00089 | B99: Quoted Services | E99: ED_QUO441_00089
A100: ED_QUO441_00090 | B100: Quoted Services | E100: ED_QUO441_00090
A101: ED_QUO441_00091 | B101: Quoted Services | E101: ED_QUO441_00091
A102: ED_QUO441_00092 | B102: Quoted Services | E102: ED_QUO441_00092
A103: ED_QUO441_00093 | B103: Quoted Services | E103: ED_QUO441_00093
A104: ED_QUO441_00094 | B104: Quoted Services | E104: ED_QUO441_00094
A105: ED_QUO441_00095 | B105: Quoted Services | E105: ED_QUO441_00095
A106: ED_QUO441_00096 | B106: Quoted Services | E106: ED_QUO441_00096
A107: ED_QUO441_00097 | B107: Quoted Services | E107: ED_QUO441_00097
A108: ED_QUO441_00098 | B108: Quoted Services | E108: ED_QUO441_00098
A109: ED_QUO441_00099 | B109: Quoted Services | E109: ED_QUO441_00099
A110: ED_QUO441_00100 | B110: Quoted Services | E110: ED_QUO441_00100
A111: ED_QUO441_00101 | B111: Quoted Services | E111: ED_QUO441_00101
A112: ED_QUO441_00102 | B112: Quoted Services | E112: ED_QUO441_00102
A113: ED_QUO441_00103 | B113: Quoted Services | E113: ED_QUO441_00103
A114: ED_QUO441_00104 | B114: Quoted Services | E114: ED_QUO441_00104
A115: ED_QUO441_00105 | B115: Quoted Services | E115: ED_QUO441_00105
A116: ED_QUO441_00106 | B116: Quoted Services | E116: ED_QUO441_00106
A117: ED_QUO441_00107 | B117: Quoted Services | E117: ED_QUO441_00107
A118: ED_QUO441_00108 | B118: Quoted Services | E118: ED_QUO441_00108
A119: ED_QUO441_00109 | B119: Quoted Services | E119: ED_QUO441_00109
A120: ED_QUO441_00110 | B120: Quoted Services | E120: ED_QUO441_00110
A121: ED_QUO441_00111 | B121: Quoted Services | E121: ED_QUO441_00111
A122: ED_QUO441_00112 | B122: Quoted Services | E122: ED_QUO441_00112
A123: ED_QUO441_00113 | B123: Quoted Services | E123: ED_QUO441_00113
A124: ED_QUO441_00114 | B124: Quoted Services | E124: ED_QUO441_00114
A125: ED_QUO441_00115 | B125: Quoted Services | E125: ED_QUO441_00115
A126: ED_QUO441_00116 | B126: Quoted Services | E126: ED_QUO441_00116
A127: ED_QUO441_00117 | B127: Quoted Services | E127: ED_QUO441_00117
A128: ED_QUO441_00118 | B128: Quoted Services | E128: ED_QUO441_00118
A129: ED_QUO441_00119 | B129: Quoted Services | E129: ED_QUO441_00119
A130: ED_QUO441_00120 | B130: Quoted Services | E130: ED_QUO441_00120
A131: ED_QUO441_00121 | B131: Quoted Services | E131: ED_QUO441_00121
A132: ED_QUO441_00122 | B132: Quoted Services | E132: ED_QUO441_00122
A133: ED_QUO441_00123 | B133: Quoted Services | E133: ED_QUO441_00123
A134: ED_QUO441_00124 | B134: Quoted Services | E134: ED_QUO441_00124
A135: ED_QUO441_00125 | B135: Quoted Services | E135: ED_QUO441_00125
A136: ED_QUO441_00126 | B136: Quoted Services | E136: ED_QUO441_00126
A137: ED_QUO441_00127 | B137: Quoted Services | E137: ED_QUO441_00127
A138: ED_QUO441_00128 | B138: Quoted Services | E138: ED_QUO441_00128
A139: ED_QUO441_00129 | B139: Quoted Services | E139: ED_QUO441_00129
A140: ED_QUO441_00130 | B140: Quoted Services | E140: ED_QUO441_00130
A141: ED_QUO441_00131 | B141: Quoted Services | E141: ED_QUO441_00131
A142: ED_QUO441_00132 | B142: Quoted Services | E142: ED_QUO441_00132
A143: ED_QUO441_00133 | B143: Quoted Services | E143: ED_QUO441_00133
A144: ED_QUO441_00134 | B144: Quoted Services | E144: ED_QUO441_00134
A145: ED_QUO441_00135 | B145: Quoted Services | E145: ED_QUO441_00135
A146: ED_QUO441_00136 | B146: Quoted Services | E146: ED_QUO441_00136
A147: ED_QUO441_00137 | B147: Quoted Services | E147: ED_QUO441_00137
A148: ED_QUO441_00138 | B148: Quoted Services | E148: ED_QUO441_00138
A149: ED_QUO441_00139 | B149: Quoted Services | E149: ED_QUO441_00139
A150: ED_QUO441_00140 | B150: Quoted Services | E150: ED_QUO441_00140
A151: ED_QUO441_00141 | B151: Quoted Services | E151: ED_QUO441_00141
A152: ED_QUO441_00142 | B152: Quoted Services | E152: ED_QUO441_00142
A153: ED_QUO441_00143 | B153: Quoted Services | E153: ED_QUO441_00143
A154: ED_QUO441_00144 | B154: Quoted Services | E154: ED_QUO441_00144
A155: ED_QUO441_00145 | B155: Quoted Services | E155: ED_QUO441_00145
A156: ED_QUO441_00146 | B156: Quoted Services | E156: ED_QUO441_00146
A157: ED_QUO441_00147 | B157: Quoted Services | E157: ED_QUO441_00147
A158: ED_QUO441_00148 | B158: Quoted Services | E158: ED_QUO441_00148
A159: ED_QUO441_00149 | B159: Quoted Services | E159: ED_QUO441_00149
A160: ED_QUO441_00150 | B160: Quoted Services | E160: ED_QUO441_00150
A161: ED_QUO441_00151 | B161: Quoted Services | E161: ED_QUO441_00151
A162: ED_QUO441_00152 | B162: Quoted Services | E162: ED_QUO441_00152
A163: ED_QUO441_00153 | B163: Quoted Services | E163: ED_QUO441_00153
A164: ED_QUO441_00154 | B164: Quoted Services | E164: ED_QUO441_00154
A165: ED_QUO441_00155 | B165: Quoted Services | E165: ED_QUO441_00155
A166: ED_QUO441_00156 | B166: Quoted Services | E166: ED_QUO441_00156
A167: ED_QUO441_00157 | B167: Quoted Services | E167: ED_QUO441_00157
A168: ED_QUO441_00158 | B168: Quoted Services | E168: ED_QUO441_00158
A169: ED_QUO441_00159 | B169: Quoted Services | E169: ED_QUO441_00159
A170: ED_QUO441_00160 | B170: Quoted Services | E170: ED_QUO441_00160
A171: ED_QUO441_00161 | B171: Quoted Services | E171: ED_QUO441_00161
A172: ED_QUO441_00162 | B172: Quoted Services | E172: ED_QUO441_00162
A173: ED_QUO441_00163 | B173: Quoted Services | E173: ED_QUO441_00163
A174: ED_QUO441_00164 | B174: Quoted Services | E174: ED_QUO441_00164
A175: ED_QUO441_00165 | B175: Quoted Services | E175: ED_QUO441_00165
A176: ED_QUO441_00166 | B176: Quoted Services | E176: ED_QUO441_00166
A177: ED_QUO441_00167 | B177: Quoted Services | E177: ED_QUO441_00167
A178: ED_QUO441_00168 | B178: Quoted Services | E178: ED_QUO441_00168
A179: ED_QUO441_00169 | B179: Quoted Services | E179: ED_QUO441_00169
A180: ED_QUO441_00170 | B180: Quoted Services | E180: ED_QUO441_00170
A181: ED_QUO441_00171 | B181: Quoted Services | E181: ED_QUO441_00171
A182: ED_QUO441_00172 | B182: Quoted Services | E182: ED_QUO441_00172
A183: ED_QUO441_00173 | B183: Quoted Services | E183: ED_QUO441_00173
A184: ED_QUO441_00174 | B184: Quoted Services | E184: ED_QUO441_00174
A185: ED_QUO441_00175 | B185: Quoted Services | E185: ED_QUO441_00175
A186: ED_QUO441_00176 | B186: Quoted Services | E186: ED_QUO441_00176
A187: ED_QUO441_00177 | B187: Quoted Services | E187: ED_QUO441_00177
A188: ED_QUO441_00178 | B188: Quoted Services | E188: ED_QUO441_00178
A189: ED_QUO441_00179 | B189: Quoted Services | E189: ED_QUO441_00179
A190: ED_QUO441_00180 | B190: Quoted Services | E190: ED_QUO441_00180
A191: ED_QUO441_00181 | B191: Quoted Services | E191: ED_QUO441_00181
A192: ED_QUO441_00182 | B192: Quoted Services | E192: ED_QUO441_00182
A193: ED_QUO441_00183 | B193: Quoted Services | E193: ED_QUO441_00183
A194: ED_QUO441_00184 | B194: Quoted Services | E194: ED_QUO441_00184
A195: ED_QUO441_00185 | B195: Quoted Services | E195: ED_QUO441_00185
A196: ED_QUO441_00186 | B196: Quoted Services | E196: ED_QUO441_00186
A197: ED_QUO441_00187 | B197: Quoted Services | E197: ED_QUO441_00187
A198: ED_QUO441_00188 | B198: Quoted Services | E198: ED_QUO441_00188
A199: ED_QUO441_00189 | B199: Quoted Services | E199: ED_QUO441_00189
A200: ED_QUO441_00190 | B200: Quoted Services | E200: ED_QUO441_00190
A201: ED_QUO441_00191 | B201: Quoted Services | E201: ED_QUO441_00191
A202: ED_QUO441_00192 | B202: Quoted Services | E202: ED_QUO441_00192
A203: ED_QUO441_00193 | B203: Quoted Services | E203: ED_QUO441_00193
... 280 more rows

Sheet 5.2 Asset Age Profile
B1: =(LOOKUP(dms_Model,dms_Model_List,dms_Worksheet_List)) -> REGULATORY REPORTING STATEMENT
B2: =INDEX(dms_TradingNameFull_List,MATCH(dms_TradingName,dms_TradingName_List)) -> AusNet Services (D)
B3: =CONCATENATE("Category Analysis RIN response ",CRY) -> Category Analysis RIN response 2015
B4: 5.2 ASSET AGE PROFILE
B6: TABLE 5.2.1 - ASSET AGE PROFILE
N9: ECONOMIC LIFE (YEARS) | AJ9: INSTALLED ASSETS -˃ QUANTITY CURRENTLY IN COMMISSION BY YEAR
B10: ASSET GROUP | C10: ASSET CATEGORY | E10: DNSP NAME | F10: SERVICE | G10: ASSET GROUP | H10: ASSET CATEGORY | I10: DATA TYPE | J10: DATA TYPE SUBCATEGORY | K10: MEASUREMENT | L10: DENOMINATION | N10: MEAN | P10: DNSP NAME | Q10: SERVICE | R10: ASSET GROUP | S10: ASSET CATEGORY | T10: DATA TYPE | U10: DATA TYPE SUBCATEGORY | V10: MEASUREMENT | W10: DENOMINATION | Y10: STANDARD DEVIATION | AA10: DNSP NAME | AB10: SERVICE | AC10: ASSET GROUP | AD10: ASSET CATEGORY | AE10: DATA TYPE | AF10: DATA TYPE SUBCATEGORY | AG10: MEASUREMENT | AH10: DENOMINATION | AJ10: =CRY -> 2015 | AK10: =IF(dms_RPT="financial",(VALUE(LEFT(AJ10,4)-1)&"-"&MID(AJ10,3,2)),VALUE(LEFT(AJ10,4)-1)) -> 2014 | AL10: 2013 | AM10: 2012 | AN10: 2011 | AO10: 2010 | AP10: 2009 | AQ10: 2008 | AR10: 2007 | AS10: 2006 | AT10: 2005 | AU10: 2004 | AV10: 2003 | AW10: 2002 | AX10: 2001 | AY10: 2000 | AZ10: 1999 | BA10: 1998 | BB10: 1997 | BC10: 1996 | BD10: 1995 | BE10: 1994 | BF10: 1993 | BG10: 1992 | BH10: 1991 | BI10: 1990 | BJ10: 1989 | BK10: 1988 | BL10: 1987 | BM10: 1986 | BN10: 1985 | BO10: 1984 | BP10: 1983 | BQ10: =IF(dms_RPT="financial",(VALUE(LEFT(BP10,4)-1)&"-"&MID(BP10,3,2)),VALUE(LEFT(BP10,4)-1)) -> 1982 | BR10: 1981 | BS10: 1980 | BT10: 1979 | BU10: 1978 | BV10: 1977 | BW10: 1976 | BX10: 1975 | BY10: 1974 | BZ10: 1973 | CA10: 1972 | CB10: 1971 | CC10: 1970 | CD10: 1969 | CE10: 1968 | CF10: 1967 | CG10: 1966 | CH10: 1965 | CI10: 1964 | CJ10: 1963 | CK10: 1962 | CL10: 1961 | CM10: 1960 | CN10: 1959 | CO10: 1958 | CP10: 1957 | CQ10: 1956 | CR10: 1955 | CS10: 1954 | CT10: 1953 | CU10: 1952 | CV10: 1951 | CW10: =IF(dms_RPT="financial",(VALUE(LEFT(CV10,4)-1)&"-"&MID(CV10,3,2)),VALUE(LEFT(CV10,4)-1)) -> 1950 | CX10: 1949 | CY10: 1948 | CZ10: 1947 | DA10: 1946 | DB10: 1945 | DC10: 1944 | DD10: 1943 | DE10: 1942 | DF10: 1941 | DG10: 1940 | DH10: 1939 | DI10: 1938 | DJ10: 1937 | DK10: 1936 | DL10: 1935 | DM10: 1934 | DN10: 1933 | DO10: 1932 | DP10: 1931 | DQ10: 1930 | DR10: 1929 | DS10: 1928 | DT10: 1927 | DU10: 1926 | DV10: 1925 | DW10: 1924 | DX10: 1923 | DY10: 1922 | DZ10: 1921 | EA10: 1920 | EB10: 1919 | EC10: =IF(dms_RPT="financial",(VALUE(LEFT(EB10,4)-1)&"-"&MID(EB10,3,2)),VALUE(LEFT(EB10,4)-1)) -> 1918 | ED10: 1917 | EE10: 1916 | EF10: 1915 | EG10: 1914 | EH10: 1913 | EI10: 1912 | EJ10: 1911
A11: ED_ASS521_00001 | B11: POLES BY: HIGHEST OPERATING VOLTAGE ; MATERIAL TYPE; STAKING (IF WOOD) | C11: Staking of a wooden pole | E11: DNSP NAME | F11: REPEX | G11: POLES | H11: =C11 -> Staking of a wooden pole | I11: DESCRIPTOR METRIC | J11: MEAN ECONOMIC LIFE | K11: YEARS | L11: NUMBER | N11: 65 | Y11: 8.062257748 | AJ11: 578 | AK11: 1866.900701 | AL11: 1273.087335 | AM11: 685.3389164 | AN11: 362.7940523 | AO11: 481.8875406 | AP11: 438.3302 | AQ11: 597.6728764 | AR11: 370.5130747 | AS11: 278.4361648 | AT11: 482.4388993 | AU11: 405.2486754 | AV11: 210.0676807 | AW11: 92.07690993 | AX11: 89.32011622 | AY11: 508.3527602 | AZ11: 272.3712186 | BA11: 154.3804478 | BB11: 38.59511195 | BC11: 24.25978465 | BD11: 39.14647069 | BE11: 33.08152453 | BF11: 70.57391899 | BG11: 114.6826184 | BH11: 28.11929585 | BI11: 68.36848402 | BJ11: 77.19022389 | BK11: 53.48179798 | BL11: 29.77337207 | BM11: 46.86549308 | BN11: 60.09810289 | BO11: 36.38967698 | BP11: 22.05434968 | BQ11: 12.12989233 | BR11: 31.97880704 | BS11: 65.61169031 | BT11: 44.66005811 | BU11: 328.0584515 | BV11: 479.6821056 | BW11: 382.0916083 | BX11: 565.1427106 | BY11: 421.238079 | BZ11: 396.4269356 | CA11: 314.274483 | CB11: 667.6954367 | CC11: 818.767732 | CD11: 793.4052299 | CE11: 928.4881217 | CF11: 737.1666382 | CG11: 486.8497693 | CH11: 566.2454281 | CI11: 481.8875406 | CJ11: 320.8907879 | CK11: 401.3891642 | CL11: 550.8073834 | CM11: 514.9690651 | CN11: 349.0100837 | CO11: 296.6310032 | CP11: 412.9676978 | CQ11: 290.0146983 | CR11: 211.721757 | CS11: 169.2671338 | CT11: 71.67663647 | CU11: 79.39565886 | CV11: 86.56332251 | CW11: 107.5149547 | CX11: 70.02256025 | CY11: 90.97419245 | CZ11: 82.70381131 | DA11: 125.7097932 | DB11: 43.55734063 | DC11: 18.74619723 | DD11: 11.57853358 | DE11: 19.29755597 | DF11: 39.69782943 | DG11: 56.23859169 | DH11: 45.21141685 | DI11: 89.87147496 | DJ11: 40.80054692 | DK11: 67.26576654 | DL11: 27.5679371 | DM11: 15.98940352 | DN11: 13.78396855 | DO11: 1.654076226 | DP11: 1.102717484 | DQ11: 3.859511195 | DR11: 1.654076226 | DS11: 2.75679371 | DT11: 0.5513587421 | DU11: 3.859511195 | DV11: 0 | DW11: 11.02717484 | DX11: 0 | DY11: 0 | DZ11: 0 | EA11: 0 | EB11: 0 | EC11: 0 | ED11: 0 | EE11: 0 | EF11: 0 | EG11: 0 | EH11: 0 | EI11: 0 | EJ11: 0
A12: ED_ASS521_00002 | C12: ˂ = 1 kV; Wood | E12: TNSP NAME | F12: REPEX | G12: POLES | H12: =C12 -> ˂ = 1 kV; Wood | I12: DESCRIPTOR METRIC | J12: MEAN ECONOMIC LIFE | K12: YEARS | L12: NUMBER | N12: 55 | Y12: 7.416198487 | AJ12: 578 | AK12: 746 | AL12: 307 | AM12: 280 | AN12: 178 | AO12: 169 | AP12: 198 | AQ12: 360 | AR12: 392 | AS12: 366 | AT12: 413 | AU12: 338 | AV12: 220 | AW12: 224 | AX12: 153 | AY12: 1573 | AZ12: 381 | BA12: 249 | BB12: 270 | BC12: 133 | BD12: 93 | BE12: 50 | BF12: 109 | BG12: 57 | BH12: 99 | BI12: 557 | BJ12: 726 | BK12: 740 | BL12: 620 | BM12: 1691 | BN12: 1361 | BO12: 1526 | BP12: 1256 | BQ12: 903 | BR12: 1441 | BS12: 2428 | BT12: 1337 | BU12: 1600 | BV12: 1503 | BW12: 2070 | BX12: 2148 | BY12: 1818 | BZ12: 2243 | CA12: 2049 | CB12: 1546 | CC12: 2362 | CD12: 2631 | CE12: 2818 | CF12: 2440 | CG12: 1392 | CH12: 2030 | CI12: 1621 | CJ12: 1114 | CK12: 1307 | CL12: 1259 | CM12: 1412 | CN12: 1139 | CO12: 790 | CP12: 1122 | CQ12: 463 | CR12: 298 | CS12: 279 | CT12: 171 | CU12: 328 | CV12: 203 | CW12: 342 | CX12: 176 | CY12: 152 | CZ12: 214 | DA12: 162 | DB12: 71 | DC12: 30 | DD12: 35 | DE12: 95 | DF12: 259 | DG12: 263 | DH12: 325 | DI12: 605 | DJ12: 338 | DK12: 355 | DL12: 254 | DM12: 267 | DN12: 144 | DO12: 27 | DP12: 11 | DQ12: 35 | DR12: 12 | DS12: 30 | DT12: 0 | DU12: 47 | DV12: 0 | DW12: 0 | DX12: 0 | DY12: 0 | DZ12: 0 | EA12: 1 | EB12: 0 | EC12: 0 | ED12: 0 | EE12: 0 | EF12: 0 | EG12: 0 | EH12: 0 | EI12: 0 | EJ12: 161
A13: ED_ASS521_00003 | C13: > 1 kV & < = 11 kV; Wood | E13: TNSP NAME | F13: REPEX | G13: POLES | H13: > 1 kV & < = 11 kV; Wood | I13: DESCRIPTOR METRIC | J13: MEAN ECONOMIC LIFE | K13: YEARS | L13: NUMBER | N13: 55 | Y13: 7.416198487 | AJ13: 0 | AK13: 0 | AL13: 0 | AM13: 0 | AN13: 0 | AO13: 0 | AP13: 0 | AQ13: 0 | AR13: 0 | AS13: 0 | AT13: 0 | AU13: 0 | AV13: 0 | AW13: 0 | AX13: 0 | AY13: 0 | AZ13: 0 | BA13: 0 | BB13: 0 | BC13: 0 | BD13: 0 | BE13: 0 | BF13: 0 | BG13: 0 | BH13: 0 | BI13: 0 | BJ13: 0 | BK13: 0 | BL13: 0 | BM13: 0 | BN13: 0 | BO13: 0 | BP13: 0 | BQ13: 0 | BR13: 0 | BS13: 0 | BT13: 0 | BU13: 0 | BV13: 0 | BW13: 0 | BX13: 0 | BY13: 0 | BZ13: 0 | CA13: 0 | CB13: 0 | CC13: 0 | CD13: 0 | CE13: 0 | CF13: 0 | CG13: 0 | CH13: 0 | CI13: 0 | CJ13: 0 | CK13: 0 | CL13: 0 | CM13: 0 | CN13: 0 | CO13: 0 | CP13: 0 | CQ13: 0 | CR13: 0 | CS13: 0 | CT13: 0 | CU13: 0 | CV13: 0 | CW13: 0 | CX13: 0 | CY13: 0 | CZ13: 0 | DA13: 0 | DB13: 0 | DC13: 0 | DD13: 0 | DE13: 0 | DF13: 0 | DG13: 0 | DH13: 0 | DI13: 0 | DJ13: 0 | DK13: 0 | DL13: 0 | DM13: 0 | DN13: 0 | DO13: 0 | DP13: 0 | DQ13: 0 | DR13: 0 | DS13: 0 | DT13: 0 | DU13: 0 | DV13: 0 | DW13: 0 | DX13: 0 | DY13: 0 | DZ13: 0 | EA13: 0 | EB13: 0 | EC13: 0 | ED13: 0 | EE13: 0 | EF13: 0 | EG13: 0 | EH13: 0 | EI13: 0 | EJ13: 0
A14: ED_ASS521_00004 | C14: ˃ 11 kV & < = 22 kV; Wood | E14: DNSP NAME | F14: REPEX | G14: POLES | H14: ˃ 11 kV & < = 22 kV; Wood | I14: DESCRIPTOR METRIC | J14: MEAN ECONOMIC LIFE | K14: YEARS | L14: NUMBER | N14: 55 | Y14: 7.416198487 | AJ14: 611 | AK14: 1046 | AL14: 624 | AM14: 387 | AN14: 396 | AO14: 433 | AP14: 806 | AQ14: 1650 | AR14: 1803 | AS14: 1384 | AT14: 1437 | AU14: 1140 | AV14: 789 | AW14: 521 | AX14: 474 | AY14: 1914 | AZ14: 737 | BA14: 570 | BB14: 528 | BC14: 272 | BD14: 213 | BE14: 225 | BF14: 545 | BG14: 273 | BH14: 763 | BI14: 1714 | BJ14: 1334 | BK14: 1791 | BL14: 1230 | BM14: 3632 | BN14: 2649 | BO14: 3101 | BP14: 2875 | BQ14: 2389 | BR14: 3824 | BS14: 4099 | BT14: 1862 | BU14: 3537 | BV14: 4347 | BW14: 4295 | BX14: 3303 | BY14: 2635 | BZ14: 2084 | CA14: 2761 | CB14: 3339 | CC14: 3228 | CD14: 4097 | CE14: 3616 | CF14: 3323 | CG14: 3304 | CH14: 3395 | CI14: 2830 | CJ14: 1792 | CK14: 1594 | CL14: 2076 | CM14: 1513 | CN14: 1120 | CO14: 851 | CP14: 1565 | CQ14: 828 | CR14: 587 | CS14: 680 | CT14: 655 | CU14: 332 | CV14: 215 | CW14: 385 | CX14: 215 | CY14: 382 | CZ14: 139 | DA14: 269 | DB14: 82 | DC14: 56 | DD14: 59 | DE14: 136 | DF14: 211 | DG14: 637 | DH14: 531 | DI14: 617 | DJ14: 547 | DK14: 599 | DL14: 396 | DM14: 281 | DN14: 287 | DO14: 12 | DP14: 4 | DQ14: 12 | DR14: 6 | DS14: 66 | DT14: 1 | DU14: 10 | DV14: 0 | DW14: 0 | DX14: 1 | DY14: 0 | DZ14: 0 | EA14: 2 | EB14: 0 | EC14: 0 | ED14: 0 | EE14: 0 | EF14: 0 | EG14: 0 | EH14: 0 | EI14: 0 | EJ14: 104
A15: ED_ASS521_00005 | C15: > 22 kV & < = 66 kV; Wood | E15: DNSP NAME | F15: REPEX | G15: POLES | H15: > 22 kV & < = 66 kV; Wood | I15: DESCRIPTOR METRIC | J15: MEAN ECONOMIC LIFE | K15: YEARS | L15: NUMBER | N15: 55 | Y15: 7.416198487 | AJ15: 25 | AK15: 85 | AL15: 54 | AM15: 54 | AN15: 38 | AO15: 44 | AP15: 74 | AQ15: 97 | AR15: 172 | AS15: 112 | AT15: 127 | AU15: 32 | AV15: 30 | AW15: 40 | AX15: 51 | AY15: 150 | AZ15: 47 | BA15: 21 | BB15: 11 | BC15: 5 | BD15: 5 | BE15: 21 | BF15: 24 | BG15: 5 | BH15: 21 | BI15: 121 | BJ15: 49 | BK15: 38 | BL15: 40 | BM15: 72 | BN15: 86 | BO15: 116 | BP15: 176 | BQ15: 122 | BR15: 828 | BS15: 241 | BT15: 266 | BU15: 190 | BV15: 887 | BW15: 1407 | BX15: 263 | BY15: 209 | BZ15: 312 | CA15: 259 | CB15: 124 | CC15: 147 | CD15: 327 | CE15: 144 | CF15: 366 | CG15: 190 | CH15: 154 | CI15: 52 | CJ15: 80 | CK15: 30 | CL15: 127 | CM15: 31 | CN15: 26 | CO15: 31 | CP15: 66 | CQ15: 57 | CR15: 172 | CS15: 3 | CT15: 13 | CU15: 1 | CV15: 0 | CW15: 1 | CX15: 11 | CY15: 7 | CZ15: 2 | DA15: 3 | DB15: 9 | DD15: 141 | DE15: 14 | DF15: 28 | DG15: 24 | DH15: 95 | DI15: 90 | DJ15: 2 | DK15: 4 | DL15: 0 | DM15: 0 | DN15: 0 | DO15: 0 | DP15: 0 | DQ15: 0 | DR15: 0 | DS15: 0 | DT15: 0 | DU15: 0 | DV15: 0 | DW15: 0 | DX15: 0 | DY15: 0 | DZ15: 0 | EA15: 0 | EB15: 0 | EC15: 0 | ED15: 0 | EE15: 0 | EF15: 0 | EG15: 0 | EH15: 0 | EI15: 0 | EJ15: 20
A16: ED_ASS521_00006 | C16: > 66 kV & < = 132 kV; Wood | E16: DNSP NAME | F16: REPEX | G16: POLES | H16: > 66 kV & < = 132 kV; Wood | I16: DESCRIPTOR METRIC | J16: MEAN ECONOMIC LIFE | K16: YEARS | L16: NUMBER | N16: 0 | Y16: 0 | AJ16: 0 | AK16: 0 | AL16: 0 | AM16: 0 | AN16: 0 | AO16: 0 | AP16: 0 | AQ16: 0 | AR16: 0 | AS16: 0 | AT16: 0 | AU16: 0 | AV16: 0 | AW16: 0 | AX16: 0 | AY16: 0 | AZ16: 0 | BA16: 0 | BB16: 0 | BC16: 0 | BD16: 0 | BE16: 0 | BF16: 0 | BG16: 0 | BH16: 0 | BI16: 0 | BJ16: 0 | BK16: 0 | BL16: 0 | BM16: 0 | BN16: 0 | BO16: 0 | BP16: 0 | BQ16: 0 | BR16: 0 | BS16: 0 | BT16: 0 | BU16: 0 | BV16: 0 | BW16: 0 | BX16: 0 | BY16: 0 | BZ16: 0 | CA16: 0 | CB16: 0 | CC16: 0 | CD16: 0 | CE16: 0 | CF16: 0 | CG16: 0 | CH16: 0 | CI16: 0 | CJ16: 0 | CK16: 0 | CL16: 0 | CM16: 0 | CN16: 0 | CO16: 0 | CP16: 0 | CQ16: 0 | CR16: 0 | CS16: 0 | CT16: 0 | CU16: 0 | CV16: 0 | CW16: 0 | CX16: 0 | CY16: 0 | CZ16: 0 | DA16: 0 | DB16: 0 | DC16: 0 | DD16: 0 | DE16: 0 | DF16: 0 | DG16: 0 | DH16: 0 | DI16: 0 | DJ16: 0 | DK16: 0 | DL16: 0 | DM16: 0 | DN16: 0 | DO16: 0 | DP16: 0 | DQ16: 0 | DR16: 0 | DS16: 0 | DT16: 0 | DU16: 0 | DV16: 0 | DW16: 0 | DX16: 0 | DY16: 0 | DZ16: 0 | EA16: 0 | EB16: 0 | EC16: 0 | ED16: 0 | EE16: 0 | EF16: 0 | EG16: 0 | EH16: 0 | EI16: 0 | EJ16: 0
A17: ED_ASS521_00007 | C17: > 132 kV; Wood | E17: DNSP NAME | F17: REPEX | G17: POLES | H17: > 132 kV; Wood | I17: DESCRIPTOR METRIC | J17: MEAN ECONOMIC LIFE | K17: YEARS | L17: NUMBER | N17: 0 | Y17: 0 | AJ17: 0 | AK17: 0 | AL17: 0 | AM17: 0 | AN17: 0 | AO17: 0 | AP17: 0 | AQ17: 0 | AR17: 0 | AS17: 0 | AT17: 0 | AU17: 0 | AV17: 0 | AW17: 0 | AX17: 0 | AY17: 0 | AZ17: 0 | BA17: 0 | BB17: 0 | BC17: 0 | BD17: 0 | BE17: 0 | BF17: 0 | BG17: 0 | BH17: 0 | BI17: 0 | BJ17: 0 | BK17: 0 | BL17: 0 | BM17: 0 | BN17: 0 | BO17: 0 | BP17: 0 | BQ17: 0 | BR17: 0 | BS17: 0 | BT17: 0 | BU17: 0 | BV17: 0 | BW17: 0 | BX17: 0 | BY17: 0 | BZ17: 0 | CA17: 0 | CB17: 0 | CC17: 0 | CD17: 0 | CE17: 0 | CF17: 0 | CG17: 0 | CH17: 0 | CI17: 0 | CJ17: 0 | CK17: 0 | CL17: 0 | CM17: 0 | CN17: 0 | CO17: 0 | CP17: 0 | CQ17: 0 | CR17: 0 | CS17: 0 | CT17: 0 | CU17: 0 | CV17: 0 | CW17: 0 | CX17: 0 | CY17: 0 | CZ17: 0 | DA17: 0 | DB17: 0 | DC17: 0 | DD17: 0 | DE17: 0 | DF17: 0 | DG17: 0 | DH17: 0 | DI17: 0 | DJ17: 0 | DK17: 0 | DL17: 0 | DM17: 0 | DN17: 0 | DO17: 0 | DP17: 0 | DQ17: 0 | DR17: 0 | DS17: 0 | DT17: 0 | DU17: 0 | DV17: 0 | DW17: 0 | DX17: 0 | DY17: 0 | DZ17: 0 | EA17: 0 | EB17: 0 | EC17: 0 | ED17: 0 | EE17: 0 | EF17: 0 | EG17: 0 | EH17: 0 | EI17: 0 | EJ17: 0
A18: ED_ASS521_00008 | C18: ˂ = 1 kV; Concrete | E18: DNSP NAME | F18: REPEX | G18: POLES | H18: ˂ = 1 kV; Concrete | I18: DESCRIPTOR METRIC | J18: MEAN ECONOMIC LIFE | K18: YEARS | L18: NUMBER | N18: 100 | Y18: 10 | AJ18: 247 | AK18: 602 | AL18: 661 | AM18: 531 | AN18: 213 | AO18: 183 | AP18: 254 | AQ18: 185 | AR18: 73 | AS18: 76 | AT18: 70 | AU18: 79 | AV18: 48 | AW18: 31 | AX18: 36 | AY18: 216 | AZ18: 147 | BA18: 123 | BB18: 142 | BC18: 187 | BD18: 674 | BE18: 807 | BF18: 1414 | BG18: 1802 | BH18: 1297 | BI18: 1305 | BJ18: 1975 | BK18: 1777 | BL18: 1178 | BM18: 1327 | BN18: 1754 | BO18: 1453 | BP18: 613 | BQ18: 240 | BR18: 1266 | BS18: 842 | BT18: 13 | BU18: 829 | BV18: 773 | BW18: 562 | BX18: 185 | BY18: 5 | BZ18: 68 | CA18: 112 | CB18: 4 | CC18: 53 | CD18: 5 | CE18: 7 | CF18: 6 | CG18: 5 | CH18: 6 | CI18: 2 | CJ18: 0 | CK18: 5 | CL18: 3 | CM18: 0 | CN18: 3 | CO18: 2 | CP18: 2 | CQ18: 2 | CR18: 0 | CS18: 2 | CT18: 1 | CU18: 0 | CV18: 1 | CW18: 0 | CX18: 1 | CY18: 0 | CZ18: 0 | DA18: 1 | DB18: 0 | DC18: 0 | DD18: 0 | DE18: 0 | DF18: 0 | DG18: 0 | DH18: 0 | DI18: 1 | DJ18: 2 | DK18: 1 | DL18: 1 | DM18: 0 | DN18: 0 | DO18: 0 | DP18: 0 | DQ18: 0 | DR18: 0 | DS18: 1 | DT18: 0 | DU18: 0 | DV18: 0 | DW18: 0 | DX18: 0 | DY18: 0 | DZ18: 0 | EA18: 0 | EB18: 0 | EC18: 0 | ED18: 0 | EE18: 0 | EF18: 0 | EG18: 0 | EH18: 0 | EI18: 0 | EJ18: 59
A19: ED_ASS521_00009 | C19: > 1 kV & < = 11 kV; Concrete | E19: DNSP NAME | F19: REPEX | G19: POLES | H19: > 1 kV & < = 11 kV; Concrete | I19: DESCRIPTOR METRIC | J19: MEAN ECONOMIC LIFE | K19: YEARS | L19: NUMBER | N19: 100 | Y19: 10 | AJ19: 0 | AK19: 0 | AL19: 0 | AM19: 0 | AN19: 0 | AO19: 0 | AP19: 0 | AQ19: 0 | AR19: 0 | AS19: 0 | AT19: 0 | AU19: 0 | AV19: 0 | AW19: 0 | AX19: 0 | AY19: 0 | AZ19: 0 | BA19: 0 | BB19: 0 | BC19: 0 | BD19: 0 | BE19: 0 | BF19: 0 | BG19: 0 | BH19: 0 | BI19: 0 | BJ19: 0 | BK19: 0 | BL19: 0 | BM19: 0 | BN19: 0 | BO19: 0 | BP19: 0 | BQ19: 0 | BR19: 0 | BS19: 0 | BT19: 0 | BU19: 0 | BV19: 0 | BW19: 0 | BX19: 0 | BY19: 0 | BZ19: 0 | CA19: 0 | CB19: 0 | CC19: 0 | CD19: 0 | CE19: 0 | CF19: 0 | CG19: 0 | CH19: 0 | CI19: 0 | CJ19: 0 | CK19: 0 | CL19: 0 | CM19: 0 | CN19: 0 | CO19: 0 | CP19: 0 | CQ19: 0 | CR19: 0 | CS19: 0 | CT19: 0 | CU19: 0 | CV19: 0 | CW19: 0 | CX19: 0 | CY19: 0 | CZ19: 0 | DA19: 0 | DB19: 0 | DC19: 0 | DD19: 0 | DE19: 0 | DF19: 0 | DG19: 0 | DH19: 0 | DI19: 0 | DJ19: 0 | DK19: 0 | DL19: 0 | DM19: 0 | DN19: 0 | DO19: 0 | DP19: 0 | DQ19: 0 | DR19: 0 | DS19: 0 | DT19: 0 | DU19: 0 | DV19: 0 | DW19: 0 | DX19: 0 | DY19: 0 | DZ19: 0 | EA19: 0 | EB19: 0 | EC19: 0 | ED19: 0 | EE19: 0 | EF19: 0 | EG19: 0 | EH19: 0 | EI19: 0 | EJ19: 0
A20: ED_ASS521_00010 | C20: ˃ 11 kV & < = 22 kV; Concrete | E20: DNSP NAME | F20: REPEX | G20: POLES | H20: ˃ 11 kV & < = 22 kV; Concrete | I20: DESCRIPTOR METRIC | J20: MEAN ECONOMIC LIFE | K20: YEARS | L20: NUMBER | N20: 100 | Y20: 10 | AJ20: 1111 | AK20: 2865 | AL20: 2383 | AM20: 1593 | AN20: 1253 | AO20: 1476 | AP20: 1191 | AQ20: 741 | AR20: 354 | AS20: 338 | AT20: 376 | AU20: 386 | AV20: 282 | AW20: 215 | AX20: 268 | AY20: 1020 | AZ20: 992 | BA20: 1028 | BB20: 1117 | BC20: 941 | BD20: 1957 | BE20: 2720 | BF20: 4533 | BG20: 4801 | BH20: 3991 | BI20: 4779 | BJ20: 6065 | BK20: 4799 | BL20: 4842 | BM20: 4064 | BN20: 4482 | BO20: 4495 | BP20: 2026 | BQ20: 868 | BR20: 4127 | BS20: 1737 | BT20: 68 | BU20: 1165 | BV20: 850 | BW20: 347 | BX20: 175 | BY20: 23 | BZ20: 72 | CA20: 57 | CB20: 16 | CC20: 83 | CD20: 42 | CE20: 18 | CF20: 46 | CG20: 20 | CH20: 27 | CI20: 13 | CJ20: 18 | CK20: 22 | CL20: 21 | CM20: 32 | CN20: 3 | CO20: 4 | CP20: 11 | CQ20: 16 | CR20: 15 | CS20: 19 | CT20: 3 | CU20: 4 | CV20: 3 | CW20: 3 | CX20: 4 | CY20: 0 | CZ20: 5 | DA20: 1 | DB20: 0 | DC20: 0 | DD20: 0 | DE20: 0 | DF20: 0 | DG20: 4 | DH20: 1 | DI20: 4 | DJ20: 5 | DK20: 0 | DL20: 4 | DM20: 38 | DN20: 1 | DO20: 0 | DP20: 0 | DQ20: 0 | DR20: 0 | DS20: 4 | DT20: 0 | DU20: 0 | DV20: 0 | DW20: 0 | DX20: 0 | DY20: 0 | DZ20: 0 | EA20: 0 | EB20: 0 | EC20: 0 | ED20: 0 | EE20: 0 | EF20: 0 | EG20: 0 | EH20: 0 | EI20: 0 | EJ20: 120
A21: ED_ASS521_00011 | C21: > 22 kV & < = 66 kV; Concrete | N21: 100 | Y21: 10 | AJ21: 94 | AK21: 790 | AL21: 340 | AM21: 134 | AN21: 274 | AO21: 352 | AP21: 222 | AQ21: 318 | AR21: 130 | AS21: 209 | AT21: 250 | AU21: 86 | AV21: 55 | AW21: 25 | AX21: 33 | AY21: 170 | AZ21: 189 | BA21: 60 | BB21: 81 | BC21: 75 | BD21: 318 | BE21: 209 | BF21: 341 | BG21: 258 | BH21: 190 | BI21: 609 | BJ21: 632 | BK21: 590 | BL21: 560 | BM21: 455 | BN21: 598 | BO21: 1206 | BP21: 221 | BQ21: 154 | BR21: 861 | BS21: 386 | BT21: 8 | BU21: 240 | BV21: 33 | BW21: 30 | BX21: 14 | BY21: 12 | BZ21: 4 | CA21: 28 | CB21: 15 | CC21: 30 | CD21: 3 | CE21: 4 | CF21: 8 | CG21: 2 | CH21: 23 | CI21: 2 | CJ21: 0 | CK21: 0 | CL21: 2 | CM21: 0 | CN21: 2 | CO21: 0 | CP21: 2 | CQ21: 1 | CR21: 2 | CS21: 1 | CT21: 1 | CU21: 1 | CV21: 0 | CW21: 0 | CX21: 0 | CY21: 0 | CZ21: 0 | DA21: 1 | DB21: 0 | DC21: 0 | DD21: 0 | DE21: 0 | DF21: 0 | DG21: 2 | DH21: 0 | DI21: 0 | DJ21: 0 | DK21: 0 | DL21: 0 | DM21: 0 | DN21: 0 | DO21: 0 | DP21: 0 | DQ21: 0 | DR21: 0 | DS21: 0 | DT21: 0 | DU21: 0 | DV21: 0 | DW21: 0 | DX21: 0 | DY21: 0 | DZ21: 0 | EA21: 0 | EB21: 0 | EC21: 0 | ED21: 0 | EE21: 0 | EF21: 0 | EG21: 0 | EH21: 0 | EI21: 0 | EJ21: 78
A22: ED_ASS521_00012 | C22: > 66 kV & < = 132 kV; Concrete | N22: 0 | Y22: 0 | AJ22: 0 | AK22: 0 | AL22: 0 | AM22: 0 | AN22: 0 | AO22: 0 | AP22: 0 | AQ22: 0 | AR22: 0 | AS22: 0 | AT22: 0 | AU22: 0 | AV22: 0 | AW22: 0 | AX22: 0 | AY22: 0 | AZ22: 0 | BA22: 0 | BB22: 0 | BC22: 0 | BD22: 0 | BE22: 0 | BF22: 0 | BG22: 0 | BH22: 0 | BI22: 0 | BJ22: 0 | BK22: 0 | BL22: 0 | BM22: 0 | BN22: 0 | BO22: 0 | BP22: 0 | BQ22: 0 | BR22: 0 | BS22: 0 | BT22: 0 | BU22: 0 | BV22: 0 | BW22: 0 | BX22: 0 | BY22: 0 | BZ22: 0 | CA22: 0 | CB22: 0 | CC22: 0 | CD22: 0 | CE22: 0 | CF22: 0 | CG22: 0 | CH22: 0 | CI22: 0 | CJ22: 0 | CK22: 0 | CL22: 0 | CM22: 0 | CN22: 0 | CO22: 0 | CP22: 0 | CQ22: 0 | CR22: 0 | CS22: 0 | CT22: 0 | CU22: 0 | CV22: 0 | CW22: 0 | CX22: 0 | CY22: 0 | CZ22: 0 | DA22: 0 | DB22: 0 | DC22: 0 | DD22: 0 | DE22: 0 | DF22: 0 | DG22: 0 | DH22: 0 | DI22: 0 | DJ22: 0 | DK22: 0 | DL22: 0 | DM22: 0 | DN22: 0 | DO22: 0 | DP22: 0 | DQ22: 0 | DR22: 0 | DS22: 0 | DT22: 0 | DU22: 0 | DV22: 0 | DW22: 0 | DX22: 0 | DY22: 0 | DZ22: 0 | EA22: 0 | EB22: 0 | EC22: 0 | ED22: 0 | EE22: 0 | EF22: 0 | EG22: 0 | EH22: 0 | EI22: 0 | EJ22: 0
A23: ED_ASS521_00013 | C23: > 132 kV; Concrete | N23: 0 | Y23: 0 | AJ23: 0 | AK23: 0 | AL23: 0 | AM23: 0 | AN23: 0 | AO23: 0 | AP23: 0 | AQ23: 0 | AR23: 0 | AS23: 0 | AT23: 0 | AU23: 0 | AV23: 0 | AW23: 0 | AX23: 0 | AY23: 0 | AZ23: 0 | BA23: 0 | BB23: 0 | BC23: 0 | BD23: 0 | BE23: 0 | BF23: 0 | BG23: 0 | BH23: 0 | BI23: 0 | BJ23: 0 | BK23: 0 | BL23: 0 | BM23: 0 | BN23: 0 | BO23: 0 | BP23: 0 | BQ23: 0 | BR23: 0 | BS23: 0 | BT23: 0 | BU23: 0 | BV23: 0 | BW23: 0 | BX23: 0 | BY23: 0 | BZ23: 0 | CA23: 0 | CB23: 0 | CC23: 0 | CD23: 0 | CE23: 0 | CF23: 0 | CG23: 0 | CH23: 0 | CI23: 0 | CJ23: 0 | CK23: 0 | CL23: 0 | CM23: 0 | CN23: 0 | CO23: 0 | CP23: 0 | CQ23: 0 | CR23: 0 | CS23: 0 | CT23: 0 | CU23: 0 | CV23: 0 | CW23: 0 | CX23: 0 | CY23: 0 | CZ23: 0 | DA23: 0 | DB23: 0 | DC23: 0 | DD23: 0 | DE23: 0 | DF23: 0 | DG23: 0 | DH23: 0 | DI23: 0 | DJ23: 0 | DK23: 0 | DL23: 0 | DM23: 0 | DN23: 0 | DO23: 0 | DP23: 0 | DQ23: 0 | DR23: 0 | DS23: 0 | DT23: 0 | DU23: 0 | DV23: 0 | DW23: 0 | DX23: 0 | DY23: 0 | DZ23: 0 | EA23: 0 | EB23: 0 | EC23: 0 | ED23: 0 | EE23: 0 | EF23: 0 | EG23: 0 | EH23: 0 | EI23: 0 | EJ23: 0
A24: ED_ASS521_00014 | C24: ˂ = 1 kV; Steel | N24: 35 | Y24: 5.916079783 | AJ24: 2983 | AK24: 3010 | AL24: 2614 | AM24: 3797 | AN24: 3724 | AO24: 2297 | AP24: 2870 | AQ24: 3347 | AR24: 1754 | AS24: 1405 | AT24: 5032 | AU24: 2694 | AV24: 1756 | AW24: 1085 | AX24: 610 | AY24: 4178 | AZ24: 1684 | BA24: 1227 | BB24: 483 | BC24: 401 | BD24: 432 | BE24: 1203 | BF24: 1129 | BG24: 679 | BH24: 605 | BI24: 1366 | BJ24: 1771 | BK24: 1417 | BL24: 469 | BM24: 1394 | BN24: 1176 | BO24: 180 | BP24: 17 | BQ24: 143 | BR24: 15 | BS24: 100 | BT24: 7 | BU24: 18 | BV24: 11 | BW24: 8 | BX24: 22 | BY24: 9 | BZ24: 7 | CA24: 1 | CB24: 5 | CC24: 7 | CD24: 0 | CE24: 0 | CF24: 0 | CG24: 1 | CH24: 0 | CI24: 0 | CJ24: 0 | CK24: 1 | CL24: 0 | CM24: 0 | CN24: 1 | CO24: 0 | CP24: 0 | CQ24: 0 | CR24: 0 | CS24: 0 | CT24: 0 | CU24: 0 | CV24: 0 | CW24: 0 | CX24: 0 | CY24: 0 | CZ24: 0 | DA24: 1 | DB24: 0 | DC24: 0 | DD24: 0 | DE24: 0 | DF24: 0 | DG24: 0 | DH24: 0 | DI24: 0 | DJ24: 0 | DK24: 0 | DL24: 0 | DM24: 0 | DN24: 0 | DO24: 0 | DP24: 0 | DQ24: 0 | DR24: 0 | DS24: 0 | DT24: 0 | DU24: 0 | DV24: 0 | DW24: 0 | DX24: 0 | DY24: 0 | DZ24: 0 | EA24: 0 | EB24: 0 | EC24: 0 | ED24: 0 | EE24: 0 | EF24: 0 | EG24: 0 | EH24: 0 | EI24: 0 | EJ24: 769
A25: ED_ASS521_00015 | C25: > 1 kV & < = 11 kV; Steel | N25: 35 | Y25: 5.916079783 | AJ25: 0 | AK25: 0 | AL25: 0 | AM25: 0 | AN25: 0 | AO25: 0 | AP25: 0 | AQ25: 0 | AR25: 0 | AS25: 0 | AT25: 0 | AU25: 0 | AV25: 0 | AW25: 0 | AX25: 0 | AY25: 0 | AZ25: 0 | BA25: 0 | BB25: 0 | BC25: 0 | BD25: 0 | BE25: 0 | BF25: 0 | BG25: 0 | BH25: 0 | BI25: 0 | BJ25: 0 | BK25: 0 | BL25: 0 | BM25: 0 | BN25: 0 | BO25: 0 | BP25: 0 | BQ25: 0 | BR25: 0 | BS25: 0 | BT25: 0 | BU25: 0 | BV25: 0 | BW25: 0 | BX25: 0 | BY25: 0 | BZ25: 0 | CA25: 0 | CB25: 0 | CC25: 0 | CD25: 0 | CE25: 0 | CF25: 0 | CG25: 0 | CH25: 0 | CI25: 0 | CJ25: 0 | CK25: 0 | CL25: 0 | CM25: 0 | CN25: 0 | CO25: 0 | CP25: 0 | CQ25: 0 | CR25: 0 | CS25: 0 | CT25: 0 | CU25: 0 | CV25: 0 | CW25: 0 | CX25: 0 | CY25: 0 | CZ25: 0 | DA25: 0 | DB25: 0 | DC25: 0 | DD25: 0 | DE25: 0 | DF25: 0 | DG25: 0 | DH25: 0 | DI25: 0 | DJ25: 0 | DK25: 0 | DL25: 0 | DM25: 0 | DN25: 0 | DO25: 0 | DP25: 0 | DQ25: 0 | DR25: 0 | DS25: 0 | DT25: 0 | DU25: 0 | DV25: 0 | DW25: 0 | DX25: 0 | DY25: 0 | DZ25: 0 | EA25: 0 | EB25: 0 | EC25: 0 | ED25: 0 | EE25: 0 | EF25: 0 | EG25: 0 | EH25: 0 | EI25: 0 | EJ25: 0
A26: ED_ASS521_00016 | C26: ˃ 11 kV & < = 22 kV; Steel | N26: 35 | Y26: 5.916079783 | AJ26: 1 | AK26: 1 | AL26: 0 | AM26: 0 | AN26: 0 | AO26: 3 | AP26: 3 | AQ26: 3 | AR26: 2 | AS26: 0 | AT26: 1 | AU26: 1 | AV26: 0 | AW26: 0 | AX26: 0 | AY26: 3 | AZ26: 1 | BA26: 0 | BB26: 0 | BC26: 0 | BD26: 0 | BE26: 1 | BF26: 0 | BG26: 0 | BH26: 0 | BI26: 3 | BJ26: 1 | BK26: 0 | BL26: 0 | BM26: 0 | BN26: 1 | BO26: 0 | BP26: 0 | BQ26: 0 | BR26: 0 | BS26: 0 | BT26: 0 | BU26: 0 | BV26: 0 | BW26: 1 | BX26: 0 | BY26: 0 | BZ26: 0 | CA26: 0 | CB26: 0 | CC26: 1 | CD26: 0 | CE26: 0 | CF26: 0 | CG26: 0 | CH26: 0 | CI26: 0 | CJ26: 0 | CK26: 0 | CL26: 0 | CM26: 0 | CN26: 0 | CO26: 0 | CP26: 0 | CQ26: 0 | CR26: 0 | CS26: 0 | CT26: 0 | CU26: 0 | CV26: 0 | CW26: 0 | CX26: 0 | CY26: 0 | CZ26: 0 | DA26: 0 | DB26: 0 | DC26: 0 | DD26: 0 | DE26: 0 | DF26: 0 | DG26: 0 | DH26: 0 | DI26: 0 | DJ26: 0 | DK26: 0 | DL26: 0 | DM26: 0 | DN26: 0 | DO26: 0 | DP26: 0 | DQ26: 0 | DR26: 0 | DS26: 0 | DT26: 0 | DU26: 0 | DV26: 0 | DW26: 0 | DX26: 0 | DY26: 0 | DZ26: 0 | EA26: 0 | EB26: 0 | EC26: 0 | ED26: 0 | EE26: 0 | EF26: 0 | EG26: 0 | EH26: 0 | EI26: 0 | EJ26: 6
A27: ED_ASS521_00017 | C27: > 22 kV & < = 66 kV; Steel | N27: 35 | Y27: 5.916079783 | AJ27: 0 | AK27: 32 | AL27: 0 | AM27: 0 | AN27: 0 | AO27: 0 | AP27: 0 | AQ27: 11 | AR27: 0 | AS27: 1 | AT27: 0 | AU27: 0 | AV27: 0 | AW27: 1 | AX27: 0 | AY27: 4 | AZ27: 2 | BA27: 0 | BB27: 0 | BC27: 0 | BD27: 0 | BE27: 0 | BF27: 0 | BG27: 0 | BH27: 0 | BI27: 0 | BJ27: 0 | BK27: 0 | BL27: 0 | BM27: 0 | BN27: 1 | BO27: 0 | BP27: 0 | BQ27: 0 | BR27: 0 | BS27: 0 | BT27: 0 | BU27: 0 | BV27: 1 | BW27: 0 | BX27: 0 | BY27: 0 | BZ27: 0 | CA27: 0 | CB27: 0 | CC27: 0 | CD27: 0 | CE27: 0 | CF27: 0 | CG27: 0 | CH27: 0 | CI27: 0 | CJ27: 0 | CK27: 0 | CL27: 0 | CM27: 0 | CN27: 0 | CO27: 0 | CP27: 0 | CQ27: 0 | CR27: 0 | CS27: 0 | CT27: 0 | CU27: 0 | CV27: 0 | CW27: 0 | CX27: 0 | CY27: 0 | CZ27: 0 | DA27: 0 | DB27: 0 | DC27: 0 | DD27: 0 | DE27: 0 | DF27: 0 | DG27: 0 | DH27: 0 | DI27: 0 | DJ27: 0 | DK27: 0 | DL27: 0 | DM27: 0 | DN27: 0 | DO27: 0 | DP27: 0 | DQ27: 0 | DR27: 0 | DS27: 0 | DT27: 0 | DU27: 0 | DV27: 0 | DW27: 0 | DX27: 0 | DY27: 0 | DZ27: 0 | EA27: 0 | EB27: 0 | EC27: 0 | ED27: 0 | EE27: 0 | EF27: 0 | EG27: 0 | EH27: 0 | EI27: 0 | EJ27: 1
A28: ED_ASS521_00018 | C28: > 66 kV & < = 132 kV; Steel | N28: 0 | Y28: 0 | AJ28: 0 | AK28: 0 | AL28: 0 | AM28: 0 | AN28: 0 | AO28: 0 | AP28: 0 | AQ28: 0 | AR28: 0 | AS28: 0 | AT28: 0 | AU28: 0 | AV28: 0 | AW28: 0 | AX28: 0 | AY28: 0 | AZ28: 0 | BA28: 0 | BB28: 0 | BC28: 0 | BD28: 0 | BE28: 0 | BF28: 0 | BG28: 0 | BH28: 0 | BI28: 0 | BJ28: 0 | BK28: 0 | BL28: 0 | BM28: 0 | BN28: 0 | BO28: 0 | BP28: 0 | BQ28: 0 | BR28: 0 | BS28: 0 | BT28: 0 | BU28: 0 | BV28: 0 | BW28: 0 | BX28: 0 | BY28: 0 | BZ28: 0 | CA28: 0 | CB28: 0 | CC28: 0 | CD28: 0 | CE28: 0 | CF28: 0 | CG28: 0 | CH28: 0 | CI28: 0 | CJ28: 0 | CK28: 0 | CL28: 0 | CM28: 0 | CN28: 0 | CO28: 0 | CP28: 0 | CQ28: 0 | CR28: 0 | CS28: 0 | CT28: 0 | CU28: 0 | CV28: 0 | CW28: 0 | CX28: 0 | CY28: 0 | CZ28: 0 | DA28: 0 | DB28: 0 | DC28: 0 | DD28: 0 | DE28: 0 | DF28: 0 | DG28: 0 | DH28: 0 | DI28: 0 | DJ28: 0 | DK28: 0 | DL28: 0 | DM28: 0 | DN28: 0 | DO28: 0 | DP28: 0 | DQ28: 0 | DR28: 0 | DS28: 0 | DT28: 0 | DU28: 0 | DV28: 0 | DW28: 0 | DX28: 0 | DY28: 0 | DZ28: 0 | EA28: 0 | EB28: 0 | EC28: 0 | ED28: 0 | EE28: 0 | EF28: 0 | EG28: 0 | EH28: 0 | EI28: 0 | EJ28: 0
A29: ED_ASS521_00019 | C29: > 132 kV; Steel | N29: 0 | Y29: 0 | AJ29: 0 | AK29: 0 | AL29: 0 | AM29: 0 | AN29: 0 | AO29: 0 | AP29: 0 | AQ29: 0 | AR29: 0 | AS29: 0 | AT29: 0 | AU29: 0 | AV29: 0 | AW29: 0 | AX29: 0 | AY29: 0 | AZ29: 0 | BA29: 0 | BB29: 0 | BC29: 0 | BD29: 0 | BE29: 0 | BF29: 0 | BG29: 0 | BH29: 0 | BI29: 0 | BJ29: 0 | BK29: 0 | BL29: 0 | BM29: 0 | BN29: 0 | BO29: 0 | BP29: 0 | BQ29: 0 | BR29: 0 | BS29: 0 | BT29: 0 | BU29: 0 | BV29: 0 | BW29: 0 | BX29: 0 | BY29: 0 | BZ29: 0 | CA29: 0 | CB29: 0 | CC29: 0 | CD29: 0 | CE29: 0 | CF29: 0 | CG29: 0 | CH29: 0 | CI29: 0 | CJ29: 0 | CK29: 0 | CL29: 0 | CM29: 0 | CN29: 0 | CO29: 0 | CP29: 0 | CQ29: 0 | CR29: 0 | CS29: 0 | CT29: 0 | CU29: 0 | CV29: 0 | CW29: 0 | CX29: 0 | CY29: 0 | CZ29: 0 | DA29: 0 | DB29: 0 | DC29: 0 | DD29: 0 | DE29: 0 | DF29: 0 | DG29: 0 | DH29: 0 | DI29: 0 | DJ29: 0 | DK29: 0 | DL29: 0 | DM29: 0 | DN29: 0 | DO29: 0 | DP29: 0 | DQ29: 0 | DR29: 0 | DS29: 0 | DT29: 0 | DU29: 0 | DV29: 0 | DW29: 0 | DX29: 0 | DY29: 0 | DZ29: 0 | EA29: 0 | EB29: 0 | EC29: 0 | ED29: 0 | EE29: 0 | EF29: 0 | EG29: 0 | EH29: 0 | EI29: 0 | EJ29: 0
A30: ED_ASS521_00020 | C30: Other | E30: DNSP NAME | F30: REPEX | G30: POLES | H30: Other | I30: DESCRIPTOR METRIC | J30: MEAN ECONOMIC LIFE | K30: YEARS | L30: NUMBER | N30: 0 | Y30: 0 | AJ30: 0 | AK30: 0 | AL30: 0 | AM30: 0 | AN30: 0 | AO30: 0 | AP30: 0 | AQ30: 0 | AR30: 0 | AS30: 0 | AT30: 0 | AU30: 0 | AV30: 0 | AW30: 0 | AX30: 0 | AY30: 0 | AZ30: 0 | BA30: 0 | BB30: 0 | BC30: 0 | BD30: 0 | BE30: 0 | BF30: 0 | BG30: 0 | BH30: 0 | BI30: 0 | BJ30: 0 | BK30: 0 | BL30: 0 | BM30: 0 | BN30: 0 | BO30: 0 | BP30: 0 | BQ30: 0 | BR30: 0 | BS30: 0 | BT30: 0 | BU30: 0 | BV30: 0 | BW30: 0 | BX30: 0 | BY30: 0 | BZ30: 0 | CA30: 0 | CB30: 0 | CC30: 0 | CD30: 0 | CE30: 0 | CF30: 0 | CG30: 0 | CH30: 0 | CI30: 0 | CJ30: 0 | CK30: 0 | CL30: 0 | CM30: 0 | CN30: 0 | CO30: 0 | CP30: 0 | CQ30: 0 | CR30: 0 | CS30: 0 | CT30: 0 | CU30: 0 | CV30: 0 | CW30: 0 | CX30: 0 | CY30: 0 | CZ30: 0 | DA30: 0 | DB30: 0 | DC30: 0 | DD30: 0 | DE30: 0 | DF30: 0 | DG30: 0 | DH30: 0 | DI30: 0 | DJ30: 0 | DK30: 0 | DL30: 0 | DM30: 0 | DN30: 0 | DO30: 0 | DP30: 0 | DQ30: 0 | DR30: 0 | DS30: 0 | DT30: 0 | DU30: 0 | DV30: 0 | DW30: 0 | DX30: 0 | DY30: 0 | DZ30: 0 | EA30: 0 | EB30: 0 | EC30: 0 | ED30: 0 | EE30: 0 | EF30: 0 | EG30: 0 | EH30: 0 | EI30: 0 | EJ30: 0
A31: ED_ASS521_00028 | B31: OVERHEAD CONDUCTORS BY: HIGHEST OPERATING VOLTAGE; NUMBER OF PHASES (AT HV) | C31: ˂ = 1 kV | E31: DNSP NAME | F31: REPEX | G31: OVERHEAD CONDUCTORS | H31: ˂ = 1 kV | I31: DESCRIPTOR METRIC | J31: MEAN ECONOMIC LIFE | K31: YEARS | L31: NUMBER | N31: 55 | Y31: 7.416198487 | AJ31: 107 | AK31: 18.39014233 | AL31: 0 | AM31: 0 | AN31: 0 | AO31: 0 | AP31: 0 | AQ31: 0 | AR31: 0 | AS31: 0 | AT31: 0 | AU31: 0 | AV31: 0 | AW31: 0 | AX31: 0 | AY31: 0 | AZ31: 0 | BA31: 0 | BB31: 0 | BC31: 0 | BD31: 0 | BE31: 0 | BF31: 0 | BG31: 0 | BH31: 0 | BI31: 0 | BJ31: 0 | BK31: 0 | BL31: 0 | BM31: 0 | BN31: 0 | BO31: 0 | BP31: 0 | BQ31: 0 | BR31: 0 | BS31: 0 | BT31: 0 | BU31: 0 | BV31: 0 | BW31: 0 | BX31: 0 | BY31: 0 | BZ31: 0 | CA31: 0 | CB31: 0 | CC31: 0 | CD31: 0 | CE31: 0 | CF31: 0 | CG31: 0 | CH31: 0 | CI31: 0 | CJ31: 0 | CK31: 0 | CL31: 0 | CM31: 0 | CN31: 0 | CO31: 0 | CP31: 0 | CQ31: 0 | CR31: 0 | CS31: 0 | CT31: 0 | CU31: 0 | CV31: 0 | CW31: 0 | CX31: 0 | CY31: 0 | CZ31: 0 | DA31: 0 | DB31: 0 | DC31: 0 | DD31: 0 | DE31: 0 | DF31: 0 | DG31: 0 | DH31: 0 | DI31: 0 | DJ31: 0 | DK31: 0 | DL31: 0 | DM31: 0 | DN31: 0 | DO31: 0 | DP31: 0 | DQ31: 0 | DR31: 0 | DS31: 0 | DT31: 0 | DU31: 0 | DV31: 0 | DW31: 6546.639558 | DX31: 0 | DY31: 0 | DZ31: 0 | EA31: 0 | EB31: 0 | EC31: 0 | ED31: 0 | EE31: 0 | EF31: 0 | EG31: 0 | EH31: 0 | EI31: 0 | EJ31: 0
A32: ED_ASS521_00029 | C32: > 1 kV & < = 11 kV | E32: DNSP NAME | F32: REPEX | G32: OVERHEAD CONDUCTORS | H32: > 1 kV & < = 11 kV | I32: DESCRIPTOR METRIC | J32: MEAN ECONOMIC LIFE | K32: YEARS | L32: NUMBER | N32: 60 | Y32: 7.745966692 | AJ32: 2 | AK32: 1.75138548 | AL32: 0.4722979827 | AM32: 0.1222408356 | AN32: 0.002876254955 | AO32: 0.08823335052 | AP32: 0.1089593053 | AQ32: 0 | AR32: 1.675756894 | AS32: 1.35141685 | AT32: 1.01489502 | AU32: 0 | AV32: 0.06403897061 | AW32: 0.005075744037 | AX32: 0 | AY32: 0.5965691159 | AZ32: 0.1886484867 | BA32: 2.421299097 | BB32: 4.097648161 | BC32: 2.251684651 | BD32: 1.331706044 | BE32: 0.08637224437 | BF32: 1.053724462 | BG32: 1.968881112 | BH32: 1.197875593 | BI32: 2.316569579 | BJ32: 1.648601663 | BK32: 2.264289415 | BL32: 1.416132586 | BM32: 0.7794650927 | BN32: 0.893838525 | BO32: 1.034352039 | BP32: 0.3263703416 | BQ32: 0.3794118668 | BR32: 0.4301693072 | BS32: 2.219284485 | BT32: 0.01861106147 | BU32: 0.1074365821 | BV32: 1.695975274 | BW32: 1.98537728 | BX32: 1.79224522 | BY32: 0.9653219202 | BZ32: 0.2877946869 | CA32: 0.3327150217 | CB32: 1.175626915 | CC32: 2.527466743 | CD32: 1.040358336 | CE32: 0.5239013804 | CF32: 0.5492801006 | CG32: 0.4583396866 | CH32: 0.9182866921 | CI32: 0.5160339771 | CJ32: 0.3658765494 | CK32: 0.07799726671 | CL32: 0.5150188283 | CM32: 0.8770885697 | CN32: 0.3049676209 | CO32: 0.2917706864 | CP32: 0.2170726533 | CQ32: 0.2169880576 | CR32: 0 | CS32: 0.07740509657 | CT32: 0.01835727427 | CU32: 0.135776153 | CV32: 0 | CW32: 0.04940390863 | CX32: 0.3050522167 | CY32: 0.05600237588 | CZ32: 0.05228016359 | DA32: 0.4739898974 | DB32: 0 | DC32: 0 | DD32: 0 | DE32: 0 | DF32: 0.5557093764 | DG32: 0.4343990939 | DH32: 0.6167029006 | DI32: 0.7139879946 | DJ32: 0 | DK32: 0.241013246 | DL32: 0.2277317158 | DM32: 0.2712985188 | DN32: 0.004314382432 | DO32: 0.4030140766 | DP32: 0.0181880828 | DQ32: 0.02901633675 | DR32: 0.01057446674 | DS32: 0.007613616056 | DT32: 0.005329531239 | DU32: 0.005075744037 | DV32: 0.01971080601 | DW32: 7.746431359 | DX32: 0 | DY32: 0 | DZ32: 0 | EA32: 0 | EB32: 0 | EC32: 0 | ED32: 0 | EE32: 0 | EF32: 0 | EG32: 0 | EH32: 0 | EI32: 0 | EJ32: 0
A33: ED_ASS521_00030 | C33: ˃ 11 kV & < = 22 kV ; SWER | N33: 46 | Y33: 6.782329983 | AJ33: 346 | AK33: 205.8753768 | AL33: 4.490629018 | AM33: 63.79404277 | AN33: 15.27711401 | AO33: 12.82182067 | AP33: 14.17283221 | AQ33: 22.80744973 | AR33: 35.68328871 | AS33: 31.60366046 | AT33: 28.2138967 | AU33: 29.14910584 | AV33: 28.33218293 | AW33: 39.4479487 | AX33: 30.29992648 | AY33: 45.2875578 | AZ33: 57.93088724 | BA33: 54.49818585 | BB33: 68.9449878 | BC33: 26.32888887 | BD33: 20.78956612 | BE33: 58.75141137 | BF33: 46.26570456 | BG33: 53.17229051 | BH33: 47.92632868 | BI33: 112.7642636 | BJ33: 78.03825301 | BK33: 68.6220784 | BL33: 40.21066864 | BM33: 138.3044853 | BN33: 86.8402811 | BO33: 89.94388637 | BP33: 76.96933704 | BQ33: 53.36786446 | BR33: 110.8051999 | BS33: 110.0257666 | BT33: 43.81262736 | BU33: 88.86001149 | BV33: 105.1137025 | BW33: 112.989386 | BX33: 130.0596305 | BY33: 91.37901872 | BZ33: 66.14674751 | CA33: 96.20594628 | CB33: 88.42241709 | CC33: 76.04225373 | CD33: 113.2523674 | CE33: 269.8920488 | CF33: 207.7844851 | CG33: 340.0119577 | CH33: 249.3838396 | CI33: 292.2976393 | CJ33: 265.5262621 | CK33: 150.6079149 | CL33: 178.0245569 | CM33: 236.6572204 | CN33: 138.9817916 | CO33: 183.13358 | CP33: 247.2051014 | CQ33: 73.67874534 | CR33: 41.44330161 | CS33: 3.75459505 | CT33: 0.8847920556 | CU33: 1.765705874 | CV33: 0.3856998973 | CW33: 1.141679083 | CX33: 5.988921221 | CY33: 0.4301149442 | CZ33: 0.3965035574 | DA33: 19.01896628 | DB33: 0.2124719808 | DC33: 1.065591768 | DD33: 0 | DE33: 0.3959495235 | DF33: 5.609223357 | DG33: 24.66069296 | DH33: 0.006925423103 | DI33: 0.3002863457 | DJ33: 0.1273354461 | DK33: 0.1371233774 | DL33: 0 | DM33: 0 | DN33: 0 | DO33: 0 | DP33: 0 | DQ33: 0 | DR33: 0 | DS33: 0 | DT33: 0 | DU33: 0 | DV33: 0 | DW33: 90.84770026 | DX33: 0 | DY33: 0 | DZ33: 0 | EA33: 0 | EB33: 0 | EC33: 0 | ED33: 0 | EE33: 0 | EF33: 0 | EG33: 0 | EH33: 0 | EI33: 0 | EJ33: 0
A34: ED_ASS521_00031 | C34: ˃ 11 kV & < = 22 kV ; Single-Phase | N34: 0 | Y34: 0 | AJ34: 132 | AK34: 137.9007841 | AL34: 11.67342009 | AM34: 102.8958195 | AN34: 50.38916623 | AO34: 67.8371073 | AP34: 62.56761101 | AQ34: 69.33816368 | AR34: 52.6581374 | AS34: 60.28167918 | AT34: 72.41404366 | AU34: 51.59747711 | AV34: 131.3415039 | AW34: 84.04544935 | AX34: 64.59382802 | AY34: 93.07761583 | AZ34: 126.1194432 | BA34: 121.3241481 | BB34: 180.9547784 | BC34: 41.59774031 | BD34: 51.74253328 | BE34: 78.87318638 | BF34: 107.7851726 | BG34: 107.9564442 | BH34: 107.9566378 | BI34: 161.5160905 | BJ34: 178.6450319 | BK34: 165.6579358 | BL34: 158.5460016 | BM34: 182.1686654 | BN34: 196.3471505 | BO34: 221.9558368 | BP34: 134.8680415 | BQ34: 92.91474711 | BR34: 267.3597719 | BS34: 199.7751382 | BT34: 72.67027341 | BU34: 153.7381603 | BV34: 198.1026941 | BW34: 198.3471908 | BX34: 180.0945481 | BY34: 159.1563915 | BZ34: 124.5225862 | CA34: 126.7350606 | CB34: 176.4635746 | CC34: 200.5653187 | CD34: 247.3538703 | CE34: 272.9474934 | CF34: 263.2923908 | CG34: 247.6185029 | CH34: 267.8024914 | CI34: 194.5530388 | CJ34: 116.0824936 | CK34: 109.4755067 | CL34: 153.3038438 | CM34: 104.5336453 | CN34: 74.90915685 | CO34: 75.36070516 | CP34: 120.4703071 | CQ34: 105.4636156 | CR34: 123.636218 | CS34: 116.3773689 | CT34: 91.65629 | CU34: 66.83383443 | CV34: 40.31597199 | CW34: 52.51412675 | CX34: 57.310235 | CY34: 76.15952086 | CZ34: 48.26300529 | DA34: 33.96277526 | DB34: 12.62344891 | DC34: 7.9809546 | DD34: 5.507990933 | DE34: 9.45811892 | DF34: 20.75538428 | DG34: 65.80829586 | DH34: 2.697246985 | DI34: 11.4387203 | DJ34: 3.900446444 | DK34: 6.434360032 | DL34: 10.49721052 | DM34: 4.148892883 | DN34: 1.925343728 | DO34: 0.1053264202 | DP34: 0.01637980726 | DQ34: 0.2146025812 | DR34: 0.007047576647 | DS34: 0.4553818756 | DT34: 0 | DU34: 0.2884859671 | DV34: 0 | DW34: 99.56785308 | DX34: 0 | DY34: 0 | DZ34: 0 | EA34: 0 | EB34: 0 | EC34: 0 | ED34: 0 | EE34: 0 | EF34: 0 | EG34: 0 | EH34: 0 | EI34: 0 | EJ34: 0
A35: ED_ASS521_00032 | C35: ˃ 11 kV & < = 22 kV ; Multiple-Phase | N35: 56 | Y35: 7.483314774 | AJ35: 272 | AK35: 204.7705397 | AL35: 17.33400246 | AM35: 152.7912449 | AN35: 74.82348143 | AO35: 100.7321398 | AP35: 92.90740115 | AQ35: 102.9610766 | AR35: 78.19270412 | AS35: 89.51299338 | AT35: 107.5284879 | AU35: 76.61771686 | AV35: 195.0305852 | AW35: 124.8001027 | AX35: 95.91615526 | AY35: 138.2120757 | AZ35: 187.2762842 | BA35: 180.1556927 | BB35: 268.7019356 | BC35: 61.76898692 | BD35: 76.83311251 | BE35: 117.1197469 | BF35: 160.0515043 | BG35: 160.3058276 | BH35: 160.3061151 | BI35: 239.8371933 | BJ35: 265.2721653 | BK35: 245.9874694 | BL35: 235.4268724 | BM35: 270.5044511 | BN35: 291.5582548 | BO35: 329.5849024 | BP35: 200.2671835 | BQ35: 137.97023 | BR35: 397.0057539 | BS35: 296.6485152 | BT35: 107.9089665 | BU35: 228.2876508 | BV35: 294.1650827 | BW35: 294.5281388 | BX35: 267.4245693 | BY35: 236.3332477 | BZ35: 184.905092 | CA35: 188.190422 | CB35: 262.0328929 | CC35: 297.8218638 | CD35: 367.298749 | CE35: 405.303029 | CF35: 390.9660506 | CG35: 367.6917052 | CH35: 397.6631534 | CI35: 288.8941567 | CJ35: 172.3722966 | CK35: 162.5615019 | CL35: 227.6427289 | CM35: 155.2232722 | CN35: 111.2335116 | CO35: 111.9040211 | CP35: 178.8878138 | CQ35: 156.6041964 | CR35: 183.5889131 | CS35: 172.8101604 | CT35: 136.1015319 | CU35: 99.24236782 | CV35: 59.86567366 | CW35: 77.97886098 | CX35: 85.10066003 | CY35: 113.0901922 | CZ35: 71.66631937 | DA35: 50.43173511 | DB35: 18.74471172 | DC35: 11.85101586 | DD35: 8.17888225 | DE35: 14.044475 | DF35: 30.81992077 | DG35: 97.71953321 | DH35: 4.00517462 | DI35: 16.9854939 | DJ35: 5.791820027 | DK35: 9.554458913 | DL35: 15.58743467 | DM35: 6.160741143 | DN35: 2.858966152 | DO35: 0.1564004733 | DP35: 0.0243225736 | DQ35: 0.3186659643 | DR35: 0.01046503167 | DS35: 0.6762020463 | DT35: 0 | DU35: 0.4283762963 | DV35: 0 | DW35: 147.8495074 | DX35: 0 | DY35: 0 | DZ35: 0 | EA35: 0 | EB35: 0 | EC35: 0 | ED35: 0 | EE35: 0 | EF35: 0 | EG35: 0 | EH35: 0 | EI35: 0 | EJ35: 0
A36: ED_ASS521_00033 | C36: > 22 kV & < = 66 kV | N36: 61 | Y36: 7.810249676 | AJ36: 27 | AK36: 61.23214987 | AL36: 0 | AM36: 39.91053284 | AN36: 8.455058866 | AO36: 0.8446154922 | AP36: 2.932005649 | AQ36: 11.01300895 | AR36: 3.330614515 | AS36: 7.708926385 | AT36: 21.62453099 | AU36: 7.28351575 | AV36: 61.3255963 | AW36: 13.24897804 | AX36: 17.39659683 | AY36: 18.80404948 | AZ36: 3.097223267 | BA36: 75.59825803 | BB36: 29.86076869 | BC36: 1.695886457 | BD36: 4.058309536 | BE36: 0.2325817978 | BF36: 0.753957158 | BG36: 6.949213142 | BH36: 2.935153507 | BI36: 27.62767764 | BJ36: 6.093355297 | BK36: 11.91824321 | BL36: 39.9667446 | BM36: 11.08244172 | BN36: 50.68862158 | BO36: 105.1329086 | BP36: 15.27467016 | BQ36: 0 | BR36: 54.38447766 | BS36: 31.2757762 | BT36: 33.48359445 | BU36: 33.2305066 | BV36: 3.078965686 | BW36: 35.09304969 | BX36: 74.21985562 | BY36: 65.75661233 | BZ36: 96.86896969 | CA36: 7.574467844 | CB36: 66.39643712 | CC36: 74.11588634 | CD36: 49.42201313 | CE36: 59.95456888 | CF36: 109.6142903 | CG36: 56.48814674 | CH36: 52.07709714 | CI36: 12.70385883 | CJ36: 25.57194595 | CK36: 24.56139333 | CL36: 71.10635343 | CM36: 28.1949218 | CN36: 12.02913778 | CO36: 30.2972418 | CP36: 70.09885873 | CQ36: 5.896209396 | CR36: 65.48059008 | CS36: 11.66128799 | CT36: 7.561336776 | CU36: 12.81214517 | CV36: 21.73110849 | CW36: 7.889793359 | CX36: 42.53728612 | CY36: 30.49510722 | CZ36: 12.56886066 | DA36: 4.071260727 | DB36: 39.93688491 | DC36: 1.042840659 | DD36: 23.60327504 | DE36: 8.449032964 | DF36: 23.11868466 | DG36: 39.41389066 | DH36: 0 | DI36: 0 | DJ36: 0 | DK36: 0 | DL36: 0 | DM36: 0.02437342119 | DN36: 0 | DO36: 0 | DP36: 0 | DQ36: 0 | DR36: 0 | DS36: 0 | DT36: 0 | DU36: 0 | DV36: 0 | DW36: 251.1314103 | DX36: 0 | DY36: 0 | DZ36: 0 | EA36: 0 | EB36: 0 | EC36: 0 | ED36: 0 | EE36: 0 | EF36: 0 | EG36: 0 | EH36: 0 | EI36: 0 | EJ36: 0
A37: ED_ASS521_00034 | C37: > 66 kV & < = 132 kV | N37: 0 | Y37: 0 | AJ37: 0 | AK37: 0 | AL37: 0 | AM37: 0 | AN37: 0 | AO37: 0 | AP37: 0 | AQ37: 0 | AR37: 0 | AS37: 0 | AT37: 0 | AU37: 0 | AV37: 0 | AW37: 0 | AX37: 0 | AY37: 0 | AZ37: 0 | BA37: 0 | BB37: 0 | BC37: 0 | BD37: 0 | BE37: 0 | BF37: 0 | BG37: 0 | BH37: 0 | BI37: 0 | BJ37: 0 | BK37: 0 | BL37: 0 | BM37: 0 | BN37: 0 | BO37: 0 | BP37: 0 | BQ37: 0 | BR37: 0 | BS37: 0 | BT37: 0 | BU37: 0 | BV37: 0 | BW37: 0 | BX37: 0 | BY37: 0 | BZ37: 0 | CA37: 0 | CB37: 0 | CC37: 0 | CD37: 0 | CE37: 0 | CF37: 0 | CG37: 0 | CH37: 0 | CI37: 0 | CJ37: 0 | CK37: 0 | CL37: 0 | CM37: 0 | CN37: 0 | CO37: 0 | CP37: 0 | CQ37: 0 | CR37: 0 | CS37: 0 | CT37: 0 | CU37: 0 | CV37: 0 | CW37: 0 | CX37: 0 | CY37: 0 | CZ37: 0 | DA37: 0 | DB37: 0 | DC37: 0 | DD37: 0 | DE37: 0 | DF37: 0 | DG37: 0 | DH37: 0 | DI37: 0 | DJ37: 0 | DK37: 0 | DL37: 0 | DM37: 0 | DN37: 0 | DO37: 0 | DP37: 0 | DQ37: 0 | DR37: 0 | DS37: 0 | DT37: 0 | DU37: 0 | DV37: 0 | DW37: 0 | DX37: 0 | DY37: 0 | DZ37: 0 | EA37: 0 | EB37: 0 | EC37: 0 | ED37: 0 | EE37: 0 | EF37: 0 | EG37: 0 | EH37: 0 | EI37: 0 | EJ37: 0
A38: ED_ASS521_00035 | C38: > 132 kV | N38: 0 | Y38: 0 | AJ38: 0 | AK38: 0 | AL38: 0 | AM38: 0 | AN38: 0 | AO38: 0 | AP38: 0 | AQ38: 0 | AR38: 0 | AS38: 0 | AT38: 0 | AU38: 0 | AV38: 0 | AW38: 0 | AX38: 0 | AY38: 0 | AZ38: 0 | BA38: 0 | BB38: 0 | BC38: 0 | BD38: 0 | BE38: 0 | BF38: 0 | BG38: 0 | BH38: 0 | BI38: 0 | BJ38: 0 | BK38: 0 | BL38: 0 | BM38: 0 | BN38: 0 | BO38: 0 | BP38: 0 | BQ38: 0 | BR38: 0 | BS38: 0 | BT38: 0 | BU38: 0 | BV38: 0 | BW38: 0 | BX38: 0 | BY38: 0 | BZ38: 0 | CA38: 0 | CB38: 0 | CC38: 0 | CD38: 0 | CE38: 0 | CF38: 0 | CG38: 0 | CH38: 0 | CI38: 0 | CJ38: 0 | CK38: 0 | CL38: 0 | CM38: 0 | CN38: 0 | CO38: 0 | CP38: 0 | CQ38: 0 | CR38: 0 | CS38: 0 | CT38: 0 | CU38: 0 | CV38: 0 | CW38: 0 | CX38: 0 | CY38: 0 | CZ38: 0 | DA38: 0 | DB38: 0 | DC38: 0 | DD38: 0 | DE38: 0 | DF38: 0 | DG38: 0 | DH38: 0 | DI38: 0 | DJ38: 0 | DK38: 0 | DL38: 0 | DM38: 0 | DN38: 0 | DO38: 0 | DP38: 0 | DQ38: 0 | DR38: 0 | DS38: 0 | DT38: 0 | DU38: 0 | DV38: 0 | DW38: 0 | DX38: 0 | DY38: 0 | DZ38: 0 | EA38: 0 | EB38: 0 | EC38: 0 | ED38: 0 | EE38: 0 | EF38: 0 | EG38: 0 | EH38: 0 | EI38: 0 | EJ38: 0
A39: ED_ASS521_00036 | C39: Other | E39: DNSP NAME | F39: REPEX | G39: OVERHEAD CONDUCTORS | H39: Other | I39: DESCRIPTOR METRIC | J39: MEAN ECONOMIC LIFE | K39: YEARS | L39: NUMBER | N39: 0 | Y39: 0 | AJ39: 0 | AK39: 0 | AL39: 0 | AM39: 0 | AN39: 0 | AO39: 0 | AP39: 0 | AQ39: 0 | AR39: 0 | AS39: 0 | AT39: 0 | AU39: 0 | AV39: 0 | AW39: 0 | AX39: 0 | AY39: 0 | AZ39: 0 | BA39: 0 | BB39: 0 | BC39: 0 | BD39: 0 | BE39: 0 | BF39: 0 | BG39: 0 | BH39: 0 | BI39: 0 | BJ39: 0 | BK39: 0 | BL39: 0 | BM39: 0 | BN39: 0 | BO39: 0 | BP39: 0 | BQ39: 0 | BR39: 0 | BS39: 0 | BT39: 0 | BU39: 0 | BV39: 0 | BW39: 0 | BX39: 0 | BY39: 0 | BZ39: 0 | CA39: 0 | CB39: 0 | CC39: 0 | CD39: 0 | CE39: 0 | CF39: 0 | CG39: 0 | CH39: 0 | CI39: 0 | CJ39: 0 | CK39: 0 | CL39: 0 | CM39: 0 | CN39: 0 | CO39: 0 | CP39: 0 | CQ39: 0 | CR39: 0 | CS39: 0 | CT39: 0 | CU39: 0 | CV39: 0 | CW39: 0 | CX39: 0 | CY39: 0 | CZ39: 0 | DA39: 0 | DB39: 0 | DC39: 0 | DD39: 0 | DE39: 0 | DF39: 0 | DG39: 0 | DH39: 0 | DI39: 0 | DJ39: 0 | DK39: 0 | DL39: 0 | DM39: 0 | DN39: 0 | DO39: 0 | DP39: 0 | DQ39: 0 | DR39: 0 | DS39: 0 | DT39: 0 | DU39: 0 | DV39: 0 | DW39: 0 | DX39: 0 | DY39: 0 | DZ39: 0 | EA39: 0 | EB39: 0 | EC39: 0 | ED39: 0 | EE39: 0 | EF39: 0 | EG39: 0 | EH39: 0 | EI39: 0 | EJ39: 2.6
A40: ED_ASS521_00037 | B40: UNDERGROUND CABLES BY: HIGHEST OPERATING VOLTAGE | C40: ˂ = 1 kV | E40: DNSP NAME | F40: REPEX | G40: UNDERGROUND CABLES | H40: ˂ = 1 kV | I40: DESCRIPTOR METRIC | J40: MEAN ECONOMIC LIFE | K40: YEARS | L40: NUMBER | N40: 50 | Y40: 7.071067812 | AJ40: 23 | AK40: 126.281357 | AL40: 118.9928407 | AM40: 179.7538956 | AN40: 203.8349792 | AO40: 111.875893 | AP40: 88.86765433 | AQ40: 50.31095235 | AR40: 49.80903958 | AS40: 64.41557822 | AT40: 72.76961457 | AU40: 141.2107086 | AV40: 162.4638517 | AW40: 161.3717142 | AX40: 136.0759294 | AY40: 129.2324803 | AZ40: 146.6877995 | BA40: 113.9609201 | BB40: 84.80025226 | BC40: 37.74384058 | BD40: 25.68493483 | BE40: 19.24466661 | BF40: 19.9431146 | BG40: 19.59791416 | BH40: 9.235401371 | BI40: 12.02207474 | BJ40: 13.56278704 | BK40: 12.63716291 | BL40: 14.41155094 | BM40: 18.13034803 | BN40: 6.068863085 | BO40: 9.267796152 | BP40: 3.768936782 | BQ40: 4.929371495 | BR40: 4.836726547 | BS40: 1172.78641 | BT40: 0.34303391 | BU40: 3.338829002 | BV40: 6.47761507 | BW40: 2.917490509 | BX40: 1.65780809 | BY40: 2.548045567 | BZ40: 7.490106737 | CA40: 1.909641406 | CB40: 1.167656479 | CC40: 10.0333034 | CD40: 0.12390488 | CE40: 0.02352232526 | CF40: 0 | CG40: 0 | CH40: 0.06035333455 | CI40: 0 | CJ40: 0 | CK40: 0 | CL40: 0.02156213149 | CM40: 0 | CN40: 0 | CO40: 0 | CP40: 0 | CQ40: 0 | CR40: 0 | CS40: 0 | CT40: 0 | CU40: 0 | CV40: 0 | CW40: 0 | CX40: 0 | CY40: 0 | CZ40: 0 | DA40: 0 | DB40: 0 | DC40: 0 | DD40: 0 | DE40: 0 | DF40: 0 | DG40: 0 | DH40: 0 | DI40: 0 | DJ40: 0 | DK40: 0 | DL40: 0 | DM40: 0 | DN40: 0 | DO40: 0 | DP40: 0 | DQ40: 0 | DR40: 0 | DS40: 0 | DT40: 0 | DU40: 0 | DV40: 0 | DW40: 419.256767 | DX40: 0 | DY40: 0 | DZ40: 0 | EA40: 0 | EB40: 0 | EC40: 0 | ED40: 0 | EE40: 0 | EF40: 0 | EG40: 0 | EH40: 0 | EI40: 0 | EJ40: 0
A41: ED_ASS521_00038 | C41: > 1 kV & < = 11 kV | N41: 50 | Y41: 7.071067812 | AJ41: 0 | AK41: 0.05516091795 | AL41: 0 | AM41: 0 | AN41: 0 | AO41: 0 | AP41: 0 | AQ41: 0 | AR41: 0 | AS41: 0 | AT41: 0 | AU41: 0 | AV41: 0 | AW41: 0 | AX41: 0 | AY41: 0 | AZ41: 0 | BA41: 0.004995705776 | BB41: 0 | BC41: 0 | BD41: 0 | BE41: 0 | BF41: 0 | BG41: 0 | BH41: 0 | BI41: 0 | BJ41: 0 | BK41: 0 | BL41: 0 | BM41: 0 | BN41: 0 | BO41: 0 | BP41: 0 | BQ41: 0 | BR41: 0 | BS41: 0.1051179757 | BT41: 0 | BU41: 0 | BV41: 0 | BW41: 0 | BX41: 2.597350695 | BY41: 0 | BZ41: 0 | CA41: 0 | CB41: 0 | CC41: 0.8763300549 | CD41: 0 | CE41: 0 | CF41: 0 | CG41: 0 | CH41: 0 | CI41: 0 | CJ41: 0 | CK41: 0 | CL41: 0 | CM41: 0 | CN41: 0 | CO41: 0 | CP41: 0 | CQ41: 0 | CR41: 0 | CS41: 0 | CT41: 0 | CU41: 0 | CV41: 0 | CW41: 0 | CX41: 0 | CY41: 0 | CZ41: 0 | DA41: 0 | DB41: 0 | DC41: 0 | DD41: 0 | DE41: 0 | DF41: 0 | DG41: 0 | DH41: 0 | DI41: 0 | DJ41: 0 | DK41: 0 | DL41: 0 | DM41: 0 | DN41: 0 | DO41: 0 | DP41: 0 | DQ41: 0 | DR41: 0 | DS41: 0 | DT41: 0 | DU41: 0 | DV41: 0 | DW41: 0.8690446507 | DX41: 0 | DY41: 0 | DZ41: 0 | EA41: 0 | EB41: 0 | EC41: 0 | ED41: 0 | EE41: 0 | EF41: 0 | EG41: 0 | EH41: 0 | EI41: 0 | EJ41: 0
A42: ED_ASS521_00039 | C42: > 11 kV & < = 22 kV | N42: 50 | Y42: 7.071067812 | AJ42: 42 | AK42: 87.30350773 | AL42: 65.55945244 | AM42: 90.65015401 | AN42: 72.69614891 | AO42: 50.29577362 | AP42: 46.60108352 | AQ42: 36.40279348 | AR42: 37.67926241 | AS42: 31.56326839 | AT42: 44.30976939 | AU42: 45.30755664 | AV42: 51.67315162 | AW42: 59.27246789 | AX42: 48.6833864 | AY42: 56.23101503 | AZ42: 81.43505949 | BA42: 62.89173308 | BB42: 87.78349375 | BC42: 29.28582668 | BD42: 13.07245169 | BE42: 12.96393847 | BF42: 6.600501429 | BG42: 6.60769454 | BH42: 1.684729359 | BI42: 5.209045482 | BJ42: 5.963808345 | BK42: 5.532324442 | BL42: 3.99741731 | BM42: 6.311030089 | BN42: 1.929808927 | BO42: 3.273687583 | BP42: 0.7925780754 | BQ42: 1.147301207 | BR42: 4.845485099 | BS42: 219.765983 | BT42: 0 | BU42: 1.20124954 | BV42: 1.470580168 | BW42: 0.8189870687 | BX42: 0.2407637016 | BY42: 1.219746111 | BZ42: 1.883361982 | CA42: 1.64342035 | CB42: 0.1994546926 | CC42: 266.4537949 | CD42: 0 | CE42: 0.215998848 | CF42: 0 | CG42: 0 | CH42: 0 | CI42: 0 | CJ42: 0 | CK42: 0 | CL42: 0 | CM42: 0 | CN42: 0 | CO42: 0 | CP42: 0 | CQ42: 0 | CR42: 0 | CS42: 0 | CT42: 0 | CU42: 0 | CV42: 0 | CW42: 0 | CX42: 0 | CY42: 0 | CZ42: 0 | DA42: 0 | DB42: 0 | DC42: 0 | DD42: 0 | DE42: 0 | DF42: 0 | DG42: 0 | DH42: 0 | DI42: 0 | DJ42: 0 | DK42: 0 | DL42: 0 | DM42: 0 | DN42: 0 | DO42: 0 | DP42: 0 | DQ42: 0 | DR42: 0 | DS42: 0 | DT42: 0 | DU42: 0 | DV42: 0 | DW42: 220.9009531 | DX42: 0 | DY42: 0 | DZ42: 0 | EA42: 0 | EB42: 0 | EC42: 0 | ED42: 0 | EE42: 0 | EF42: 0 | EG42: 0 | EH42: 0 | EI42: 0 | EJ42: 0
A43: ED_ASS521_00040 | C43: > 22 kV & < = 33 kV | N43: 0 | Y43: 0 | AJ43: 0 | AK43: 0 | AL43: 0 | AM43: 0 | AN43: 0 | AO43: 0 | AP43: 0 | AQ43: 0 | AR43: 0 | AS43: 0 | AT43: 0 | AU43: 0 | AV43: 0 | AW43: 0 | AX43: 0 | AY43: 0 | AZ43: 0 | BA43: 0 | BB43: 0 | BC43: 0 | BD43: 0 | BE43: 0 | BF43: 0 | BG43: 0 | BH43: 0 | BI43: 0 | BJ43: 0 | BK43: 0 | BL43: 0 | BM43: 0 | BN43: 0 | BO43: 0 | BP43: 0 | BQ43: 0 | BR43: 0 | BS43: 0 | BT43: 0 | BU43: 0 | BV43: 0 | BW43: 0 | BX43: 0 | BY43: 0 | BZ43: 0 | CA43: 0 | CB43: 0 | CC43: 0 | CD43: 0 | CE43: 0 | CF43: 0 | CG43: 0 | CH43: 0 | CI43: 0 | CJ43: 0 | CK43: 0 | CL43: 0 | CM43: 0 | CN43: 0 | CO43: 0 | CP43: 0 | CQ43: 0 | CR43: 0 | CS43: 0 | CT43: 0 | CU43: 0 | CV43: 0 | CW43: 0 | CX43: 0 | CY43: 0 | CZ43: 0 | DA43: 0 | DB43: 0 | DC43: 0 | DD43: 0 | DE43: 0 | DF43: 0 | DG43: 0 | DH43: 0 | DI43: 0 | DJ43: 0 | DK43: 0 | DL43: 0 | DM43: 0 | DN43: 0 | DO43: 0 | DP43: 0 | DQ43: 0 | DR43: 0 | DS43: 0 | DT43: 0 | DU43: 0 | DV43: 0 | DW43: 0 | DX43: 0 | DY43: 0 | DZ43: 0 | EA43: 0 | EB43: 0 | EC43: 0 | ED43: 0 | EE43: 0 | EF43: 0 | EG43: 0 | EH43: 0 | EI43: 0 | EJ43: 0
A44: ED_ASS521_00041 | C44: > 33 kV & < = 66 kV | N44: 50 | Y44: 7.071067812 | AJ44: 0 | AK44: 1.183944474 | AL44: 0 | AM44: 0 | AN44: 0 | AO44: 0 | AP44: 0 | AQ44: 0 | AR44: 0 | AS44: 0 | AT44: 0.1871434974 | AU44: 0 | AV44: 0 | AW44: 0 | AX44: 0 | AY44: 0 | AZ44: 0 | BA44: 3.395926852 | BB44: 0 | BC44: 0 | BD44: 0 | BE44: 0 | BF44: 0 | BG44: 0 | BH44: 0 | BI44: 0 | BJ44: 0 | BK44: 0 | BL44: 0 | BM44: 0 | BN44: 0 | BO44: 0 | BP44: 0 | BQ44: 0 | BR44: 0 | BS44: 0 | BT44: 0 | BU44: 0 | BV44: 0 | BW44: 0 | BX44: 0 | BY44: 0 | BZ44: 0 | CA44: 0 | CB44: 0 | CC44: 0.8242099946 | CD44: 0 | CE44: 0 | CF44: 0 | CG44: 0 | CH44: 0 | CI44: 0 | CJ44: 0 | CK44: 0 | CL44: 0 | CM44: 0 | CN44: 0 | CO44: 0 | CP44: 0 | CQ44: 0 | CR44: 0 | CS44: 0 | CT44: 0 | CU44: 0 | CV44: 0 | CW44: 0 | CX44: 0 | CY44: 0 | CZ44: 0 | DA44: 0 | DB44: 0 | DC44: 0 | DD44: 0 | DE44: 0 | DF44: 0 | DG44: 0 | DH44: 0 | DI44: 0 | DJ44: 0 | DK44: 0 | DL44: 0 | DM44: 0 | DN44: 0 | DO44: 0 | DP44: 0 | DQ44: 0 | DR44: 0 | DS44: 0 | DT44: 0 | DU44: 0 | DV44: 0 | DW44: 5.307775182 | DX44: 0 | DY44: 0 | DZ44: 0 | EA44: 0 | EB44: 0 | EC44: 0 | ED44: 0 | EE44: 0 | EF44: 0 | EG44: 0 | EH44: 0 | EI44: 0 | EJ44: 0
A45: ED_ASS521_00042 | C45: > 66 kV & < = 132 kV | N45: 0 | Y45: 0 | AJ45: 0 | AK45: 0 | AL45: 0 | AM45: 0 | AN45: 0 | AO45: 0 | AP45: 0 | AQ45: 0 | AR45: 0 | AS45: 0 | AT45: 0 | AU45: 0 | AV45: 0 | AW45: 0 | AX45: 0 | AY45: 0 | AZ45: 0 | BA45: 0 | BB45: 0 | BC45: 0 | BD45: 0 | BE45: 0 | BF45: 0 | BG45: 0 | BH45: 0 | BI45: 0 | BJ45: 0 | BK45: 0 | BL45: 0 | BM45: 0 | BN45: 0 | BO45: 0 | BP45: 0 | BQ45: 0 | BR45: 0 | BS45: 0 | BT45: 0 | BU45: 0 | BV45: 0 | BW45: 0 | BX45: 0 | BY45: 0 | BZ45: 0 | CA45: 0 | CB45: 0 | CC45: 0 | CD45: 0 | CE45: 0 | CF45: 0 | CG45: 0 | CH45: 0 | CI45: 0 | CJ45: 0 | CK45: 0 | CL45: 0 | CM45: 0 | CN45: 0 | CO45: 0 | CP45: 0 | CQ45: 0 | CR45: 0 | CS45: 0 | CT45: 0 | CU45: 0 | CV45: 0 | CW45: 0 | CX45: 0 | CY45: 0 | CZ45: 0 | DA45: 0 | DB45: 0 | DC45: 0 | DD45: 0 | DE45: 0 | DF45: 0 | DG45: 0 | DH45: 0 | DI45: 0 | DJ45: 0 | DK45: 0 | DL45: 0 | DM45: 0 | DN45: 0 | DO45: 0 | DP45: 0 | DQ45: 0 | DR45: 0 | DS45: 0 | DT45: 0 | DU45: 0 | DV45: 0 | DW45: 0 | DX45: 0 | DY45: 0 | DZ45: 0 | EA45: 0 | EB45: 0 | EC45: 0 | ED45: 0 | EE45: 0 | EF45: 0 | EG45: 0 | EH45: 0 | EI45: 0 | EJ45: 0
A46: ED_ASS521_00043 | C46: > 132 kV | N46: 0 | Y46: 0 | AJ46: 0 | AK46: 0 | AL46: 0 | AM46: 0 | AN46: 0 | AO46: 0 | AP46: 0 | AQ46: 0 | AR46: 0 | AS46: 0 | AT46: 0 | AU46: 0 | AV46: 0 | AW46: 0 | AX46: 0 | AY46: 0 | AZ46: 0 | BA46: 0 | BB46: 0 | BC46: 0 | BD46: 0 | BE46: 0 | BF46: 0 | BG46: 0 | BH46: 0 | BI46: 0 | BJ46: 0 | BK46: 0 | BL46: 0 | BM46: 0 | BN46: 0 | BO46: 0 | BP46: 0 | BQ46: 0 | BR46: 0 | BS46: 0 | BT46: 0 | BU46: 0 | BV46: 0 | BW46: 0 | BX46: 0 | BY46: 0 | BZ46: 0 | CA46: 0 | CB46: 0 | CC46: 0 | CD46: 0 | CE46: 0 | CF46: 0 | CG46: 0 | CH46: 0 | CI46: 0 | CJ46: 0 | CK46: 0 | CL46: 0 | CM46: 0 | CN46: 0 | CO46: 0 | CP46: 0 | CQ46: 0 | CR46: 0 | CS46: 0 | CT46: 0 | CU46: 0 | CV46: 0 | CW46: 0 | CX46: 0 | CY46: 0 | CZ46: 0 | DA46: 0 | DB46: 0 | DC46: 0 | DD46: 0 | DE46: 0 | DF46: 0 | DG46: 0 | DH46: 0 | DI46: 0 | DJ46: 0 | DK46: 0 | DL46: 0 | DM46: 0 | DN46: 0 | DO46: 0 | DP46: 0 | DQ46: 0 | DR46: 0 | DS46: 0 | DT46: 0 | DU46: 0 | DV46: 0 | DW46: 0 | DX46: 0 | DY46: 0 | DZ46: 0 | EA46: 0 | EB46: 0 | EC46: 0 | ED46: 0 | EE46: 0 | EF46: 0 | EG46: 0 | EH46: 0 | EI46: 0 | EJ46: 0
A47: ED_ASS521_00044 | C47: Other | E47: DNSP NAME | F47: REPEX | G47: SERVICE LINES | H47: Other | I47: DESCRIPTOR METRIC | J47: MEAN ECONOMIC LIFE | K47: YEARS | L47: NUMBER | N47: 0 | Y47: 0 | AJ47: 0 | AK47: 0 | AL47: 0 | AM47: 0 | AN47: 0 | AO47: 0 | AP47: 0 | AQ47: 0 | AR47: 0 | AS47: 0 | AT47: 0 | AU47: 0 | AV47: 0 | AW47: 0 | AX47: 0 | AY47: 0 | AZ47: 0 | BA47: 0 | BB47: 0 | BC47: 0 | BD47: 0 | BE47: 0 | BF47: 0 | BG47: 0 | BH47: 0 | BI47: 0 | BJ47: 0 | BK47: 0 | BL47: 0 | BM47: 0 | BN47: 0 | BO47: 0 | BP47: 0 | BQ47: 0 | BR47: 0 | BS47: 0 | BT47: 0 | BU47: 0 | BV47: 0 | BW47: 0 | BX47: 0 | BY47: 0 | BZ47: 0 | CA47: 0 | CB47: 0 | CC47: 0 | CD47: 0 | CE47: 0 | CF47: 0 | CG47: 0 | CH47: 0 | CI47: 0 | CJ47: 0 | CK47: 0 | CL47: 0 | CM47: 0 | CN47: 0 | CO47: 0 | CP47: 0 | CQ47: 0 | CR47: 0 | CS47: 0 | CT47: 0 | CU47: 0 | CV47: 0 | CW47: 0 | CX47: 0 | CY47: 0 | CZ47: 0 | DA47: 0 | DB47: 0 | DC47: 0 | DD47: 0 | DE47: 0 | DF47: 0 | DG47: 0 | DH47: 0 | DI47: 0 | DJ47: 0 | DK47: 0 | DL47: 0 | DM47: 0 | DN47: 0 | DO47: 0 | DP47: 0 | DQ47: 0 | DR47: 0 | DS47: 0 | DT47: 0 | DU47: 0 | DV47: 0 | DW47: 0 | DX47: 0 | DY47: 0 | DZ47: 0 | EA47: 0 | EB47: 0 | EC47: 0 | ED47: 0 | EE47: 0 | EF47: 0 | EG47: 0 | EH47: 0 | EI47: 0 | EJ47: 0
A48: ED_ASS521_00045 | B48: SERVICE LINES BY: CONNECTION VOLTAGE; CUSTOMER TYPE; CONNECTION COMPLEXITY | C48: ˂ = 11 kV ; Residential ; Simple Type | E48: DNSP NAME | F48: REPEX | G48: SERVICE LINES | H48: ˂ = 11 kV ; Residential ; Simple Type | I48: DESCRIPTOR METRIC | J48: MEAN ECONOMIC LIFE | K48: YEARS | L48: NUMBER | N48: 40 | Y48: 6.32455532 | AJ48: 1291 | AK48: 1837.749 | AL48: 1689.107 | AM48: 2567.443 | AN48: 2486.366 | AO48: 1945.852 | AP48: 1878.287 | AQ48: 1743.159 | AR48: 2391.776 | AS48: 2486.366 | AT48: 1959.365 | AU48: 2756.623 | AV48: 3391.728 | AW48: 3026.88 | AX48: 2783.649 | AY48: 3107.958 | AZ48: 3648.472 | BA48: 3391.728 | BB48: 10702.184 | BC48: 1135.08 | BD48: 905.362 | BE48: 716.182 | BF48: 581.053 | BG48: 891.849 | BH48: 702.669 | BI48: 648.617 | BJ48: 621.592 | BK48: 472.95 | BL48: 391.873 | BM48: 283.77 | BN48: 202.693 | BO48: 162.154 | BP48: 94.59 | BQ48: 27.026 | BR48: 27.026 | BS48: 32349.784 | BT48: 13.513 | BU48: 27.026 | BV48: 13.513 | BW48: 27.026 | BX48: 13.513 | BY48: 13.513 | BZ48: 40.539 | CA48: 13.513 | CB48: 0 | CC48: 5161.912 | CD48: 0 | CE48: 0 | CF48: 0 | CG48: 0 | CH48: 13.513 | CI48: 0 | CJ48: 0 | CK48: 0 | CL48: 0 | CM48: 0 | CN48: 0 | CO48: 0 | CP48: 0 | CQ48: 0 | CR48: 0 | CS48: 0 | CT48: 0 | CU48: 0 | CV48: 0 | CW48: 0 | CX48: 0 | CY48: 0 | CZ48: 0 | DA48: 0 | DB48: 0 | DC48: 0 | DD48: 0 | DE48: 0 | DF48: 0 | DG48: 0 | DH48: 0 | DI48: 0 | DJ48: 0 | DK48: 0 | DL48: 0 | DM48: 0 | DN48: 0 | DO48: 0 | DP48: 0 | DQ48: 0 | DR48: 0 | DS48: 0 | DT48: 0 | DU48: 0 | DV48: 0 | DW48: 54078.461 | DX48: 0 | DY48: 0 | DZ48: 0 | EA48: 0 | EB48: 0 | EC48: 0 | ED48: 0 | EE48: 0 | EF48: 0 | EG48: 0 | EH48: 0 | EI48: 0 | EJ48: 0
A49: ED_ASS521_00046 | C49: ˂ = 11 kV ; Commercial & Industrial ; Simple Type | E49: DNSP NAME | F49: REPEX | G49: SERVICE LINES | H49: ˂ = 11 kV ; Commercial & Industrial ; Simple Type | I49: DESCRIPTOR METRIC | J49: MEAN ECONOMIC LIFE | K49: YEARS | L49: NUMBER | N49: 40 | Y49: 6.32455532 | AJ49: 142 | AK49: 200.722 | AL49: 187.341 | AM49: 281.011 | AN49: 281.011 | AO49: 214.104 | AP49: 214.104 | AQ49: 187.341 | AR49: 267.63 | AS49: 281.011 | AT49: 214.104 | AU49: 307.774 | AV49: 374.681 | AW49: 334.537 | AX49: 307.774 | AY49: 347.918 | AZ49: 401.444 | BA49: 374.681 | BB49: 1190.951 | BC49: 120.433 | BD49: 107.052 | BE49: 80.289 | BF49: 66.907 | BG49: 93.67 | BH49: 80.289 | BI49: 66.907 | BJ49: 66.907 | BK49: 53.526 | BL49: 40.144 | BM49: 26.763 | BN49: 26.763 | BO49: 13.381 | BP49: 13.381 | BQ49: 0 | BR49: 0 | BS49: 3612.998 | BT49: 0 | BU49: 0 | BV49: 0 | BW49: 0 | BX49: 0 | BY49: 0 | BZ49: 0 | CA49: 0 | CB49: 0 | CC49: 575.403 | CD49: 0 | CE49: 0 | CF49: 0 | CG49: 0 | CH49: 0 | CI49: 0 | CJ49: 0 | CK49: 0 | CL49: 0 | CM49: 0 | CN49: 0 | CO49: 0 | CP49: 0 | CQ49: 0 | CR49: 0 | CS49: 0 | CT49: 0 | CU49: 0 | CV49: 0 | CW49: 0 | CX49: 0 | CY49: 0 | CZ49: 0 | DA49: 0 | DB49: 0 | DC49: 0 | DD49: 0 | DE49: 0 | DF49: 0 | DG49: 0 | DH49: 0 | DI49: 0 | DJ49: 0 | DK49: 0 | DL49: 0 | DM49: 0 | DN49: 0 | DO49: 0 | DP49: 0 | DQ49: 0 | DR49: 0 | DS49: 0 | DT49: 0 | DU49: 0 | DV49: 0 | DW49: 6035.046 | DX49: 0 | DY49: 0 | DZ49: 0 | EA49: 0 | EB49: 0 | EC49: 0 | ED49: 0 | EE49: 0 | EF49: 0 | EG49: 0 | EH49: 0 | EI49: 0 | EJ49: 0
A50: ED_ASS521_00047 | C50: ˂ = 11 kV ; Residential ; Complex Type | E50: DNSP NAME | F50: REPEX | G50: SERVICE LINES | H50: ˂ = 11 kV ; Residential ; Complex Type | I50: DESCRIPTOR METRIC | J50: MEAN ECONOMIC LIFE | K50: YEARS | L50: NUMBER | N50: 0 | Y50: 0 | AJ50: 0 | AK50: 0 | AL50: 0 | AM50: 0 | AN50: 0 | AO50: 0 | AP50: 0 | AQ50: 0 | AR50: 0 | AS50: 0 | AT50: 0 | AU50: 0 | AV50: 0 | AW50: 0 | AX50: 0 | AY50: 0 | AZ50: 0 | BA50: 0 | BB50: 0 | BC50: 0 | BD50: 0 | BE50: 0 | BF50: 0 | BG50: 0 | BH50: 0 | BI50: 0 | BJ50: 0 | BK50: 0 | BL50: 0 | BM50: 0 | BN50: 0 | BO50: 0 | BP50: 0 | BQ50: 0 | BR50: 0 | BS50: 0 | BT50: 0 | BU50: 0 | BV50: 0 | BW50: 0 | BX50: 0 | BY50: 0 | BZ50: 0 | CA50: 0 | CB50: 0 | CC50: 0 | CD50: 0 | CE50: 0 | CF50: 0 | CG50: 0 | CH50: 0 | CI50: 0 | CJ50: 0 | CK50: 0 | CL50: 0 | CM50: 0 | CN50: 0 | CO50: 0 | CP50: 0 | CQ50: 0 | CR50: 0 | CS50: 0 | CT50: 0 | CU50: 0 | CV50: 0 | CW50: 0 | CX50: 0 | CY50: 0 | CZ50: 0 | DA50: 0 | DB50: 0 | DC50: 0 | DD50: 0 | DE50: 0 | DF50: 0 | DG50: 0 | DH50: 0 | DI50: 0 | DJ50: 0 | DK50: 0 | DL50: 0 | DM50: 0 | DN50: 0 | DO50: 0 | DP50: 0 | DQ50: 0 | DR50: 0 | DS50: 0 | DT50: 0 | DU50: 0 | DV50: 0 | DW50: 0 | DX50: 0 | DY50: 0 | DZ50: 0 | EA50: 0 | EB50: 0 | EC50: 0 | ED50: 0 | EE50: 0 | EF50: 0 | EG50: 0 | EH50: 0 | EI50: 0 | EJ50: 0
A51: ED_ASS521_00048 | C51: ˂ = 11 kV ; Commercial & Industrial ; Complex Type | N51: 0 | Y51: 0 | AJ51: 0 | AK51: 0 | AL51: 0 | AM51: 0 | AN51: 0 | AO51: 0 | AP51: 0 | AQ51: 0 | AR51: 0 | AS51: 0 | AT51: 0 | AU51: 0 | AV51: 0 | AW51: 0 | AX51: 0 | AY51: 0 | AZ51: 0 | BA51: 0 | BB51: 0 | BC51: 0 | BD51: 0 | BE51: 0 | BF51: 0 | BG51: 0 | BH51: 0 | BI51: 0 | BJ51: 0 | BK51: 0 | BL51: 0 | BM51: 0 | BN51: 0 | BO51: 0 | BP51: 0 | BQ51: 0 | BR51: 0 | BS51: 0 | BT51: 0 | BU51: 0 | BV51: 0 | BW51: 0 | BX51: 0 | BY51: 0 | BZ51: 0 | CA51: 0 | CB51: 0 | CC51: 0 | CD51: 0 | CE51: 0 | CF51: 0 | CG51: 0 | CH51: 0 | CI51: 0 | CJ51: 0 | CK51: 0 | CL51: 0 | CM51: 0 | CN51: 0 | CO51: 0 | CP51: 0 | CQ51: 0 | CR51: 0 | CS51: 0 | CT51: 0 | CU51: 0 | CV51: 0 | CW51: 0 | CX51: 0 | CY51: 0 | CZ51: 0 | DA51: 0 | DB51: 0 | DC51: 0 | DD51: 0 | DE51: 0 | DF51: 0 | DG51: 0 | DH51: 0 | DI51: 0 | DJ51: 0 | DK51: 0 | DL51: 0 | DM51: 0 | DN51: 0 | DO51: 0 | DP51: 0 | DQ51: 0 | DR51: 0 | DS51: 0 | DT51: 0 | DU51: 0 | DV51: 0 | DW51: 0 | DX51: 0 | DY51: 0 | DZ51: 0 | EA51: 0 | EB51: 0 | EC51: 0 | ED51: 0 | EE51: 0 | EF51: 0 | EG51: 0 | EH51: 0 | EI51: 0 | EJ51: 0
A52: ED_ASS521_00049 | C52: ˂ = 11 kV ; Subdivision ; Complex Type | N52: 0 | Y52: 0 | AJ52: 0 | AK52: 0 | AL52: 0 | AM52: 0 | AN52: 0 | AO52: 0 | AP52: 0 | AQ52: 0 | AR52: 0 | AS52: 0 | AT52: 0 | AU52: 0 | AV52: 0 | AW52: 0 | AX52: 0 | AY52: 0 | AZ52: 0 | BA52: 0 | BB52: 0 | BC52: 0 | BD52: 0 | BE52: 0 | BF52: 0 | BG52: 0 | BH52: 0 | BI52: 0 | BJ52: 0 | BK52: 0 | BL52: 0 | BM52: 0 | BN52: 0 | BO52: 0 | BP52: 0 | BQ52: 0 | BR52: 0 | BS52: 0 | BT52: 0 | BU52: 0 | BV52: 0 | BW52: 0 | BX52: 0 | BY52: 0 | BZ52: 0 | CA52: 0 | CB52: 0 | CC52: 0 | CD52: 0 | CE52: 0 | CF52: 0 | CG52: 0 | CH52: 0 | CI52: 0 | CJ52: 0 | CK52: 0 | CL52: 0 | CM52: 0 | CN52: 0 | CO52: 0 | CP52: 0 | CQ52: 0 | CR52: 0 | CS52: 0 | CT52: 0 | CU52: 0 | CV52: 0 | CW52: 0 | CX52: 0 | CY52: 0 | CZ52: 0 | DA52: 0 | DB52: 0 | DC52: 0 | DD52: 0 | DE52: 0 | DF52: 0 | DG52: 0 | DH52: 0 | DI52: 0 | DJ52: 0 | DK52: 0 | DL52: 0 | DM52: 0 | DN52: 0 | DO52: 0 | DP52: 0 | DQ52: 0 | DR52: 0 | DS52: 0 | DT52: 0 | DU52: 0 | DV52: 0 | DW52: 0 | DX52: 0 | DY52: 0 | DZ52: 0 | EA52: 0 | EB52: 0 | EC52: 0 | ED52: 0 | EE52: 0 | EF52: 0 | EG52: 0 | EH52: 0 | EI52: 0 | EJ52: 0
A53: ED_ASS521_00050 | C53: > 11 kV & < = 22 kV ; Commercial & Industrial | N53: 0 | Y53: 0 | AJ53: 0 | AK53: 0 | AL53: 0 | AM53: 0 | AN53: 0 | AO53: 0 | AP53: 0 | AQ53: 0 | AR53: 0 | AS53: 0 | AT53: 0 | AU53: 0 | AV53: 0 | AW53: 0 | AX53: 0 | AY53: 0 | AZ53: 0 | BA53: 0 | BB53: 0 | BC53: 0 | BD53: 0 | BE53: 0 | BF53: 0 | BG53: 0 | BH53: 0 | BI53: 0 | BJ53: 0 | BK53: 0 | BL53: 0 | BM53: 0 | BN53: 0 | BO53: 0 | BP53: 0 | BQ53: 0 | BR53: 0 | BS53: 0 | BT53: 0 | BU53: 0 | BV53: 0 | BW53: 0 | BX53: 0 | BY53: 0 | BZ53: 0 | CA53: 0 | CB53: 0 | CC53: 0 | CD53: 0 | CE53: 0 | CF53: 0 | CG53: 0 | CH53: 0 | CI53: 0 | CJ53: 0 | CK53: 0 | CL53: 0 | CM53: 0 | CN53: 0 | CO53: 0 | CP53: 0 | CQ53: 0 | CR53: 0 | CS53: 0 | CT53: 0 | CU53: 0 | CV53: 0 | CW53: 0 | CX53: 0 | CY53: 0 | CZ53: 0 | DA53: 0 | DB53: 0 | DC53: 0 | DD53: 0 | DE53: 0 | DF53: 0 | DG53: 0 | DH53: 0 | DI53: 0 | DJ53: 0 | DK53: 0 | DL53: 0 | DM53: 0 | DN53: 0 | DO53: 0 | DP53: 0 | DQ53: 0 | DR53: 0 | DS53: 0 | DT53: 0 | DU53: 0 | DV53: 0 | DW53: 0 | DX53: 0 | DY53: 0 | DZ53: 0 | EA53: 0 | EB53: 0 | EC53: 0 | ED53: 0 | EE53: 0 | EF53: 0 | EG53: 0 | EH53: 0 | EI53: 0 | EJ53: 0
A54: ED_ASS521_00051 | C54: > 11 kV & < = 22 kV ; Subdivision | N54: 0 | Y54: 0 | AJ54: 0 | AK54: 0 | AL54: 0 | AM54: 0 | AN54: 0 | AO54: 0 | AP54: 0 | AQ54: 0 | AR54: 0 | AS54: 0 | AT54: 0 | AU54: 0 | AV54: 0 | AW54: 0 | AX54: 0 | AY54: 0 | AZ54: 0 | BA54: 0 | BB54: 0 | BC54: 0 | BD54: 0 | BE54: 0 | BF54: 0 | BG54: 0 | BH54: 0 | BI54: 0 | BJ54: 0 | BK54: 0 | BL54: 0 | BM54: 0 | BN54: 0 | BO54: 0 | BP54: 0 | BQ54: 0 | BR54: 0 | BS54: 0 | BT54: 0 | BU54: 0 | BV54: 0 | BW54: 0 | BX54: 0 | BY54: 0 | BZ54: 0 | CA54: 0 | CB54: 0 | CC54: 0 | CD54: 0 | CE54: 0 | CF54: 0 | CG54: 0 | CH54: 0 | CI54: 0 | CJ54: 0 | CK54: 0 | CL54: 0 | CM54: 0 | CN54: 0 | CO54: 0 | CP54: 0 | CQ54: 0 | CR54: 0 | CS54: 0 | CT54: 0 | CU54: 0 | CV54: 0 | CW54: 0 | CX54: 0 | CY54: 0 | CZ54: 0 | DA54: 0 | DB54: 0 | DC54: 0 | DD54: 0 | DE54: 0 | DF54: 0 | DG54: 0 | DH54: 0 | DI54: 0 | DJ54: 0 | DK54: 0 | DL54: 0 | DM54: 0 | DN54: 0 | DO54: 0 | DP54: 0 | DQ54: 0 | DR54: 0 | DS54: 0 | DT54: 0 | DU54: 0 | DV54: 0 | DW54: 0 | DX54: 0 | DY54: 0 | DZ54: 0 | EA54: 0 | EB54: 0 | EC54: 0 | ED54: 0 | EE54: 0 | EF54: 0 | EG54: 0 | EH54: 0 | EI54: 0 | EJ54: 0
A55: ED_ASS521_00052 | C55: > 22 kV & < = 33 kV ; Commercial & Industrial | N55: 0 | Y55: 0 | AJ55: 0 | AK55: 0 | AL55: 0 | AM55: 0 | AN55: 0 | AO55: 0 | AP55: 0 | AQ55: 0 | AR55: 0 | AS55: 0 | AT55: 0 | AU55: 0 | AV55: 0 | AW55: 0 | AX55: 0 | AY55: 0 | AZ55: 0 | BA55: 0 | BB55: 0 | BC55: 0 | BD55: 0 | BE55: 0 | BF55: 0 | BG55: 0 | BH55: 0 | BI55: 0 | BJ55: 0 | BK55: 0 | BL55: 0 | BM55: 0 | BN55: 0 | BO55: 0 | BP55: 0 | BQ55: 0 | BR55: 0 | BS55: 0 | BT55: 0 | BU55: 0 | BV55: 0 | BW55: 0 | BX55: 0 | BY55: 0 | BZ55: 0 | CA55: 0 | CB55: 0 | CC55: 0 | CD55: 0 | CE55: 0 | CF55: 0 | CG55: 0 | CH55: 0 | CI55: 0 | CJ55: 0 | CK55: 0 | CL55: 0 | CM55: 0 | CN55: 0 | CO55: 0 | CP55: 0 | CQ55: 0 | CR55: 0 | CS55: 0 | CT55: 0 | CU55: 0 | CV55: 0 | CW55: 0 | CX55: 0 | CY55: 0 | CZ55: 0 | DA55: 0 | DB55: 0 | DC55: 0 | DD55: 0 | DE55: 0 | DF55: 0 | DG55: 0 | DH55: 0 | DI55: 0 | DJ55: 0 | DK55: 0 | DL55: 0 | DM55: 0 | DN55: 0 | DO55: 0 | DP55: 0 | DQ55: 0 | DR55: 0 | DS55: 0 | DT55: 0 | DU55: 0 | DV55: 0 | DW55: 0 | DX55: 0 | DY55: 0 | DZ55: 0 | EA55: 0 | EB55: 0 | EC55: 0 | ED55: 0 | EE55: 0 | EF55: 0 | EG55: 0 | EH55: 0 | EI55: 0 | EJ55: 0
A56: ED_ASS521_00053 | C56: > 22 kV & < = 33 kV ; Subdivision | N56: 0 | Y56: 0 | AJ56: 0 | AK56: 0 | AL56: 0 | AM56: 0 | AN56: 0 | AO56: 0 | AP56: 0 | AQ56: 0 | AR56: 0 | AS56: 0 | AT56: 0 | AU56: 0 | AV56: 0 | AW56: 0 | AX56: 0 | AY56: 0 | AZ56: 0 | BA56: 0 | BB56: 0 | BC56: 0 | BD56: 0 | BE56: 0 | BF56: 0 | BG56: 0 | BH56: 0 | BI56: 0 | BJ56: 0 | BK56: 0 | BL56: 0 | BM56: 0 | BN56: 0 | BO56: 0 | BP56: 0 | BQ56: 0 | BR56: 0 | BS56: 0 | BT56: 0 | BU56: 0 | BV56: 0 | BW56: 0 | BX56: 0 | BY56: 0 | BZ56: 0 | CA56: 0 | CB56: 0 | CC56: 0 | CD56: 0 | CE56: 0 | CF56: 0 | CG56: 0 | CH56: 0 | CI56: 0 | CJ56: 0 | CK56: 0 | CL56: 0 | CM56: 0 | CN56: 0 | CO56: 0 | CP56: 0 | CQ56: 0 | CR56: 0 | CS56: 0 | CT56: 0 | CU56: 0 | CV56: 0 | CW56: 0 | CX56: 0 | CY56: 0 | CZ56: 0 | DA56: 0 | DB56: 0 | DC56: 0 | DD56: 0 | DE56: 0 | DF56: 0 | DG56: 0 | DH56: 0 | DI56: 0 | DJ56: 0 | DK56: 0 | DL56: 0 | DM56: 0 | DN56: 0 | DO56: 0 | DP56: 0 | DQ56: 0 | DR56: 0 | DS56: 0 | DT56: 0 | DU56: 0 | DV56: 0 | DW56: 0 | DX56: 0 | DY56: 0 | DZ56: 0 | EA56: 0 | EB56: 0 | EC56: 0 | ED56: 0 | EE56: 0 | EF56: 0 | EG56: 0 | EH56: 0 | EI56: 0 | EJ56: 0
A57: ED_ASS521_00054 | C57: > 33 kV & < = 66 kV ; Commercial & Industrial | N57: 0 | Y57: 0 | AJ57: 0 | AK57: 0 | AL57: 0 | AM57: 0 | AN57: 0 | AO57: 0 | AP57: 0 | AQ57: 0 | AR57: 0 | AS57: 0 | AT57: 0 | AU57: 0 | AV57: 0 | AW57: 0 | AX57: 0 | AY57: 0 | AZ57: 0 | BA57: 0 | BB57: 0 | BC57: 0 | BD57: 0 | BE57: 0 | BF57: 0 | BG57: 0 | BH57: 0 | BI57: 0 | BJ57: 0 | BK57: 0 | BL57: 0 | BM57: 0 | BN57: 0 | BO57: 0 | BP57: 0 | BQ57: 0 | BR57: 0 | BS57: 0 | BT57: 0 | BU57: 0 | BV57: 0 | BW57: 0 | BX57: 0 | BY57: 0 | BZ57: 0 | CA57: 0 | CB57: 0 | CC57: 0 | CD57: 0 | CE57: 0 | CF57: 0 | CG57: 0 | CH57: 0 | CI57: 0 | CJ57: 0 | CK57: 0 | CL57: 0 | CM57: 0 | CN57: 0 | CO57: 0 | CP57: 0 | CQ57: 0 | CR57: 0 | CS57: 0 | CT57: 0 | CU57: 0 | CV57: 0 | CW57: 0 | CX57: 0 | CY57: 0 | CZ57: 0 | DA57: 0 | DB57: 0 | DC57: 0 | DD57: 0 | DE57: 0 | DF57: 0 | DG57: 0 | DH57: 0 | DI57: 0 | DJ57: 0 | DK57: 0 | DL57: 0 | DM57: 0 | DN57: 0 | DO57: 0 | DP57: 0 | DQ57: 0 | DR57: 0 | DS57: 0 | DT57: 0 | DU57: 0 | DV57: 0 | DW57: 0 | DX57: 0 | DY57: 0 | DZ57: 0 | EA57: 0 | EB57: 0 | EC57: 0 | ED57: 0 | EE57: 0 | EF57: 0 | EG57: 0 | EH57: 0 | EI57: 0 | EJ57: 0
A58: ED_ASS521_00055 | C58: > 33 kV & < = 66 kV ; Subdivision | N58: 0 | Y58: 0 | AJ58: 0 | AK58: 0 | AL58: 0 | AM58: 0 | AN58: 0 | AO58: 0 | AP58: 0 | AQ58: 0 | AR58: 0 | AS58: 0 | AT58: 0 | AU58: 0 | AV58: 0 | AW58: 0 | AX58: 0 | AY58: 0 | AZ58: 0 | BA58: 0 | BB58: 0 | BC58: 0 | BD58: 0 | BE58: 0 | BF58: 0 | BG58: 0 | BH58: 0 | BI58: 0 | BJ58: 0 | BK58: 0 | BL58: 0 | BM58: 0 | BN58: 0 | BO58: 0 | BP58: 0 | BQ58: 0 | BR58: 0 | BS58: 0 | BT58: 0 | BU58: 0 | BV58: 0 | BW58: 0 | BX58: 0 | BY58: 0 | BZ58: 0 | CA58: 0 | CB58: 0 | CC58: 0 | CD58: 0 | CE58: 0 | CF58: 0 | CG58: 0 | CH58: 0 | CI58: 0 | CJ58: 0 | CK58: 0 | CL58: 0 | CM58: 0 | CN58: 0 | CO58: 0 | CP58: 0 | CQ58: 0 | CR58: 0 | CS58: 0 | CT58: 0 | CU58: 0 | CV58: 0 | CW58: 0 | CX58: 0 | CY58: 0 | CZ58: 0 | DA58: 0 | DB58: 0 | DC58: 0 | DD58: 0 | DE58: 0 | DF58: 0 | DG58: 0 | DH58: 0 | DI58: 0 | DJ58: 0 | DK58: 0 | DL58: 0 | DM58: 0 | DN58: 0 | DO58: 0 | DP58: 0 | DQ58: 0 | DR58: 0 | DS58: 0 | DT58: 0 | DU58: 0 | DV58: 0 | DW58: 0 | DX58: 0 | DY58: 0 | DZ58: 0 | EA58: 0 | EB58: 0 | EC58: 0 | ED58: 0 | EE58: 0 | EF58: 0 | EG58: 0 | EH58: 0 | EI58: 0 | EJ58: 0
A59: ED_ASS521_00056 | C59: > 66 kV & < = 132 kV ; Commercial & Industrial | N59: 0 | Y59: 0 | AJ59: 0 | AK59: 0 | AL59: 0 | AM59: 0 | AN59: 0 | AO59: 0 | AP59: 0 | AQ59: 0 | AR59: 0 | AS59: 0 | AT59: 0 | AU59: 0 | AV59: 0 | AW59: 0 | AX59: 0 | AY59: 0 | AZ59: 0 | BA59: 0 | BB59: 0 | BC59: 0 | BD59: 0 | BE59: 0 | BF59: 0 | BG59: 0 | BH59: 0 | BI59: 0 | BJ59: 0 | BK59: 0 | BL59: 0 | BM59: 0 | BN59: 0 | BO59: 0 | BP59: 0 | BQ59: 0 | BR59: 0 | BS59: 0 | BT59: 0 | BU59: 0 | BV59: 0 | BW59: 0 | BX59: 0 | BY59: 0 | BZ59: 0 | CA59: 0 | CB59: 0 | CC59: 0 | CD59: 0 | CE59: 0 | CF59: 0 | CG59: 0 | CH59: 0 | CI59: 0 | CJ59: 0 | CK59: 0 | CL59: 0 | CM59: 0 | CN59: 0 | CO59: 0 | CP59: 0 | CQ59: 0 | CR59: 0 | CS59: 0 | CT59: 0 | CU59: 0 | CV59: 0 | CW59: 0 | CX59: 0 | CY59: 0 | CZ59: 0 | DA59: 0 | DB59: 0 | DC59: 0 | DD59: 0 | DE59: 0 | DF59: 0 | DG59: 0 | DH59: 0 | DI59: 0 | DJ59: 0 | DK59: 0 | DL59: 0 | DM59: 0 | DN59: 0 | DO59: 0 | DP59: 0 | DQ59: 0 | DR59: 0 | DS59: 0 | DT59: 0 | DU59: 0 | DV59: 0 | DW59: 0 | DX59: 0 | DY59: 0 | DZ59: 0 | EA59: 0 | EB59: 0 | EC59: 0 | ED59: 0 | EE59: 0 | EF59: 0 | EG59: 0 | EH59: 0 | EI59: 0 | EJ59: 0
A60: ED_ASS521_00057 | C60: > 66 kV & < = 132 kV ; Subdivision | N60: 0 | Y60: 0 | AJ60: 0 | AK60: 0 | AL60: 0 | AM60: 0 | AN60: 0 | AO60: 0 | AP60: 0 | AQ60: 0 | AR60: 0 | AS60: 0 | AT60: 0 | AU60: 0 | AV60: 0 | AW60: 0 | AX60: 0 | AY60: 0 | AZ60: 0 | BA60: 0 | BB60: 0 | BC60: 0 | BD60: 0 | BE60: 0 | BF60: 0 | BG60: 0 | BH60: 0 | BI60: 0 | BJ60: 0 | BK60: 0 | BL60: 0 | BM60: 0 | BN60: 0 | BO60: 0 | BP60: 0 | BQ60: 0 | BR60: 0 | BS60: 0 | BT60: 0 | BU60: 0 | BV60: 0 | BW60: 0 | BX60: 0 | BY60: 0 | BZ60: 0 | CA60: 0 | CB60: 0 | CC60: 0 | CD60: 0 | CE60: 0 | CF60: 0 | CG60: 0 | CH60: 0 | CI60: 0 | CJ60: 0 | CK60: 0 | CL60: 0 | CM60: 0 | CN60: 0 | CO60: 0 | CP60: 0 | CQ60: 0 | CR60: 0 | CS60: 0 | CT60: 0 | CU60: 0 | CV60: 0 | CW60: 0 | CX60: 0 | CY60: 0 | CZ60: 0 | DA60: 0 | DB60: 0 | DC60: 0 | DD60: 0 | DE60: 0 | DF60: 0 | DG60: 0 | DH60: 0 | DI60: 0 | DJ60: 0 | DK60: 0 | DL60: 0 | DM60: 0 | DN60: 0 | DO60: 0 | DP60: 0 | DQ60: 0 | DR60: 0 | DS60: 0 | DT60: 0 | DU60: 0 | DV60: 0 | DW60: 0 | DX60: 0 | DY60: 0 | DZ60: 0 | EA60: 0 | EB60: 0 | EC60: 0 | ED60: 0 | EE60: 0 | EF60: 0 | EG60: 0 | EH60: 0 | EI60: 0 | EJ60: 0
A61: ED_ASS521_00058 | C61: > 132 kV ; Commercial & Industrial | N61: 0 | Y61: 0 | AJ61: 0 | AK61: 0 | AL61: 0 | AM61: 0 | AN61: 0 | AO61: 0 | AP61: 0 | AQ61: 0 | AR61: 0 | AS61: 0 | AT61: 0 | AU61: 0 | AV61: 0 | AW61: 0 | AX61: 0 | AY61: 0 | AZ61: 0 | BA61: 0 | BB61: 0 | BC61: 0 | BD61: 0 | BE61: 0 | BF61: 0 | BG61: 0 | BH61: 0 | BI61: 0 | BJ61: 0 | BK61: 0 | BL61: 0 | BM61: 0 | BN61: 0 | BO61: 0 | BP61: 0 | BQ61: 0 | BR61: 0 | BS61: 0 | BT61: 0 | BU61: 0 | BV61: 0 | BW61: 0 | BX61: 0 | BY61: 0 | BZ61: 0 | CA61: 0 | CB61: 0 | CC61: 0 | CD61: 0 | CE61: 0 | CF61: 0 | CG61: 0 | CH61: 0 | CI61: 0 | CJ61: 0 | CK61: 0 | CL61: 0 | CM61: 0 | CN61: 0 | CO61: 0 | CP61: 0 | CQ61: 0 | CR61: 0 | CS61: 0 | CT61: 0 | CU61: 0 | CV61: 0 | CW61: 0 | CX61: 0 | CY61: 0 | CZ61: 0 | DA61: 0 | DB61: 0 | DC61: 0 | DD61: 0 | DE61: 0 | DF61: 0 | DG61: 0 | DH61: 0 | DI61: 0 | DJ61: 0 | DK61: 0 | DL61: 0 | DM61: 0 | DN61: 0 | DO61: 0 | DP61: 0 | DQ61: 0 | DR61: 0 | DS61: 0 | DT61: 0 | DU61: 0 | DV61: 0 | DW61: 0 | DX61: 0 | DY61: 0 | DZ61: 0 | EA61: 0 | EB61: 0 | EC61: 0 | ED61: 0 | EE61: 0 | EF61: 0 | EG61: 0 | EH61: 0 | EI61: 0 | EJ61: 0
A62: ED_ASS521_00059 | C62: > 132 kV ; Subdivision | N62: 0 | Y62: 0 | AJ62: 0 | AK62: 0 | AL62: 0 | AM62: 0 | AN62: 0 | AO62: 0 | AP62: 0 | AQ62: 0 | AR62: 0 | AS62: 0 | AT62: 0 | AU62: 0 | AV62: 0 | AW62: 0 | AX62: 0 | AY62: 0 | AZ62: 0 | BA62: 0 | BB62: 0 | BC62: 0 | BD62: 0 | BE62: 0 | BF62: 0 | BG62: 0 | BH62: 0 | BI62: 0 | BJ62: 0 | BK62: 0 | BL62: 0 | BM62: 0 | BN62: 0 | BO62: 0 | BP62: 0 | BQ62: 0 | BR62: 0 | BS62: 0 | BT62: 0 | BU62: 0 | BV62: 0 | BW62: 0 | BX62: 0 | BY62: 0 | BZ62: 0 | CA62: 0 | CB62: 0 | CC62: 0 | CD62: 0 | CE62: 0 | CF62: 0 | CG62: 0 | CH62: 0 | CI62: 0 | CJ62: 0 | CK62: 0 | CL62: 0 | CM62: 0 | CN62: 0 | CO62: 0 | CP62: 0 | CQ62: 0 | CR62: 0 | CS62: 0 | CT62: 0 | CU62: 0 | CV62: 0 | CW62: 0 | CX62: 0 | CY62: 0 | CZ62: 0 | DA62: 0 | DB62: 0 | DC62: 0 | DD62: 0 | DE62: 0 | DF62: 0 | DG62: 0 | DH62: 0 | DI62: 0 | DJ62: 0 | DK62: 0 | DL62: 0 | DM62: 0 | DN62: 0 | DO62: 0 | DP62: 0 | DQ62: 0 | DR62: 0 | DS62: 0 | DT62: 0 | DU62: 0 | DV62: 0 | DW62: 0 | DX62: 0 | DY62: 0 | DZ62: 0 | EA62: 0 | EB62: 0 | EC62: 0 | ED62: 0 | EE62: 0 | EF62: 0 | EG62: 0 | EH62: 0 | EI62: 0 | EJ62: 0
A63: ED_ASS521_00060 | C63: Other | E63: DNSP NAME | F63: REPEX | G63: SERVICE LINES | H63: Other | I63: DESCRIPTOR METRIC | J63: MEAN ECONOMIC LIFE | K63: YEARS | L63: NUMBER | N63: 0 | Y63: 0 | AJ63: 0 | AK63: 0 | AL63: 0 | AM63: 0 | AN63: 0 | AO63: 0 | AP63: 0 | AQ63: 0 | AR63: 0 | AS63: 0 | AT63: 0 | AU63: 0 | AV63: 0 | AW63: 0 | AX63: 0 | AY63: 0 | AZ63: 0 | BA63: 0 | BB63: 0 | BC63: 0 | BD63: 0 | BE63: 0 | BF63: 0 | BG63: 0 | BH63: 0 | BI63: 0 | BJ63: 0 | BK63: 0 | BL63: 0 | BM63: 0 | BN63: 0 | BO63: 0 | BP63: 0 | BQ63: 0 | BR63: 0 | BS63: 0 | BT63: 0 | BU63: 0 | BV63: 0 | BW63: 0 | BX63: 0 | BY63: 0 | BZ63: 0 | CA63: 0 | CB63: 0 | CC63: 0 | CD63: 0 | CE63: 0 | CF63: 0 | CG63: 0 | CH63: 0 | CI63: 0 | CJ63: 0 | CK63: 0 | CL63: 0 | CM63: 0 | CN63: 0 | CO63: 0 | CP63: 0 | CQ63: 0 | CR63: 0 | CS63: 0 | CT63: 0 | CU63: 0 | CV63: 0 | CW63: 0 | CX63: 0 | CY63: 0 | CZ63: 0 | DA63: 0 | DB63: 0 | DC63: 0 | DD63: 0 | DE63: 0 | DF63: 0 | DG63: 0 | DH63: 0 | DI63: 0 | DJ63: 0 | DK63: 0 | DL63: 0 | DM63: 0 | DN63: 0 | DO63: 0 | DP63: 0 | DQ63: 0 | DR63: 0 | DS63: 0 | DT63: 0 | DU63: 0 | DV63: 0 | DW63: 0 | DX63: 0 | DY63: 0 | DZ63: 0 | EA63: 0 | EB63: 0 | EC63: 0 | ED63: 0 | EE63: 0 | EF63: 0 | EG63: 0 | EH63: 0 | EI63: 0 | EJ63: 0
A64: ED_ASS521_00061 | B64: TRANSFORMERS BY: MOUNTING TYPE; HIGHEST OPERATING VOLTAGE ; AMPERE RATING; NUMBER OF PHASES (AT LV) | C64: Pole Mounted ; < = 22kV ; < = 60 kVA ; Single Phase | E64: DNSP NAME | F64: REPEX | G64: TRANSFORMERS | H64: Pole Mounted ; < = 22kV ; < = 60 kVA ; Single Phase | I64: DESCRIPTOR METRIC | J64: MEAN ECONOMIC LIFE | K64: YEARS | L64: NUMBER | N64: 58 | Y64: 7.615773106 | AJ64: 503 | AK64: 370.051 | AL64: 243.505 | AM64: 285.687 | AN64: 498.514 | AO64: 559.87 | AP64: 602.052 | AQ64: 578.085 | AR64: 547.407 | AS64: 528.234 | AT64: 608.763 | AU64: 578.085 | AV64: 682.581 | AW64: 621.226 | AX64: 495.638 | AY64: 573.292 | AZ64: 696.003 | BA64: 677.788 | BB64: 532.068 | BC64: 486.052 | BD64: 507.143 | BE64: 666.284 | BF64: 735.309 | BG64: 821.59 | BH64: 760.235 | BI64: 1030.583 | BJ64: 1270.253 | BK64: 1126.451 | BL64: 1237.658 | BM64: 1231.906 | BN64: 1204.104 | BO64: 1099.608 | BP64: 863.772 | BQ64: 984.566 | BR64: 1377.626 | BS64: 1052.632 | BT64: 1014.285 | BU64: 880.07 | BV64: 814.879 | BW64: 815.838 | BX64: 349.919 | BY64: 308.696 | BZ64: 327.869 | CA64: 366.216 | CB64: 363.34 | CC64: 354.712 | CD64: 344.167 | CE64: 403.605 | CF64: 591.507 | CG64: 423.737 | CH64: 378.679 | CI64: 437.159 | CJ64: 328.828 | CK64: 275.142 | CL64: 202.282 | CM64: 134.215 | CN64: 93.951 | CO64: 88.199 | CP64: 70.942 | CQ64: 26.843 | CR64: 22.05 | CS64: 9.587 | CT64: 9.587 | CU64: 1.917 | CV64: 2.876 | CW64: 28.76 | CX64: 0 | CY64: 3.835 | CZ64: 3.835 | DA64: 0 | DB64: 2.876 | DC64: 0 | DD64: 0 | DE64: 0 | DF64: 0 | DG64: 0 | DH64: 2.876 | DI64: 0.959 | DJ64: 0 | DK64: 1.917 | DL64: 0 | DM64: 0 | DN64: 0 | DO64: 0 | DP64: 0 | DQ64: 0 | DR64: 0.959 | DS64: 0 | DT64: 0 | DU64: 0 | DV64: 0 | DW64: 1989.265 | DX64: 0 | DY64: 0 | DZ64: 0 | EA64: 0 | EB64: 0 | EC64: 0 | ED64: 0 | EE64: 0 | EF64: 0 | EG64: 0 | EH64: 0 | EI64: 0 | EJ64: 0
A65: ED_ASS521_00062 | C65: Pole Mounted ; < = 22kV ; > 60 kVA and < = 600 kVA ; Single Phase | E65: DNSP NAME | F65: REPEX | G65: TRANSFORMERS | H65: Pole Mounted ; < = 22kV ; > 60 kVA and < = 600 kVA ; Single Phase | I65: DESCRIPTOR METRIC | J65: MEAN ECONOMIC LIFE | K65: YEARS | L65: NUMBER | N65: 58 | Y65: 7.615773106 | AJ65: 10.1 | AK65: 5.43 | AL65: 22.626 | AM65: 13.575 | AN65: 8.145 | AO65: 4.525 | AP65: 20.816 | AQ65: 5.43 | AR65: 4.525 | AS65: 3.62 | AT65: 2.715 | AU65: 2.715 | AV65: 4.525 | AW65: 1.81 | AX65: 2.715 | AY65: 3.62 | AZ65: 3.62 | BA65: 0.905 | BB65: 3.62 | BC65: 1.81 | BD65: 0 | BE65: 0 | BF65: 0 | BG65: 0 | BH65: 0 | BI65: 2.715 | BJ65: 0.905 | BK65: 1.81 | BL65: 0.905 | BM65: 0 | BN65: 0.905 | BO65: 0 | BP65: 0.905 | BQ65: 0.905 | BR65: 0.905 | BS65: 1.81 | BT65: 2.715 | BU65: 1.81 | BV65: 0 | BW65: 0.905 | BX65: 0.905 | BY65: 0.905 | BZ65: 0 | CA65: 0 | CB65: 0 | CC65: 0.905 | CD65: 0 | CE65: 0.905 | CF65: 0.905 | CG65: 0 | CH65: 0 | CI65: 0 | CJ65: 0 | CK65: 0 | CL65: 0 | CM65: 0 | CN65: 0 | CO65: 0.905 | CP65: 0 | CQ65: 0 | CR65: 0 | CS65: 0 | CT65: 0 | CU65: 0 | CV65: 0 | CW65: 0 | CX65: 0 | CY65: 0 | CZ65: 0 | DA65: 0 | DB65: 0 | DC65: 0 | DD65: 0 | DE65: 0 | DF65: 0 | DG65: 0 | DH65: 0 | DI65: 0 | DJ65: 0 | DK65: 0 | DL65: 0 | DM65: 0 | DN65: 0 | DO65: 0 | DP65: 0 | DQ65: 0 | DR65: 0 | DS65: 0 | DT65: 0 | DU65: 0 | DV65: 0 | DW65: 4.525 | DX65: 0 | DY65: 0 | DZ65: 0 | EA65: 0 | EB65: 0 | EC65: 0 | ED65: 0 | EE65: 0 | EF65: 0 | EG65: 0 | EH65: 0 | EI65: 0 | EJ65: 0
A66: ED_ASS521_00063 | C66: Pole Mounted ; < = 22kV ; > 600 kVA ; Single Phase | E66: DNSP NAME | F66: REPEX | G66: TRANSFORMERS | H66: Pole Mounted ; < = 22kV ; > 600 kVA ; Single Phase | I66: DESCRIPTOR METRIC | J66: MEAN ECONOMIC LIFE | K66: YEARS | L66: NUMBER | N66: 58 | Y66: 7.615773106 | AJ66: 0 | AK66: 0 | AL66: 0 | AM66: 0 | AN66: 0 | AO66: 0 | AP66: 0 | AQ66: 0 | AR66: 0 | AS66: 0 | AT66: 0 | AU66: 0 | AV66: 0 | AW66: 0 | AX66: 0 | AY66: 0 | AZ66: 0 | BA66: 0 | BB66: 0 | BC66: 0 | BD66: 0 | BE66: 0 | BF66: 0 | BG66: 0 | BH66: 0 | BI66: 0 | BJ66: 0 | BK66: 0 | BL66: 0 | BM66: 0 | BN66: 0 | BO66: 0 | BP66: 0 | BQ66: 0 | BR66: 0 | BS66: 0 | BT66: 0 | BU66: 0 | BV66: 0 | BW66: 0 | BX66: 0 | BY66: 0 | BZ66: 0 | CA66: 0 | CB66: 0 | CC66: 0 | CD66: 0 | CE66: 0 | CF66: 0 | CG66: 0 | CH66: 0 | CI66: 0 | CJ66: 0 | CK66: 0 | CL66: 0 | CM66: 0 | CN66: 0 | CO66: 0 | CP66: 0 | CQ66: 0 | CR66: 0 | CS66: 0 | CT66: 0 | CU66: 0 | CV66: 0 | CW66: 0 | CX66: 0 | CY66: 0 | CZ66: 0 | DA66: 0 | DB66: 0 | DC66: 0 | DD66: 0 | DE66: 0 | DF66: 0 | DG66: 0 | DH66: 0 | DI66: 0 | DJ66: 0 | DK66: 0 | DL66: 0 | DM66: 0 | DN66: 0 | DO66: 0 | DP66: 0 | DQ66: 0 | DR66: 0 | DS66: 0 | DT66: 0 | DU66: 0 | DV66: 0 | DW66: 0 | DX66: 0 | DY66: 0 | DZ66: 0 | EA66: 0 | EB66: 0 | EC66: 0 | ED66: 0 | EE66: 0 | EF66: 0 | EG66: 0 | EH66: 0 | EI66: 0 | EJ66: 0
A67: ED_ASS521_00064 | C67: Pole Mounted ; < = 22kV ; < = 60 kVA ; Multiple Phase | E67: DNSP NAME | F67: REPEX | G67: TRANSFORMERS | H67: Pole Mounted ; < = 22kV ; < = 60 kVA ; Multiple Phase | I67: DESCRIPTOR METRIC | J67: MEAN ECONOMIC LIFE | K67: YEARS | L67: NUMBER | N67: 58 | Y67: 7.615773106 | AJ67: 58.6 | AK67: 8.658 | AL67: 16.353 | AM67: 23.087 | AN67: 56.755 | AO67: 57.717 | AP67: 71.184 | AQ67: 83.69 | AR67: 84.652 | AS67: 75.032 | AT67: 86.576 | AU67: 95.233 | AV67: 76.956 | AW67: 98.119 | AX67: 168.342 | AY67: 236.64 | AZ67: 247.222 | BA67: 243.374 | BB67: 163.532 | BC67: 157.76 | BD67: 180.847 | BE67: 247.222 | BF67: 184.695 | BG67: 172.19 | BH67: 203.934 | BI67: 233.754 | BJ67: 267.423 | BK67: 181.809 | BL67: 144.293 | BM67: 149.103 | BN67: 155.836 | BO67: 146.217 | BP67: 137.559 | BQ67: 139.483 | BR67: 186.619 | BS67: 118.32 | BT67: 117.358 | BU67: 99.081 | BV67: 80.804 | BW67: 77.918 | BX67: 33.668 | BY67: 37.516 | BZ67: 59.641 | CA67: 44.25 | CB67: 40.402 | CC67: 54.831 | CD67: 41.364 | CE67: 57.717 | CF67: 40.402 | CG67: 28.859 | CH67: 25.973 | CI67: 19.239 | CJ67: 22.125 | CK67: 21.163 | CL67: 12.505 | CM67: 4.81 | CN67: 3.848 | CO67: 6.734 | CP67: 0.962 | CQ67: 0 | CR67: 0.962 | CS67: 0 | CT67: 0 | CU67: 0 | CV67: 0 | CW67: 6.734 | CX67: 0 | CY67: 0 | CZ67: 0 | DA67: 0 | DB67: 0 | DC67: 0 | DD67: 0 | DE67: 0 | DF67: 0 | DG67: 0 | DH67: 0 | DI67: 0 | DJ67: 0 | DK67: 0 | DL67: 0 | DM67: 0 | DN67: 0 | DO67: 0 | DP67: 0 | DQ67: 0 | DR67: 0 | DS67: 0 | DT67: 0 | DU67: 0 | DV67: 0.962 | DW67: 91.386 | DX67: 0 | DY67: 0 | DZ67: 0 | EA67: 0 | EB67: 0 | EC67: 0 | ED67: 0 | EE67: 0 | EF67: 0 | EG67: 0 | EH67: 0 | EI67: 0 | EJ67: 0
A68: ED_ASS521_00065 | C68: Pole Mounted ; < = 22kV ; > 60 kVA and < = 600 kVA ; Multiple Phase | E68: DNSP NAME | F68: REPEX | G68: TRANSFORMERS | H68: Pole Mounted ; < = 22kV ; > 60 kVA and < = 600 kVA ; Multiple Phase | I68: DESCRIPTOR METRIC | J68: MEAN ECONOMIC LIFE | K68: YEARS | L68: NUMBER | N68: 58 | Y68: 7.615773106 | AJ68: 139 | AK68: 371 | AL68: 409 | AM68: 387 | AN68: 483 | AO68: 684 | AP68: 533 | AQ68: 433 | AR68: 456 | AS68: 381 | AT68: 369 | AU68: 304 | AV68: 355 | AW68: 281 | AX68: 228 | AY68: 221 | AZ68: 202 | BA68: 181 | BB68: 173 | BC68: 135 | BD68: 139 | BE68: 141 | BF68: 144 | BG68: 153 | BH68: 137 | BI68: 244 | BJ68: 276 | BK68: 244 | BL68: 230 | BM68: 244 | BN68: 237 | BO68: 172 | BP68: 199 | BQ68: 228 | BR68: 299 | BS68: 222 | BT68: 233 | BU68: 232 | BV68: 271 | BW68: 256 | BX68: 104 | BY68: 89 | BZ68: 65 | CA68: 76 | CB68: 72 | CC68: 55 | CD68: 41 | CE68: 43 | CF68: 58 | CG68: 38 | CH68: 36 | CI68: 18 | CJ68: 25 | CK68: 18 | CL68: 17 | CM68: 28 | CN68: 7 | CO68: 11 | CP68: 2 | CQ68: 4 | CR68: 3 | CS68: 3 | CT68: 0 | CU68: 2 | CV68: 0 | CW68: 6 | CX68: 0 | CY68: 0 | CZ68: 1 | DA68: 0 | DB68: 0 | DC68: 1 | DD68: 0 | DE68: 0 | DF68: 0 | DG68: 0 | DH68: 0 | DI68: 0 | DJ68: 0 | DK68: 1 | DL68: 0 | DM68: 0 | DN68: 0 | DO68: 0 | DP68: 0 | DQ68: 0 | DR68: 0 | DS68: 0 | DT68: 0 | DU68: 0 | DV68: 0 | DW68: 0 | DX68: 0 | DY68: 0 | DZ68: 0 | EA68: 0 | EB68: 0 | EC68: 0 | ED68: 0 | EE68: 0 | EF68: 0 | EG68: 0 | EH68: 0 | EI68: 0 | EJ68: 137
A69: ED_ASS521_00066 | C69: Pole Mounted ; < = 22kV ; > 600 kVA ; Multiple Phase | E69: DNSP NAME | F69: REPEX | G69: TRANSFORMERS | H69: Pole Mounted ; < = 22kV ; > 600 kVA ; Multiple Phase | I69: DESCRIPTOR METRIC | J69: MEAN ECONOMIC LIFE | K69: YEARS | L69: NUMBER | N69: 58 | Y69: 7.615773106 | AJ69: 0 | AK69: 0 | AL69: 0 | AM69: 0 | AN69: 0 | AO69: 0 | AP69: 0 | AQ69: 0 | AR69: 0 | AS69: 0 | AT69: 0 | AU69: 0 | AV69: 0 | AW69: 0 | AX69: 0 | AY69: 0 | AZ69: 0 | BA69: 0 | BB69: 0 | BC69: 0 | BD69: 1 | BE69: 1 | BF69: 0 | BG69: 0 | BH69: 0 | BI69: 1 | BJ69: 0 | BK69: 0 | BL69: 0 | BM69: 1 | BN69: 0 | BO69: 1 | BP69: 0 | BQ69: 0 | BR69: 0 | BS69: 0 | BT69: 0 | BU69: 0 | BV69: 2 | BW69: 0 | BX69: 1 | BY69: 0 | BZ69: 0 | CA69: 0 | CB69: 0 | CC69: 0 | CD69: 0 | CE69: 0 | CF69: 0 | CG69: 0 | CH69: 0 | CI69: 0 | CJ69: 0 | CK69: 0 | CL69: 0 | CM69: 0 | CN69: 0 | CO69: 0 | CP69: 0 | CQ69: 0 | CR69: 0 | CS69: 0 | CT69: 0 | CU69: 0 | CV69: 0 | CW69: 1 | CX69: 0 | CY69: 0 | CZ69: 0 | DA69: 0 | DB69: 0 | DC69: 0 | DD69: 0 | DE69: 0 | DF69: 0 | DG69: 0 | DH69: 0 | DI69: 0 | DJ69: 0 | DK69: 0 | DL69: 0 | DM69: 0 | DN69: 0 | DO69: 0 | DP69: 0 | DQ69: 0 | DR69: 0 | DS69: 0 | DT69: 0 | DU69: 0 | DV69: 0 | DW69: 0 | DX69: 0 | DY69: 0 | DZ69: 0 | EA69: 0 | EB69: 0 | EC69: 0 | ED69: 0 | EE69: 0 | EF69: 0 | EG69: 0 | EH69: 0 | EI69: 0 | EJ69: 0
A70: ED_ASS521_00067 | C70: Kiosk Mounted ; < = 22kV ; < = 60 kVA ; Single Phase | N70: 58 | Y70: 7.615773106 | AJ70: 1 | AK70: 0 | AL70: 0 | AM70: 0 | AN70: 0 | AO70: 0 | AP70: 0 | AQ70: 0 | AR70: 0 | AS70: 0 | AT70: 0 | AU70: 0 | AV70: 0 | AW70: 0 | AX70: 0 | AY70: 0 | AZ70: 0 | BA70: 0 | BB70: 0 | BC70: 0 | BD70: 0 | BE70: 0 | BF70: 0 | BG70: 0 | BH70: 0 | BI70: 0 | BJ70: 0 | BK70: 0 | BL70: 0 | BM70: 0 | BN70: 0 | BO70: 0 | BP70: 0 | BQ70: 0 | BR70: 0 | BS70: 0 | BT70: 0 | BU70: 0 | BV70: 0 | BW70: 0 | BX70: 0 | BY70: 0 | BZ70: 0 | CA70: 0 | CB70: 0 | CC70: 0 | CD70: 0 | CE70: 0 | CF70: 0 | CG70: 0 | CH70: 0 | CI70: 0 | CJ70: 0 | CK70: 0 | CL70: 0 | CM70: 0 | CN70: 0 | CO70: 0 | CP70: 0 | CQ70: 0 | CR70: 0 | CS70: 0 | CT70: 0 | CU70: 0 | CV70: 0 | CW70: 0 | CX70: 0 | CY70: 0 | CZ70: 0 | DA70: 0 | DB70: 0 | DC70: 0 | DD70: 0 | DE70: 0 | DF70: 0 | DG70: 0 | DH70: 0 | DI70: 0 | DJ70: 0 | DK70: 0 | DL70: 0 | DM70: 0 | DN70: 0 | DO70: 0 | DP70: 0 | DQ70: 0 | DR70: 0 | DS70: 0 | DT70: 0 | DU70: 0 | DV70: 0 | DW70: 0 | DX70: 0 | DY70: 0 | DZ70: 0 | EA70: 0 | EB70: 0 | EC70: 0 | ED70: 0 | EE70: 0 | EF70: 0 | EG70: 0 | EH70: 0 | EI70: 0 | EJ70: 0
A71: ED_ASS521_00068 | C71: Kiosk Mounted ; < = 22kV ; > 60 kVA and < = 600 kVA ; Single Phase | N71: 0 | Y71: 0 | AJ71: 0 | AK71: 0 | AL71: 0 | AM71: 0 | AN71: 0 | AO71: 0 | AP71: 0 | AQ71: 0 | AR71: 0 | AS71: 0 | AT71: 0 | AU71: 0 | AV71: 0 | AW71: 0 | AX71: 0 | AY71: 0 | AZ71: 0 | BA71: 0 | BB71: 0 | BC71: 0 | BD71: 0 | BE71: 0 | BF71: 0 | BG71: 0 | BH71: 0 | BI71: 0 | BJ71: 0 | BK71: 0 | BL71: 0 | BM71: 0 | BN71: 0 | BO71: 0 | BP71: 0 | BQ71: 0 | BR71: 0 | BS71: 0 | BT71: 0 | BU71: 0 | BV71: 0 | BW71: 0 | BX71: 0 | BY71: 0 | BZ71: 0 | CA71: 0 | CB71: 0 | CC71: 0 | CD71: 0 | CE71: 0 | CF71: 0 | CG71: 0 | CH71: 0 | CI71: 0 | CJ71: 0 | CK71: 0 | CL71: 0 | CM71: 0 | CN71: 0 | CO71: 0 | CP71: 0 | CQ71: 0 | CR71: 0 | CS71: 0 | CT71: 0 | CU71: 0 | CV71: 0 | CW71: 0 | CX71: 0 | CY71: 0 | CZ71: 0 | DA71: 0 | DB71: 0 | DC71: 0 | DD71: 0 | DE71: 0 | DF71: 0 | DG71: 0 | DH71: 0 | DI71: 0 | DJ71: 0 | DK71: 0 | DL71: 0 | DM71: 0 | DN71: 0 | DO71: 0 | DP71: 0 | DQ71: 0 | DR71: 0 | DS71: 0 | DT71: 0 | DU71: 0 | DV71: 0 | DW71: 0 | DX71: 0 | DY71: 0 | DZ71: 0 | EA71: 0 | EB71: 0 | EC71: 0 | ED71: 0 | EE71: 0 | EF71: 0 | EG71: 0 | EH71: 0 | EI71: 0 | EJ71: 0
A72: ED_ASS521_00069 | C72: Kiosk Mounted ; < = 22kV ; > 600 kVA ; Single Phase | N72: 58 | Y72: 7.615773106 | AJ72: 0 | AK72: 0 | AL72: 0 | AM72: 0 | AN72: 0 | AO72: 0 | AP72: 0 | AQ72: 0 | AR72: 0 | AS72: 0 | AT72: 0 | AU72: 0 | AV72: 0 | AW72: 0 | AX72: 0 | AY72: 0 | AZ72: 0 | BA72: 0 | BB72: 0 | BC72: 0 | BD72: 0 | BE72: 0 | BF72: 0 | BG72: 0 | BH72: 0 | BI72: 0 | BJ72: 0 | BK72: 0 | BL72: 0 | BM72: 0 | BN72: 0 | BO72: 0 | BP72: 0 | BQ72: 0 | BR72: 0 | BS72: 0 | BT72: 0 | BU72: 0 | BV72: 0 | BW72: 0 | BX72: 0 | BY72: 0 | BZ72: 0 | CA72: 0 | CB72: 0 | CC72: 0 | CD72: 0 | CE72: 0 | CF72: 0 | CG72: 0 | CH72: 0 | CI72: 0 | CJ72: 0 | CK72: 0 | CL72: 0 | CM72: 0 | CN72: 0 | CO72: 0 | CP72: 0 | CQ72: 0 | CR72: 0 | CS72: 0 | CT72: 0 | CU72: 0 | CV72: 0 | CW72: 0 | CX72: 0 | CY72: 0 | CZ72: 0 | DA72: 0 | DB72: 0 | DC72: 0 | DD72: 0 | DE72: 0 | DF72: 0 | DG72: 0 | DH72: 0 | DI72: 0 | DJ72: 0 | DK72: 0 | DL72: 0 | DM72: 0 | DN72: 0 | DO72: 0 | DP72: 0 | DQ72: 0 | DR72: 0 | DS72: 0 | DT72: 0 | DU72: 0 | DV72: 0 | DW72: 0 | DX72: 0 | DY72: 0 | DZ72: 0 | EA72: 0 | EB72: 0 | EC72: 0 | ED72: 0 | EE72: 0 | EF72: 0 | EG72: 0 | EH72: 0 | EI72: 0 | EJ72: 0
A73: ED_ASS521_00070 | C73: Kiosk Mounted ; < = 22kV ; < = 60 kVA ; Multiple Phase | N73: 58 | Y73: 7.615773106 | AJ73: 0 | AK73: 4 | AL73: 1 | AM73: 0 | AN73: 1 | AO73: 6 | AP73: 1 | AQ73: 2 | AR73: 1 | AS73: 6 | AT73: 3 | AU73: 2 | AV73: 3 | AW73: 2 | AX73: 4 | AY73: 7 | AZ73: 7 | BA73: 10 | BB73: 4 | BC73: 1 | BD73: 2 | BE73: 3 | BF73: 1 | BG73: 0 | BH73: 0 | BI73: 0 | BJ73: 0 | BK73: 0 | BL73: 0 | BM73: 0 | BN73: 0 | BO73: 0 | BP73: 0 | BQ73: 0 | BR73: 0 | BS73: 0 | BT73: 0 | BU73: 0 | BV73: 0 | BW73: 0 | BX73: 0 | BY73: 0 | BZ73: 0 | CA73: 0 | CB73: 0 | CC73: 0 | CD73: 0 | CE73: 0 | CF73: 0 | CG73: 0 | CH73: 0 | CI73: 0 | CJ73: 0 | CK73: 0 | CL73: 0 | CM73: 0 | CN73: 0 | CO73: 0 | CP73: 0 | CQ73: 0 | CR73: 0 | CS73: 0 | CT73: 0 | CU73: 0 | CV73: 0 | CW73: 0 | CX73: 0 | CY73: 0 | CZ73: 0 | DA73: 0 | DB73: 0 | DC73: 0 | DD73: 0 | DE73: 0 | DF73: 0 | DG73: 0 | DH73: 0 | DI73: 0 | DJ73: 0 | DK73: 0 | DL73: 0 | DM73: 0 | DN73: 0 | DO73: 0 | DP73: 0 | DQ73: 0 | DR73: 0 | DS73: 0 | DT73: 0 | DU73: 0 | DV73: 0 | DW73: 0 | DX73: 0 | DY73: 0 | DZ73: 0 | EA73: 0 | EB73: 0 | EC73: 0 | ED73: 0 | EE73: 0 | EF73: 0 | EG73: 0 | EH73: 0 | EI73: 0 | EJ73: 1
A74: ED_ASS521_00071 | C74: Kiosk Mounted ; < = 22kV ; > 60 kVA and < = 600 kVA ; Multiple Phase | N74: 58 | Y74: 7.615773106 | AJ74: 30 | AK74: 131 | AL74: 114 | AM74: 157 | AN74: 180 | AO74: 188 | AP74: 224 | AQ74: 183 | AR74: 108 | AS74: 116 | AT74: 108 | AU74: 70 | AV74: 76 | AW74: 41 | AX74: 69 | AY74: 89 | AZ74: 58 | BA74: 37 | BB74: 27 | BC74: 23 | BD74: 31 | BE74: 47 | BF74: 25 | BG74: 36 | BH74: 45 | BI74: 49 | BJ74: 53 | BK74: 55 | BL74: 30 | BM74: 34 | BN74: 32 | BO74: 19 | BP74: 6 | BQ74: 8 | BR74: 10 | BS74: 13 | BT74: 18 | BU74: 18 | BV74: 23 | BW74: 11 | BX74: 0 | BY74: 0 | BZ74: 0 | CA74: 0 | CB74: 0 | CC74: 0 | CD74: 0 | CE74: 0 | CF74: 0 | CG74: 0 | CH74: 0 | CI74: 0 | CJ74: 0 | CK74: 0 | CL74: 0 | CM74: 0 | CN74: 0 | CO74: 0 | CP74: 0 | CQ74: 0 | CR74: 0 | CS74: 0 | CT74: 0 | CU74: 0 | CV74: 0 | CW74: 1 | CX74: 0 | CY74: 0 | CZ74: 0 | DA74: 0 | DB74: 0 | DC74: 0 | DD74: 0 | DE74: 0 | DF74: 0 | DG74: 0 | DH74: 0 | DI74: 0 | DJ74: 0 | DK74: 0 | DL74: 0 | DM74: 0 | DN74: 0 | DO74: 0 | DP74: 0 | DQ74: 0 | DR74: 0 | DS74: 0 | DT74: 0 | DU74: 0 | DV74: 0 | DW74: 0 | DX74: 0 | DY74: 0 | DZ74: 0 | EA74: 0 | EB74: 0 | EC74: 0 | ED74: 0 | EE74: 0 | EF74: 0 | EG74: 0 | EH74: 0 | EI74: 0 | EJ74: 18
A75: ED_ASS521_00072 | C75: Kiosk Mounted ; < = 22kV ; > 600 kVA ; Multiple Phase | N75: 58 | Y75: 7.615773106 | AJ75: 7 | AK75: 23 | AL75: 21 | AM75: 21 | AN75: 16 | AO75: 18 | AP75: 13 | AQ75: 17 | AR75: 13 | AS75: 12 | AT75: 10 | AU75: 10 | AV75: 7 | AW75: 7 | AX75: 8 | AY75: 10 | AZ75: 3 | BA75: 1 | BB75: 1 | BC75: 1 | BD75: 1 | BE75: 0 | BF75: 3 | BG75: 0 | BH75: 2 | BI75: 0 | BJ75: 2 | BK75: 0 | BL75: 1 | BM75: 0 | BN75: 0 | BO75: 0 | BP75: 1 | BQ75: 0 | BR75: 0 | BS75: 0 | BT75: 0 | BU75: 0 | BV75: 0 | BW75: 0 | BX75: 0 | BY75: 0 | BZ75: 0 | CA75: 0 | CB75: 0 | CC75: 0 | CD75: 0 | CE75: 0 | CF75: 0 | CG75: 0 | CH75: 0 | CI75: 0 | CJ75: 0 | CK75: 0 | CL75: 0 | CM75: 0 | CN75: 0 | CO75: 0 | CP75: 0 | CQ75: 0 | CR75: 0 | CS75: 0 | CT75: 0 | CU75: 0 | CV75: 0 | CW75: 0 | CX75: 0 | CY75: 0 | CZ75: 0 | DA75: 0 | DB75: 0 | DC75: 0 | DD75: 0 | DE75: 0 | DF75: 0 | DG75: 0 | DH75: 0 | DI75: 0 | DJ75: 0 | DK75: 0 | DL75: 0 | DM75: 0 | DN75: 0 | DO75: 0 | DP75: 0 | DQ75: 0 | DR75: 0 | DS75: 0 | DT75: 0 | DU75: 0 | DV75: 0 | DW75: 0 | DX75: 0 | DY75: 0 | DZ75: 0 | EA75: 0 | EB75: 0 | EC75: 0 | ED75: 0 | EE75: 0 | EF75: 0 | EG75: 0 | EH75: 0 | EI75: 0 | EJ75: 0
A76: ED_ASS521_00073 | C76: Ground Outdoor / Indoor Chamber Mounted; ˂ 22 kV ; < = 60 kVA ; Single Phase | N76: 0 | Y76: 0 | AJ76: 0 | AK76: 0 | AL76: 0 | AM76: 0 | AN76: 0 | AO76: 0 | AP76: 0 | AQ76: 0 | AR76: 0 | AS76: 0 | AT76: 0 | AU76: 0 | AV76: 0 | AW76: 0 | AX76: 0 | AY76: 0 | AZ76: 0 | BA76: 0 | BB76: 0 | BC76: 0 | BD76: 0 | BE76: 0 | BF76: 0 | BG76: 0 | BH76: 0 | BI76: 0 | BJ76: 0 | BK76: 0 | BL76: 0 | BM76: 0 | BN76: 0 | BO76: 0 | BP76: 0 | BQ76: 0 | BR76: 0 | BS76: 0 | BT76: 0 | BU76: 0 | BV76: 0 | BW76: 0 | BX76: 0 | BY76: 0 | BZ76: 0 | CA76: 0 | CB76: 0 | CC76: 0 | CD76: 0 | CE76: 0 | CF76: 0 | CG76: 0 | CH76: 0 | CI76: 0 | CJ76: 0 | CK76: 0 | CL76: 0 | CM76: 0 | CN76: 0 | CO76: 0 | CP76: 0 | CQ76: 0 | CR76: 0 | CS76: 0 | CT76: 0 | CU76: 0 | CV76: 0 | CW76: 0 | CX76: 0 | CY76: 0 | CZ76: 0 | DA76: 0 | DB76: 0 | DC76: 0 | DD76: 0 | DE76: 0 | DF76: 0 | DG76: 0 | DH76: 0 | DI76: 0 | DJ76: 0 | DK76: 0 | DL76: 0 | DM76: 0 | DN76: 0 | DO76: 0 | DP76: 0 | DQ76: 0 | DR76: 0 | DS76: 0 | DT76: 0 | DU76: 0 | DV76: 0 | DW76: 0 | DX76: 0 | DY76: 0 | DZ76: 0 | EA76: 0 | EB76: 0 | EC76: 0 | ED76: 0 | EE76: 0 | EF76: 0 | EG76: 0 | EH76: 0 | EI76: 0 | EJ76: 0
A77: ED_ASS521_00074 | C77: Ground Outdoor / Indoor Chamber Mounted; ˂ 22 kV ; > 60 kVA and < = 600 kVA ; Single Phase | N77: 0 | Y77: 0 | AJ77: 0 | AK77: 0 | AL77: 0 | AM77: 0 | AN77: 0 | AO77: 0 | AP77: 0 | AQ77: 0 | AR77: 0 | AS77: 0 | AT77: 0 | AU77: 0 | AV77: 0 | AW77: 0 | AX77: 0 | AY77: 0 | AZ77: 0 | BA77: 0 | BB77: 0 | BC77: 0 | BD77: 0 | BE77: 0 | BF77: 0 | BG77: 0 | BH77: 0 | BI77: 0 | BJ77: 0 | BK77: 0 | BL77: 0 | BM77: 0 | BN77: 0 | BO77: 0 | BP77: 0 | BQ77: 0 | BR77: 0 | BS77: 0 | BT77: 0 | BU77: 0 | BV77: 0 | BW77: 0 | BX77: 0 | BY77: 0 | BZ77: 0 | CA77: 0 | CB77: 0 | CC77: 0 | CD77: 0 | CE77: 0 | CF77: 0 | CG77: 0 | CH77: 0 | CI77: 0 | CJ77: 0 | CK77: 0 | CL77: 0 | CM77: 0 | CN77: 0 | CO77: 0 | CP77: 0 | CQ77: 0 | CR77: 0 | CS77: 0 | CT77: 0 | CU77: 0 | CV77: 0 | CW77: 0 | CX77: 0 | CY77: 0 | CZ77: 0 | DA77: 0 | DB77: 0 | DC77: 0 | DD77: 0 | DE77: 0 | DF77: 0 | DG77: 0 | DH77: 0 | DI77: 0 | DJ77: 0 | DK77: 0 | DL77: 0 | DM77: 0 | DN77: 0 | DO77: 0 | DP77: 0 | DQ77: 0 | DR77: 0 | DS77: 0 | DT77: 0 | DU77: 0 | DV77: 0 | DW77: 0 | DX77: 0 | DY77: 0 | DZ77: 0 | EA77: 0 | EB77: 0 | EC77: 0 | ED77: 0 | EE77: 0 | EF77: 0 | EG77: 0 | EH77: 0 | EI77: 0 | EJ77: 0
A78: ED_ASS521_00075 | C78: Ground Outdoor / Indoor Chamber Mounted; ˂ 22 kV ; > 600 kVA ; Single Phase | N78: 0 | Y78: 0 | AJ78: 0 | AK78: 0 | AL78: 0 | AM78: 0 | AN78: 0 | AO78: 0 | AP78: 0 | AQ78: 0 | AR78: 0 | AS78: 0 | AT78: 0 | AU78: 0 | AV78: 0 | AW78: 0 | AX78: 0 | AY78: 0 | AZ78: 0 | BA78: 0 | BB78: 0 | BC78: 0 | BD78: 0 | BE78: 0 | BF78: 0 | BG78: 0 | BH78: 0 | BI78: 0 | BJ78: 0 | BK78: 0 | BL78: 0 | BM78: 0 | BN78: 0 | BO78: 0 | BP78: 0 | BQ78: 0 | BR78: 0 | BS78: 0 | BT78: 0 | BU78: 0 | BV78: 0 | BW78: 0 | BX78: 0 | BY78: 0 | BZ78: 0 | CA78: 0 | CB78: 0 | CC78: 0 | CD78: 0 | CE78: 0 | CF78: 0 | CG78: 0 | CH78: 0 | CI78: 0 | CJ78: 0 | CK78: 0 | CL78: 0 | CM78: 0 | CN78: 0 | CO78: 0 | CP78: 0 | CQ78: 0 | CR78: 0 | CS78: 0 | CT78: 0 | CU78: 0 | CV78: 0 | CW78: 0 | CX78: 0 | CY78: 0 | CZ78: 0 | DA78: 0 | DB78: 0 | DC78: 0 | DD78: 0 | DE78: 0 | DF78: 0 | DG78: 0 | DH78: 0 | DI78: 0 | DJ78: 0 | DK78: 0 | DL78: 0 | DM78: 0 | DN78: 0 | DO78: 0 | DP78: 0 | DQ78: 0 | DR78: 0 | DS78: 0 | DT78: 0 | DU78: 0 | DV78: 0 | DW78: 0 | DX78: 0 | DY78: 0 | DZ78: 0 | EA78: 0 | EB78: 0 | EC78: 0 | ED78: 0 | EE78: 0 | EF78: 0 | EG78: 0 | EH78: 0 | EI78: 0 | EJ78: 0
A79: ED_ASS521_00076 | C79: Ground Outdoor / Indoor Chamber Mounted; ˂ 22 kV ; < = 60 kVA ; Multiple Phase | N79: 50 | Y79: 7.071067812 | AJ79: 0 | AK79: 0 | AL79: 0 | AM79: 0 | AN79: 0 | AO79: 0 | AP79: 0 | AQ79: 0 | AR79: 0 | AS79: 0 | AT79: 0 | AU79: 0 | AV79: 0 | AW79: 0 | AX79: 0 | AY79: 0 | AZ79: 0 | BA79: 0 | BB79: 0 | BC79: 0 | BD79: 0 | BE79: 0 | BF79: 0 | BG79: 0 | BH79: 0 | BI79: 0 | BJ79: 0 | BK79: 0 | BL79: 0 | BM79: 0 | BN79: 0 | BO79: 0 | BP79: 0 | BQ79: 0 | BR79: 0 | BS79: 0 | BT79: 0 | BU79: 0 | BV79: 0 | BW79: 0 | BX79: 0 | BY79: 0 | BZ79: 0 | CA79: 0 | CB79: 0 | CC79: 0 | CD79: 0 | CE79: 0 | CF79: 0 | CG79: 0 | CH79: 0 | CI79: 0 | CJ79: 0 | CK79: 0 | CL79: 0 | CM79: 0 | CN79: 0 | CO79: 0 | CP79: 0 | CQ79: 0 | CR79: 0 | CS79: 0 | CT79: 0 | CU79: 0 | CV79: 0 | CW79: 0 | CX79: 0 | CY79: 0 | CZ79: 0 | DA79: 0 | DB79: 0 | DC79: 0 | DD79: 0 | DE79: 0 | DF79: 0 | DG79: 0 | DH79: 0 | DI79: 0 | DJ79: 0 | DK79: 0 | DL79: 0 | DM79: 0 | DN79: 0 | DO79: 0 | DP79: 0 | DQ79: 0 | DR79: 0 | DS79: 0 | DT79: 0 | DU79: 0 | DV79: 0 | DW79: 0 | DX79: 0 | DY79: 0 | DZ79: 0 | EA79: 0 | EB79: 0 | EC79: 0 | ED79: 0 | EE79: 0 | EF79: 0 | EG79: 0 | EH79: 0 | EI79: 0 | EJ79: 1
A80: ED_ASS521_00077 | C80: Ground Outdoor / Indoor Chamber Mounted; ˂ 22 kV ; > 60 kVA and < = 600 kVA ; Multiple Phase | N80: 0 | Y80: 0 | AJ80: 0 | AK80: 0 | AL80: 0 | AM80: 0 | AN80: 0 | AO80: 0 | AP80: 0 | AQ80: 0 | AR80: 0 | AS80: 0 | AT80: 0 | AU80: 0 | AV80: 0 | AW80: 0 | AX80: 0 | AY80: 0 | AZ80: 0 | BA80: 7 | BB80: 0 | BC80: 0 | BD80: 0 | BE80: 0 | BF80: 0 | BG80: 0 | BH80: 0 | BI80: 0 | BJ80: 0 | BK80: 0 | BL80: 0 | BM80: 0 | BN80: 0 | BO80: 0 | BP80: 0 | BQ80: 0 | BR80: 0 | BS80: 0 | BT80: 0 | BU80: 0 | BV80: 0 | BW80: 0 | BX80: 0 | BY80: 0 | BZ80: 0 | CA80: 0 | CB80: 0 | CC80: 0 | CD80: 0 | CE80: 0 | CF80: 0 | CG80: 0 | CH80: 0 | CI80: 0 | CJ80: 0 | CK80: 0 | CL80: 0 | CM80: 0 | CN80: 0 | CO80: 0 | CP80: 0 | CQ80: 0 | CR80: 0 | CS80: 0 | CT80: 0 | CU80: 0 | CV80: 0 | CW80: 0 | CX80: 0 | CY80: 0 | CZ80: 0 | DA80: 0 | DB80: 0 | DC80: 0 | DD80: 0 | DE80: 0 | DF80: 0 | DG80: 0 | DH80: 0 | DI80: 0 | DJ80: 0 | DK80: 0 | DL80: 0 | DM80: 0 | DN80: 0 | DO80: 0 | DP80: 0 | DQ80: 0 | DR80: 0 | DS80: 0 | DT80: 0 | DU80: 0 | DV80: 0 | DW80: 0 | DX80: 0 | DY80: 0 | DZ80: 0 | EA80: 0 | EB80: 0 | EC80: 0 | ED80: 0 | EE80: 0 | EF80: 0 | EG80: 0 | EH80: 0 | EI80: 0 | EJ80: 0
A81: ED_ASS521_00078 | C81: Ground Outdoor / Indoor Chamber Mounted; ˂ 22 kV ; > 600 kVA ; Multiple Phase | N81: 0 | Y81: 0 | AJ81: 0 | AK81: 0 | AL81: 0 | AM81: 0 | AN81: 0 | AO81: 0 | AP81: 0 | AQ81: 0 | AR81: 0 | AS81: 0 | AT81: 0 | AU81: 0 | AV81: 0 | AW81: 0 | AX81: 0 | AY81: 0 | AZ81: 0 | BA81: 10 | BB81: 0 | BC81: 0 | BD81: 0 | BE81: 2 | BF81: 0 | BG81: 0 | BH81: 0 | BI81: 0 | BJ81: 0 | BK81: 0 | BL81: 0 | BM81: 0 | BN81: 0 | BO81: 0 | BP81: 0 | BQ81: 0 | BR81: 0 | BS81: 0 | BT81: 0 | BU81: 0 | BV81: 0 | BW81: 0 | BX81: 0 | BY81: 0 | BZ81: 0 | CA81: 0 | CB81: 0 | CC81: 0 | CD81: 0 | CE81: 0 | CF81: 0 | CG81: 0 | CH81: 0 | CI81: 0 | CJ81: 0 | CK81: 0 | CL81: 0 | CM81: 0 | CN81: 0 | CO81: 0 | CP81: 0 | CQ81: 0 | CR81: 0 | CS81: 0 | CT81: 0 | CU81: 0 | CV81: 0 | CW81: 0 | CX81: 0 | CY81: 0 | CZ81: 0 | DA81: 0 | DB81: 0 | DC81: 0 | DD81: 0 | DE81: 0 | DF81: 0 | DG81: 0 | DH81: 0 | DI81: 0 | DJ81: 0 | DK81: 0 | DL81: 0 | DM81: 0 | DN81: 0 | DO81: 0 | DP81: 0 | DQ81: 0 | DR81: 0 | DS81: 0 | DT81: 0 | DU81: 0 | DV81: 0 | DW81: 0 | DX81: 0 | DY81: 0 | DZ81: 0 | EA81: 0 | EB81: 0 | EC81: 0 | ED81: 0 | EE81: 0 | EF81: 0 | EG81: 0 | EH81: 0 | EI81: 0 | EJ81: 0
A82: ED_ASS521_00079 | C82: Ground Outdoor / Indoor Chamber Mounted; > = 22 kV & < = 33 kV ; < = 15 MVA | N82: 50 | Y82: 7.071067812 | AJ82: 3 | AK82: 12 | AL82: 15 | AM82: 30 | AN82: 23 | AO82: 15 | AP82: 31 | AQ82: 35 | AR82: 33 | AS82: 50 | AT82: 23 | AU82: 30 | AV82: 22 | AW82: 27 | AX82: 23 | AY82: 21 | AZ82: 27 | BA82: 38 | BB82: 20 | BC82: 23 | BD82: 27 | BE82: 24 | BF82: 37 | BG82: 19 | BH82: 16 | BI82: 35 | BJ82: 36 | BK82: 39 | BL82: 24 | BM82: 29 | BN82: 23 | BO82: 16 | BP82: 18 | BQ82: 20 | BR82: 30 | BS82: 17 | BT82: 21 | BU82: 24 | BV82: 21 | BW82: 20 | BX82: 5 | BY82: 4 | BZ82: 6 | CA82: 6 | CB82: 10 | CC82: 7 | CD82: 2 | CE82: 2 | CF82: 4 | CG82: 3 | CH82: 2 | CI82: 0 | CJ82: 0 | CK82: 1 | CL82: 0 | CM82: 0 | CN82: 0 | CO82: 0 | CP82: 0 | CQ82: 1 | CR82: 0 | CS82: 0 | CT82: 0 | CU82: 0 | CV82: 0 | CW82: 1 | CX82: 0 | CY82: 0 | CZ82: 0 | DA82: 0 | DB82: 0 | DC82: 0 | DD82: 1 | DE82: 0 | DF82: 0 | DG82: 0 | DH82: 0 | DI82: 0 | DJ82: 0 | DK82: 0 | DL82: 0 | DM82: 0 | DN82: 0 | DO82: 0 | DP82: 0 | DQ82: 0 | DR82: 0 | DS82: 0 | DT82: 0 | DU82: 0 | DV82: 0 | DW82: 0 | DX82: 0 | DY82: 0 | DZ82: 0 | EA82: 0 | EB82: 0 | EC82: 0 | ED82: 0 | EE82: 0 | EF82: 0 | EG82: 0 | EH82: 0 | EI82: 0 | EJ82: 15
A83: ED_ASS521_00080 | C83: Ground Outdoor / Indoor Chamber Mounted; > = 22 kV & < = 33 kV ; > 15 MVA and < = 40 MVA | N83: 0 | Y83: 0 | AJ83: 0 | AK83: 0 | AL83: 0 | AM83: 0 | AN83: 0 | AO83: 0 | AP83: 0 | AQ83: 0 | AR83: 0 | AS83: 0 | AT83: 0 | AU83: 0 | AV83: 0 | AW83: 0 | AX83: 0 | AY83: 0 | AZ83: 0 | BA83: 0 | BB83: 0 | BC83: 0 | BD83: 0 | BE83: 0 | BF83: 0 | BG83: 0 | BH83: 0 | BI83: 0 | BJ83: 0 | BK83: 0 | BL83: 0 | BM83: 0 | BN83: 0 | BO83: 0 | BP83: 0 | BQ83: 0 | BR83: 0 | BS83: 0 | BT83: 0 | BU83: 0 | BV83: 0 | BW83: 0 | BX83: 0 | BY83: 0 | BZ83: 0 | CA83: 0 | CB83: 0 | CC83: 0 | CD83: 0 | CE83: 0 | CF83: 0 | CG83: 0 | CH83: 0 | CI83: 0 | CJ83: 0 | CK83: 0 | CL83: 0 | CM83: 0 | CN83: 0 | CO83: 0 | CP83: 0 | CQ83: 0 | CR83: 0 | CS83: 0 | CT83: 0 | CU83: 0 | CV83: 0 | CW83: 0 | CX83: 0 | CY83: 0 | CZ83: 0 | DA83: 0 | DB83: 0 | DC83: 0 | DD83: 0 | DE83: 0 | DF83: 0 | DG83: 0 | DH83: 0 | DI83: 0 | DJ83: 0 | DK83: 0 | DL83: 0 | DM83: 0 | DN83: 0 | DO83: 0 | DP83: 0 | DQ83: 0 | DR83: 0 | DS83: 0 | DT83: 0 | DU83: 0 | DV83: 0 | DW83: 0 | DX83: 0 | DY83: 0 | DZ83: 0 | EA83: 0 | EB83: 0 | EC83: 0 | ED83: 0 | EE83: 0 | EF83: 0 | EG83: 0 | EH83: 0 | EI83: 0 | EJ83: 0
A84: ED_ASS521_00081 | C84: Ground Outdoor / Indoor Chamber Mounted; > = 22 kV & < = 33 kV ; > 40 MVA | N84: 0 | Y84: 0 | AJ84: 0 | AK84: 0 | AL84: 0 | AM84: 0 | AN84: 0 | AO84: 0 | AP84: 0 | AQ84: 0 | AR84: 0 | AS84: 0 | AT84: 0 | AU84: 0 | AV84: 0 | AW84: 0 | AX84: 0 | AY84: 0 | AZ84: 0 | BA84: 0 | BB84: 0 | BC84: 0 | BD84: 0 | BE84: 0 | BF84: 0 | BG84: 0 | BH84: 0 | BI84: 0 | BJ84: 0 | BK84: 0 | BL84: 0 | BM84: 0 | BN84: 0 | BO84: 0 | BP84: 0 | BQ84: 0 | BR84: 0 | BS84: 0 | BT84: 0 | BU84: 0 | BV84: 0 | BW84: 0 | BX84: 0 | BY84: 0 | BZ84: 0 | CA84: 0 | CB84: 0 | CC84: 0 | CD84: 0 | CE84: 0 | CF84: 0 | CG84: 0 | CH84: 0 | CI84: 0 | CJ84: 0 | CK84: 0 | CL84: 0 | CM84: 0 | CN84: 0 | CO84: 0 | CP84: 0 | CQ84: 0 | CR84: 0 | CS84: 0 | CT84: 0 | CU84: 0 | CV84: 0 | CW84: 0 | CX84: 0 | CY84: 0 | CZ84: 0 | DA84: 0 | DB84: 0 | DC84: 0 | DD84: 0 | DE84: 0 | DF84: 0 | DG84: 0 | DH84: 0 | DI84: 0 | DJ84: 0 | DK84: 0 | DL84: 0 | DM84: 0 | DN84: 0 | DO84: 0 | DP84: 0 | DQ84: 0 | DR84: 0 | DS84: 0 | DT84: 0 | DU84: 0 | DV84: 0 | DW84: 0 | DX84: 0 | DY84: 0 | DZ84: 0 | EA84: 0 | EB84: 0 | EC84: 0 | ED84: 0 | EE84: 0 | EF84: 0 | EG84: 0 | EH84: 0 | EI84: 0 | EJ84: 0
A85: ED_ASS521_00082 | C85: Ground Outdoor / Indoor Chamber Mounted; > 33 kV & < = 66 kV ; < = 15 MVA | N85: 50 | Y85: 7.071067812 | AJ85: 0 | AK85: 0 | AL85: 0 | AM85: 0 | AN85: 0 | AO85: 0 | AP85: 0 | AQ85: 0 | AR85: 1 | AS85: 0 | AT85: 0 | AU85: 0 | AV85: 0 | AW85: 0 | AX85: 0 | AY85: 0 | AZ85: 1 | BA85: 1 | BB85: 0 | BC85: 0 | BD85: 0 | BE85: 0 | BF85: 0 | BG85: 0 | BH85: 0 | BI85: 0 | BJ85: 0 | BK85: 0 | BL85: 0 | BM85: 0 | BN85: 0 | BO85: 0 | BP85: 1 | BQ85: 0 | BR85: 0 | BS85: 0 | BT85: 1 | BU85: 1 | BV85: 2 | BW85: 3 | BX85: 2 | BY85: 0 | BZ85: 0 | CA85: 0 | CB85: 0 | CC85: 0 | CD85: 0 | CE85: 3 | CF85: 3 | CG85: 2 | CH85: 3 | CI85: 0 | CJ85: 1 | CK85: 7 | CL85: 0 | CM85: 3 | CN85: 0 | CO85: 0 | CP85: 0 | CQ85: 0 | CR85: 2 | CS85: 0 | CT85: 0 | CU85: 2 | CV85: 0 | CW85: 3 | CX85: 4 | CY85: 0 | CZ85: 1 | DA85: 2 | DB85: 1 | DC85: 0 | DD85: 2 | DE85: 0 | DF85: 0 | DG85: 0 | DH85: 0 | DI85: 0 | DJ85: 0 | DK85: 2 | DL85: 0 | DM85: 0 | DN85: 0 | DO85: 0 | DP85: 0 | DQ85: 0 | DR85: 0 | DS85: 0 | DT85: 0 | DU85: 0 | DV85: 0 | DW85: 0 | DX85: 0 | DY85: 0 | DZ85: 0 | EA85: 0 | EB85: 0 | EC85: 0 | ED85: 0 | EE85: 0 | EF85: 0 | EG85: 0 | EH85: 0 | EI85: 0 | EJ85: 0
A86: ED_ASS521_00083 | C86: Ground Outdoor / Indoor Chamber Mounted; > 33 kV & < = 66 kV ; > 15 MVA and < = 40 MVA | N86: 50 | Y86: 7.071067812 | AJ86: 3 | AK86: 2.7 | AL86: 0 | AM86: 0 | AN86: 1.8 | AO86: 2.7 | AP86: 0 | AQ86: 0.9 | AR86: 0 | AS86: 0 | AT86: 2.7 | AU86: 0 | AV86: 0.9 | AW86: 1.8 | AX86: 1.8 | AY86: 0 | AZ86: 0.9 | BA86: 0 | BB86: 0 | BC86: 0.9 | BD86: 0 | BE86: 0 | BF86: 0 | BG86: 0 | BH86: 0 | BI86: 0 | BJ86: 0.9 | BK86: 0 | BL86: 0 | BM86: 1.8 | BN86: 1.8 | BO86: 1.8 | BP86: 5.4 | BQ86: 1.8 | BR86: 5.4 | BS86: 1.8 | BT86: 0 | BU86: 2.7 | BV86: 1.8 | BW86: 0 | BX86: 0 | BY86: 0 | BZ86: 0 | CA86: 0 | CB86: 0 | CC86: 0 | CD86: 2.7 | CE86: 1.8 | CF86: 0.9 | CG86: 1.8 | CH86: 0 | CI86: 0 | CJ86: 0 | CK86: 1.8 | CL86: 0 | CM86: 0 | CN86: 0 | CO86: 0 | CP86: 0 | CQ86: 0 | CR86: 0 | CS86: 0 | CT86: 0 | CU86: 0 | CV86: 0 | CW86: 0 | CX86: 0.9 | CY86: 0.9 | CZ86: 0 | DA86: 0 | DB86: 0 | DC86: 0 | DD86: 0 | DE86: 0 | DF86: 0 | DG86: 0 | DH86: 0 | DI86: 0 | DJ86: 0 | DK86: 0 | DL86: 0 | DM86: 0 | DN86: 0 | DO86: 0 | DP86: 0 | DQ86: 0 | DR86: 0 | DS86: 0 | DT86: 0 | DU86: 0 | DV86: 0 | DW86: 0.9 | DX86: 0 | DY86: 0 | DZ86: 0 | EA86: 0 | EB86: 0 | EC86: 0 | ED86: 0 | EE86: 0 | EF86: 0 | EG86: 0 | EH86: 0 | EI86: 0 | EJ86: 0
A87: ED_ASS521_00084 | C87: Ground Outdoor / Indoor Chamber Mounted; > 33 kV & < = 66 kV ; > 40 MVA | N87: 50 | Y87: 7.071067812 | AJ87: 1.6 | AK87: 1 | AL87: 3 | AM87: 2 | AN87: 0 | AO87: 3 | AP87: 3 | AQ87: 0 | AR87: 0 | AS87: 3 | AT87: 1 | AU87: 2 | AV87: 0 | AW87: 0 | AX87: 0 | AY87: 0 | AZ87: 0 | BA87: 0 | BB87: 0 | BC87: 0 | BD87: 0 | BE87: 0 | BF87: 0 | BG87: 0 | BH87: 0 | BI87: 0 | BJ87: 0 | BK87: 0 | BL87: 0 | BM87: 0 | BN87: 0 | BO87: 0 | BP87: 0 | BQ87: 0 | BR87: 0 | BS87: 0 | BT87: 0 | BU87: 0 | BV87: 0 | BW87: 0 | BX87: 0 | BY87: 0 | BZ87: 0 | CA87: 0 | CB87: 0 | CC87: 0 | CD87: 0 | CE87: 0 | CF87: 0 | CG87: 0 | CH87: 0 | CI87: 0 | CJ87: 0 | CK87: 0 | CL87: 0 | CM87: 0 | CN87: 0 | CO87: 0 | CP87: 0 | CQ87: 0 | CR87: 0 | CS87: 0 | CT87: 0 | CU87: 0 | CV87: 0 | CW87: 0 | CX87: 1 | CY87: 1 | CZ87: 0 | DA87: 0 | DB87: 0 | DC87: 0 | DD87: 0 | DE87: 0 | DF87: 0 | DG87: 0 | DH87: 0 | DI87: 0 | DJ87: 0 | DK87: 0 | DL87: 0 | DM87: 0 | DN87: 0 | DO87: 0 | DP87: 0 | DQ87: 0 | DR87: 0 | DS87: 0 | DT87: 0 | DU87: 0 | DV87: 0 | DW87: 0 | DX87: 0 | DY87: 0 | DZ87: 0 | EA87: 0 | EB87: 0 | EC87: 0 | ED87: 0 | EE87: 0 | EF87: 0 | EG87: 0 | EH87: 0 | EI87: 0 | EJ87: 0
A88: ED_ASS521_00085 | C88: Ground Outdoor / Indoor Chamber Mounted; > 66 kV & < = 132 kV ; < = 100 MVA | N88: 0 | Y88: 0 | AJ88: 0 | AK88: 0 | AL88: 0 | AM88: 0 | AN88: 0 | AO88: 0 | AP88: 0 | AQ88: 0 | AR88: 0 | AS88: 0 | AT88: 0 | AU88: 0 | AV88: 0 | AW88: 0 | AX88: 0 | AY88: 0 | AZ88: 0 | BA88: 0 | BB88: 0 | BC88: 0 | BD88: 0 | BE88: 0 | BF88: 0 | BG88: 0 | BH88: 0 | BI88: 0 | BJ88: 0 | BK88: 0 | BL88: 0 | BM88: 0 | BN88: 0 | BO88: 0 | BP88: 0 | BQ88: 0 | BR88: 0 | BS88: 0 | BT88: 0 | BU88: 0 | BV88: 0 | BW88: 0 | BX88: 0 | BY88: 0 | BZ88: 0 | CA88: 0 | CB88: 0 | CC88: 0 | CD88: 0 | CE88: 0 | CF88: 0 | CG88: 0 | CH88: 0 | CI88: 0 | CJ88: 0 | CK88: 0 | CL88: 0 | CM88: 0 | CN88: 0 | CO88: 0 | CP88: 0 | CQ88: 0 | CR88: 0 | CS88: 0 | CT88: 0 | CU88: 0 | CV88: 0 | CW88: 0 | CX88: 0 | CY88: 0 | CZ88: 0 | DA88: 0 | DB88: 0 | DC88: 0 | DD88: 0 | DE88: 0 | DF88: 0 | DG88: 0 | DH88: 0 | DI88: 0 | DJ88: 0 | DK88: 0 | DL88: 0 | DM88: 0 | DN88: 0 | DO88: 0 | DP88: 0 | DQ88: 0 | DR88: 0 | DS88: 0 | DT88: 0 | DU88: 0 | DV88: 0 | DW88: 0 | DX88: 0 | DY88: 0 | DZ88: 0 | EA88: 0 | EB88: 0 | EC88: 0 | ED88: 0 | EE88: 0 | EF88: 0 | EG88: 0 | EH88: 0 | EI88: 0 | EJ88: 0
A89: ED_ASS521_00086 | C89: Ground Outdoor / Indoor Chamber Mounted; > 66 kV & < = 132 kV ; > 100 MVA | N89: 0 | Y89: 0 | AJ89: 0 | AK89: 0 | AL89: 0 | AM89: 0 | AN89: 0 | AO89: 0 | AP89: 0 | AQ89: 0 | AR89: 0 | AS89: 0 | AT89: 0 | AU89: 0 | AV89: 0 | AW89: 0 | AX89: 0 | AY89: 0 | AZ89: 0 | BA89: 0 | BB89: 0 | BC89: 0 | BD89: 0 | BE89: 0 | BF89: 0 | BG89: 0 | BH89: 0 | BI89: 0 | BJ89: 0 | BK89: 0 | BL89: 0 | BM89: 0 | BN89: 0 | BO89: 0 | BP89: 0 | BQ89: 0 | BR89: 0 | BS89: 0 | BT89: 0 | BU89: 0 | BV89: 0 | BW89: 0 | BX89: 0 | BY89: 0 | BZ89: 0 | CA89: 0 | CB89: 0 | CC89: 0 | CD89: 0 | CE89: 0 | CF89: 0 | CG89: 0 | CH89: 0 | CI89: 0 | CJ89: 0 | CK89: 0 | CL89: 0 | CM89: 0 | CN89: 0 | CO89: 0 | CP89: 0 | CQ89: 0 | CR89: 0 | CS89: 0 | CT89: 0 | CU89: 0 | CV89: 0 | CW89: 0 | CX89: 0 | CY89: 0 | CZ89: 0 | DA89: 0 | DB89: 0 | DC89: 0 | DD89: 0 | DE89: 0 | DF89: 0 | DG89: 0 | DH89: 0 | DI89: 0 | DJ89: 0 | DK89: 0 | DL89: 0 | DM89: 0 | DN89: 0 | DO89: 0 | DP89: 0 | DQ89: 0 | DR89: 0 | DS89: 0 | DT89: 0 | DU89: 0 | DV89: 0 | DW89: 0 | DX89: 0 | DY89: 0 | DZ89: 0 | EA89: 0 | EB89: 0 | EC89: 0 | ED89: 0 | EE89: 0 | EF89: 0 | EG89: 0 | EH89: 0 | EI89: 0 | EJ89: 0
A90: ED_ASS521_00087 | C90: Ground Outdoor / Indoor Chamber Mounted; > 132 kV ; < = 100 MVA | N90: 0 | Y90: 0 | AJ90: 0 | AK90: 0 | AL90: 0 | AM90: 0 | AN90: 0 | AO90: 0 | AP90: 0 | AQ90: 0 | AR90: 0 | AS90: 0 | AT90: 0 | AU90: 0 | AV90: 0 | AW90: 0 | AX90: 0 | AY90: 0 | AZ90: 0 | BA90: 0 | BB90: 0 | BC90: 0 | BD90: 0 | BE90: 0 | BF90: 0 | BG90: 0 | BH90: 0 | BI90: 0 | BJ90: 0 | BK90: 0 | BL90: 0 | BM90: 0 | BN90: 0 | BO90: 0 | BP90: 0 | BQ90: 0 | BR90: 0 | BS90: 0 | BT90: 0 | BU90: 0 | BV90: 0 | BW90: 0 | BX90: 0 | BY90: 0 | BZ90: 0 | CA90: 0 | CB90: 0 | CC90: 0 | CD90: 0 | CE90: 0 | CF90: 0 | CG90: 0 | CH90: 0 | CI90: 0 | CJ90: 0 | CK90: 0 | CL90: 0 | CM90: 0 | CN90: 0 | CO90: 0 | CP90: 0 | CQ90: 0 | CR90: 0 | CS90: 0 | CT90: 0 | CU90: 0 | CV90: 0 | CW90: 0 | CX90: 0 | CY90: 0 | CZ90: 0 | DA90: 0 | DB90: 0 | DC90: 0 | DD90: 0 | DE90: 0 | DF90: 0 | DG90: 0 | DH90: 0 | DI90: 0 | DJ90: 0 | DK90: 0 | DL90: 0 | DM90: 0 | DN90: 0 | DO90: 0 | DP90: 0 | DQ90: 0 | DR90: 0 | DS90: 0 | DT90: 0 | DU90: 0 | DV90: 0 | DW90: 0 | DX90: 0 | DY90: 0 | DZ90: 0 | EA90: 0 | EB90: 0 | EC90: 0 | ED90: 0 | EE90: 0 | EF90: 0 | EG90: 0 | EH90: 0 | EI90: 0 | EJ90: 0
A91: ED_ASS521_00088 | C91: Ground Outdoor / Indoor Chamber Mounted; > 132 kV ; > 100 MVA | N91: 0 | Y91: 0 | AJ91: 0 | AK91: 0 | AL91: 0 | AM91: 0 | AN91: 0 | AO91: 0 | AP91: 0 | AQ91: 0 | AR91: 0 | AS91: 0 | AT91: 0 | AU91: 0 | AV91: 0 | AW91: 0 | AX91: 0 | AY91: 0 | AZ91: 0 | BA91: 0 | BB91: 0 | BC91: 0 | BD91: 0 | BE91: 0 | BF91: 0 | BG91: 0 | BH91: 0 | BI91: 0 | BJ91: 0 | BK91: 0 | BL91: 0 | BM91: 0 | BN91: 0 | BO91: 0 | BP91: 0 | BQ91: 0 | BR91: 0 | BS91: 0 | BT91: 0 | BU91: 0 | BV91: 0 | BW91: 0 | BX91: 0 | BY91: 0 | BZ91: 0 | CA91: 0 | CB91: 0 | CC91: 0 | CD91: 0 | CE91: 0 | CF91: 0 | CG91: 0 | CH91: 0 | CI91: 0 | CJ91: 0 | CK91: 0 | CL91: 0 | CM91: 0 | CN91: 0 | CO91: 0 | CP91: 0 | CQ91: 0 | CR91: 0 | CS91: 0 | CT91: 0 | CU91: 0 | CV91: 0 | CW91: 0 | CX91: 0 | CY91: 0 | CZ91: 0 | DA91: 0 | DB91: 0 | DC91: 0 | DD91: 0 | DE91: 0 | DF91: 0 | DG91: 0 | DH91: 0 | DI91: 0 | DJ91: 0 | DK91: 0 | DL91: 0 | DM91: 0 | DN91: 0 | DO91: 0 | DP91: 0 | DQ91: 0 | DR91: 0 | DS91: 0 | DT91: 0 | DU91: 0 | DV91: 0 | DW91: 0 | DX91: 0 | DY91: 0 | DZ91: 0 | EA91: 0 | EB91: 0 | EC91: 0 | ED91: 0 | EE91: 0 | EF91: 0 | EG91: 0 | EH91: 0 | EI91: 0 | EJ91: 0
A92: ED_ASS521_00089 | C92: Other | E92: DNSP NAME | F92: REPEX | G92: TRANSFORMERS | H92: =C92 -> Other | I92: DESCRIPTOR METRIC | J92: MEAN ECONOMIC LIFE | K92: YEARS | L92: NUMBER | N92: 0 | Y92: 0 | AJ92: 0 | AK92: 0 | AL92: 0 | AM92: 0 | AN92: 0 | AO92: 0 | AP92: 0 | AQ92: 0 | AR92: 0 | AS92: 0 | AT92: 0 | AU92: 0 | AV92: 0 | AW92: 0 | AX92: 0 | AY92: 0 | AZ92: 0 | BA92: 0 | BB92: 0 | BC92: 0 | BD92: 0 | BE92: 0 | BF92: 0 | BG92: 0 | BH92: 0 | BI92: 0 | BJ92: 0 | BK92: 0 | BL92: 0 | BM92: 0 | BN92: 0 | BO92: 0 | BP92: 0 | BQ92: 0 | BR92: 0 | BS92: 0 | BT92: 0 | BU92: 0 | BV92: 0 | BW92: 0 | BX92: 0 | BY92: 0 | BZ92: 0 | CA92: 0 | CB92: 0 | CC92: 0 | CD92: 0 | CE92: 0 | CF92: 0 | CG92: 0 | CH92: 0 | CI92: 0 | CJ92: 0 | CK92: 0 | CL92: 0 | CM92: 0 | CN92: 0 | CO92: 0 | CP92: 0 | CQ92: 0 | CR92: 0 | CS92: 0 | CT92: 0 | CU92: 0 | CV92: 0 | CW92: 0 | CX92: 0 | CY92: 0 | CZ92: 0 | DA92: 0 | DB92: 0 | DC92: 0 | DD92: 0 | DE92: 0 | DF92: 0 | DG92: 0 | DH92: 0 | DI92: 0 | DJ92: 0 | DK92: 0 | DL92: 0 | DM92: 0 | DN92: 0 | DO92: 0 | DP92: 0 | DQ92: 0 | DR92: 0 | DS92: 0 | DT92: 0 | DU92: 0 | DV92: 0 | DW92: 0 | DX92: 0 | DY92: 0 | DZ92: 0 | EA92: 0 | EB92: 0 | EC92: 0 | ED92: 0 | EE92: 0 | EF92: 0 | EG92: 0 | EH92: 0 | EI92: 0 | EJ92: 0
A93: ED_ASS521_00090 | B93: SWITCHGEAR BY: HIGHEST OPERATING VOLTAGE ; SWITCH FUNCTION | C93: ˂ = 11 kV ; Fuse | E93: DNSP NAME | F93: REPEX | G93: SWITCHGEAR | H93: ˂ = 11 kV ; Fuse | I93: DESCRIPTOR METRIC | J93: MEAN ECONOMIC LIFE | K93: YEARS | L93: NUMBER | N93: 50 | Y93: 7.071067812 | AJ93: 7.7 | AK93: 15.167 | AL93: 7.078 | AM93: 17.189 | AN93: 15.167 | AO93: 6.067 | AP93: 0 | AQ93: 15.167 | AR93: 0 | AS93: 0 | AT93: 2.022 | AU93: 6.067 | AV93: 3.033 | AW93: 3.033 | AX93: 0 | AY93: 0 | AZ93: 3.033 | BA93: 0 | BB93: 0 | BC93: 3.033 | BD93: 9.1 | BE93: 6.067 | BF93: 6.067 | BG93: 6.067 | BH93: 2.022 | BI93: 10.111 | BJ93: 20.223 | BK93: 88.98 | BL93: 9.1 | BM93: 167.848 | BN93: 6.067 | BO93: 29.323 | BP93: 11.122 | BQ93: 9.1 | BR93: 18.2 | BS93: 12.134 | BT93: 3.033 | BU93: 3.033 | BV93: 12.134 | BW93: 12.134 | BX93: 3.033 | BY93: 3.033 | BZ93: 0 | CA93: 9.1 | CB93: 0 | CC93: 0 | CD93: 0 | CE93: 0 | CF93: 0 | CG93: 0 | CH93: 0 | CI93: 0 | CJ93: 0 | CK93: 0 | CL93: 0 | CM93: 0 | CN93: 0 | CO93: 0 | CP93: 0 | CQ93: 0 | CR93: 0 | CS93: 0 | CT93: 0 | CU93: 0 | CV93: 0 | CW93: 0 | CX93: 0 | CY93: 0 | CZ93: 0 | DA93: 0 | DB93: 0 | DC93: 0 | DD93: 0 | DE93: 0 | DF93: 0 | DG93: 0 | DH93: 0 | DI93: 0 | DJ93: 0 | DK93: 0 | DL93: 0 | DM93: 0 | DN93: 0 | DO93: 0 | DP93: 0 | DQ93: 0 | DR93: 0 | DS93: 0 | DT93: 0 | DU93: 0 | DV93: 0 | DW93: 19.211 | DX93: 0 | DY93: 0 | DZ93: 0 | EA93: 0 | EB93: 0 | EC93: 0 | ED93: 0 | EE93: 0 | EF93: 0 | EG93: 0 | EH93: 0 | EI93: 0 | EJ93: 0
A94: ED_ASS521_00091 | C94: ˂ = 11 kV ; Switch | E94: DNSP NAME | F94: REPEX | G94: SWITCHGEAR | H94: ˂ = 11 kV ; Switch | I94: DESCRIPTOR METRIC | J94: MEAN ECONOMIC LIFE | K94: YEARS | L94: NUMBER | N94: 47 | Y94: 6.8556546 | AJ94: 2.1 | AK94: 0 | AL94: 3.926 | AM94: 1.963 | AN94: 0 | AO94: 0.981 | AP94: 0 | AQ94: 0 | AR94: 1.963 | AS94: 11.777 | AT94: 0 | AU94: 0 | AV94: 0.981 | AW94: 0 | AX94: 0 | AY94: 0 | AZ94: 0 | BA94: 0 | BB94: 0 | BC94: 0 | BD94: 0 | BE94: 0 | BF94: 0 | BG94: 0 | BH94: 0 | BI94: 0 | BJ94: 0 | BK94: 0 | BL94: 0 | BM94: 0 | BN94: 0 | BO94: 0 | BP94: 0 | BQ94: 2.944 | BR94: 0 | BS94: 0 | BT94: 0 | BU94: 0 | BV94: 1.963 | BW94: 0 | BX94: 0 | BY94: 0 | BZ94: 0 | CA94: 2.944 | CB94: 2.944 | CC94: 0 | CD94: 0 | CE94: 0 | CF94: 0 | CG94: 10.796 | CH94: 0.981 | CI94: 0 | CJ94: 0 | CK94: 0 | CL94: 1.963 | CM94: 0 | CN94: 0 | CO94: 0 | CP94: 0 | CQ94: 0 | CR94: 0 | CS94: 0 | CT94: 0 | CU94: 0 | CV94: 0 | CW94: 23.554 | CX94: 0 | CY94: 0 | CZ94: 0 | DA94: 0 | DB94: 0 | DC94: 0 | DD94: 0 | DE94: 0 | DF94: 0 | DG94: 0 | DH94: 0 | DI94: 0 | DJ94: 36.312 | DK94: 0 | DL94: 0 | DM94: 0 | DN94: 0 | DO94: 0 | DP94: 0 | DQ94: 0 | DR94: 0 | DS94: 0 | DT94: 0 | DU94: 0 | DV94: 0 | DW94: 4.907 | DX94: 0 | DY94: 0 | DZ94: 0 | EA94: 0 | EB94: 0 | EC94: 0 | ED94: 0 | EE94: 0 | EF94: 0 | EG94: 0 | EH94: 0 | EI94: 0 | EJ94: 0
A95: ED_ASS521_00092 | C95: ˂ = 11 kV ; Circuit Breaker | N95: 45 | Y95: 6.708203932 | AJ95: 1 | AK95: 6 | AL95: 0 | AM95: 2 | AN95: 0 | AO95: 0 | AP95: 0 | AQ95: 0 | AR95: 0 | AS95: 0 | AT95: 0 | AU95: 1 | AV95: 0 | AW95: 0 | AX95: 0 | AY95: 0 | AZ95: 0 | BA95: 0 | BB95: 0 | BC95: 0 | BD95: 0 | BE95: 1 | BF95: 2 | BG95: 0 | BH95: 0 | BI95: 0 | BJ95: 0 | BK95: 1 | BL95: 0 | BM95: 1 | BN95: 0 | BO95: 0 | BP95: 1 | BQ95: 0 | BR95: 0 | BS95: 0 | BT95: 0 | BU95: 0 | BV95: 0 | BW95: 0 | BX95: 10 | BY95: 4 | BZ95: 0 | CA95: 0 | CB95: 4 | CC95: 0 | CD95: 0 | CE95: 0 | CF95: 0 | CG95: 0 | CH95: 0 | CI95: 0 | CJ95: 0 | CK95: 0 | CL95: 0 | CM95: 0 | CN95: 0 | CO95: 0 | CP95: 6 | CQ95: 0 | CR95: 0 | CS95: 0 | CT95: 0 | CU95: 0 | CV95: 0 | CW95: 0 | CX95: 0 | CY95: 0 | CZ95: 0 | DA95: 0 | DB95: 0 | DC95: 0 | DD95: 0 | DE95: 0 | DF95: 0 | DG95: 0 | DH95: 2 | DI95: 0 | DJ95: 0 | DK95: 17 | DL95: 0 | DM95: 0 | DN95: 0 | DO95: 0 | DP95: 0 | DQ95: 0 | DR95: 0 | DS95: 0 | DT95: 0 | DU95: 0 | DV95: 0 | DW95: 0 | DX95: 0 | DY95: 0 | DZ95: 0 | EA95: 0 | EB95: 0 | EC95: 0 | ED95: 0 | EE95: 0 | EF95: 0 | EG95: 0 | EH95: 0 | EI95: 0 | EJ95: 0
A96: ED_ASS521_00093 | C96: > 11 kV & < = 22 kV ; Switch | N96: 47 | Y96: 6.8556546 | AJ96: 1731 | AK96: 2148.415752 | AL96: 5183.988258 | AM96: 3551.68091 | AN96: 1995.720958 | AO96: 2404.943006 | AP96: 1835.391425 | AQ96: 3389.824428 | AR96: 1956.020312 | AS96: 1678.115787 | AT96: 2287.368015 | AU96: 1578.864171 | AV96: 1581.918066 | AW96: 725.3002718 | AX96: 1029.162912 | AY96: 2261.4099 | AZ96: 1711.708641 | BA96: 1791.109934 | BB96: 2403.416058 | BC96: 1508.624565 | BD96: 1936.169989 | BE96: 2637.039093 | BF96: 3840.27407 | BG96: 3963.956854 | BH96: 3718.118235 | BI96: 5550.455764 | BJ96: 6778.121908 | BK96: 25023.62285 | BL96: 3838.747122 | BM96: 20955.83354 | BN96: 2473.655664 | BO96: 2951.590369 | BP96: 1363.564511 | BQ96: 2310.272234 | BR96: 1887.307654 | BS96: 2861.500441 | BT96: 725.3002718 | BU96: 1339.133344 | BV96: 2282.787171 | BW96: 1160.480435 | BX96: 716.1385841 | BY96: 480.9886013 | BZ96: 323.7129634 | CA96: 2592.757603 | CB96: 204.611024 | CC96: 1320.809969 | CD96: 200.0301802 | CE96: 711.5577403 | CF96: 424.4915275 | CG96: 655.0606665 | CH96: 384.790881 | CI96: 374.1022454 | CJ96: 1275.00153 | CK96: 73.29350115 | CL96: 116.0480435 | CM96: 24.43116705 | CN96: 79.40129291 | CO96: 0 | CP96: 4.580843822 | CQ96: 19.85032323 | CR96: 90.08992849 | CS96: 0 | CT96: 0 | CU96: 30.53895881 | CV96: 4.580843822 | CW96: 129.7905749 | CX96: 0 | CY96: 70.23960526 | CZ96: 0 | DA96: 0 | DB96: 0 | DC96: 0 | DD96: 0 | DE96: 0 | DF96: 3.053895881 | DG96: 0 | DH96: 19.85032323 | DI96: 0 | DJ96: 0 | DK96: 0 | DL96: 0 | DM96: 0 | DN96: 0 | DO96: 0 | DP96: 0 | DQ96: 0 | DR96: 0 | DS96: 0 | DT96: 0 | DU96: 0 | DV96: 0 | DW96: 15683.2823 | DX96: 0 | DY96: 0 | DZ96: 0 | EA96: 0 | EB96: 0 | EC96: 0 | ED96: 0 | EE96: 0 | EF96: 0 | EG96: 0 | EH96: 0 | EI96: 0 | EJ96: 0
A97: ED_ASS521_00094 | C97: > 11 kV & < = 22 kV ; Circuit Breaker | N97: 45 | Y97: 6.708203932 | AJ97: 23.7 | AK97: 34.836 | AL97: 9.677 | AM97: 29.03 | AN97: 3.871 | AO97: 49.351 | AP97: 14.515 | AQ97: 0.968 | AR97: 29.998 | AS97: 16.45 | AT97: 40.642 | AU97: 3.871 | AV97: 9.677 | AW97: 3.871 | AX97: 32.901 | AY97: 4.838 | AZ97: 17.418 | BA97: 37.739 | BB97: 0 | BC97: 16.45 | BD97: 0 | BE97: 0.968 | BF97: 1.935 | BG97: 0 | BH97: 0 | BI97: 0 | BJ97: 4.838 | BK97: 0.968 | BL97: 25.159 | BM97: 5.806 | BN97: 2.903 | BO97: 6.774 | BP97: 13.547 | BQ97: 0 | BR97: 40.642 | BS97: 0 | BT97: 7.741 | BU97: 38.707 | BV97: 0 | BW97: 38.707 | BX97: 0 | BY97: 0 | BZ97: 0 | CA97: 0 | CB97: 0 | CC97: 3.871 | CD97: 29.998 | CE97: 7.741 | CF97: 10.644 | CG97: 5.806 | CH97: 15.483 | CI97: 11.612 | CJ97: 3.871 | CK97: 24.192 | CL97: 11.612 | CM97: 3.871 | CN97: 0.968 | CO97: 3.871 | CP97: 0 | CQ97: 3.871 | CR97: 1.935 | CS97: 0.968 | CT97: 0 | CU97: 0 | CV97: 0 | CW97: 0 | CX97: 0 | CY97: 0 | CZ97: 0 | DA97: 0 | DB97: 0 | DC97: 0 | DD97: 0 | DE97: 0 | DF97: 0 | DG97: 0 | DH97: 0 | DI97: 0 | DJ97: 0 | DK97: 0 | DL97: 0 | DM97: 0 | DN97: 0 | DO97: 0 | DP97: 0 | DQ97: 0 | DR97: 0 | DS97: 0 | DT97: 0 | DU97: 0 | DV97: 0 | DW97: 24.192 | DX97: 0 | DY97: 0 | DZ97: 0 | EA97: 0 | EB97: 0 | EC97: 0 | ED97: 0 | EE97: 0 | EF97: 0 | EG97: 0 | EH97: 0 | EI97: 0 | EJ97: 0
A98: ED_ASS521_00095 | C98: > 22 kV & < = 33 kV ; Switch | N98: 0 | Y98: 0 | AJ98: 0 | AK98: 0 | AL98: 0 | AM98: 0 | AN98: 0 | AO98: 0 | AP98: 0 | AQ98: 0 | AR98: 0 | AS98: 0 | AT98: 0 | AU98: 0 | AV98: 0 | AW98: 0 | AX98: 0 | AY98: 0 | AZ98: 0 | BA98: 0 | BB98: 0 | BC98: 0 | BD98: 0 | BE98: 0 | BF98: 0 | BG98: 0 | BH98: 0 | BI98: 0 | BJ98: 0 | BK98: 0 | BL98: 0 | BM98: 0 | BN98: 0 | BO98: 0 | BP98: 0 | BQ98: 0 | BR98: 0 | BS98: 0 | BT98: 0 | BU98: 0 | BV98: 0 | BW98: 0 | BX98: 0 | BY98: 0 | BZ98: 0 | CA98: 0 | CB98: 0 | CC98: 0 | CD98: 0 | CE98: 0 | CF98: 0 | CG98: 0 | CH98: 0 | CI98: 0 | CJ98: 0 | CK98: 0 | CL98: 0 | CM98: 0 | CN98: 0 | CO98: 0 | CP98: 0 | CQ98: 0 | CR98: 0 | CS98: 0 | CT98: 0 | CU98: 0 | CV98: 0 | CW98: 0 | CX98: 0 | CY98: 0 | CZ98: 0 | DA98: 0 | DB98: 0 | DC98: 0 | DD98: 0 | DE98: 0 | DF98: 0 | DG98: 0 | DH98: 0 | DI98: 0 | DJ98: 0 | DK98: 0 | DL98: 0 | DM98: 0 | DN98: 0 | DO98: 0 | DP98: 0 | DQ98: 0 | DR98: 0 | DS98: 0 | DT98: 0 | DU98: 0 | DV98: 0 | DW98: 0 | DX98: 0 | DY98: 0 | DZ98: 0 | EA98: 0 | EB98: 0 | EC98: 0 | ED98: 0 | EE98: 0 | EF98: 0 | EG98: 0 | EH98: 0 | EI98: 0 | EJ98: 0
A99: ED_ASS521_00096 | C99: > 22 kV & < = 33 kV ; Circuit Breaker | N99: 0 | Y99: 0 | AJ99: 0 | AK99: 0 | AL99: 0 | AM99: 0 | AN99: 0 | AO99: 0 | AP99: 0 | AQ99: 0 | AR99: 0 | AS99: 0 | AT99: 0 | AU99: 0 | AV99: 0 | AW99: 0 | AX99: 0 | AY99: 0 | AZ99: 0 | BA99: 0 | BB99: 0 | BC99: 0 | BD99: 0 | BE99: 0 | BF99: 0 | BG99: 0 | BH99: 0 | BI99: 0 | BJ99: 0 | BK99: 0 | BL99: 0 | BM99: 0 | BN99: 0 | BO99: 0 | BP99: 0 | BQ99: 0 | BR99: 0 | BS99: 0 | BT99: 0 | BU99: 0 | BV99: 0 | BW99: 0 | BX99: 0 | BY99: 0 | BZ99: 0 | CA99: 0 | CB99: 0 | CC99: 0 | CD99: 0 | CE99: 0 | CF99: 0 | CG99: 0 | CH99: 0 | CI99: 0 | CJ99: 0 | CK99: 0 | CL99: 0 | CM99: 0 | CN99: 0 | CO99: 0 | CP99: 0 | CQ99: 0 | CR99: 0 | CS99: 0 | CT99: 0 | CU99: 0 | CV99: 0 | CW99: 0 | CX99: 0 | CY99: 0 | CZ99: 0 | DA99: 0 | DB99: 0 | DC99: 0 | DD99: 0 | DE99: 0 | DF99: 0 | DG99: 0 | DH99: 0 | DI99: 0 | DJ99: 0 | DK99: 0 | DL99: 0 | DM99: 0 | DN99: 0 | DO99: 0 | DP99: 0 | DQ99: 0 | DR99: 0 | DS99: 0 | DT99: 0 | DU99: 0 | DV99: 0 | DW99: 0 | DX99: 0 | DY99: 0 | DZ99: 0 | EA99: 0 | EB99: 0 | EC99: 0 | ED99: 0 | EE99: 0 | EF99: 0 | EG99: 0 | EH99: 0 | EI99: 0 | EJ99: 0
A100: ED_ASS521_00097 | C100: > 33 kV & < = 66 kV ; Switch | N100: 47 | Y100: 6.8556546 | AJ100: 6 | AK100: 38 | AL100: 7 | AM100: 8 | AN100: 35 | AO100: 50 | AP100: 28 | AQ100: 19 | AR100: 19 | AS100: 20 | AT100: 27 | AU100: 12 | AV100: 22 | AW100: 4 | AX100: 62 | AY100: 0 | AZ100: 43 | BA100: 4 | BB100: 0 | BC100: 12 | BD100: 0 | BE100: 0 | BF100: 1 | BG100: 0 | BH100: 0 | BI100: 1 | BJ100: 0 | BK100: 5 | BL100: 10 | BM100: 4 | BN100: 5 | BO100: 26 | BP100: 13 | BQ100: 29 | BR100: 31 | BS100: 3 | BT100: 54 | BU100: 23 | BV100: 22 | BW100: 20 | BX100: 0 | BY100: 0 | BZ100: 0 | CA100: 0 | CB100: 0 | CC100: 68 | CD100: 10 | CE100: 25 | CF100: 41 | CG100: 41 | CH100: 22 | CI100: 55 | CJ100: 34 | CK100: 0 | CL100: 27 | CM100: 0 | CN100: 2 | CO100: 4 | CP100: 0 | CQ100: 0 | CR100: 0 | CS100: 0 | CT100: 0 | CU100: 0 | CV100: 4 | CW100: 31 | CX100: 0 | CY100: 5 | CZ100: 1 | DA100: 0 | DB100: 0 | DC100: 0 | DD100: 0 | DE100: 0 | DF100: 0 | DG100: 0 | DH100: 0 | DI100: 0 | DJ100: 0 | DK100: 0 | DL100: 0 | DM100: 0 | DN100: 0 | DO100: 0 | DP100: 0 | DQ100: 0 | DR100: 0 | DS100: 0 | DT100: 0 | DU100: 0 | DV100: 0 | DW100: 0 | DX100: 0 | DY100: 0 | DZ100: 0 | EA100: 0 | EB100: 0 | EC100: 0 | ED100: 0 | EE100: 0 | EF100: 0 | EG100: 0 | EH100: 0 | EI100: 0 | EJ100: 0
A101: ED_ASS521_00098 | C101: > 33 kV & < = 66 kV ; Circuit Breaker | N101: 45 | Y101: 6.708203932 | AJ101: 1 | AK101: 6 | AL101: 2 | AM101: 0 | AN101: 6 | AO101: 11 | AP101: 7 | AQ101: 5 | AR101: 4 | AS101: 2 | AT101: 13 | AU101: 2 | AV101: 3 | AW101: 0 | AX101: 7 | AY101: 1 | AZ101: 8 | BA101: 0 | BB101: 0 | BC101: 1 | BD101: 0 | BE101: 0 | BF101: 0 | BG101: 0 | BH101: 0 | BI101: 0 | BJ101: 0 | BK101: 0 | BL101: 1 | BM101: 2 | BN101: 1 | BO101: 0 | BP101: 2 | BQ101: 12 | BR101: 4 | BS101: 0 | BT101: 0 | BU101: 2 | BV101: 8 | BW101: 0 | BX101: 2 | BY101: 0 | BZ101: 0 | CA101: 0 | CB101: 0 | CC101: 0 | CD101: 8 | CE101: 0 | CF101: 9 | CG101: 11 | CH101: 3 | CI101: 4 | CJ101: 9 | CK101: 5 | CL101: 0 | CM101: 3 | CN101: 0 | CO101: 0 | CP101: 1 | CQ101: 0 | CR101: 0 | CS101: 1 | CT101: 0 | CU101: 0 | CV101: 0 | CW101: 0 | CX101: 0 | CY101: 0 | CZ101: 1 | DA101: 0 | DB101: 0 | DC101: 0 | DD101: 0 | DE101: 0 | DF101: 0 | DG101: 0 | DH101: 0 | DI101: 0 | DJ101: 1 | DK101: 0 | DL101: 0 | DM101: 0 | DN101: 0 | DO101: 0 | DP101: 0 | DQ101: 0 | DR101: 0 | DS101: 0 | DT101: 0 | DU101: 0 | DV101: 0 | DW101: 0 | DX101: 0 | DY101: 0 | DZ101: 0 | EA101: 0 | EB101: 0 | EC101: 0 | ED101: 0 | EE101: 0 | EF101: 0 | EG101: 0 | EH101: 0 | EI101: 0 | EJ101: 0
A102: ED_ASS521_00099 | C102: > 66 kV & < = 132 kV ; Switch | N102: 0 | Y102: 0 | AJ102: 0 | AK102: 0 | AL102: 0 | AM102: 0 | AN102: 0 | AO102: 0 | AP102: 0 | AQ102: 0 | AR102: 0 | AS102: 0 | AT102: 0 | AU102: 0 | AV102: 0 | AW102: 0 | AX102: 0 | AY102: 0 | AZ102: 0 | BA102: 0 | BB102: 0 | BC102: 0 | BD102: 0 | BE102: 0 | BF102: 0 | BG102: 0 | BH102: 0 | BI102: 0 | BJ102: 0 | BK102: 0 | BL102: 0 | BM102: 0 | BN102: 0 | BO102: 0 | BP102: 0 | BQ102: 0 | BR102: 0 | BS102: 0 | BT102: 0 | BU102: 0 | BV102: 0 | BW102: 0 | BX102: 0 | BY102: 0 | BZ102: 0 | CA102: 0 | CB102: 0 | CC102: 0 | CD102: 0 | CE102: 0 | CF102: 0 | CG102: 0 | CH102: 0 | CI102: 0 | CJ102: 0 | CK102: 0 | CL102: 0 | CM102: 0 | CN102: 0 | CO102: 0 | CP102: 0 | CQ102: 0 | CR102: 0 | CS102: 0 | CT102: 0 | CU102: 0 | CV102: 0 | CW102: 0 | CX102: 0 | CY102: 0 | CZ102: 0 | DA102: 0 | DB102: 0 | DC102: 0 | DD102: 0 | DE102: 0 | DF102: 0 | DG102: 0 | DH102: 0 | DI102: 0 | DJ102: 0 | DK102: 0 | DL102: 0 | DM102: 0 | DN102: 0 | DO102: 0 | DP102: 0 | DQ102: 0 | DR102: 0 | DS102: 0 | DT102: 0 | DU102: 0 | DV102: 0 | DW102: 0 | DX102: 0 | DY102: 0 | DZ102: 0 | EA102: 0 | EB102: 0 | EC102: 0 | ED102: 0 | EE102: 0 | EF102: 0 | EG102: 0 | EH102: 0 | EI102: 0 | EJ102: 0
A103: ED_ASS521_00100 | C103: > 66 kV & < = 132 kV ; Circuit Breaker | N103: 0 | Y103: 0 | AJ103: 0 | AK103: 0 | AL103: 0 | AM103: 0 | AN103: 0 | AO103: 0 | AP103: 0 | AQ103: 0 | AR103: 0 | AS103: 0 | AT103: 0 | AU103: 0 | AV103: 0 | AW103: 0 | AX103: 0 | AY103: 0 | AZ103: 0 | BA103: 0 | BB103: 0 | BC103: 0 | BD103: 0 | BE103: 0 | BF103: 0 | BG103: 0 | BH103: 0 | BI103: 0 | BJ103: 0 | BK103: 0 | BL103: 0 | BM103: 0 | BN103: 0 | BO103: 0 | BP103: 0 | BQ103: 0 | BR103: 0 | BS103: 0 | BT103: 0 | BU103: 0 | BV103: 0 | BW103: 0 | BX103: 0 | BY103: 0 | BZ103: 0 | CA103: 0 | CB103: 0 | CC103: 0 | CD103: 0 | CE103: 0 | CF103: 0 | CG103: 0 | CH103: 0 | CI103: 0 | CJ103: 0 | CK103: 0 | CL103: 0 | CM103: 0 | CN103: 0 | CO103: 0 | CP103: 0 | CQ103: 0 | CR103: 0 | CS103: 0 | CT103: 0 | CU103: 0 | CV103: 0 | CW103: 0 | CX103: 0 | CY103: 0 | CZ103: 0 | DA103: 0 | DB103: 0 | DC103: 0 | DD103: 0 | DE103: 0 | DF103: 0 | DG103: 0 | DH103: 0 | DI103: 0 | DJ103: 0 | DK103: 0 | DL103: 0 | DM103: 0 | DN103: 0 | DO103: 0 | DP103: 0 | DQ103: 0 | DR103: 0 | DS103: 0 | DT103: 0 | DU103: 0 | DV103: 0 | DW103: 0 | DX103: 0 | DY103: 0 | DZ103: 0 | EA103: 0 | EB103: 0 | EC103: 0 | ED103: 0 | EE103: 0 | EF103: 0 | EG103: 0 | EH103: 0 | EI103: 0 | EJ103: 0
A104: ED_ASS521_00101 | C104: > 132 kV ; Switch | N104: 0 | Y104: 0 | AJ104: 0 | AK104: 0 | AL104: 0 | AM104: 0 | AN104: 0 | AO104: 0 | AP104: 0 | AQ104: 0 | AR104: 0 | AS104: 0 | AT104: 0 | AU104: 0 | AV104: 0 | AW104: 0 | AX104: 0 | AY104: 0 | AZ104: 0 | BA104: 0 | BB104: 0 | BC104: 0 | BD104: 0 | BE104: 0 | BF104: 0 | BG104: 0 | BH104: 0 | BI104: 0 | BJ104: 0 | BK104: 0 | BL104: 0 | BM104: 0 | BN104: 0 | BO104: 0 | BP104: 0 | BQ104: 0 | BR104: 0 | BS104: 0 | BT104: 0 | BU104: 0 | BV104: 0 | BW104: 0 | BX104: 0 | BY104: 0 | BZ104: 0 | CA104: 0 | CB104: 0 | CC104: 0 | CD104: 0 | CE104: 0 | CF104: 0 | CG104: 0 | CH104: 0 | CI104: 0 | CJ104: 0 | CK104: 0 | CL104: 0 | CM104: 0 | CN104: 0 | CO104: 0 | CP104: 0 | CQ104: 0 | CR104: 0 | CS104: 0 | CT104: 0 | CU104: 0 | CV104: 0 | CW104: 0 | CX104: 0 | CY104: 0 | CZ104: 0 | DA104: 0 | DB104: 0 | DC104: 0 | DD104: 0 | DE104: 0 | DF104: 0 | DG104: 0 | DH104: 0 | DI104: 0 | DJ104: 0 | DK104: 0 | DL104: 0 | DM104: 0 | DN104: 0 | DO104: 0 | DP104: 0 | DQ104: 0 | DR104: 0 | DS104: 0 | DT104: 0 | DU104: 0 | DV104: 0 | DW104: 0 | DX104: 0 | DY104: 0 | DZ104: 0 | EA104: 0 | EB104: 0 | EC104: 0 | ED104: 0 | EE104: 0 | EF104: 0 | EG104: 0 | EH104: 0 | EI104: 0 | EJ104: 0
A105: ED_ASS521_00102 | C105: > 132 kV ; Circuit Breaker | N105: 0 | Y105: 0 | AJ105: 0 | AK105: 0 | AL105: 0 | AM105: 0 | AN105: 0 | AO105: 0 | AP105: 0 | AQ105: 0 | AR105: 0 | AS105: 0 | AT105: 0 | AU105: 0 | AV105: 0 | AW105: 0 | AX105: 0 | AY105: 0 | AZ105: 0 | BA105: 0 | BB105: 0 | BC105: 0 | BD105: 0 | BE105: 0 | BF105: 0 | BG105: 0 | BH105: 0 | BI105: 0 | BJ105: 0 | BK105: 0 | BL105: 0 | BM105: 0 | BN105: 0 | BO105: 0 | BP105: 0 | BQ105: 0 | BR105: 0 | BS105: 0 | BT105: 0 | BU105: 0 | BV105: 0 | BW105: 0 | BX105: 0 | BY105: 0 | BZ105: 0 | CA105: 0 | CB105: 0 | CC105: 0 | CD105: 0 | CE105: 0 | CF105: 0 | CG105: 0 | CH105: 0 | CI105: 0 | CJ105: 0 | CK105: 0 | CL105: 0 | CM105: 0 | CN105: 0 | CO105: 0 | CP105: 0 | CQ105: 0 | CR105: 0 | CS105: 0 | CT105: 0 | CU105: 0 | CV105: 0 | CW105: 0 | CX105: 0 | CY105: 0 | CZ105: 0 | DA105: 0 | DB105: 0 | DC105: 0 | DD105: 0 | DE105: 0 | DF105: 0 | DG105: 0 | DH105: 0 | DI105: 0 | DJ105: 0 | DK105: 0 | DL105: 0 | DM105: 0 | DN105: 0 | DO105: 0 | DP105: 0 | DQ105: 0 | DR105: 0 | DS105: 0 | DT105: 0 | DU105: 0 | DV105: 0 | DW105: 0 | DX105: 0 | DY105: 0 | DZ105: 0 | EA105: 0 | EB105: 0 | EC105: 0 | ED105: 0 | EE105: 0 | EF105: 0 | EG105: 0 | EH105: 0 | EI105: 0 | EJ105: 0
